Workbook

Sheet PI vs gap
A1: Measurement | B1: Hall
A2: Type | B2: Gap dependence
A4: Project | B4: ='10 mm'!B5 -> 504314
A5: PS serial no | B5: ='10 mm'!B7 -> 2410091
A7: Measurement date | B7: =LEFT('10 mm'!B4,10) -> 01-08-2024
A11: Nominal gap [mm] | B11: Encoder [counts] | C11: Encoder [mm] | D11: PI [T^2mm^3] | E11: PI spec [T^2mm^3] | F11: Encoder value at 10 mm gap:
A12: ='10 mm'!$B$53 -> 10 | B12: ='10 mm'!$B$55 -> 19.9648 | C12: =-1*($F$12-B12)+10 -> 9.99995 | D12: ='10 mm'!$K$3 -> 10615.62041 | F12: 19.96485
A13: ='15 mm'!$B$53 -> 15 | B13: ='15 mm'!$B$55 -> 24.9688 | C13: =-1*($F$12-B13)+10 -> 15.00395 | D13: ='15 mm'!$K$3 -> 7232.460569
A14: ='20 mm'!$B$53 -> 20 | B14: ='20 mm'!$B$55 -> 29.9674 | C14: 20.00255 | D14: ='20 mm'!$K$3 -> 5001.87636
A15: ='30 mm'!$B$53 -> 30 | B15: ='30 mm'!$B$55 -> 39.9654 | C15: 30.00055 | D15: ='30 mm'!$K$3 -> 2465.152804
A16: ='100 mm'!$B$53 -> 100 | B16: ='100 mm'!$B$55 -> 109.9667 | C16: 100.00185 | D16: ='100 mm'!$K$3 -> 39.50640555
A47: Measuring series at larger gaps:
A48: Reference magnet
A49: Tref | B49: 21.38 | C49: degC
A50: Hall ref field | B50: 0.505 | C50: T
A51: NMR ref field | B51: 0.50627 | C51: T
A53: Offset from Faro

Sheet 10 mm
A1: =IF('DF raw data'!A1="","",'DF raw data'!A1) -> Number of header lines | B1: =IF('DF raw data'!B1="","",'DF raw data'!B1) -> 54 | C1: =IF('DF raw data'!C1="","",'DF raw data'!C1) ->  | D1: =IF('DF raw data'!D1="","",'DF raw data'!D1) ->  | F1: T_coeff | G1: -0.00073 | H1: /degC | J1: IBy total | K1: =J1267*1000 -> 9.292208133 | L1: muTm | M1: =L1267*1000 -> -4.783225807 | R1: DF ref | S1: 1
A2: =IF('DF raw data'!A2="","",'DF raw data'!A2) -> Measured by | B2: =IF('DF raw data'!B2="","",'DF raw data'!B2) -> Danfysik | C2: =IF('DF raw data'!C2="","",'DF raw data'!C2) ->  | D2: =IF('DF raw data'!D2="","",'DF raw data'!D2) ->  | F2: Tcorr | G2: 20 | H2: degC | J2: JBy total | K2: =K1267 -> 2.162588493 | L2: muTm^2 | M2: =M1267 -> 1.032851549
A3: =IF('DF raw data'!A3="","",'DF raw data'!A3) -> Operator | B3: =IF('DF raw data'!B3="","",'DF raw data'!B3) -> PMHA | C3: =IF('DF raw data'!C3="","",'DF raw data'!C3) ->  | D3: =IF('DF raw data'!D3="","",'DF raw data'!D3) ->  | F3: Step | G3: =A68-A67 -> 0.5 | H3: mm | J3: PI total | K3: =N1267 -> 10615.62041 | L3: T^2mm^3
A4: =IF('DF raw data'!A4="","",'DF raw data'!A4) -> Data-time | B4: =IF('DF raw data'!B4="","",'DF raw data'!B4) -> 01-08-2024, 11:03:05 | C4: =IF('DF raw data'!C4="","",'DF raw data'!C4) ->  | D4: =IF('DF raw data'!D4="","",'DF raw data'!D4) -> 
A5: =IF('DF raw data'!A5="","",'DF raw data'!A5) -> Project | B5: =IF('DF raw data'!B5="","",'DF raw data'!B5) -> 504314 | C5: =IF('DF raw data'!C5="","",'DF raw data'!C5) ->  | D5: Bamb avr | F5: =(AVERAGE(B67:B107) + AVERAGE(B1227:B1267))/2 -> -2.378656951e-05 | G5: =(AVERAGE(C67:C107) + AVERAGE(C1227:C1267))/2 -> -0.0001650400854 | H5: =(AVERAGE(D67:D107) + AVERAGE(D1227:D1267))/2 -> -3.34106378e-05
A6: =IF('DF raw data'!A6="","",'DF raw data'!A6) -> Magnet type | B6: =IF('DF raw data'!B6="","",'DF raw data'!B6) -> Dipole | C6: =IF('DF raw data'!C6="","",'DF raw data'!C6) -> 
A7: =IF('DF raw data'!A7="","",'DF raw data'!A7) -> Magnet nr. | B7: =IF('DF raw data'!B7="","",'DF raw data'!B7) -> 2410091 | C7: =IF('DF raw data'!C7="","",'DF raw data'!C7) -> 
A8: =IF('DF raw data'!A8="","",'DF raw data'!A8) -> Meas. number | B8: =IF('DF raw data'!B8="","",'DF raw data'!B8) -> 168 | C8: =IF('DF raw data'!C8="","",'DF raw data'!C8) -> 
A9: =IF('DF raw data'!A9="","",'DF raw data'!A9) -> Add. info | B9: =IF('DF raw data'!B9="","",'DF raw data'!B9) -> X-alignment scan 3) | C9: =IF('DF raw data'!C9="","",'DF raw data'!C9) ->  | D9: =IF('DF raw data'!D9="","",'DF raw data'!D9) -> 
A10: =IF('DF raw data'!A10="","",'DF raw data'!A10) -> Device | B10: =IF('DF raw data'!B10="","",'DF raw data'!B10) -> (HAL) HALL-PROBE | C10: =IF('DF raw data'!C10="","",'DF raw data'!C10) ->  | D10: =IF('DF raw data'!D10="","",'DF raw data'!D10) -> 
A11: =IF('DF raw data'!A11="","",'DF raw data'!A11) -> Goal | B11: =IF('DF raw data'!B11="","",'DF raw data'!B11) -> (AXI) AXis Integral (Line, EFB) | C11: =IF('DF raw data'!C11="","",'DF raw data'!C11) ->  | D11: =IF('DF raw data'!D11="","",'DF raw data'!D11) -> 
A12: =IF('DF raw data'!A12="","",'DF raw data'!A12) -> Power supply mode | B12: =IF('DF raw data'!B12="","",'DF raw data'!B12) -> (PM) Permanent Magnet (no MPS in use) | C12: =IF('DF raw data'!C12="","",'DF raw data'!C12) ->  | D12: =IF('DF raw data'!D12="","",'DF raw data'!D12) -> 
A13: =IF('DF raw data'!A13="","",'DF raw data'!A13) -> Data format | B13: =IF('DF raw data'!B13="","",'DF raw data'!B13) -> Raw data text file | C13: =IF('DF raw data'!C13="","",'DF raw data'!C13) ->  | D13: =IF('DF raw data'!D13="","",'DF raw data'!D13) -> 
A14: =IF('DF raw data'!A14="","",'DF raw data'!A14) -> Direction of the pos. x-axis | B14: =IF('DF raw data'!B14="","",'DF raw data'!B14) -> See test program | C14: =IF('DF raw data'!C14="","",'DF raw data'!C14) ->  | D14: =IF('DF raw data'!D14="","",'DF raw data'!D14) -> 
A15: =IF('DF raw data'!A15="","",'DF raw data'!A15) -> Direction of the pos. y-axis | B15: =IF('DF raw data'!B15="","",'DF raw data'!B15) -> Vertical up | C15: =IF('DF raw data'!C15="","",'DF raw data'!C15) ->  | D15: =IF('DF raw data'!D15="","",'DF raw data'!D15) -> 
A16: =IF('DF raw data'!A16="","",'DF raw data'!A16) -> Direction of the pos. z-axis | B16: =IF('DF raw data'!B16="","",'DF raw data'!B16) -> See test program | C16: =IF('DF raw data'!C16="","",'DF raw data'!C16) ->  | D16: =IF('DF raw data'!D16="","",'DF raw data'!D16) -> 
A17: =IF('DF raw data'!A17="","",'DF raw data'!A17) -> Mapper type | B17: =IF('DF raw data'!B17="","",'DF raw data'!B17) -> Precision Hall Mapper | C17: =IF('DF raw data'!C17="","",'DF raw data'!C17) ->  | D17: =IF('DF raw data'!D17="","",'DF raw data'!D17) -> 
A18: =IF('DF raw data'!A18="","",'DF raw data'!A18) -> Mapper Danfysik Reg. Number | B18: =IF('DF raw data'!B18="","",'DF raw data'!B18) -> 2033-D (mapper 1) | C18: =IF('DF raw data'!C18="","",'DF raw data'!C18) ->  | D18: =IF('DF raw data'!D18="","",'DF raw data'!D18) -> 
A19: =IF('DF raw data'!A19="","",'DF raw data'!A19) -> Measurement consept | B19: =IF('DF raw data'!B19="","",'DF raw data'!B19) -> Square line grid | C19: =IF('DF raw data'!C19="","",'DF raw data'!C19) ->  | D19: =IF('DF raw data'!D19="","",'DF raw data'!D19) -> 
A20: =IF('DF raw data'!A20="","",'DF raw data'!A20) -> Mode | B20: =IF('DF raw data'!B20="","",'DF raw data'!B20) -> On-the-fly measurement | C20: =IF('DF raw data'!C20="","",'DF raw data'!C20) ->  | D20: =IF('DF raw data'!D20="","",'DF raw data'!D20) -> 
A21: =IF('DF raw data'!A21="","",'DF raw data'!A21) ->  | B21: =IF('DF raw data'!B21="","",'DF raw data'!B21) ->  | C21: =IF('DF raw data'!C21="","",'DF raw data'!C21) ->  | D21: =IF('DF raw data'!D21="","",'DF raw data'!D21) -> 
A22: =IF('DF raw data'!A22="","",'DF raw data'!A22) -> Probe Name | B22: =IF('DF raw data'!B22="","",'DF raw data'!B22) -> ID12_By | C22: =IF('DF raw data'!C22="","",'DF raw data'!C22) ->  | D22: =IF('DF raw data'!D22="","",'DF raw data'!D22) -> 
A23: =IF('DF raw data'!A23="","",'DF raw data'!A23) -> Probe Type | B23: =IF('DF raw data'!B23="","",'DF raw data'!B23) -> DF_ID_3D_Bxyz | C23: =IF('DF raw data'!C23="","",'DF raw data'!C23) ->  | D23: =IF('DF raw data'!D23="","",'DF raw data'!D23) -> 
A24: =IF('DF raw data'!A24="","",'DF raw data'!A24) -> Probe Danfysik Reg. Number | B24: =IF('DF raw data'!B24="","",'DF raw data'!B24) -> 2277 | C24: =IF('DF raw data'!C24="","",'DF raw data'!C24) ->  | D24: =IF('DF raw data'!D24="","",'DF raw data'!D24) -> 
A25: =IF('DF raw data'!A25="","",'DF raw data'!A25) -> Probe Axis | B25: =IF('DF raw data'!B25="","",'DF raw data'!B25) -> By | C25: =IF('DF raw data'!C25="","",'DF raw data'!C25) ->  | D25: =IF('DF raw data'!D25="","",'DF raw data'!D25) -> 
A26: =IF('DF raw data'!A26="","",'DF raw data'!A26) -> Probe Current Supply | B26: =IF('DF raw data'!B26="","",'DF raw data'!B26) -> 1825-D | C26: =IF('DF raw data'!C26="","",'DF raw data'!C26) ->  | D26: =IF('DF raw data'!D26="","",'DF raw data'!D26) -> 
A27: =IF('DF raw data'!A27="","",'DF raw data'!A27) -> Probe Gain Correction | B27: =IF('DF raw data'!B27="","",'DF raw data'!B27) -> 0.99613 | C27: =IF('DF raw data'!C27="","",'DF raw data'!C27) ->  | D27: =IF('DF raw data'!D27="","",'DF raw data'!D27) -> 
A28: =IF('DF raw data'!A28="","",'DF raw data'!A28) -> Probe Offset Correction | B28: =IF('DF raw data'!B28="","",'DF raw data'!B28) -> 0.0027562 | C28: =IF('DF raw data'!C28="","",'DF raw data'!C28) ->  | D28: =IF('DF raw data'!D28="","",'DF raw data'!D28) -> 
A29: =IF('DF raw data'!A29="","",'DF raw data'!A29) -> DVM Number | B29: =IF('DF raw data'!B29="","",'DF raw data'!B29) -> 2 | C29: =IF('DF raw data'!C29="","",'DF raw data'!C29) ->  | D29: =IF('DF raw data'!D29="","",'DF raw data'!D29) -> 
A30: =IF('DF raw data'!A30="","",'DF raw data'!A30) -> DVM Type | B30: =IF('DF raw data'!B30="","",'DF raw data'!B30) -> K2701 | C30: =IF('DF raw data'!C30="","",'DF raw data'!C30) ->  | D30: =IF('DF raw data'!D30="","",'DF raw data'!D30) -> 
A31: =IF('DF raw data'!A31="","",'DF raw data'!A31) -> DVM Danfysik Reg. Number | B31: =IF('DF raw data'!B31="","",'DF raw data'!B31) -> 1743-D | C31: =IF('DF raw data'!C31="","",'DF raw data'!C31) ->  | D31: =IF('DF raw data'!D31="","",'DF raw data'!D31) -> 
A32: =IF('DF raw data'!A32="","",'DF raw data'!A32) -> Probe Name | B32: =IF('DF raw data'!B32="","",'DF raw data'!B32) -> ID12_Bx | C32: =IF('DF raw data'!C32="","",'DF raw data'!C32) ->  | D32: =IF('DF raw data'!D32="","",'DF raw data'!D32) -> 
A33: =IF('DF raw data'!A33="","",'DF raw data'!A33) -> Probe Type | B33: =IF('DF raw data'!B33="","",'DF raw data'!B33) -> DF_ID_3D_Bxyz | C33: =IF('DF raw data'!C33="","",'DF raw data'!C33) ->  | D33: =IF('DF raw data'!D33="","",'DF raw data'!D33) -> 
A34: =IF('DF raw data'!A34="","",'DF raw data'!A34) -> Probe Danfysik Reg. Number | B34: =IF('DF raw data'!B34="","",'DF raw data'!B34) -> 2277 | C34: =IF('DF raw data'!C34="","",'DF raw data'!C34) ->  | D34: =IF('DF raw data'!D34="","",'DF raw data'!D34) -> 
A35: =IF('DF raw data'!A35="","",'DF raw data'!A35) -> Probe Axis | B35: =IF('DF raw data'!B35="","",'DF raw data'!B35) -> Bx | C35: =IF('DF raw data'!C35="","",'DF raw data'!C35) ->  | D35: =IF('DF raw data'!D35="","",'DF raw data'!D35) -> 
A36: =IF('DF raw data'!A36="","",'DF raw data'!A36) -> Probe Current Supply | B36: =IF('DF raw data'!B36="","",'DF raw data'!B36) -> 1825-D | C36: =IF('DF raw data'!C36="","",'DF raw data'!C36) ->  | D36: =IF('DF raw data'!D36="","",'DF raw data'!D36) -> 
A37: =IF('DF raw data'!A37="","",'DF raw data'!A37) -> Probe Gain Correction | B37: =IF('DF raw data'!B37="","",'DF raw data'!B37) -> 1 | C37: =IF('DF raw data'!C37="","",'DF raw data'!C37) ->  | D37: =IF('DF raw data'!D37="","",'DF raw data'!D37) -> 
A38: =IF('DF raw data'!A38="","",'DF raw data'!A38) -> Probe Offset Correction | B38: =IF('DF raw data'!B38="","",'DF raw data'!B38) -> -0.17564 | C38: =IF('DF raw data'!C38="","",'DF raw data'!C38) ->  | D38: =IF('DF raw data'!D38="","",'DF raw data'!D38) -> 
A39: =IF('DF raw data'!A39="","",'DF raw data'!A39) -> DVM Number | B39: =IF('DF raw data'!B39="","",'DF raw data'!B39) -> 3 | C39: =IF('DF raw data'!C39="","",'DF raw data'!C39) ->  | D39: =IF('DF raw data'!D39="","",'DF raw data'!D39) -> 
A40: =IF('DF raw data'!A40="","",'DF raw data'!A40) -> DVM Type | B40: =IF('DF raw data'!B40="","",'DF raw data'!B40) -> K2701 | C40: =IF('DF raw data'!C40="","",'DF raw data'!C40) ->  | D40: =IF('DF raw data'!D40="","",'DF raw data'!D40) -> 
A41: =IF('DF raw data'!A41="","",'DF raw data'!A41) -> DVM Danfysik Reg. Number | B41: =IF('DF raw data'!B41="","",'DF raw data'!B41) -> 1744-D | C41: =IF('DF raw data'!C41="","",'DF raw data'!C41) ->  | D41: =IF('DF raw data'!D41="","",'DF raw data'!D41) -> 
A42: =IF('DF raw data'!A42="","",'DF raw data'!A42) -> Probe Name | B42: =IF('DF raw data'!B42="","",'DF raw data'!B42) -> ID12_Bz | C42: =IF('DF raw data'!C42="","",'DF raw data'!C42) ->  | D42: =IF('DF raw data'!D42="","",'DF raw data'!D42) -> 
A43: =IF('DF raw data'!A43="","",'DF raw data'!A43) -> Probe Type | B43: =IF('DF raw data'!B43="","",'DF raw data'!B43) -> DF_ID_3D_Bxyz | C43: =IF('DF raw data'!C43="","",'DF raw data'!C43) ->  | D43: =IF('DF raw data'!D43="","",'DF raw data'!D43) -> 
A44: =IF('DF raw data'!A44="","",'DF raw data'!A44) -> Probe Danfysik Reg. Number | B44: =IF('DF raw data'!B44="","",'DF raw data'!B44) -> 2277 | C44: =IF('DF raw data'!C44="","",'DF raw data'!C44) ->  | D44: =IF('DF raw data'!D44="","",'DF raw data'!D44) -> 
A45: =IF('DF raw data'!A45="","",'DF raw data'!A45) -> Probe Axis | B45: =IF('DF raw data'!B45="","",'DF raw data'!B45) -> Bz | C45: =IF('DF raw data'!C45="","",'DF raw data'!C45) ->  | D45: =IF('DF raw data'!D45="","",'DF raw data'!D45) -> 
A46: =IF('DF raw data'!A46="","",'DF raw data'!A46) -> Probe Current Supply | B46: =IF('DF raw data'!B46="","",'DF raw data'!B46) -> 1825-D | C46: =IF('DF raw data'!C46="","",'DF raw data'!C46) ->  | D46: =IF('DF raw data'!D46="","",'DF raw data'!D46) -> 
A47: =IF('DF raw data'!A47="","",'DF raw data'!A47) -> Probe Gain Correction | B47: =IF('DF raw data'!B47="","",'DF raw data'!B47) -> 1 | C47: =IF('DF raw data'!C47="","",'DF raw data'!C47) ->  | D47: =IF('DF raw data'!D47="","",'DF raw data'!D47) -> 
A48: =IF('DF raw data'!A48="","",'DF raw data'!A48) -> Probe Offset Correction | B48: =IF('DF raw data'!B48="","",'DF raw data'!B48) -> 0.0073401 | C48: =IF('DF raw data'!C48="","",'DF raw data'!C48) ->  | D48: =IF('DF raw data'!D48="","",'DF raw data'!D48) -> 
A49: =IF('DF raw data'!A49="","",'DF raw data'!A49) -> DVM Number | B49: =IF('DF raw data'!B49="","",'DF raw data'!B49) -> 8 | C49: =IF('DF raw data'!C49="","",'DF raw data'!C49) ->  | D49: =IF('DF raw data'!D49="","",'DF raw data'!D49) -> 
A50: =IF('DF raw data'!A50="","",'DF raw data'!A50) -> DVM Type | B50: =IF('DF raw data'!B50="","",'DF raw data'!B50) -> K2700 | C50: =IF('DF raw data'!C50="","",'DF raw data'!C50) ->  | D50: =IF('DF raw data'!D50="","",'DF raw data'!D50) -> 
A51: =IF('DF raw data'!A51="","",'DF raw data'!A51) -> DVM Danfysik Reg. Number | B51: =IF('DF raw data'!B51="","",'DF raw data'!B51) -> 1756-D | C51: =IF('DF raw data'!C51="","",'DF raw data'!C51) ->  | D51: =IF('DF raw data'!D51="","",'DF raw data'!D51) -> 
A52: =IF('DF raw data'!A52="","",'DF raw data'!A52) -> NTC voltage | B52: =IF('DF raw data'!B52="","",'DF raw data'!B52) -> 0.39202 | C52: =IF('DF raw data'!C52="","",'DF raw data'!C52) ->  | D52: =IF('DF raw data'!D52="","",'DF raw data'!D52) -> 
A53: =IF('DF raw data'!A53="","",'DF raw data'!A53) -> PS-Gap: | B53: =IF('DF raw data'!B53="","",'DF raw data'!B53) -> 10 | C53: =IF('DF raw data'!C53="","",'DF raw data'!C53) ->  | D53: =IF('DF raw data'!D53="","",'DF raw data'!D53) -> 
A54: =IF('DF raw data'!A54="","",'DF raw data'!A54) -> PS-Temperature: | B54: =IF('DF raw data'!B54="","",'DF raw data'!B54) -> 27 | C54: =IF('DF raw data'!C54="","",'DF raw data'!C54) ->  | D54: =IF('DF raw data'!D54="","",'DF raw data'!D54) -> 
A55: =IF('DF raw data'!A55="","",'DF raw data'!A55) -> PS-Encoder: | B55: =IF('DF raw data'!B55="","",'DF raw data'!B55) -> 19.9648 | C55: =IF('DF raw data'!C55="","",'DF raw data'!C55) ->  | D55: =IF('DF raw data'!D55="","",'DF raw data'!D55) -> 
A56: =IF('DF raw data'!A56="","",'DF raw data'!A56) ->  | B56: =IF('DF raw data'!B56="","",'DF raw data'!B56) -> 
A57: =IF('DF raw data'!A57="","",'DF raw data'!A57) -> Monitor-Index | B57: =IF('DF raw data'!B57="","",'DF raw data'!B57) -> [1,1,4]
A58: =IF('DF raw data'!A58="","",'DF raw data'!A58) ->  | B58: =IF('DF raw data'!B58="","",'DF raw data'!B58) -> 
A59: =IF('DF raw data'!A59="","",'DF raw data'!A59) -> Time [s] | B59: =IF('DF raw data'!B59="","",'DF raw data'!B59) -> Y [mm]
A60: =IF('DF raw data'!A60="","",'DF raw data'!A60) ->  | B60: =IF('DF raw data'!B60="","",'DF raw data'!B60) -> 
A61: =IF('DF raw data'!A61="","",'DF raw data'!A61) -> 207.7 | B61: =IF('DF raw data'!B61="","",'DF raw data'!B61) -> 31.16
A62: =IF('DF raw data'!A62="","",'DF raw data'!A62) ->  | B62: =IF('DF raw data'!B62="","",'DF raw data'!B62) -> 
A63: =IF('DF raw data'!A63="","",'DF raw data'!A63) -> Measurement-Index | B63: =IF('DF raw data'!B63="","",'DF raw data'!B63) -> [1,1,1201,2]
A64: =IF('DF raw data'!A64="","",'DF raw data'!A64) ->  | B64: =IF('DF raw data'!B64="","",'DF raw data'!B64) -> 
A65: =IF('DF raw data'!A65="","",'DF raw data'!A65) -> Z [mm] | B65: =IF('DF raw data'!B65="","",'DF raw data'!B65) -> By [T] | C65: =IF('DF raw data'!C65="","",'DF raw data'!C65) -> Bx [T] | D65: =IF('DF raw data'!D65="","",'DF raw data'!D65) -> Bz [T] | F65: By_corr | G65: Bx_corr | H65: Bz_corr | J65: Iy | K65: Jy | L65: Ix | M65: Jx | N65: PI
A66: =IF('DF raw data'!A66="","",'DF raw data'!A66) -> [1, 0, 0, 0] | B66: =IF('DF raw data'!B66="","",'DF raw data'!B66) ->  | C66: =IF('DF raw data'!C66="","",'DF raw data'!C66) ->  | D66: =IF('DF raw data'!D66="","",'DF raw data'!D66) -> 
A67: =IF('DF raw data'!A67="","",'DF raw data'!A67) -> -300 | B67: =IF('DF raw data'!B67="","",'DF raw data'!B67) -> -1.60228e-05 | C67: =IF('DF raw data'!C67="","",'DF raw data'!C67) -> -0.00015805 | D67: =IF('DF raw data'!D67="","",'DF raw data'!D67) -> -3.54765e-05 | F67: =(1-$G$1*($B$54-$G$2))*(B67-F$5) -> 7.803442374e-06 | G67: =(1-$G$1*($B$54-$G$2))*(C67-G$5) -> 7.025804702e-06 | H67: =(1-$G$1*($B$54-$G$2))*(D67-H$5) -> -2.076418751e-06 | J67: =F67*$G$3+J66 -> 3.901721187e-06 | K67: =J67*$G$3+K66 -> 1.950860594e-06 | L67: =G67*$G$3+L66 -> 3.512902351e-06 | M67: =L67*$G$3+M66 -> 1.756451176e-06 | N67: =(J67^2+L67^2)*$G$3+N66 -> 1.378195558e-11
A68: =IF('DF raw data'!A68="","",'DF raw data'!A68) -> -299.5 | B68: =IF('DF raw data'!B68="","",'DF raw data'!B68) -> -1.94858e-05 | C68: =IF('DF raw data'!C68="","",'DF raw data'!C68) -> -0.00016004 | D68: =IF('DF raw data'!D68="","",'DF raw data'!D68) -> -3.52206e-05 | F68: 4.322746444e-06 | G68: 5.025635802e-06 | H68: -1.819211102e-06 | J68: =F68*$G$3+J67 -> 6.063094409e-06 | K68: =J68*$G$3+K67 -> 4.982407798e-06 | L68: =G68*$G$3+L67 -> 6.025720252e-06 | M68: =L68*$G$3+M67 -> 4.769311302e-06 | N68: =(J68^2+L68^2)*$G$3+N67 -> 5.031716476e-11
A69: =IF('DF raw data'!A69="","",'DF raw data'!A69) -> -299 | B69: =IF('DF raw data'!B69="","",'DF raw data'!B69) -> -1.92295e-05 | C69: =IF('DF raw data'!C69="","",'DF raw data'!C69) -> -0.000162058 | D69: =IF('DF raw data'!D69="","",'DF raw data'!D69) -> -3.48833e-05 | F69: 4.580356137e-06 | G69: 2.997323822e-06 | H69: -1.480187499e-06 | J69: 8.353272478e-06 | K69: 9.159044037e-06 | L69: 7.524382163e-06 | M69: 8.531502383e-06 | N69: 1.135139088e-10
A70: =IF('DF raw data'!A70="","",'DF raw data'!A70) -> -298.5 | B70: =IF('DF raw data'!B70="","",'DF raw data'!B70) -> -1.58309e-05 | C70: =IF('DF raw data'!C70="","",'DF raw data'!C70) -> -0.000150597 | D70: =IF('DF raw data'!D70="","",'DF raw data'!D70) -> -3.49352e-05 | F70: 7.996322983e-06 | G70: 1.451688953e-05 | H70: -1.532352708e-06 | J70: 1.235143397e-05 | K70: 1.533476102e-05 | L70: 1.478282693e-05 | M70: 1.592291585e-05 | N70: 2.990588553e-10
A71: =IF('DF raw data'!A71="","",'DF raw data'!A71) -> -298 | B71: =IF('DF raw data'!B71="","",'DF raw data'!B71) -> -1.92293e-05 | C71: =IF('DF raw data'!C71="","",'DF raw data'!C71) -> -0.000145352 | D71: =IF('DF raw data'!D71="","",'DF raw data'!D71) -> -3.52504e-05 | F71: 4.580557159e-06 | G71: 1.978869148e-05 | H71: -1.84916338e-06 | J71: 1.464171255e-05 | K71: 2.26556173e-05 | L71: 2.467717267e-05 | M71: 2.826150218e-05 | N71: 7.10730154e-10
A72: =IF('DF raw data'!A72="","",'DF raw data'!A72) -> -297.5 | B72: =IF('DF raw data'!B72="","",'DF raw data'!B72) -> -1.99343e-05 | C72: =IF('DF raw data'!C72="","",'DF raw data'!C72) -> -0.000144007 | D72: =IF('DF raw data'!D72="","",'DF raw data'!D72) -> -3.56004e-05 | F72: 3.871954609e-06 | G72: 2.114056443e-05 | H72: -2.20095188e-06 | J72: 1.657768985e-05 | K72: 3.094446222e-05 | L72: 3.524745489e-05 | M72: 4.588522963e-05 | N72: 1.469331592e-09
A73: =IF('DF raw data'!A73="","",'DF raw data'!A73) -> -297 | B73: =IF('DF raw data'!B73="","",'DF raw data'!B73) -> -2.0255e-05 | C73: =IF('DF raw data'!C73="","",'DF raw data'!C73) -> -0.000150543 | D73: =IF('DF raw data'!D73="","",'DF raw data'!D73) -> -3.56233e-05 | F73: 3.549615832e-06 | G73: 1.457116547e-05 | H73: -2.223968899e-06 | J73: 1.835249777e-05 | K73: 4.012071111e-05 | L73: 4.253303762e-05 | M73: 6.715174844e-05 | N73: 2.542268324e-09
A74: =IF('DF raw data'!A74="","",'DF raw data'!A74) -> -296.5 | B74: =IF('DF raw data'!B74="","",'DF raw data'!B74) -> -3.32724e-05 | C74: =IF('DF raw data'!C74="","",'DF raw data'!C74) -> -0.000151255 | D74: =IF('DF raw data'!D74="","",'DF raw data'!D74) -> -3.51943e-05 | F74: -9.534303082e-06 | G74: 1.385552715e-05 | H74: -1.792776709e-06 | J74: 1.358534623e-05 | K74: 4.691338422e-05 | L74: 4.94608012e-05 | M74: 9.188214904e-05 | N74: 3.857734568e-09
A75: =IF('DF raw data'!A75="","",'DF raw data'!A75) -> -296 | B75: =IF('DF raw data'!B75="","",'DF raw data'!B75) -> -1.77545e-05 | C75: =IF('DF raw data'!C75="","",'DF raw data'!C75) -> -0.000138349 | D75: =IF('DF raw data'!D75="","",'DF raw data'!D75) -> -3.50627e-05 | F75: 6.062893387e-06 | G75: 2.682747681e-05 | H75: -1.660504233e-06 | J75: 1.661679292e-05 | K75: 5.522178069e-05 | L75: 6.28745396e-05 | M75: 0.0001233194188 | N75: 5.972397337e-09
A76: =IF('DF raw data'!A76="","",'DF raw data'!A76) -> -295.5 | B76: =IF('DF raw data'!B76="","",'DF raw data'!B76) -> -3.08357e-05 | C76: =IF('DF raw data'!C76="","",'DF raw data'!C76) -> -0.000144104 | D76: =IF('DF raw data'!D76="","",'DF raw data'!D76) -> -3.51961e-05 | F76: -7.085151545e-06 | G76: 2.104306876e-05 | H76: -1.794585907e-06 | J76: 1.307421715e-05 | K76: 6.175888926e-05 | L76: 7.339607399e-05 | M76: 0.0001600174558 | N76: 8.751356752e-09
A77: =IF('DF raw data'!A77="","",'DF raw data'!A77) -> -295 | B77: =IF('DF raw data'!B77="","",'DF raw data'!B77) -> -2.53212e-05 | C77: =IF('DF raw data'!C77="","",'DF raw data'!C77) -> -0.000142095 | D77: =IF('DF raw data'!D77="","",'DF raw data'!D77) -> -3.51004e-05 | F77: -1.54247245e-06 | G77: 2.306233475e-05 | H77: -1.69839688e-06 | J77: 1.230298093e-05 | K77: 6.791037972e-05 | L77: 8.492724136e-05 | M77: 0.0002024810765 | N77: 1.243335658e-08
A78: =IF('DF raw data'!A78="","",'DF raw data'!A78) -> -294.5 | B78: =IF('DF raw data'!B78="","",'DF raw data'!B78) -> -3.1157e-05 | C78: =IF('DF raw data'!C78="","",'DF raw data'!C78) -> -0.000143135 | D78: =IF('DF raw data'!D78="","",'DF raw data'!D78) -> -3.44358e-05 | F78: -7.408093388e-06 | G78: 2.201702035e-05 | H78: -1.030400774e-06 | J78: 8.598934232e-06 | K78: 7.220984684e-05 | L78: 9.593575154e-05 | M78: 0.0002504489523 | N78: 1.707216163e-08
A79: =IF('DF raw data'!A79="","",'DF raw data'!A79) -> -294 | B79: =IF('DF raw data'!B79="","",'DF raw data'!B79) -> -2.75022e-05 | C79: =IF('DF raw data'!C79="","",'DF raw data'!C79) -> -0.000144935 | D79: =IF('DF raw data'!D79="","",'DF raw data'!D79) -> -3.38847e-05 | F79: -3.73461736e-06 | G79: 2.020782235e-05 | H79: -4.764846529e-07 | J79: 6.731625553e-06 | K79: 7.557565962e-05 | L79: 0.0001060396627 | M79: 0.0003034687836 | N79: 2.271702406e-08
A80: =IF('DF raw data'!A80="","",'DF raw data'!A80) -> -293.5 | B80: =IF('DF raw data'!B80="","",'DF raw data'!B80) -> -1.80755e-05 | C80: =IF('DF raw data'!C80="","",'DF raw data'!C80) -> -0.000145583 | D80: =IF('DF raw data'!D80="","",'DF raw data'!D80) -> -3.42308e-05 | F80: 5.740253077e-06 | G80: 1.955651107e-05 | H80: -8.243532239e-07 | J80: 9.601752091e-06 | K80: 8.037653566e-05 | L80: 0.0001158179182 | M80: 0.0003613777428 | N80: 2.947001597e-08
A81: =IF('DF raw data'!A81="","",'DF raw data'!A81) -> -293 | B81: =IF('DF raw data'!B81="","",'DF raw data'!B81) -> -1.9037e-05 | C81: =IF('DF raw data'!C81="","",'DF raw data'!C81) -> -0.000145741 | D81: =IF('DF raw data'!D81="","",'DF raw data'!D81) -> -3.49742e-05 | F81: 4.773839812e-06 | G81: 1.939770369e-05 | H81: -1.571551998e-06 | J81: 1.1988672e-05 | K81: 8.637087166e-05 | L81: 0.0001255167701 | M81: 0.0004241361278 | N81: 3.741910989e-08
A82: =IF('DF raw data'!A82="","",'DF raw data'!A82) -> -292.5 | B82: =IF('DF raw data'!B82="","",'DF raw data'!B82) -> -2.66037e-05 | C82: =IF('DF raw data'!C82="","",'DF raw data'!C82) -> -0.000146409 | D82: =IF('DF raw data'!D82="","",'DF raw data'!D82) -> -3.50861e-05 | F82: -2.831526025e-06 | G82: 1.872629021e-05 | H82: -1.684023807e-06 | J82: 1.057290899e-05 | K82: 9.165732615e-05 | L82: 0.0001348799152 | M82: 0.0004915760854 | N82: 4.657129885e-08
A83: =IF('DF raw data'!A83="","",'DF raw data'!A83) -> -292 | B83: =IF('DF raw data'!B83="","",'DF raw data'!B83) -> -2.25639e-05 | C83: =IF('DF raw data'!C83="","",'DF raw data'!C83) -> -0.000142919 | D83: =IF('DF raw data'!D83="","",'DF raw data'!D83) -> -3.48735e-05 | F83: 1.228917353e-06 | G83: 2.223412411e-05 | H83: -1.470337421e-06 | J83: 1.118736766e-05 | K83: 9.725100998e-05 | L83: 0.0001459969773 | M83: 0.000564574574 | N83: 5.729143613e-08
A84: =IF('DF raw data'!A84="","",'DF raw data'!A84) -> -291.5 | B84: =IF('DF raw data'!B84="","",'DF raw data'!B84) -> -1.91605e-05 | C84: =IF('DF raw data'!C84="","",'DF raw data'!C84) -> -0.000137569 | D84: =IF('DF raw data'!D84="","",'DF raw data'!D84) -> -4.22671e-05 | F84: 4.649708727e-06 | G84: 2.761146261e-05 | H84: -8.901718717e-06 | J84: 1.351222203e-05 | K84: 0.000104007121 | L84: 0.0001598027086 | M84: 0.0006444759283 | N84: 7.015117904e-08
A85: =IF('DF raw data'!A85="","",'DF raw data'!A85) -> -291 | B85: =IF('DF raw data'!B85="","",'DF raw data'!B85) -> -2.98732e-05 | C85: =IF('DF raw data'!C85="","",'DF raw data'!C85) -> -0.000151693 | D85: =IF('DF raw data'!D85="","",'DF raw data'!D85) -> -3.60828e-05 | F85: -6.11773317e-06 | G85: 1.341528897e-05 | H85: -2.685816944e-06 | J85: 1.045335544e-05 | K85: 0.0001092337987 | L85: 0.000166510353 | M85: 0.0007277311048 | N85: 8.406866419e-08
A86: =IF('DF raw data'!A86="","",'DF raw data'!A86) -> -290.5 | B86: =IF('DF raw data'!B86="","",'DF raw data'!B86) -> -1.39024e-05 | C86: =IF('DF raw data'!C86="","",'DF raw data'!C86) -> -0.000154858 | D86: =IF('DF raw data'!D86="","",'DF raw data'!D86) -> -4.2355e-05 | F86: 9.934677618e-06 | G86: 1.023411582e-05 | H86: -8.990067886e-06 | J86: 1.542069425e-05 | K86: 0.0001169441458 | L86: 0.000171627411 | M86: 0.0008135448103 | N86: 9.89155472e-08
A87: =IF('DF raw data'!A87="","",'DF raw data'!A87) -> -290 | B87: =IF('DF raw data'!B87="","",'DF raw data'!B87) -> -1.96733e-05 | C87: =IF('DF raw data'!C87="","",'DF raw data'!C87) -> -0.000151076 | D87: =IF('DF raw data'!D87="","",'DF raw data'!D87) -> -4.25501e-05 | F87: 4.134288319e-06 | G87: 1.403544184e-05 | H87: -9.186164847e-06 | J87: 1.748783841e-05 | K87: 0.000125688065 | L87: 0.0001786451319 | M87: 0.0009028673763 | N87: 1.15025501e-07
A88: =IF('DF raw data'!A88="","",'DF raw data'!A88) -> -289.5 | B88: =IF('DF raw data'!B88="","",'DF raw data'!B88) -> -2.14749e-05 | C88: =IF('DF raw data'!C88="","",'DF raw data'!C88) -> -0.000149785 | D88: =IF('DF raw data'!D88="","",'DF raw data'!D88) -> -3.30239e-05 | F88: 2.323482143e-06 | G88: 1.533303885e-05 | H88: 3.887140351e-07 | J88: 1.864957948e-05 | K88: 0.0001350128548 | L88: 0.0001863116513 | M88: 0.0009960232019 | N88: 1.325554201e-07
A89: =IF('DF raw data'!A89="","",'DF raw data'!A89) -> -289 | B89: =IF('DF raw data'!B89="","",'DF raw data'!B89) -> -2.08287e-05 | C89: =IF('DF raw data'!C89="","",'DF raw data'!C89) -> -0.000147253 | D89: =IF('DF raw data'!D89="","",'DF raw data'!D89) -> -4.07028e-05 | F89: 2.972984225e-06 | G89: 1.787797737e-05 | H89: -7.329425144e-06 | J89: 2.013607159e-05 | K89: 0.0001450808906 | L89: 0.00019525064 | M89: 0.001093648522 | N89: 1.51819557e-07
A90: =IF('DF raw data'!A90="","",'DF raw data'!A90) -> -288.5 | B90: =IF('DF raw data'!B90="","",'DF raw data'!B90) -> -3.12912e-05 | C90: =IF('DF raw data'!C90="","",'DF raw data'!C90) -> -0.000146116 | D90: =IF('DF raw data'!D90="","",'DF raw data'!D90) -> -2.51328e-05 | F90: -7.54297915e-06 | G90: 1.902078744e-05 | H90: 8.320137556e-06 | J90: 1.636458202e-05 | K90: 0.0001532631816 | L90: 0.0002047610337 | M90: 0.001196029039 | N90: 1.729169973e-07
A91: =IF('DF raw data'!A91="","",'DF raw data'!A91) -> -288 | B91: =IF('DF raw data'!B91="","",'DF raw data'!B91) -> -2.68543e-05 | C91: =IF('DF raw data'!C91="","",'DF raw data'!C91) -> -0.000146867 | D91: =IF('DF raw data'!D91="","",'DF raw data'!D91) -> -4.41164e-05 | F91: -3.083406591e-06 | G91: 1.826594983e-05 | H91: -1.076046864e-05 | J91: 1.482287872e-05 | K91: 0.000160674621 | L91: 0.0002138940086 | M91: 0.001302976043 | N91: 1.959021796e-07
A92: =IF('DF raw data'!A92="","",'DF raw data'!A92) -> -287.5 | B92: =IF('DF raw data'!B92="","",'DF raw data'!B92) -> -2.64062e-05 | C92: =IF('DF raw data'!C92="","",'DF raw data'!C92) -> -0.000147013 | D92: =IF('DF raw data'!D92="","",'DF raw data'!D92) -> -4.277e-05 | F92: -2.6330168e-06 | G92: 1.811920377e-05 | H92: -9.407188536e-06 | J92: 1.350637032e-05 | K92: 0.0001674278061 | L92: 0.0002229536105 | M92: 0.001414452848 | N92: 2.208475468e-07
A93: =IF('DF raw data'!A93="","",'DF raw data'!A93) -> -287 | B93: =IF('DF raw data'!B93="","",'DF raw data'!B93) -> -1.12136e-05 | C93: =IF('DF raw data'!C93="","",'DF raw data'!C93) -> -0.000148426 | D93: =IF('DF raw data'!D93="","",'DF raw data'!D93) -> -3.52732e-05 | F93: 1.263721739e-05 | G93: 1.669898334e-05 | H93: -1.872079888e-06 | J93: 1.982497902e-05 | K93: 0.0001773402956 | L93: 0.0002313031022 | M93: 0.001530104399 | N93: 2.477946243e-07
A94: =IF('DF raw data'!A94="","",'DF raw data'!A94) -> -286.5 | B94: =IF('DF raw data'!B94="","",'DF raw data'!B94) -> -2.01259e-05 | C94: =IF('DF raw data'!C94="","",'DF raw data'!C94) -> -0.000149457 | D94: =IF('DF raw data'!D94="","",'DF raw data'!D94) -> -3.70813e-05 | F94: 3.679375533e-06 | G94: 1.566271493e-05 | H94: -3.689419279e-06 | J94: 2.166466678e-05 | K94: 0.000188172629 | L94: 0.0002391344597 | M94: 0.001649671629 | N94: 2.766219481e-07
A95: =IF('DF raw data'!A95="","",'DF raw data'!A95) -> -286 | B95: =IF('DF raw data'!B95="","",'DF raw data'!B95) -> -2.87205e-05 | C95: =IF('DF raw data'!C95="","",'DF raw data'!C95) -> -0.00014476 | D95: =IF('DF raw data'!D95="","",'DF raw data'!D95) -> -3.3723e-05 | F95: -4.959142873e-06 | G95: 2.03837166e-05 | H95: -3.139583659e-07 | J95: 1.918509535e-05 | K95: 0.0001977651767 | L95: 0.000249326318 | M95: 0.001774334788 | N95: 3.078877884e-07
A96: =IF('DF raw data'!A96="","",'DF raw data'!A96) -> -285.5 | B96: =IF('DF raw data'!B96="","",'DF raw data'!B96) -> -1.92355e-05 | C96: =IF('DF raw data'!C96="","",'DF raw data'!C96) -> -0.000149028 | D96: =IF('DF raw data'!D96="","",'DF raw data'!D96) -> -2.57196e-05 | F96: 4.574325477e-06 | G96: 1.609390712e-05 | H96: 7.730339008e-06 | J96: 2.147225809e-05 | K96: 0.0002085013057 | L96: 0.0002573732715 | M96: 0.001903021424 | N96: 3.412388178e-07
A97: =IF('DF raw data'!A97="","",'DF raw data'!A97) -> -285 | B97: =IF('DF raw data'!B97="","",'DF raw data'!B97) -> -1.90979e-05 | C97: =IF('DF raw data'!C97="","",'DF raw data'!C97) -> -0.000142859 | D97: =IF('DF raw data'!D97="","",'DF raw data'!D97) -> -4.01286e-05 | F97: 4.712628613e-06 | G97: 2.229443071e-05 | H97: -6.752290982e-06 | J97: 2.382857239e-05 | K97: 0.0002204155919 | L97: 0.0002685204869 | M97: 0.002037281667 | N97: 3.775743442e-07
A98: =IF('DF raw data'!A98="","",'DF raw data'!A98) -> -284.5 | B98: =IF('DF raw data'!B98="","",'DF raw data'!B98) -> -2.26295e-05 | C98: =IF('DF raw data'!C98="","",'DF raw data'!C98) -> -0.000152146 | D98: =IF('DF raw data'!D98="","",'DF raw data'!D98) -> -3.24722e-05 | F98: 1.162982137e-06 | G98: 1.295997414e-05 | H98: 9.432332221e-07 | J98: 2.441006346e-05 | K98: 0.0002326206237 | L98: 0.0002750004739 | M98: 0.002174781904 | N98: 4.156849001e-07
A99: =IF('DF raw data'!A99="","",'DF raw data'!A99) -> -284 | B99: =IF('DF raw data'!B99="","",'DF raw data'!B99) -> -2.75726e-05 | C99: =IF('DF raw data'!C99="","",'DF raw data'!C99) -> -0.000151595 | D99: =IF('DF raw data'!D99="","",'DF raw data'!D99) -> -2.40478e-05 | F99: -3.805377104e-06 | G99: 1.351378975e-05 | H99: 9.410681906e-06 | J99: 2.250737491e-05 | K99: 0.0002438743111 | L99: 0.0002817573688 | M99: 0.002315660589 | N99: 4.556317985e-07
A100: =IF('DF raw data'!A100="","",'DF raw data'!A100) -> -283.5 | B100: =IF('DF raw data'!B100="","",'DF raw data'!B100) -> -2.1663e-05 | C100: =IF('DF raw data'!C100="","",'DF raw data'!C100) -> -0.000144644 | D100: =IF('DF raw data'!D100="","",'DF raw data'!D100) -> -3.99414e-05 | F100: 2.134420952e-06 | G100: 2.050030936e-05 | H100: -6.56413439e-06 | J100: 2.357458539e-05 | K100: 0.0002556616038 | L100: 0.0002920075235 | M100: 0.002461664351 | N100: 4.985438759e-07
A101: =IF('DF raw data'!A101="","",'DF raw data'!A101) -> -283 | B101: =IF('DF raw data'!B101="","",'DF raw data'!B101) -> -2.64103e-05 | C101: =IF('DF raw data'!C101="","",'DF raw data'!C101) -> -0.000140264 | D101: =IF('DF raw data'!D101="","",'DF raw data'!D101) -> -3.65369e-05 | F101: -2.637137751e-06 | G101: 2.490269116e-05 | H101: -3.142237395e-06 | J101: 2.225601651e-05 | K101: 0.0002667896121 | L101: 0.0003044588691 | M101: 0.002613893785 | N101: 5.451391425e-07
A102: =IF('DF raw data'!A102="","",'DF raw data'!A102) -> -282.5 | B102: =IF('DF raw data'!B102="","",'DF raw data'!B102) -> -2.51254e-05 | C102: =IF('DF raw data'!C102="","",'DF raw data'!C102) -> -0.000150292 | D102: =IF('DF raw data'!D102="","",'DF raw data'!D102) -> -4.03221e-05 | F102: -1.345671912e-06 | G102: 1.482344808e-05 | H102: -6.946779767e-06 | J102: 2.158318056e-05 | K102: 0.0002775812023 | L102: 0.0003118705931 | M102: 0.002769829082 | N102: 5.940036928e-07
A103: =IF('DF raw data'!A103="","",'DF raw data'!A103) -> -282 | B103: =IF('DF raw data'!B103="","",'DF raw data'!B103) -> -2.48673e-05 | C103: =IF('DF raw data'!C103="","",'DF raw data'!C103) -> -0.00015281 | D103: =IF('DF raw data'!D103="","",'DF raw data'!D103) -> -4.27464e-05 | F103: -1.086253021e-06 | G103: 1.22925811e-05 | H103: -9.38346794e-06 | J103: 2.104005404e-05 | K103: 0.0002881012294 | L103: 0.0003180168837 | M103: 0.002928837524 | N103: 6.447924039e-07
A104: =IF('DF raw data'!A104="","",'DF raw data'!A104) -> -281.5 | B104: =IF('DF raw data'!B104="","",'DF raw data'!B104) -> -1.78713e-05 | C104: =IF('DF raw data'!C104="","",'DF raw data'!C104) -> -0.000149968 | D104: =IF('DF raw data'!D104="","",'DF raw data'!D104) -> -5.26732e-05 | F104: 5.945496539e-06 | G104: 1.514910372e-05 | H104: -1.936099389e-05 | J104: 2.401280231e-05 | K104: 0.0003001076305 | L104: 0.0003255914355 | M104: 0.003091633241 | N104: 6.980856027e-07
A105: =IF('DF raw data'!A105="","",'DF raw data'!A105) -> -281 | B105: =IF('DF raw data'!B105="","",'DF raw data'!B105) -> -2.24909e-05 | C105: =IF('DF raw data'!C105="","",'DF raw data'!C105) -> -0.000153704 | D105: =IF('DF raw data'!D105="","",'DF raw data'!D105) -> -4.84326e-05 | F105: 1.302290383e-06 | G105: 1.139401276e-05 | H105: -1.509872442e-05 | J105: 2.466394751e-05 | K105: 0.0003124396043 | L105: 0.0003312884419 | M105: 0.003257277462 | N105: 7.532657737e-07
A106: =IF('DF raw data'!A106="","",'DF raw data'!A106) -> -280.5 | B106: =IF('DF raw data'!B106="","",'DF raw data'!B106) -> -2.4355e-05 | C106: =IF('DF raw data'!C106="","",'DF raw data'!C106) -> -0.000156208 | D106: =IF('DF raw data'!D106="","",'DF raw data'!D106) -> -4.17414e-05 | F106: -5.713351676e-07 | G106: 8.877217322e-06 | H106: -8.37333239e-06 | J106: 2.437827992e-05 | K106: 0.0003246287442 | L106: 0.0003357270506 | M106: 0.003425140988 | N106: 8.099192502e-07
A107: =IF('DF raw data'!A107="","",'DF raw data'!A107) -> -280 | B107: =IF('DF raw data'!B107="","",'DF raw data'!B107) -> -2.55061e-05 | C107: =IF('DF raw data'!C107="","",'DF raw data'!C107) -> -0.000154458 | D107: =IF('DF raw data'!D107="","",'DF raw data'!D107) -> -4.65184e-05 | F107: -1.728317289e-06 | G107: 1.063615982e-05 | H107: -1.317474286e-05 | J107: 2.351412128e-05 | K107: 0.0003363858049 | L107: 0.0003410451305 | M107: 0.003595663553 | N107: 8.683515977e-07
A108: =IF('DF raw data'!A108="","",'DF raw data'!A108) -> -279.5 | B108: =IF('DF raw data'!B108="","",'DF raw data'!B108) -> -1.897e-05 | C108: =IF('DF raw data'!C108="","",'DF raw data'!C108) -> -0.000146795 | D108: =IF('DF raw data'!D108="","",'DF raw data'!D108) -> -3.9681e-05 | F108: 4.841182182e-06 | G108: 1.833831775e-05 | H108: -6.302403746e-06 | J108: 2.593471237e-05 | K108: 0.0003493531611 | L108: 0.0003502142894 | M108: 0.003770770697 | N108: 9.300129266e-07
A109: =IF('DF raw data'!A109="","",'DF raw data'!A109) -> -279 | B109: =IF('DF raw data'!B109="","",'DF raw data'!B109) -> -3.3264e-05 | C109: =IF('DF raw data'!C109="","",'DF raw data'!C109) -> -0.000145015 | D109: =IF('DF raw data'!D109="","",'DF raw data'!D109) -> -4.82561e-05 | F109: -9.525860158e-06 | G109: 2.012741355e-05 | H109: -1.492132251e-05 | J109: 2.117178229e-05 | K109: 0.0003599390522 | L109: 0.0003602779961 | M109: 0.003950909696 | N109: 9.95137166e-07
A110: =IF('DF raw data'!A110="","",'DF raw data'!A110) -> -278.5 | B110: =IF('DF raw data'!B110="","",'DF raw data'!B110) -> -1.89638e-05 | C110: =IF('DF raw data'!C110="","",'DF raw data'!C110) -> -0.000147243 | D110: =IF('DF raw data'!D110="","",'DF raw data'!D110) -> -4.92764e-05 | F110: 4.847413864e-06 | G110: 1.788802847e-05 | H110: -1.594683624e-05 | J110: 2.359548922e-05 | K110: 0.0003717367968 | L110: 0.0003692220104 | M110: 0.004135520701 | N110: 1.063577986e-06
A111: =IF('DF raw data'!A111="","",'DF raw data'!A111) -> -278 | B111: =IF('DF raw data'!B111="","",'DF raw data'!B111) -> -3.08899e-05 | C111: =IF('DF raw data'!C111="","",'DF raw data'!C111) -> -0.00014798 | D111: =IF('DF raw data'!D111="","",'DF raw data'!D111) -> -5.07533e-05 | F111: -7.139628507e-06 | G111: 1.71472624e-05 | H111: -1.74312832e-05 | J111: 2.002567497e-05 | K111: 0.0003817496343 | L111: 0.0003777956416 | M111: 0.004324418521 | N111: 1.135143273e-06
A112: =IF('DF raw data'!A112="","",'DF raw data'!A112) -> -277.5 | B112: =IF('DF raw data'!B112="","",'DF raw data'!B112) -> -2.85838e-05 | C112: =IF('DF raw data'!C112="","",'DF raw data'!C112) -> -0.000145697 | D112: =IF('DF raw data'!D112="","",'DF raw data'!D112) -> -4.68233e-05 | F112: -4.821744336e-06 | G112: 1.944192853e-05 | H112: -1.34812009e-05 | J112: 1.76148028e-05 | K112: 0.0003905570357 | L112: 0.0003875166058 | M112: 0.004518176824 | N112: 1.210382974e-06
A113: =IF('DF raw data'!A113="","",'DF raw data'!A113) -> -277 | B113: =IF('DF raw data'!B113="","",'DF raw data'!B113) -> -1.90285e-05 | C113: =IF('DF raw data'!C113="","",'DF raw data'!C113) -> -0.000148841 | D113: =IF('DF raw data'!D113="","",'DF raw data'!D113) -> -4.81887e-05 | F113: 4.782383247e-06 | G113: 1.628186269e-05 | H113: -1.485357809e-05 | J113: 2.000599443e-05 | K113: 0.0004005600329 | L113: 0.0003956575372 | M113: 0.004716005593 | N113: 1.288855537e-06
A114: =IF('DF raw data'!A114="","",'DF raw data'!A114) -> -276.5 | B114: =IF('DF raw data'!B114="","",'DF raw data'!B114) -> -2.71844e-05 | C114: =IF('DF raw data'!C114="","",'DF raw data'!C114) -> -0.000155856 | D114: =IF('DF raw data'!D114="","",'DF raw data'!D114) -> -2.94511e-05 | F114: -3.415193402e-06 | G114: 9.231016042e-06 | H114: 3.979771043e-06 | J114: 1.829839772e-05 | K114: 0.0004097092318 | L114: 0.0004002730452 | M114: 0.004916142116 | N114: 1.369132208e-06
A115: =IF('DF raw data'!A115="","",'DF raw data'!A115) -> -276 | B115: =IF('DF raw data'!B115="","",'DF raw data'!B115) -> -2.80727e-05 | C115: =IF('DF raw data'!C115="","",'DF raw data'!C115) -> -0.00015906 | D115: =IF('DF raw data'!D115="","",'DF raw data'!D115) -> -4.38555e-05 | F115: -4.308032615e-06 | G115: 6.010643602e-06 | H115: -1.049823544e-05 | J115: 1.614438142e-05 | K115: 0.0004177814225 | L115: 0.000403278367 | M115: 0.005117781299 | N115: 1.450579249e-06
A116: =IF('DF raw data'!A116="","",'DF raw data'!A116) -> -275.5 | B116: =IF('DF raw data'!B116="","",'DF raw data'!B116) -> -1.27546e-05 | C116: =IF('DF raw data'!C116="","",'DF raw data'!C116) -> -0.000160203 | D116: =IF('DF raw data'!D116="","",'DF raw data'!D116) -> -3.25236e-05 | F116: 1.108834288e-05 | G116: 4.861802872e-06 | H116: 8.915705681e-07 | J116: 2.168855286e-05 | K116: 0.0004286256989 | L116: 0.0004057092684 | M116: 0.005320635933 | N116: 1.533114451e-06
A117: =IF('DF raw data'!A117="","",'DF raw data'!A117) -> -275 | B117: =IF('DF raw data'!B117="","",'DF raw data'!B117) -> -3.07074e-05 | C117: =IF('DF raw data'!C117="","",'DF raw data'!C117) -> -0.000150908 | D117: =IF('DF raw data'!D117="","",'DF raw data'!D117) -> -3.53802e-05 | F117: -6.956195932e-06 | G117: 1.420430032e-05 | H117: -1.979626658e-06 | J117: 1.821045489e-05 | K117: 0.0004377309264 | L117: 0.0004128114186 | M117: 0.005527041643 | N117: 1.618486895e-06
A118: =IF('DF raw data'!A118="","",'DF raw data'!A118) -> -274.5 | B118: =IF('DF raw data'!B118="","",'DF raw data'!B118) -> -1.58315e-05 | C118: =IF('DF raw data'!C118="","",'DF raw data'!C118) -> -0.000141242 | D118: =IF('DF raw data'!D118="","",'DF raw data'!D118) -> -3.40572e-05 | F118: 7.995719917e-06 | G118: 2.391969358e-05 | H118: -6.498661279e-07 | J118: 2.220831485e-05 | K118: 0.0004488350838 | L118: 0.0004247712654 | M118: 0.005739427275 | N118: 1.708948814e-06
A119: =IF('DF raw data'!A119="","",'DF raw data'!A119) -> -274 | B119: =IF('DF raw data'!B119="","",'DF raw data'!B119) -> -1.1338e-05 | C119: =IF('DF raw data'!C119="","",'DF raw data'!C119) -> -0.000147945 | D119: =IF('DF raw data'!D119="","",'DF raw data'!D119) -> -4.10906e-05 | F119: 1.25121817e-05 | G119: 1.718244125e-05 | H119: -7.719206802e-06 | J119: 2.84644057e-05 | K119: 0.0004630672866 | L119: 0.000433362486 | M119: 0.005956108518 | N119: 1.803255447e-06
A120: =IF('DF raw data'!A120="","",'DF raw data'!A120) -> -273.5 | B120: =IF('DF raw data'!B120="","",'DF raw data'!B120) -> -1.78796e-05 | C120: =IF('DF raw data'!C120="","",'DF raw data'!C120) -> -0.000160136 | D120: =IF('DF raw data'!D120="","",'DF raw data'!D120) -> -3.99747e-05 | F120: 5.937154126e-06 | G120: 4.929145242e-06 | H120: -6.597604553e-06 | J120: 3.143298276e-05 | K120: 0.000478783778 | L120: 0.0004358270586 | M120: 0.006174022048 | N120: 1.898722076e-06
A121: =IF('DF raw data'!A121="","",'DF raw data'!A121) -> -273 | B121: =IF('DF raw data'!B121="","",'DF raw data'!B121) -> -1.98033e-05 | C121: =IF('DF raw data'!C121="","",'DF raw data'!C121) -> -0.000156032 | D121: =IF('DF raw data'!D121="","",'DF raw data'!D121) -> -3.99394e-05 | F121: 4.003624019e-06 | G121: 9.054116682e-06 | H121: -6.56212417e-06 | J121: 3.343479477e-05 | K121: 0.0004955011754 | L121: 0.000440354117 | M121: 0.006394199106 | N121: 1.996236893e-06
A122: =IF('DF raw data'!A122="","",'DF raw data'!A122) -> -272.5 | B122: =IF('DF raw data'!B122="","",'DF raw data'!B122) -> -2.97407e-05 | C122: =IF('DF raw data'!C122="","",'DF raw data'!C122) -> -0.0001557 | D122: =IF('DF raw data'!D122="","",'DF raw data'!D122) -> -4.27352e-05 | F122: -5.984556095e-06 | G122: 9.387813202e-06 | H122: -9.372210708e-06 | J122: 3.044251673e-05 | K122: 0.0005107224338 | L122: 0.0004450480236 | M122: 0.006616723118 | N122: 2.095734138e-06
A123: =IF('DF raw data'!A123="","",'DF raw data'!A123) -> -272 | B123: =IF('DF raw data'!B123="","",'DF raw data'!B123) -> -3.10236e-05 | C123: =IF('DF raw data'!C123="","",'DF raw data'!C123) -> -0.000162436 | D123: =IF('DF raw data'!D123="","",'DF raw data'!D123) -> -4.23923e-05 | F123: -7.274011714e-06 | G123: 2.617392242e-06 | H123: -9.027558489e-06 | J123: 2.680551087e-05 | K123: 0.0005241251892 | L123: 0.0004463567197 | M123: 0.006839901478 | N123: 2.195710566e-06
A124: =IF('DF raw data'!A124="","",'DF raw data'!A124) -> -271.5 | B124: =IF('DF raw data'!B124="","",'DF raw data'!B124) -> -2.6278e-05 | C124: =IF('DF raw data'!C124="","",'DF raw data'!C124) -> -0.000159163 | D124: =IF('DF raw data'!D124="","",'DF raw data'!D124) -> -4.27799e-05 | F124: -2.504161698e-06 | G124: 5.907117272e-06 | H124: -9.417139125e-06 | J124: 2.555343002e-05 | K124: 0.0005369019042 | L124: 0.0004493102783 | M124: 0.007064556617 | N124: 2.296976918e-06
A125: =IF('DF raw data'!A125="","",'DF raw data'!A125) -> -271 | B125: =IF('DF raw data'!B125="","",'DF raw data'!B125) -> -2.23745e-05 | C125: =IF('DF raw data'!C125="","",'DF raw data'!C125) -> -0.000148149 | D125: =IF('DF raw data'!D125="","",'DF raw data'!D125) -> -3.02457e-05 | F125: 1.419285187e-06 | G125: 1.697739881e-05 | H125: 3.181110637e-06 | J125: 2.626307261e-05 | K125: 0.0005500334405 | L125: 0.0004577989778 | M125: 0.007293456106 | N125: 2.402111745e-06
A126: =IF('DF raw data'!A126="","",'DF raw data'!A126) -> -270.5 | B126: =IF('DF raw data'!B126="","",'DF raw data'!B126) -> -2.28835e-05 | C126: =IF('DF raw data'!C126="","",'DF raw data'!C126) -> -0.000146825 | D126: =IF('DF raw data'!D126="","",'DF raw data'!D126) -> -3.6474e-05 | F126: 9.076841974e-07 | G126: 1.830816445e-05 | H126: -3.079015976e-06 | J126: 2.671691471e-05 | K126: 0.0005633918979 | L126: 0.00046695306 | M126: 0.007526932636 | N126: 2.511491222e-06
A127: =IF('DF raw data'!A127="","",'DF raw data'!A127) -> -270 | B127: =IF('DF raw data'!B127="","",'DF raw data'!B127) -> -1.7755e-05 | C127: =IF('DF raw data'!C127="","",'DF raw data'!C127) -> -0.000151042 | D127: =IF('DF raw data'!D127="","",'DF raw data'!D127) -> -3.42682e-05 | F127: 6.062390832e-06 | G127: 1.406961558e-05 | H127: -8.619443379e-07 | J127: 2.974811013e-05 | K127: 0.0005782659529 | L127: 0.0004739878678 | M127: 0.00776392657 | N127: 2.624265946e-06
A128: =IF('DF raw data'!A128="","",'DF raw data'!A128) -> -269.5 | B128: =IF('DF raw data'!B128="","",'DF raw data'!B128) -> -1.02406e-05 | C128: =IF('DF raw data'!C128="","",'DF raw data'!C128) -> -0.000159902 | D128: =IF('DF raw data'!D128="","",'DF raw data'!D128) -> -5.26412e-05 | F128: 1.361518942e-05 | G128: 5.164340982e-06 | H128: -1.932883037e-05 | J128: =F128*$G$3+J127 -> 3.655570484e-05 | K128: =J128*$G$3+K127 -> 0.0005965438054 | L128: =G128*$G$3+L127 -> 0.0004765700383 | M128: =L128*$G$3+M127 -> 0.008002211589 | N128: =(J128^2+L128^2)*$G$3+N127 -> 2.738493606e-06
A129: =IF('DF raw data'!A129="","",'DF raw data'!A129) -> -269 | B129: =IF('DF raw data'!B129="","",'DF raw data'!B129) -> -1.20954e-05 | C129: =IF('DF raw data'!C129="","",'DF raw data'!C129) -> -0.00016075 | D129: =IF('DF raw data'!D129="","",'DF raw data'!D129) -> -6.01932e-05 | F129: 1.175091139e-05 | G129: 4.312007702e-06 | H129: -2.691942109e-05 | J129: 4.243116053e-05 | K129: 0.0006177593856 | L129: 0.0004787260421 | M129: 0.00824157461 | N129: 2.85398312e-06
A130: =IF('DF raw data'!A130="","",'DF raw data'!A130) -> -268.5 | B130: =IF('DF raw data'!B130="","",'DF raw data'!B130) -> -2.73039e-05 | C130: =IF('DF raw data'!C130="","",'DF raw data'!C130) -> -0.000166128 | D130: =IF('DF raw data'!D130="","",'DF raw data'!D130) -> -4.28534e-05 | F130: -3.535304047e-06 | G130: -1.093473878e-06 | H130: -9.49101471e-06 | J130: 4.066350851e-05 | K130: 0.0006380911399 | L130: 0.0004781793052 | M130: 0.008480664263 | N130: 2.969137604e-06
A131: =IF('DF raw data'!A131="","",'DF raw data'!A131) -> -268 | B131: =IF('DF raw data'!B131="","",'DF raw data'!B131) -> -2.94221e-05 | C131: =IF('DF raw data'!C131="","",'DF raw data'!C131) -> -0.000161396 | D131: =IF('DF raw data'!D131="","",'DF raw data'!D131) -> -3.98532e-05 | F131: =(1-$G$1*($B$54-$G$2))*(B131-F$5) -> -5.664328049e-06 | G131: =(1-$G$1*($B$54-$G$2))*(C131-G$5) -> 3.662706642e-06 | H131: =(1-$G$1*($B$54-$G$2))*(D131-H$5) -> -6.475483688e-06 | J131: 3.783134448e-05 | K131: 0.0006570068121 | L131: 0.0004800106585 | M131: 0.008720669592 | N131: 3.085058326e-06
A132: =IF('DF raw data'!A132="","",'DF raw data'!A132) -> -267.5 | B132: =IF('DF raw data'!B132="","",'DF raw data'!B132) -> -2.57116e-05 | C132: =IF('DF raw data'!C132="","",'DF raw data'!C132) -> -0.000156444 | D132: =IF('DF raw data'!D132="","",'DF raw data'!D132) -> -2.64548e-05 | F132: -1.934867394e-06 | G132: 8.640011362e-06 | H132: 6.991382136e-06 | J132: 3.686391079e-05 | K132: 0.0006754387675 | L132: 0.0004843306642 | M132: 0.008962834924 | N132: 3.203025896e-06
A133: =IF('DF raw data'!A133="","",'DF raw data'!A133) -> -267 | B133: =IF('DF raw data'!B133="","",'DF raw data'!B133) -> -1.18556e-05 | C133: =IF('DF raw data'!C133="","",'DF raw data'!C133) -> -0.000150319 | D133: =IF('DF raw data'!D133="","",'DF raw data'!D133) -> -3.40941e-05 | F133: 1.199193677e-05 | G133: 1.479631011e-05 | H133: -6.869546869e-07 | J133: 4.285987917e-05 | K133: 0.0006968687071 | L133: 0.0004917288192 | M133: 0.009208699333 | N133: 3.324842996e-06
A134: =IF('DF raw data'!A134="","",'DF raw data'!A134) -> -266.5 | B134: =IF('DF raw data'!B134="","",'DF raw data'!B134) -> -1.94885e-05 | C134: =IF('DF raw data'!C134="","",'DF raw data'!C134) -> -0.000156227 | D134: =IF('DF raw data'!D134="","",'DF raw data'!D134) -> -3.11976e-05 | F134: 4.320032647e-06 | G134: 8.858120232e-06 | H134: 2.224346428e-06 | J134: 4.501989549e-05 | K134: 0.0007193786548 | L134: 0.0004961578793 | M134: 0.009456778273 | N134: 3.448942712e-06
A135: =IF('DF raw data'!A135="","",'DF raw data'!A135) -> -266 | B135: =IF('DF raw data'!B135="","",'DF raw data'!B135) -> -1.50483e-05 | C135: =IF('DF raw data'!C135="","",'DF raw data'!C135) -> -0.000159332 | D135: =IF('DF raw data'!D135="","",'DF raw data'!D135) -> -5.51562e-05 | F135: 8.782922069e-06 | G135: 5.737253682e-06 | H135: -2.185668202e-05 | J135: 4.941135653e-05 | K135: 0.0007440843331 | L135: 0.0004990265062 | M135: 0.009706291526 | N135: 3.57467718e-06
A136: =IF('DF raw data'!A136="","",'DF raw data'!A136) -> -265.5 | B136: =IF('DF raw data'!B136="","",'DF raw data'!B136) -> -1.85818e-05 | C136: =IF('DF raw data'!C136="","",'DF raw data'!C136) -> -0.000162188 | D136: =IF('DF raw data'!D136="","",'DF raw data'!D136) -> -4.50649e-05 | F136: 5.231365884e-06 | G136: 2.866659522e-06 | H136: -1.171381547e-05 | J136: 5.202703947e-05 | K136: 0.0007700978528 | L136: 0.0005004598359 | M136: 0.009956521444 | N136: 3.70126061e-06
A137: =IF('DF raw data'!A137="","",'DF raw data'!A137) -> -265 | B137: =IF('DF raw data'!B137="","",'DF raw data'!B137) -> -2.13401e-05 | C137: =IF('DF raw data'!C137="","",'DF raw data'!C137) -> -0.000164002 | D137: =IF('DF raw data'!D137="","",'DF raw data'!D137) -> -4.33003e-05 | F137: 2.458970971e-06 | G137: 1.043389982e-06 | H137: -9.940198369e-06 | J137: 5.325652496e-05 | K137: 0.0007967261153 | L137: 0.0005009815309 | M137: 0.01020701221 | N137: 3.828169986e-06
A138: =IF('DF raw data'!A138="","",'DF raw data'!A138) -> -264.5 | B138: =IF('DF raw data'!B138="","",'DF raw data'!B138) -> -2.16689e-05 | C138: =IF('DF raw data'!C138="","",'DF raw data'!C138) -> -0.000167674 | D138: =IF('DF raw data'!D138="","",'DF raw data'!D138) -> -3.08543e-05 | F138: 2.128490803e-06 | G138: -2.647373938e-06 | H138: 2.569400691e-06 | J138: 5.432077036e-05 | K138: 0.0008238865005 | L138: 0.000499657844 | M138: 0.01045684113 | N138: 3.95447434e-06
A139: =IF('DF raw data'!A139="","",'DF raw data'!A139) -> -264 | B139: =IF('DF raw data'!B139="","",'DF raw data'!B139) -> -2.30806e-05 | C139: =IF('DF raw data'!C139="","",'DF raw data'!C139) -> -0.000168672 | D139: =IF('DF raw data'!D139="","",'DF raw data'!D139) -> -2.93864e-05 | F139: 7.095770164e-07 | G139: -3.650473718e-06 | H139: 4.04480166e-06 | J139: 5.467555887e-05 | K139: 0.0008512242799 | L139: 0.0004978326071 | M139: 0.01070575744 | N139: 4.079887701e-06
A140: =IF('DF raw data'!A140="","",'DF raw data'!A140) -> -263.5 | B140: =IF('DF raw data'!B140="","",'DF raw data'!B140) -> -3.4485e-05 | C140: =IF('DF raw data'!C140="","",'DF raw data'!C140) -> -0.000161476 | D140: =IF('DF raw data'!D140="","",'DF raw data'!D140) -> -4.44042e-05 | F140: -1.075309947e-05 | G140: 3.582297842e-06 | H140: -1.10497393e-05 | J140: 4.929900913e-05 | K140: 0.0008758737845 | L140: 0.000499623756 | M140: 0.01095556931 | N140: 4.205914846e-06
A141: =IF('DF raw data'!A141="","",'DF raw data'!A141) -> -263 | B141: =IF('DF raw data'!B141="","",'DF raw data'!B141) -> -1.85827e-05 | C141: =IF('DF raw data'!C141="","",'DF raw data'!C141) -> -0.000142369 | D141: =IF('DF raw data'!D141="","",'DF raw data'!D141) -> -4.35924e-05 | F141: 5.230461285e-06 | G141: 2.278693461e-05 | H141: -1.0233791e-05 | J141: 5.191423977e-05 | K141: 0.0009018309044 | L141: 0.0005110172233 | M141: 0.01121107792 | N141: 4.337831691e-06
A142: =IF('DF raw data'!A142="","",'DF raw data'!A142) -> -262.5 | B142: =IF('DF raw data'!B142="","",'DF raw data'!B142) -> -2.15345e-05 | C142: =IF('DF raw data'!C142="","",'DF raw data'!C142) -> -0.000142898 | D142: =IF('DF raw data'!D142="","",'DF raw data'!D142) -> -4.04223e-05 | F142: 2.263577587e-06 | G142: 2.225523142e-05 | H142: -7.047491789e-06 | J142: 5.304602857e-05 | K142: 0.0009283539187 | L142: 0.000522144839 | M142: 0.01147215034 | N142: 4.475556248e-06
A143: =IF('DF raw data'!A143="","",'DF raw data'!A143) -> -262 | B143: =IF('DF raw data'!B143="","",'DF raw data'!B143) -> -1.91645e-05 | C143: =IF('DF raw data'!C143="","",'DF raw data'!C143) -> -0.000149426 | D143: =IF('DF raw data'!D143="","",'DF raw data'!D143) -> -3.61528e-05 | F143: 4.645688287e-06 | G143: 1.569387334e-05 | H143: -2.756174644e-06 | J143: 5.536887271e-05 | K143: 0.000956038355 | L143: 0.0005299917757 | M143: 0.01173714623 | N143: 4.617534745e-06
A144: =IF('DF raw data'!A144="","",'DF raw data'!A144) -> -261.5 | B144: =IF('DF raw data'!B144="","",'DF raw data'!B144) -> -2.85227e-05 | C144: =IF('DF raw data'!C144="","",'DF raw data'!C144) -> -0.000159746 | D144: =IF('DF raw data'!D144="","",'DF raw data'!D144) -> -4.24764e-05 | F144: -4.760332115e-06 | G144: 5.321138142e-06 | H144: -9.11208824e-06 | J144: 5.298870665e-05 | K144: 0.0009825327084 | L144: 0.0005326523448 | M144: 0.0120034724 | N144: 4.760797907e-06
A145: =IF('DF raw data'!A145="","",'DF raw data'!A145) -> -261 | B145: =IF('DF raw data'!B145="","",'DF raw data'!B145) -> -2.64087e-05 | C145: =IF('DF raw data'!C145="","",'DF raw data'!C145) -> -0.000156912 | D145: =IF('DF raw data'!D145="","",'DF raw data'!D145) -> -3.90577e-05 | F145: -2.635529575e-06 | G145: 8.169619882e-06 | H145: -5.675918683e-06 | J145: 5.167094187e-05 | K145: 0.001008368179 | L145: 0.0005367371547 | M145: 0.01227184098 | N145: 4.906176237e-06
A146: =IF('DF raw data'!A146="","",'DF raw data'!A146) -> -260.5 | B146: =IF('DF raw data'!B146="","",'DF raw data'!B146) -> -9.10286e-06 | C146: =IF('DF raw data'!C146="","",'DF raw data'!C146) -> -0.000152876 | D146: =IF('DF raw data'!D146="","",'DF raw data'!D146) -> -2.72645e-05 | F146: 1.475874327e-05 | G146: 1.222624384e-05 | H146: 6.177544569e-06 | J146: 5.90503135e-05 | K146: 0.001037893336 | L146: 0.0005428502767 | M146: 0.01254326612 | N146: 5.055262918e-06
A147: =IF('DF raw data'!A147="","",'DF raw data'!A147) -> -260 | B147: =IF('DF raw data'!B147="","",'DF raw data'!B147) -> -2.12148e-05 | C147: =IF('DF raw data'!C147="","",'DF raw data'!C147) -> -0.000159793 | D147: =IF('DF raw data'!D147="","",'DF raw data'!D147) -> -3.86736e-05 | F147: 2.584911254e-06 | G147: 5.273897972e-06 | H147: -5.289855932e-06 | J147: 6.034276913e-05 | K147: 0.001068064721 | L147: 0.0005454872256 | M147: 0.01281600973 | N147: 5.205861699e-06
A148: =IF('DF raw data'!A148="","",'DF raw data'!A148) -> -259.5 | B148: =IF('DF raw data'!B148="","",'DF raw data'!B148) -> -2.98129e-05 | C148: =IF('DF raw data'!C148="","",'DF raw data'!C148) -> -0.0001623 | D148: =IF('DF raw data'!D148="","",'DF raw data'!D148) -> -3.05179e-05 | F148: -6.057125037e-06 | G148: 2.754087202e-06 | H148: 2.907519695e-06 | J148: 5.731420661e-05 | K148: 0.001096721824 | L148: 0.0005468642692 | M148: 0.01308944187 | N148: 5.357034423e-06
A149: =IF('DF raw data'!A149="","",'DF raw data'!A149) -> -259 | B149: =IF('DF raw data'!B149="","",'DF raw data'!B149) -> -1.77585e-05 | C149: =IF('DF raw data'!C149="","",'DF raw data'!C149) -> -0.000153272 | D149: =IF('DF raw data'!D149="","",'DF raw data'!D149) -> -2.89871e-05 | F149: 6.058872947e-06 | G149: 1.182822028e-05 | H149: 4.446142083e-06 | J149: 6.034364308e-05 | K149: 0.001126893645 | L149: 0.0005527783794 | M149: 0.01336583106 | N149: 5.511637069e-06
A150: =IF('DF raw data'!A150="","",'DF raw data'!A150) -> -258.5 | B150: =IF('DF raw data'!B150="","",'DF raw data'!B150) -> -2.53193e-05 | C150: =IF('DF raw data'!C150="","",'DF raw data'!C150) -> -0.000146828 | D150: =IF('DF raw data'!D150="","",'DF raw data'!D150) -> -3.82848e-05 | F150: -1.540562741e-06 | G150: 1.830514912e-05 | H150: -4.899069164e-06 | J150: 5.957336171e-05 | K150: 0.001156680326 | L150: 0.0005619309539 | M150: 0.01364679653 | N150: 5.67129476e-06
A151: =IF('DF raw data'!A151="","",'DF raw data'!A151) -> -258 | B151: =IF('DF raw data'!B151="","",'DF raw data'!B151) -> -3.05124e-05 | C151: =IF('DF raw data'!C151="","",'DF raw data'!C151) -> -0.000153591 | D151: =IF('DF raw data'!D151="","",'DF raw data'!D151) -> -3.93901e-05 | F151: -6.760199482e-06 | G151: 1.150759019e-05 | H151: -6.010017247e-06 | J151: 5.619326197e-05 | K151: 0.001184776957 | L151: 0.000567684749 | M151: 0.01393063891 | N151: 5.834006589e-06
A152: =IF('DF raw data'!A152="","",'DF raw data'!A152) -> -257.5 | B152: =IF('DF raw data'!B152="","",'DF raw data'!B152) -> -3.10896e-05 | C152: =IF('DF raw data'!C152="","",'DF raw data'!C152) -> -0.000160667 | D152: =IF('DF raw data'!D152="","",'DF raw data'!D152) -> -3.94626e-05 | F152: -7.340348974e-06 | G152: 4.395431832e-06 | H152: -6.082887722e-06 | J152: 5.252308749e-05 | K152: 0.001211038501 | L152: 0.000569882465 | M152: 0.01421558014 | N152: 5.997768938e-06
A153: =IF('DF raw data'!A153="","",'DF raw data'!A153) -> -257 | B153: =IF('DF raw data'!B153="","",'DF raw data'!B153) -> -2.64099e-05 | C153: =IF('DF raw data'!C153="","",'DF raw data'!C153) -> -0.000168888 | D153: =IF('DF raw data'!D153="","",'DF raw data'!D153) -> -3.71468e-05 | F153: -2.636735707e-06 | G153: -3.867577478e-06 | H153: -3.755253984e-06 | J153: 5.120471963e-05 | K153: 0.001236640861 | L153: 0.0005679486762 | M153: 0.01449955448 | N153: 6.160362749e-06
A154: =IF('DF raw data'!A154="","",'DF raw data'!A154) -> -256.5 | B154: =IF('DF raw data'!B154="","",'DF raw data'!B154) -> -2.68576e-05 | C154: =IF('DF raw data'!C154="","",'DF raw data'!C154) -> -0.00017101 | D154: =IF('DF raw data'!D154="","",'DF raw data'!D154) -> -3.92494e-05 | F154: -3.086723454e-06 | G154: -6.000420898e-06 | H154: -5.86859827e-06 | J154: 4.966135791e-05 | K154: 0.00126147154 | L154: 0.0005649484658 | M154: 0.01478202871 | N154: 6.321179259e-06
A155: =IF('DF raw data'!A155="","",'DF raw data'!A155) -> -256 | B155: =IF('DF raw data'!B155="","",'DF raw data'!B155) -> -2.59609e-05 | C155: =IF('DF raw data'!C155="","",'DF raw data'!C155) -> -0.000169936 | D155: =IF('DF raw data'!D155="","",'DF raw data'!D155) -> -3.76516e-05 | F155: -2.185441317e-06 | G155: -4.920932758e-06 | H155: -4.262633512e-06 | J155: 4.856863725e-05 | K155: 0.001285755858 | L155: 0.0005624879994 | M155: 0.01506327271 | N155: 6.48055509e-06
A156: =IF('DF raw data'!A156="","",'DF raw data'!A156) -> -255.5 | B156: =IF('DF raw data'!B156="","",'DF raw data'!B156) -> -3.70499e-05 | C156: =IF('DF raw data'!C156="","",'DF raw data'!C156) -> -0.000162104 | D156: =IF('DF raw data'!D156="","",'DF raw data'!D156) -> -4.44673e-05 | F156: -1.333110611e-05 | G156: 2.951088762e-06 | H156: -1.111316174e-05 | J156: 4.190308419e-05 | K156: 0.001306707401 | L156: 0.0005639635438 | M156: 0.01534525448 | N156: 6.640460463e-06
A157: =IF('DF raw data'!A157="","",'DF raw data'!A157) -> -255 | B157: =IF('DF raw data'!B157="","",'DF raw data'!B157) -> -3.08313e-05 | C157: =IF('DF raw data'!C157="","",'DF raw data'!C157) -> -0.000158126 | D157: =IF('DF raw data'!D157="","",'DF raw data'!D157) -> -4.2134e-05 | F157: -7.080729061e-06 | G157: 6.949416342e-06 | H157: -8.767938576e-06 | J157: 3.836271966e-05 | K157: 0.00132588876 | L157: 0.0005674382519 | M157: 0.01562897361 | N157: 6.802189397e-06
A158: =IF('DF raw data'!A158="","",'DF raw data'!A158) -> -254.5 | B158: =IF('DF raw data'!B158="","",'DF raw data'!B158) -> -3.41098e-05 | C158: =IF('DF raw data'!C158="","",'DF raw data'!C158) -> -0.000155167 | D158: =IF('DF raw data'!D158="","",'DF raw data'!D158) -> -2.9718e-05 | F158: -1.03759822e-05 | G158: 9.923536832e-06 | H158: 3.711507184e-06 | J158: 3.317472857e-05 | K158: 0.001342476125 | L158: 0.0005724000204 | M158: 0.01591517362 | N158: 6.96656057e-06
A159: =IF('DF raw data'!A159="","",'DF raw data'!A159) -> -254 | B159: =IF('DF raw data'!B159="","",'DF raw data'!B159) -> -1.45387e-05 | C159: =IF('DF raw data'!C159="","",'DF raw data'!C159) -> -0.000153143 | D159: =IF('DF raw data'!D159="","",'DF raw data'!D159) -> -5.0005e-05 | F159: 9.295126125e-06 | G159: 1.195787947e-05 | H159: -1.667915939e-05 | J159: 3.782229163e-05 | K159: 0.00136138727 | L159: 0.0005783789601 | M159: 0.0162043631 | N159: 7.134536944e-06
A160: =IF('DF raw data'!A160="","",'DF raw data'!A160) -> -253.5 | B160: =IF('DF raw data'!B160="","",'DF raw data'!B160) -> -7.87605e-06 | C160: =IF('DF raw data'!C160="","",'DF raw data'!C160) -> -0.000159183 | D160: =IF('DF raw data'!D160="","",'DF raw data'!D160) -> -4.01374e-05 | F160: 1.599182227e-05 | G160: 5.887015072e-06 | H160: -6.76113595e-06 | J160: 4.581820276e-05 | K160: 0.001384296372 | L160: 0.0005813224676 | M160: 0.01649502433 | N160: 7.304554504e-06
A161: =IF('DF raw data'!A161="","",'DF raw data'!A161) -> -253 | B161: =IF('DF raw data'!B161="","",'DF raw data'!B161) -> -2.07643e-05 | C161: =IF('DF raw data'!C161="","",'DF raw data'!C161) -> -0.000156624 | D161: =IF('DF raw data'!D161="","",'DF raw data'!D161) -> -4.1464e-05 | F161: 3.037713309e-06 | G161: 8.459091562e-06 | H161: -8.094514876e-06 | J161: 4.733705942e-05 | K161: 0.001407964902 | L161: 0.0005855520134 | M161: 0.01678780034 | N161: 7.477110482e-06
A162: =IF('DF raw data'!A162="","",'DF raw data'!A162) -> -252.5 | B162: =IF('DF raw data'!B162="","",'DF raw data'!B162) -> -2.24388e-05 | C162: =IF('DF raw data'!C162="","",'DF raw data'!C162) -> -0.000155039 | D162: =IF('DF raw data'!D162="","",'DF raw data'!D162) -> -3.02391e-05 | F162: 1.354656614e-06 | G162: 1.005219091e-05 | H162: 3.187744363e-06 | J162: 4.801438772e-05 | K162: 0.001431972095 | L162: 0.0005905781089 | M162: 0.0170830894 | N162: 7.652654424e-06
A163: =IF('DF raw data'!A163="","",'DF raw data'!A163) -> -252 | B163: =IF('DF raw data'!B163="","",'DF raw data'!B163) -> -1.99901e-05 | C163: =IF('DF raw data'!C163="","",'DF raw data'!C163) -> -0.000155881 | D163: =IF('DF raw data'!D163="","",'DF raw data'!D163) -> -4.876e-05 | F163: 3.815869471e-06 | G163: 9.205888292e-06 | H163: -1.542779744e-05 | J163: 4.992232246e-05 | K163: 0.001456933257 | L163: 0.000595181053 | M163: 0.01738067992 | N163: 7.831020786e-06
A164: =IF('DF raw data'!A164="","",'DF raw data'!A164) -> -251.5 | B164: =IF('DF raw data'!B164="","",'DF raw data'!B164) -> -2.63458e-05 | C164: =IF('DF raw data'!C164="","",'DF raw data'!C164) -> -0.000157459 | D164: =IF('DF raw data'!D164="","",'DF raw data'!D164) -> -3.74452e-05 | F164: -2.572308156e-06 | G164: 7.619824712e-06 | H164: -4.055178808e-06 | J164: 4.863616838e-05 | K164: 0.001481251341 | L164: 0.0005989909654 | M164: 0.0176801754 | N164: 8.011598613e-06
A165: =IF('DF raw data'!A165="","",'DF raw data'!A165) -> -251 | B165: =IF('DF raw data'!B165="","",'DF raw data'!B165) -> -2.4033e-05 | C165: =IF('DF raw data'!C165="","",'DF raw data'!C165) -> -0.000160766 | D165: =IF('DF raw data'!D165="","",'DF raw data'!D165) -> -4.38074e-05 | F165: -2.476897476e-07 | G165: 4.295925942e-06 | H165: -1.044988965e-05 | J165: 4.851232351e-05 | K165: 0.001505507503 | L165: 0.0006011389283 | M165: 0.01798074487 | N165: 8.193459342e-06
A166: =IF('DF raw data'!A166="","",'DF raw data'!A166) -> -250.5 | B166: =IF('DF raw data'!B166="","",'DF raw data'!B166) -> -2.5013e-05 | C166: =IF('DF raw data'!C166="","",'DF raw data'!C166) -> -0.000159629 | D166: =IF('DF raw data'!D166="","",'DF raw data'!D166) -> -1.60058e-05 | F166: -1.232697548e-06 | G166: 5.438736012e-06 | H166: 1.749377653e-05 | J166: 4.789597473e-05 | K166: 0.00152945549 | L166: 0.0006038582963 | M166: 0.01828267402 | N166: 8.376928775e-06
A167: =IF('DF raw data'!A167="","",'DF raw data'!A167) -> -250 | B167: =IF('DF raw data'!B167="","",'DF raw data'!B167) -> -2.17347e-05 | C167: =IF('DF raw data'!C167="","",'DF raw data'!C167) -> -0.000152379 | D167: =IF('DF raw data'!D167="","",'DF raw data'!D167) -> -2.81864e-05 | F167: 2.062354565e-06 | G167: 1.272578351e-05 | H167: 5.25093366e-06 | J167: 4.892715202e-05 | K167: 0.001553919066 | L167: 0.0006102211881 | M167: 0.01858778461 | N167: 8.564310657e-06
A168: =IF('DF raw data'!A168="","",'DF raw data'!A168) -> -249.5 | B168: =IF('DF raw data'!B168="","",'DF raw data'!B168) -> -2.05078e-05 | C168: =IF('DF raw data'!C168="","",'DF raw data'!C168) -> -0.000161508 | D168: =IF('DF raw data'!D168="","",'DF raw data'!D168) -> -4.15409e-05 | F168: 3.295524024e-06 | G168: 3.550134322e-06 | H168: -8.171807835e-06 | J168: 5.057491403e-05 | K168: 0.001579206523 | L168: 0.0006119962553 | M168: 0.01889378274 | N168: 8.752859276e-06
A169: =IF('DF raw data'!A169="","",'DF raw data'!A169) -> -249 | B169: =IF('DF raw data'!B169="","",'DF raw data'!B169) -> -2.73674e-05 | C169: =IF('DF raw data'!C169="","",'DF raw data'!C169) -> -0.000164656 | D169: =IF('DF raw data'!D169="","",'DF raw data'!D169) -> -4.42117e-05 | F169: -3.599128532e-06 | G169: 3.860480421e-07 | H169: -1.085625562e-05 | J169: 4.877534976e-05 | K169: 0.001603594198 | L169: 0.0006121892793 | M169: 0.01919987738 | N169: 8.941436651e-06
A170: =IF('DF raw data'!A170="","",'DF raw data'!A170) -> -248.5 | B170: =IF('DF raw data'!B170="","",'DF raw data'!B170) -> -3.72482e-05 | C170: =IF('DF raw data'!C170="","",'DF raw data'!C170) -> -0.00015446 | D170: =IF('DF raw data'!D170="","",'DF raw data'!D170) -> -3.55435e-05 | F170: -1.353041942e-05 | G170: 1.06341496e-05 | H170: -2.143761121e-06 | J170: 4.201014005e-05 | K170: 0.001624599268 | L170: 0.0006175063541 | M170: 0.01950863056 | N170: 9.132976125e-06
A171: =IF('DF raw data'!A171="","",'DF raw data'!A171) -> -248 | B171: =IF('DF raw data'!B171="","",'DF raw data'!B171) -> -2.58347e-05 | C171: =IF('DF raw data'!C171="","",'DF raw data'!C171) -> -0.000150677 | D171: =IF('DF raw data'!D171="","",'DF raw data'!D171) -> -3.44821e-05 | F171: -2.058596435e-06 | G171: 1.443648073e-05 | H171: -1.076937367e-06 | J171: 4.098084184e-05 | K171: 0.001645089689 | L171: 0.0006247245944 | M171: 0.01982099285 | N171: 9.328956249e-06
A172: =IF('DF raw data'!A172="","",'DF raw data'!A172) -> -247.5 | B172: =IF('DF raw data'!B172="","",'DF raw data'!B172) -> -3.55813e-05 | C172: =IF('DF raw data'!C172="","",'DF raw data'!C172) -> -0.000144062 | D172: =IF('DF raw data'!D172="","",'DF raw data'!D172) -> -3.4787e-05 | F172: -1.185500156e-05 | G172: 2.108528338e-05 | H172: -1.383395406e-06 | J172: 3.505334106e-05 | K172: 0.001662616359 | L172: 0.0006352672361 | M172: 0.02013862647 | N172: 9.531352848e-06
A173: =IF('DF raw data'!A173="","",'DF raw data'!A173) -> -247 | B173: =IF('DF raw data'!B173="","",'DF raw data'!B173) -> -2.97372e-05 | C173: =IF('DF raw data'!C173="","",'DF raw data'!C173) -> -0.000135944 | D173: =IF('DF raw data'!D173="","",'DF raw data'!D173) -> -4.82705e-05 | F173: -5.98103821e-06 | G173: 2.924476636e-05 | H173: -1.493579609e-05 | J173: 3.206282195e-05 | K173: 0.00167864777 | L173: 0.0006498896193 | M173: 0.02046357128 | N173: 9.743045119e-06
A174: =IF('DF raw data'!A174="","",'DF raw data'!A174) -> -246.5 | B174: =IF('DF raw data'!B174="","",'DF raw data'!B174) -> -2.69171e-05 | C174: =IF('DF raw data'!C174="","",'DF raw data'!C174) -> -0.000142984 | D174: =IF('DF raw data'!D174="","",'DF raw data'!D174) -> -4.62374e-05 | F174: -3.146527499e-06 | G174: 2.216879196e-05 | H174: -1.289230695e-05 | J174: 3.04895582e-05 | K174: 0.001693892549 | L174: 0.0006609740153 | M174: 0.02079405829 | N174: 9.96195325e-06
A175: =IF('DF raw data'!A175="","",'DF raw data'!A175) -> -246 | B175: =IF('DF raw data'!B175="","",'DF raw data'!B175) -> -2.02512e-05 | C175: =IF('DF raw data'!C175="","",'DF raw data'!C175) -> -0.00015062 | D175: =IF('DF raw data'!D175="","",'DF raw data'!D175) -> -4.16462e-05 | F175: 3.55343525e-06 | G175: 1.4493772e-05 | H175: -8.277645918e-06 | J175: 3.226627583e-05 | K175: 0.001710025687 | L175: 0.0006682209013 | M175: 0.02112816874 | N175: 1.018573339e-05
A176: =IF('DF raw data'!A176="","",'DF raw data'!A176) -> -245.5 | B176: =IF('DF raw data'!B176="","",'DF raw data'!B176) -> -3.66087e-05 | C176: =IF('DF raw data'!C176="","",'DF raw data'!C176) -> -0.000153643 | D176: =IF('DF raw data'!D176="","",'DF raw data'!D176) -> -3.25614e-05 | F176: -1.288765157e-05 | G176: 1.145532447e-05 | H176: 8.535774101e-07 | J176: 2.582245004e-05 | K176: 0.001722936912 | L176: 0.0006739485635 | M176: 0.02146514302 | N176: 1.041317013e-05
A177: =IF('DF raw data'!A177="","",'DF raw data'!A177) -> -245 | B177: =IF('DF raw data'!B177="","",'DF raw data'!B177) -> -1.99385e-05 | C177: =IF('DF raw data'!C177="","",'DF raw data'!C177) -> -0.000145633 | D177: =IF('DF raw data'!D177="","",'DF raw data'!D177) -> -2.93395e-05 | F177: 3.867733147e-06 | G177: 1.950625557e-05 | H177: 4.091941319e-06 | J177: 2.775631661e-05 | K177: 0.001736815071 | L177: 0.0006837016913 | M177: 0.02180699387 | N177: 1.064727933e-05
A178: =IF('DF raw data'!A178="","",'DF raw data'!A178) -> -244.5 | B178: =IF('DF raw data'!B178="","",'DF raw data'!B178) -> -2.8209e-05 | C178: =IF('DF raw data'!C178="","",'DF raw data'!C178) -> -0.000153742 | D178: =IF('DF raw data'!D178="","",'DF raw data'!D178) -> -3.16309e-05 | F178: -4.445029108e-06 | G178: 1.135581858e-05 | H178: 1.788832265e-06 | J178: 2.553380206e-05 | K178: 0.001749581972 | L178: 0.0006893796006 | M178: 0.02215168367 | N178: 1.088522744e-05
A179: =IF('DF raw data'!A179="","",'DF raw data'!A179) -> -244 | B179: =IF('DF raw data'!B179="","",'DF raw data'!B179) -> -2.90357e-05 | C179: =IF('DF raw data'!C179="","",'DF raw data'!C179) -> -0.000153369 | D179: =IF('DF raw data'!D179="","",'DF raw data'!D179) -> -4.24647e-05 | F179: -5.275953545e-06 | G179: 1.173072461e-05 | H179: -9.100328453e-06 | J179: 2.289582529e-05 | K179: 0.001761029884 | L179: 0.0006952449629 | M179: 0.02249930615 | N179: 1.112717233e-05
A180: =IF('DF raw data'!A180="","",'DF raw data'!A180) -> -243.5 | B180: =IF('DF raw data'!B180="","",'DF raw data'!B180) -> -2.01895e-05 | C180: =IF('DF raw data'!C180="","",'DF raw data'!C180) -> -0.000145111 | D180: =IF('DF raw data'!D180="","",'DF raw data'!D180) -> -3.78348e-05 | F180: 3.615450537e-06 | G180: 2.003092299e-05 | H180: -4.446769664e-06 | J180: 2.470355056e-05 | K180: 0.00177338166 | L180: 0.0007052604244 | M180: 0.02285193636 | N180: 1.137617359e-05
A181: =IF('DF raw data'!A181="","",'DF raw data'!A181) -> -243 | B181: =IF('DF raw data'!B181="","",'DF raw data'!B181) -> -3.01866e-05 | C181: =IF('DF raw data'!C181="","",'DF raw data'!C181) -> -0.00014047 | D181: =IF('DF raw data'!D181="","",'DF raw data'!D181) -> -4.76337e-05 | F181: -6.432734644e-06 | G181: 2.46956385e-05 | H181: -1.429574204e-05 | J181: 2.148718323e-05 | K181: 0.001784125251 | L181: 0.0007176082437 | M181: 0.02321074048 | N181: 1.163388524e-05
A182: =IF('DF raw data'!A182="","",'DF raw data'!A182) -> -242.5 | B182: =IF('DF raw data'!B182="","",'DF raw data'!B182) -> -3.4356e-05 | C182: =IF('DF raw data'!C182="","",'DF raw data'!C182) -> -0.000134908 | D182: =IF('DF raw data'!D182="","",'DF raw data'!D182) -> -4.56919e-05 | F182: -1.062344028e-05 | G182: 3.028606032e-05 | H182: -1.234401944e-05 | J182: 1.61754631e-05 | K182: 0.001792212983 | L182: 0.0007327512738 | M182: 0.02357711612 | N182: 1.190247828e-05
A183: =IF('DF raw data'!A183="","",'DF raw data'!A183) -> -242 | B183: =IF('DF raw data'!B183="","",'DF raw data'!B183) -> -2.85838e-05 | C183: =IF('DF raw data'!C183="","",'DF raw data'!C183) -> -0.000135927 | D183: =IF('DF raw data'!D183="","",'DF raw data'!D183) -> -4.69726e-05 | F183: -4.821744336e-06 | G183: 2.926185323e-05 | H183: -1.363126382e-05 | J183: 1.376459093e-05 | K183: 0.001799095278 | L183: 0.0007473822004 | M183: 0.02395080722 | N183: 1.218186308e-05
A184: =IF('DF raw data'!A184="","",'DF raw data'!A184) -> -241.5 | B184: =IF('DF raw data'!B184="","",'DF raw data'!B184) -> -2.69811e-05 | C184: =IF('DF raw data'!C184="","",'DF raw data'!C184) -> -0.000145791 | D184: =IF('DF raw data'!D184="","",'DF raw data'!D184) -> -4.66516e-05 | F184: -3.210854539e-06 | G184: 1.934744819e-05 | H184: -1.330862351e-05 | J184: 1.215916366e-05 | K184: 0.00180517486 | L184: 0.0007570559245 | M184: 0.02432933518 | N184: 1.246850384e-05
A185: =IF('DF raw data'!A185="","",'DF raw data'!A185) -> -241 | B185: =IF('DF raw data'!B185="","",'DF raw data'!B185) -> -2.75654e-05 | C185: =IF('DF raw data'!C185="","",'DF raw data'!C185) -> -0.000142093 | D185: =IF('DF raw data'!D185="","",'DF raw data'!D185) -> -3.53971e-05 | F185: -3.798140312e-06 | G185: 2.306434497e-05 | H185: -1.996613017e-06 | J185: 1.02600935e-05 | K185: 0.001810304907 | L185: 0.000768588097 | M185: 0.02471362923 | N185: 1.276392031e-05
A186: =IF('DF raw data'!A186="","",'DF raw data'!A186) -> -240.5 | B186: =IF('DF raw data'!B186="","",'DF raw data'!B186) -> -3.3395e-05 | C186: =IF('DF raw data'!C186="","",'DF raw data'!C186) -> -0.000151416 | D186: =IF('DF raw data'!D186="","",'DF raw data'!D186) -> -4.42767e-05 | F186: -9.657529568e-06 | G186: 1.369370444e-05 | H186: -1.092158777e-05 | J186: 5.431328719e-06 | K186: 0.001813020571 | L186: 0.0007754349492 | M186: 0.0251013467 | N186: 1.306458474e-05
A187: =IF('DF raw data'!A187="","",'DF raw data'!A187) -> -240 | B187: =IF('DF raw data'!B187="","",'DF raw data'!B187) -> -4.66047e-05 | C187: =IF('DF raw data'!C187="","",'DF raw data'!C187) -> -0.000149612 | D187: =IF('DF raw data'!D187="","",'DF raw data'!D187) -> -4.40556e-05 | F187: -2.293473113e-05 | G187: 1.550692288e-05 | H187: -1.069935795e-05 | J187: -6.036036848e-06 | K187: 0.001810002553 | L187: 0.0007831884107 | M187: 0.02549294091 | N187: 1.3371295e-05
A188: =IF('DF raw data'!A188="","",'DF raw data'!A188) -> -239.5 | B188: =IF('DF raw data'!B188="","",'DF raw data'!B188) -> -3.35259e-05 | C188: =IF('DF raw data'!C188="","",'DF raw data'!C188) -> -0.000147199 | D188: =IF('DF raw data'!D188="","",'DF raw data'!D188) -> -4.01492e-05 | F188: -9.789098467e-06 | G188: 1.793225331e-05 | H188: -6.772996248e-06 | J188: -1.093058608e-05 | K188: 0.00180453726 | L188: 0.0007921545373 | M188: 0.02588901818 | N188: 1.368510914e-05
A189: =IF('DF raw data'!A189="","",'DF raw data'!A189) -> -239 | B189: =IF('DF raw data'!B189="","",'DF raw data'!B189) -> -3.05677e-05 | C189: =IF('DF raw data'!C189="","",'DF raw data'!C189) -> -0.000140686 | D189: =IF('DF raw data'!D189="","",'DF raw data'!D189) -> -5.33324e-05 | F189: -6.815782065e-06 | G189: 2.447853474e-05 | H189: -2.00235624e-05 | J189: -1.433847711e-05 | K189: 0.001797368021 | L189: 0.0008043938047 | M189: 0.02629121508 | N189: 1.400873664e-05
A190: =IF('DF raw data'!A190="","",'DF raw data'!A190) -> -238.5 | B190: =IF('DF raw data'!B190="","",'DF raw data'!B190) -> -2.01856e-05 | C190: =IF('DF raw data'!C190="","",'DF raw data'!C190) -> -0.000138921 | D190: =IF('DF raw data'!D190="","",'DF raw data'!D190) -> -4.38482e-05 | F190: 3.619370466e-06 | G190: 2.625255389e-05 | H190: -1.049089814e-05 | J190: -1.252879188e-05 | K190: 0.001791103625 | L190: 0.0008175200817 | M190: 0.02669997512 | N190: 1.434298466e-05
A191: =IF('DF raw data'!A191="","",'DF raw data'!A191) -> -238 | B191: =IF('DF raw data'!B191="","",'DF raw data'!B191) -> -2.15308e-05 | C191: =IF('DF raw data'!C191="","",'DF raw data'!C191) -> -0.000146439 | D191: =IF('DF raw data'!D191="","",'DF raw data'!D191) -> -4.61296e-05 | F191: 2.267296494e-06 | G191: 1.869613691e-05 | H191: -1.278395609e-05 | J191: -1.139514363e-05 | K191: 0.001785406053 | L191: 0.0008268681501 | M191: 0.0271134092 | N191: 1.468490506e-05
A192: =IF('DF raw data'!A192="","",'DF raw data'!A192) -> -237.5 | B192: =IF('DF raw data'!B192="","",'DF raw data'!B192) -> -3.42986e-05 | C192: =IF('DF raw data'!C192="","",'DF raw data'!C192) -> -0.000158249 | D192: =IF('DF raw data'!D192="","",'DF raw data'!D192) -> -3.51904e-05 | F192: -1.056574696e-05 | G192: 6.825787812e-06 | H192: -1.78885678e-06 | J192: =F192*$G$3+J191 -> -1.667801712e-05 | K192: =J192*$G$3+K191 -> 0.001777067045 | L192: =G192*$G$3+L191 -> 0.000830281044 | M192: =L192*$G$3+M191 -> 0.02752854972 | N192: =(J192^2+L192^2)*$G$3+N191 -> 1.502972744e-05
A193: =IF('DF raw data'!A193="","",'DF raw data'!A193) -> -237 | B193: =IF('DF raw data'!B193="","",'DF raw data'!B193) -> -2.2818e-05 | C193: =IF('DF raw data'!C193="","",'DF raw data'!C193) -> -0.000158128 | D193: =IF('DF raw data'!D193="","",'DF raw data'!D193) -> -3.89081e-05 | F193: 9.735189024e-07 | G193: 6.947406122e-06 | H193: -5.525554227e-06 | J193: -1.619125766e-05 | K193: 0.001768971416 | L193: 0.0008337547471 | M193: 0.02794542709 | N193: 1.537743201e-05
A194: =IF('DF raw data'!A194="","",'DF raw data'!A194) -> -236.5 | B194: =IF('DF raw data'!B194="","",'DF raw data'!B194) -> -2.98076e-05 | C194: =IF('DF raw data'!C194="","",'DF raw data'!C194) -> -0.000155224 | D194: =IF('DF raw data'!D194="","",'DF raw data'!D194) -> -3.8866e-05 | F194: -6.051797954e-06 | G194: 9.866245562e-06 | H194: -5.483239096e-06 | J194: -1.921715664e-05 | K194: 0.001759362838 | L194: 0.0008386878699 | M194: 0.02836477103 | N194: 1.572931533e-05
A195: =IF('DF raw data'!A195="","",'DF raw data'!A195) -> -236 | B195: =IF('DF raw data'!B195="","",'DF raw data'!B195) -> -3.38435e-05 | C195: =IF('DF raw data'!C195="","",'DF raw data'!C195) -> -0.000160122 | D195: =IF('DF raw data'!D195="","",'DF raw data'!D195) -> -4.50493e-05 | F195: =(1-$G$1*($B$54-$G$2))*(B195-F$5) -> -1.01083214e-05 | G195: =(1-$G$1*($B$54-$G$2))*(C195-G$5) -> 4.943216782e-06 | H195: =(1-$G$1*($B$54-$G$2))*(D195-H$5) -> -1.169813576e-05 | J195: -2.427131734e-05 | K195: 0.001747227179 | L195: 0.0008411594783 | M195: 0.02878535077 | N195: 1.608338451e-05
A196: =IF('DF raw data'!A196="","",'DF raw data'!A196) -> -235.5 | B196: =IF('DF raw data'!B196="","",'DF raw data'!B196) -> -2.44115e-05 | C196: =IF('DF raw data'!C196="","",'DF raw data'!C196) -> -0.000162937 | D196: =IF('DF raw data'!D196="","",'DF raw data'!D196) -> -5.35083e-05 | F196: -6.281238826e-07 | G196: 2.113832132e-06 | H196: -2.020036125e-05 | J196: -2.458537928e-05 | K196: 0.001734934489 | L196: 0.0008422163943 | M196: 0.02920645896 | N196: 1.643835096e-05
A197: =IF('DF raw data'!A197="","",'DF raw data'!A197) -> -235 | B197: =IF('DF raw data'!B197="","",'DF raw data'!B197) -> -3.25568e-05 | C197: =IF('DF raw data'!C197="","",'DF raw data'!C197) -> -0.000162268 | D197: =IF('DF raw data'!D197="","",'DF raw data'!D197) -> -5.1505e-05 | F197: -8.815046366e-06 | G197: 2.786250722e-06 | H197: -1.818682439e-05 | J197: -2.899290247e-05 | K197: 0.001720438038 | L197: 0.0008436095197 | M197: 0.02962826372 | N197: 1.679460976e-05
A198: =IF('DF raw data'!A198="","",'DF raw data'!A198) -> -234.5 | B198: =IF('DF raw data'!B198="","",'DF raw data'!B198) -> -2.76807e-05 | C198: =IF('DF raw data'!C198="","",'DF raw data'!C198) -> -0.000152228 | D198: =IF('DF raw data'!D198="","",'DF raw data'!D198) -> -5.52471e-05 | F198: -3.914029495e-06 | G198: 1.287755512e-05 | H198: -2.194804652e-05 | J198: -3.094991721e-05 | K198: 0.00170496308 | L198: 0.0008500482972 | M198: 0.03005328787 | N198: 1.715637977e-05
A199: =IF('DF raw data'!A199="","",'DF raw data'!A199) -> -234 | B199: =IF('DF raw data'!B199="","",'DF raw data'!B199) -> -2.98028e-05 | C199: =IF('DF raw data'!C199="","",'DF raw data'!C199) -> -0.000150851 | D199: =IF('DF raw data'!D199="","",'DF raw data'!D199) -> -4.63063e-05 | F199: -6.046973426e-06 | G199: 1.426159159e-05 | H199: -1.296155903e-05 | J199: -3.397340393e-05 | K199: 0.001687976378 | L199: 0.000857179093 | M199: 0.03048187742 | N199: 1.752433486e-05
A200: =IF('DF raw data'!A200="","",'DF raw data'!A200) -> -233.5 | B200: =IF('DF raw data'!B200="","",'DF raw data'!B200) -> -3.13371e-05 | C200: =IF('DF raw data'!C200="","",'DF raw data'!C200) -> -0.000149794 | D200: =IF('DF raw data'!D200="","",'DF raw data'!D200) -> -5.34906e-05 | F200: -7.589113699e-06 | G200: 1.532399286e-05 | H200: -2.01825708e-05 | J200: -3.776796078e-05 | K200: 0.001669092397 | L200: 0.0008648410895 | M200: 0.03091429796 | N200: 1.789902313e-05
... 1079 more rows

Sheet 15 mm
A1: =IF('DF raw data'!E1="","",'DF raw data'!E1) -> Number of header lines | B1: =IF('DF raw data'!F1="","",'DF raw data'!F1) -> 54 | C1: =IF('DF raw data'!C1="","",'DF raw data'!C1) ->  | D1: =IF('DF raw data'!D1="","",'DF raw data'!D1) ->  | F1: T_coeff | G1: -0.00073 | H1: /degC | J1: IBy total | K1: =J1267*1000 -> 8.369621142 | L1: muTm | M1: =L1267*1000 -> -7.700919215 | R1: DF ref | S1: 1
A2: =IF('DF raw data'!E2="","",'DF raw data'!E2) -> Measured by | B2: =IF('DF raw data'!F2="","",'DF raw data'!F2) -> Danfysik | C2: =IF('DF raw data'!C2="","",'DF raw data'!C2) ->  | D2: =IF('DF raw data'!D2="","",'DF raw data'!D2) ->  | F2: Tcorr | G2: 20 | H2: degC | J2: JBy total | K2: =K1267 -> 2.339975647 | L2: muTm^2 | M2: =M1267 -> 1.383366528
A3: =IF('DF raw data'!E3="","",'DF raw data'!E3) -> Operator | B3: =IF('DF raw data'!F3="","",'DF raw data'!F3) -> PMHA | C3: =IF('DF raw data'!C3="","",'DF raw data'!C3) ->  | D3: =IF('DF raw data'!D3="","",'DF raw data'!D3) ->  | F3: Step | G3: =A68-A67 -> 0.5 | H3: mm | J3: PI total | K3: =N1267 -> 7232.460569 | L3: T^2mm^3
A4: =IF('DF raw data'!E4="","",'DF raw data'!E4) -> Data-time | B4: =IF('DF raw data'!F4="","",'DF raw data'!F4) -> 01-08-2024, 12:51:35 | C4: =IF('DF raw data'!C4="","",'DF raw data'!C4) ->  | D4: =IF('DF raw data'!D4="","",'DF raw data'!D4) -> 
A5: =IF('DF raw data'!E5="","",'DF raw data'!E5) -> Project | B5: =IF('DF raw data'!F5="","",'DF raw data'!F5) -> 504314 | C5: =IF('DF raw data'!C5="","",'DF raw data'!C5) ->  | D5: Bamb avr | F5: =(AVERAGE(B67:B107) + AVERAGE(B1227:B1267))/2 -> -3.245415488e-05 | G5: =(AVERAGE(C67:C107) + AVERAGE(C1227:C1267))/2 -> -0.0002445841098 | H5: =(AVERAGE(D67:D107) + AVERAGE(D1227:D1267))/2 -> -4.303362561e-05
A6: =IF('DF raw data'!E6="","",'DF raw data'!E6) -> Magnet type | B6: =IF('DF raw data'!F6="","",'DF raw data'!F6) -> Dipole | C6: =IF('DF raw data'!C6="","",'DF raw data'!C6) -> 
A7: =IF('DF raw data'!E7="","",'DF raw data'!E7) -> Magnet nr. | B7: =IF('DF raw data'!F7="","",'DF raw data'!F7) -> 2410091 | C7: =IF('DF raw data'!C7="","",'DF raw data'!C7) -> 
A8: =IF('DF raw data'!E8="","",'DF raw data'!E8) -> Meas. number | B8: =IF('DF raw data'!F8="","",'DF raw data'!F8) -> 186 | C8: =IF('DF raw data'!C8="","",'DF raw data'!C8) -> 
A9: =IF('DF raw data'!E9="","",'DF raw data'!E9) -> Add. info | B9: =IF('DF raw data'!F9="","",'DF raw data'!F9) ->  | C9: =IF('DF raw data'!C9="","",'DF raw data'!C9) ->  | D9: =IF('DF raw data'!D9="","",'DF raw data'!D9) -> 
A10: =IF('DF raw data'!E10="","",'DF raw data'!E10) -> Device | B10: =IF('DF raw data'!F10="","",'DF raw data'!F10) -> (HAL) HALL-PROBE | C10: =IF('DF raw data'!C10="","",'DF raw data'!C10) ->  | D10: =IF('DF raw data'!D10="","",'DF raw data'!D10) -> 
A11: =IF('DF raw data'!E11="","",'DF raw data'!E11) -> Goal | B11: =IF('DF raw data'!F11="","",'DF raw data'!F11) -> (AXI) AXis Integral (Line, EFB) | C11: =IF('DF raw data'!C11="","",'DF raw data'!C11) ->  | D11: =IF('DF raw data'!D11="","",'DF raw data'!D11) -> 
A12: =IF('DF raw data'!E12="","",'DF raw data'!E12) -> Power supply mode | B12: =IF('DF raw data'!F12="","",'DF raw data'!F12) -> (PM) Permanent Magnet (no MPS in use) | C12: =IF('DF raw data'!C12="","",'DF raw data'!C12) ->  | D12: =IF('DF raw data'!D12="","",'DF raw data'!D12) -> 
A13: =IF('DF raw data'!E13="","",'DF raw data'!E13) -> Data format | B13: =IF('DF raw data'!F13="","",'DF raw data'!F13) -> Raw data text file | C13: =IF('DF raw data'!C13="","",'DF raw data'!C13) ->  | D13: =IF('DF raw data'!D13="","",'DF raw data'!D13) -> 
A14: =IF('DF raw data'!E14="","",'DF raw data'!E14) -> Direction of the pos. x-axis | B14: =IF('DF raw data'!F14="","",'DF raw data'!F14) -> See test program | C14: =IF('DF raw data'!C14="","",'DF raw data'!C14) ->  | D14: =IF('DF raw data'!D14="","",'DF raw data'!D14) -> 
A15: =IF('DF raw data'!E15="","",'DF raw data'!E15) -> Direction of the pos. y-axis | B15: =IF('DF raw data'!F15="","",'DF raw data'!F15) -> Vertical up | C15: =IF('DF raw data'!C15="","",'DF raw data'!C15) ->  | D15: =IF('DF raw data'!D15="","",'DF raw data'!D15) -> 
A16: =IF('DF raw data'!E16="","",'DF raw data'!E16) -> Direction of the pos. z-axis | B16: =IF('DF raw data'!F16="","",'DF raw data'!F16) -> See test program | C16: =IF('DF raw data'!C16="","",'DF raw data'!C16) ->  | D16: =IF('DF raw data'!D16="","",'DF raw data'!D16) -> 
A17: =IF('DF raw data'!E17="","",'DF raw data'!E17) -> Mapper type | B17: =IF('DF raw data'!F17="","",'DF raw data'!F17) -> Precision Hall Mapper | C17: =IF('DF raw data'!C17="","",'DF raw data'!C17) ->  | D17: =IF('DF raw data'!D17="","",'DF raw data'!D17) -> 
A18: =IF('DF raw data'!E18="","",'DF raw data'!E18) -> Mapper Danfysik Reg. Number | B18: =IF('DF raw data'!F18="","",'DF raw data'!F18) -> 2033-D (mapper 1) | C18: =IF('DF raw data'!C18="","",'DF raw data'!C18) ->  | D18: =IF('DF raw data'!D18="","",'DF raw data'!D18) -> 
A19: =IF('DF raw data'!E19="","",'DF raw data'!E19) -> Measurement consept | B19: =IF('DF raw data'!F19="","",'DF raw data'!F19) -> Square line grid | C19: =IF('DF raw data'!C19="","",'DF raw data'!C19) ->  | D19: =IF('DF raw data'!D19="","",'DF raw data'!D19) -> 
A20: =IF('DF raw data'!E20="","",'DF raw data'!E20) -> Mode | B20: =IF('DF raw data'!F20="","",'DF raw data'!F20) -> On-the-fly measurement | C20: =IF('DF raw data'!C20="","",'DF raw data'!C20) ->  | D20: =IF('DF raw data'!D20="","",'DF raw data'!D20) -> 
A21: =IF('DF raw data'!E21="","",'DF raw data'!E21) ->  | B21: =IF('DF raw data'!F21="","",'DF raw data'!F21) ->  | C21: =IF('DF raw data'!C21="","",'DF raw data'!C21) ->  | D21: =IF('DF raw data'!D21="","",'DF raw data'!D21) -> 
A22: =IF('DF raw data'!E22="","",'DF raw data'!E22) -> Probe Name | B22: =IF('DF raw data'!F22="","",'DF raw data'!F22) -> ID12_By | C22: =IF('DF raw data'!C22="","",'DF raw data'!C22) ->  | D22: =IF('DF raw data'!D22="","",'DF raw data'!D22) -> 
A23: =IF('DF raw data'!E23="","",'DF raw data'!E23) -> Probe Type | B23: =IF('DF raw data'!F23="","",'DF raw data'!F23) -> DF_ID_3D_Bxyz | C23: =IF('DF raw data'!C23="","",'DF raw data'!C23) ->  | D23: =IF('DF raw data'!D23="","",'DF raw data'!D23) -> 
A24: =IF('DF raw data'!E24="","",'DF raw data'!E24) -> Probe Danfysik Reg. Number | B24: =IF('DF raw data'!F24="","",'DF raw data'!F24) -> 2277 | C24: =IF('DF raw data'!C24="","",'DF raw data'!C24) ->  | D24: =IF('DF raw data'!D24="","",'DF raw data'!D24) -> 
A25: =IF('DF raw data'!E25="","",'DF raw data'!E25) -> Probe Axis | B25: =IF('DF raw data'!F25="","",'DF raw data'!F25) -> By | C25: =IF('DF raw data'!C25="","",'DF raw data'!C25) ->  | D25: =IF('DF raw data'!D25="","",'DF raw data'!D25) -> 
A26: =IF('DF raw data'!E26="","",'DF raw data'!E26) -> Probe Current Supply | B26: =IF('DF raw data'!F26="","",'DF raw data'!F26) -> 1825-D | C26: =IF('DF raw data'!C26="","",'DF raw data'!C26) ->  | D26: =IF('DF raw data'!D26="","",'DF raw data'!D26) -> 
A27: =IF('DF raw data'!E27="","",'DF raw data'!E27) -> Probe Gain Correction | B27: =IF('DF raw data'!F27="","",'DF raw data'!F27) -> 0.99613 | C27: =IF('DF raw data'!C27="","",'DF raw data'!C27) ->  | D27: =IF('DF raw data'!D27="","",'DF raw data'!D27) -> 
A28: =IF('DF raw data'!E28="","",'DF raw data'!E28) -> Probe Offset Correction | B28: =IF('DF raw data'!F28="","",'DF raw data'!F28) -> 0.0027562 | C28: =IF('DF raw data'!C28="","",'DF raw data'!C28) ->  | D28: =IF('DF raw data'!D28="","",'DF raw data'!D28) -> 
A29: =IF('DF raw data'!E29="","",'DF raw data'!E29) -> DVM Number | B29: =IF('DF raw data'!F29="","",'DF raw data'!F29) -> 2 | C29: =IF('DF raw data'!C29="","",'DF raw data'!C29) ->  | D29: =IF('DF raw data'!D29="","",'DF raw data'!D29) -> 
A30: =IF('DF raw data'!E30="","",'DF raw data'!E30) -> DVM Type | B30: =IF('DF raw data'!F30="","",'DF raw data'!F30) -> K2701 | C30: =IF('DF raw data'!C30="","",'DF raw data'!C30) ->  | D30: =IF('DF raw data'!D30="","",'DF raw data'!D30) -> 
A31: =IF('DF raw data'!E31="","",'DF raw data'!E31) -> DVM Danfysik Reg. Number | B31: =IF('DF raw data'!F31="","",'DF raw data'!F31) -> 1743-D | C31: =IF('DF raw data'!C31="","",'DF raw data'!C31) ->  | D31: =IF('DF raw data'!D31="","",'DF raw data'!D31) -> 
A32: =IF('DF raw data'!E32="","",'DF raw data'!E32) -> Probe Name | B32: =IF('DF raw data'!F32="","",'DF raw data'!F32) -> ID12_Bx | C32: =IF('DF raw data'!C32="","",'DF raw data'!C32) ->  | D32: =IF('DF raw data'!D32="","",'DF raw data'!D32) -> 
A33: =IF('DF raw data'!E33="","",'DF raw data'!E33) -> Probe Type | B33: =IF('DF raw data'!F33="","",'DF raw data'!F33) -> DF_ID_3D_Bxyz | C33: =IF('DF raw data'!C33="","",'DF raw data'!C33) ->  | D33: =IF('DF raw data'!D33="","",'DF raw data'!D33) -> 
A34: =IF('DF raw data'!E34="","",'DF raw data'!E34) -> Probe Danfysik Reg. Number | B34: =IF('DF raw data'!F34="","",'DF raw data'!F34) -> 2277 | C34: =IF('DF raw data'!C34="","",'DF raw data'!C34) ->  | D34: =IF('DF raw data'!D34="","",'DF raw data'!D34) -> 
A35: =IF('DF raw data'!E35="","",'DF raw data'!E35) -> Probe Axis | B35: =IF('DF raw data'!F35="","",'DF raw data'!F35) -> Bx | C35: =IF('DF raw data'!C35="","",'DF raw data'!C35) ->  | D35: =IF('DF raw data'!D35="","",'DF raw data'!D35) -> 
A36: =IF('DF raw data'!E36="","",'DF raw data'!E36) -> Probe Current Supply | B36: =IF('DF raw data'!F36="","",'DF raw data'!F36) -> 1825-D | C36: =IF('DF raw data'!C36="","",'DF raw data'!C36) ->  | D36: =IF('DF raw data'!D36="","",'DF raw data'!D36) -> 
A37: =IF('DF raw data'!E37="","",'DF raw data'!E37) -> Probe Gain Correction | B37: =IF('DF raw data'!F37="","",'DF raw data'!F37) -> 1 | C37: =IF('DF raw data'!C37="","",'DF raw data'!C37) ->  | D37: =IF('DF raw data'!D37="","",'DF raw data'!D37) -> 
A38: =IF('DF raw data'!E38="","",'DF raw data'!E38) -> Probe Offset Correction | B38: =IF('DF raw data'!F38="","",'DF raw data'!F38) -> -0.17564 | C38: =IF('DF raw data'!C38="","",'DF raw data'!C38) ->  | D38: =IF('DF raw data'!D38="","",'DF raw data'!D38) -> 
A39: =IF('DF raw data'!E39="","",'DF raw data'!E39) -> DVM Number | B39: =IF('DF raw data'!F39="","",'DF raw data'!F39) -> 3 | C39: =IF('DF raw data'!C39="","",'DF raw data'!C39) ->  | D39: =IF('DF raw data'!D39="","",'DF raw data'!D39) -> 
A40: =IF('DF raw data'!E40="","",'DF raw data'!E40) -> DVM Type | B40: =IF('DF raw data'!F40="","",'DF raw data'!F40) -> K2701 | C40: =IF('DF raw data'!C40="","",'DF raw data'!C40) ->  | D40: =IF('DF raw data'!D40="","",'DF raw data'!D40) -> 
A41: =IF('DF raw data'!E41="","",'DF raw data'!E41) -> DVM Danfysik Reg. Number | B41: =IF('DF raw data'!F41="","",'DF raw data'!F41) -> 1744-D | C41: =IF('DF raw data'!C41="","",'DF raw data'!C41) ->  | D41: =IF('DF raw data'!D41="","",'DF raw data'!D41) -> 
A42: =IF('DF raw data'!E42="","",'DF raw data'!E42) -> Probe Name | B42: =IF('DF raw data'!F42="","",'DF raw data'!F42) -> ID12_Bz | C42: =IF('DF raw data'!C42="","",'DF raw data'!C42) ->  | D42: =IF('DF raw data'!D42="","",'DF raw data'!D42) -> 
A43: =IF('DF raw data'!E43="","",'DF raw data'!E43) -> Probe Type | B43: =IF('DF raw data'!F43="","",'DF raw data'!F43) -> DF_ID_3D_Bxyz | C43: =IF('DF raw data'!C43="","",'DF raw data'!C43) ->  | D43: =IF('DF raw data'!D43="","",'DF raw data'!D43) -> 
A44: =IF('DF raw data'!E44="","",'DF raw data'!E44) -> Probe Danfysik Reg. Number | B44: =IF('DF raw data'!F44="","",'DF raw data'!F44) -> 2277 | C44: =IF('DF raw data'!C44="","",'DF raw data'!C44) ->  | D44: =IF('DF raw data'!D44="","",'DF raw data'!D44) -> 
A45: =IF('DF raw data'!E45="","",'DF raw data'!E45) -> Probe Axis | B45: =IF('DF raw data'!F45="","",'DF raw data'!F45) -> Bz | C45: =IF('DF raw data'!C45="","",'DF raw data'!C45) ->  | D45: =IF('DF raw data'!D45="","",'DF raw data'!D45) -> 
A46: =IF('DF raw data'!E46="","",'DF raw data'!E46) -> Probe Current Supply | B46: =IF('DF raw data'!F46="","",'DF raw data'!F46) -> 1825-D | C46: =IF('DF raw data'!C46="","",'DF raw data'!C46) ->  | D46: =IF('DF raw data'!D46="","",'DF raw data'!D46) -> 
A47: =IF('DF raw data'!E47="","",'DF raw data'!E47) -> Probe Gain Correction | B47: =IF('DF raw data'!F47="","",'DF raw data'!F47) -> 1 | C47: =IF('DF raw data'!C47="","",'DF raw data'!C47) ->  | D47: =IF('DF raw data'!D47="","",'DF raw data'!D47) -> 
A48: =IF('DF raw data'!E48="","",'DF raw data'!E48) -> Probe Offset Correction | B48: =IF('DF raw data'!F48="","",'DF raw data'!F48) -> 0.0073401 | C48: =IF('DF raw data'!C48="","",'DF raw data'!C48) ->  | D48: =IF('DF raw data'!D48="","",'DF raw data'!D48) -> 
A49: =IF('DF raw data'!E49="","",'DF raw data'!E49) -> DVM Number | B49: =IF('DF raw data'!F49="","",'DF raw data'!F49) -> 8 | C49: =IF('DF raw data'!C49="","",'DF raw data'!C49) ->  | D49: =IF('DF raw data'!D49="","",'DF raw data'!D49) -> 
A50: =IF('DF raw data'!E50="","",'DF raw data'!E50) -> DVM Type | B50: =IF('DF raw data'!F50="","",'DF raw data'!F50) -> K2700 | C50: =IF('DF raw data'!C50="","",'DF raw data'!C50) ->  | D50: =IF('DF raw data'!D50="","",'DF raw data'!D50) -> 
A51: =IF('DF raw data'!E51="","",'DF raw data'!E51) -> DVM Danfysik Reg. Number | B51: =IF('DF raw data'!F51="","",'DF raw data'!F51) -> 1756-D | C51: =IF('DF raw data'!C51="","",'DF raw data'!C51) ->  | D51: =IF('DF raw data'!D51="","",'DF raw data'!D51) -> 
A52: =IF('DF raw data'!E52="","",'DF raw data'!E52) -> NTC voltage | B52: =IF('DF raw data'!F52="","",'DF raw data'!F52) -> 0.39202 | C52: =IF('DF raw data'!C52="","",'DF raw data'!C52) ->  | D52: =IF('DF raw data'!D52="","",'DF raw data'!D52) -> 
A53: =IF('DF raw data'!E53="","",'DF raw data'!E53) -> PS-Gap: | B53: =IF('DF raw data'!F53="","",'DF raw data'!F53) -> 15 | C53: =IF('DF raw data'!C53="","",'DF raw data'!C53) ->  | D53: =IF('DF raw data'!D53="","",'DF raw data'!D53) -> 
A54: =IF('DF raw data'!E54="","",'DF raw data'!E54) -> PS-Temperature: | B54: =IF('DF raw data'!F54="","",'DF raw data'!F54) -> 26.6 | C54: =IF('DF raw data'!C54="","",'DF raw data'!C54) ->  | D54: =IF('DF raw data'!D54="","",'DF raw data'!D54) -> 
A55: =IF('DF raw data'!E55="","",'DF raw data'!E55) -> PS-Encoder: | B55: =IF('DF raw data'!F55="","",'DF raw data'!F55) -> 24.9688 | C55: =IF('DF raw data'!C55="","",'DF raw data'!C55) ->  | D55: =IF('DF raw data'!D55="","",'DF raw data'!D55) -> 
A56: =IF('DF raw data'!E56="","",'DF raw data'!E56) ->  | B56: =IF('DF raw data'!F56="","",'DF raw data'!F56) -> 
A57: =IF('DF raw data'!E57="","",'DF raw data'!E57) -> Monitor-Index | B57: =IF('DF raw data'!F57="","",'DF raw data'!F57) -> [1,1,4]
A58: =IF('DF raw data'!E58="","",'DF raw data'!E58) ->  | B58: =IF('DF raw data'!F58="","",'DF raw data'!F58) -> 
A59: =IF('DF raw data'!E59="","",'DF raw data'!E59) -> Time [s] | B59: =IF('DF raw data'!F59="","",'DF raw data'!F59) -> Y [mm]
A60: =IF('DF raw data'!E60="","",'DF raw data'!E60) ->  | B60: =IF('DF raw data'!F60="","",'DF raw data'!F60) -> 
A61: =IF('DF raw data'!E61="","",'DF raw data'!E61) -> 207.8 | B61: =IF('DF raw data'!F61="","",'DF raw data'!F61) -> 31.06
A62: =IF('DF raw data'!E62="","",'DF raw data'!E62) ->  | B62: =IF('DF raw data'!F62="","",'DF raw data'!F62) -> 
A63: =IF('DF raw data'!E63="","",'DF raw data'!E63) -> Measurement-Index | B63: =IF('DF raw data'!F63="","",'DF raw data'!F63) -> [1,1,1201,2]
A64: =IF('DF raw data'!E64="","",'DF raw data'!E64) ->  | B64: =IF('DF raw data'!F64="","",'DF raw data'!F64) -> 
A65: =IF('DF raw data'!E65="","",'DF raw data'!E65) -> Z [mm] | B65: =IF('DF raw data'!F65="","",'DF raw data'!F65) -> By [T] | C65: =IF('DF raw data'!G65="","",'DF raw data'!G65) -> Bx [T] | D65: =IF('DF raw data'!H65="","",'DF raw data'!H65) -> Bz [T] | F65: By_corr | G65: Bx_corr | H65: Bz_corr | J65: Iy | K65: Jy | L65: Ix | M65: Jx | N65: PI
B66: =IF('DF raw data'!F66="","",'DF raw data'!F66) ->  | C66: =IF('DF raw data'!G66="","",'DF raw data'!G66) ->  | D66: =IF('DF raw data'!H66="","",'DF raw data'!H66) -> 
A67: =IF('DF raw data'!E67="","",'DF raw data'!E67) -> -300 | B67: =IF('DF raw data'!F67="","",'DF raw data'!F67) -> -3.50563e-05 | C67: =IF('DF raw data'!G67="","",'DF raw data'!G67) -> -0.000218833 | D67: =IF('DF raw data'!H67="","",'DF raw data'!H67) -> -4.41038e-05 | F67: =(1-$G$1*($B$54-$G$2))*(B67-F$5) -> -2.614682257e-06 | G67: =(1-$G$1*($B$54-$G$2))*(C67-G$5) -> 2.58751786e-05 | H67: =(1-$G$1*($B$54-$G$2))*(D67-H$5) -> -1.07533049e-06 | J67: =F67*$G$3+J66 -> -1.307341129e-06 | K67: =J67*$G$3+K66 -> -6.536705643e-07 | L67: =G67*$G$3+L66 -> 1.29375893e-05 | M67: =L67*$G$3+M66 -> 6.468794651e-06 | N67: =(J67^2+L67^2)*$G$3+N66 -> 8.454517888e-11
A68: =IF('DF raw data'!E68="","",'DF raw data'!E68) -> -299.5 | B68: =IF('DF raw data'!F68="","",'DF raw data'!F68) -> -2.85783e-05 | C68: =IF('DF raw data'!G68="","",'DF raw data'!G68) -> -0.00021031 | D68: =IF('DF raw data'!H68="","",'DF raw data'!H68) -> -4.44659e-05 | F68: 3.894528747e-06 | G68: 3.443924242e-05 | H68: -1.439175088e-06 | J68: =F68*$G$3+J67 -> 6.399232449e-07 | K68: =J68*$G$3+K67 -> -3.337089419e-07 | L68: =G68*$G$3+L67 -> 3.015721051e-05 | M68: =L68*$G$3+M67 -> 2.154739991e-05 | N68: =(J68^2+L68^2)*$G$3+N67 -> 5.394786026e-10
A69: =IF('DF raw data'!E69="","",'DF raw data'!E69) -> -299 | B69: =IF('DF raw data'!F69="","",'DF raw data'!F69) -> -3.6467e-05 | C69: =IF('DF raw data'!G69="","",'DF raw data'!G69) -> -0.000211485 | D69: =IF('DF raw data'!H69="","",'DF raw data'!H69) -> -4.45175e-05 | F69: -4.03217901e-06 | G69: 3.325858127e-05 | H69: -1.491023697e-06 | J69: -1.37616626e-06 | K69: -1.021792072e-06 | L69: 4.678650114e-05 | M69: 4.494065048e-05 | N69: 1.634913864e-09
A70: =IF('DF raw data'!E70="","",'DF raw data'!E70) -> -298.5 | B70: =IF('DF raw data'!F70="","",'DF raw data'!F70) -> -3.82633e-05 | C70: =IF('DF raw data'!G70="","",'DF raw data'!G70) -> -0.000218016 | D70: =IF('DF raw data'!H70="","",'DF raw data'!H70) -> -4.3746e-05 | F70: -5.837133583e-06 | G70: 2.669611491e-05 | H70: -7.158066101e-07 | J70: -4.294733052e-06 | K70: -3.169158598e-06 | L70: 6.01345586e-05 | M70: 7.500792978e-05 | N70: 3.452218799e-09
A71: =IF('DF raw data'!E71="","",'DF raw data'!E71) -> -298 | B71: =IF('DF raw data'!F71="","",'DF raw data'!F71) -> -2.65905e-05 | C71: =IF('DF raw data'!G71="","",'DF raw data'!G71) -> -0.000213207 | D71: =IF('DF raw data'!H71="","",'DF raw data'!H71) -> -4.35333e-05 | F71: 5.891905967e-06 | G71: 3.152828467e-05 | H71: -5.020818215e-07 | J71: -1.348780068e-06 | K71: -3.843548632e-06 | L71: 7.589870093e-05 | M71: 0.0001129572802 | N71: 6.333434804e-09
A72: =IF('DF raw data'!E72="","",'DF raw data'!E72) -> -297.5 | B72: =IF('DF raw data'!F72="","",'DF raw data'!F72) -> -2.14591e-05 | C72: =IF('DF raw data'!G72="","",'DF raw data'!G72) -> -0.00021961 | D72: =IF('DF raw data'!H72="","",'DF raw data'!H72) -> -4.43939e-05 | F72: 1.104802905e-05 | G72: 2.509443502e-05 | H72: -1.366828192e-06 | J72: 4.175234458e-06 | K72: -1.755931403e-06 | L72: 8.844591844e-05 | M72: 0.0001571802395 | N72: 1.025349134e-08
A73: =IF('DF raw data'!E73="","",'DF raw data'!E73) -> -297 | B73: =IF('DF raw data'!F73="","",'DF raw data'!F73) -> -3.12715e-05 | C73: =IF('DF raw data'!G73="","",'DF raw data'!G73) -> -0.000220486 | D73: =IF('DF raw data'!H73="","",'DF raw data'!H73) -> -4.51634e-05 | F73: 1.188352909e-06 | G73: 2.421421445e-05 | H73: -2.140035643e-06 | J73: 4.769410913e-06 | K73: 6.287740539e-07 | L73: 0.0001005530257 | M73: 0.0002074567523 | N73: 1.532032047e-08
A74: =IF('DF raw data'!E74="","",'DF raw data'!E74) -> -296.5 | B74: =IF('DF raw data'!F74="","",'DF raw data'!F74) -> -2.69742e-05 | C74: =IF('DF raw data'!G74="","",'DF raw data'!G74) -> -0.000212958 | D74: =IF('DF raw data'!H74="","",'DF raw data'!H74) -> -4.52911e-05 | F74: 5.506357301e-06 | G74: 3.177848435e-05 | H74: -2.268350902e-06 | J74: 7.522589563e-06 | K74: 4.390068836e-06 | L74: 0.0001164422678 | M74: 0.0002656778862 | N74: 2.212801601e-08
A75: =IF('DF raw data'!E75="","",'DF raw data'!E75) -> -296 | B75: =IF('DF raw data'!F75="","",'DF raw data'!F75) -> -3.57614e-05 | C75: =IF('DF raw data'!G75="","",'DF raw data'!G75) -> -0.000213637 | D75: =IF('DF raw data'!H75="","",'DF raw data'!H75) -> -4.49591e-05 | F75: -3.323179429e-06 | G75: 3.109621293e-05 | H75: -1.934751326e-06 | J75: 5.860999849e-06 | K75: 7.32056876e-06 | L75: 0.0001319903743 | M75: 0.0003316730734 | N75: 3.085592113e-08
A76: =IF('DF raw data'!E76="","",'DF raw data'!E76) -> -295.5 | B76: =IF('DF raw data'!F76="","",'DF raw data'!F76) -> -3.10797e-05 | C76: =IF('DF raw data'!G76="","",'DF raw data'!G76) -> -0.00021462 | D76: =IF('DF raw data'!H76="","",'DF raw data'!H76) -> -4.45059e-05 | F76: 1.381077002e-06 | G76: 3.010847684e-05 | H76: -1.479367808e-06 | J76: 6.55153835e-06 | K76: 1.059633793e-05 | L76: 0.0001470446127 | M76: 0.0004051953797 | N76: 4.168844152e-08
A77: =IF('DF raw data'!E77="","",'DF raw data'!E77) -> -295 | B77: =IF('DF raw data'!F77="","",'DF raw data'!F77) -> -3.40944e-05 | C77: =IF('DF raw data'!G77="","",'DF raw data'!G77) -> -0.000211403 | D77: =IF('DF raw data'!H77="","",'DF raw data'!H77) -> -4.41177e-05 | F77: -1.648147823e-06 | G77: 3.334097634e-05 | H77: -1.089297461e-06 | J77: 5.727464438e-06 | K77: 1.346007015e-05 | L77: 0.0001637151009 | M77: 0.0004870529302 | N77: 5.510616058e-08
A78: =IF('DF raw data'!E78="","",'DF raw data'!E78) -> -294.5 | B78: =IF('DF raw data'!F78="","",'DF raw data'!F78) -> -2.78089e-05 | C78: =IF('DF raw data'!G78="","",'DF raw data'!G78) -> -0.000219111 | D78: =IF('DF raw data'!H78="","",'DF raw data'!H78) -> -4.40986e-05 | F78: 4.667635716e-06 | G78: 2.55958392e-05 | H78: -1.070105437e-06 | J78: 8.061282296e-06 | K78: 1.74907113e-05 | L78: 0.0001765130205 | M78: 0.0005753094404 | N78: 7.071707591e-08
A79: =IF('DF raw data'!E79="","",'DF raw data'!E79) -> -294 | B79: =IF('DF raw data'!F79="","",'DF raw data'!F79) -> -2.7937e-05 | C79: =IF('DF raw data'!G79="","",'DF raw data'!G79) -> -0.00022496 | D79: =IF('DF raw data'!H79="","",'DF raw data'!H79) -> -4.4315e-05 | F79: 4.53891853e-06 | G79: 1.971865872e-05 | H79: -1.287548052e-06 | J79: 1.033074156e-05 | K79: 2.265608208e-05 | L79: 0.0001863723499 | M79: 0.0006684956154 | N79: 8.813776442e-08
A80: =IF('DF raw data'!E80="","",'DF raw data'!E80) -> -293.5 | B80: =IF('DF raw data'!F80="","",'DF raw data'!F80) -> -2.86425e-05 | C80: =IF('DF raw data'!G80="","",'DF raw data'!G80) -> -0.000227394 | D80: =IF('DF raw data'!H80="","",'DF raw data'!H80) -> -4.45645e-05 | F80: 3.830019431e-06 | G80: 1.72729317e-05 | H80: -1.538250143e-06 | J80: 1.224575128e-05 | K80: 2.877895772e-05 | L80: 0.0001950088157 | M80: 0.0007660000232 | N80: 1.072269627e-07
A81: =IF('DF raw data'!E81="","",'DF raw data'!E81) -> -293 | B81: =IF('DF raw data'!F81="","",'DF raw data'!F81) -> -2.64615e-05 | C81: =IF('DF raw data'!G81="","",'DF raw data'!G81) -> -0.000233376 | D81: =IF('DF raw data'!H81="","",'DF raw data'!H81) -> -4.47765e-05 | F81: 6.021527489e-06 | G81: 1.126211043e-05 | H81: -1.751271559e-06 | J81: 1.525651502e-05 | K81: 3.640721523e-05 | L81: 0.0002006398709 | M81: 0.0008663199587 | N81: 1.274715223e-07
A82: =IF('DF raw data'!E82="","",'DF raw data'!E82) -> -292.5 | B82: =IF('DF raw data'!F82="","",'DF raw data'!F82) -> -2.91555e-05 | C82: =IF('DF raw data'!G82="","",'DF raw data'!G82) -> -0.000228155 | D82: =IF('DF raw data'!H82="","",'DF raw data'!H82) -> -4.47106e-05 | F82: 3.314547797e-06 | G82: 1.650826521e-05 | H82: -1.685054053e-06 | J82: 1.691378892e-05 | K82: 4.486410969e-05 | L82: 0.0002088940035 | M82: 0.0009707669604 | N82: 1.494329127e-07
A83: =IF('DF raw data'!E83="","",'DF raw data'!E83) -> -292 | B83: =IF('DF raw data'!F83="","",'DF raw data'!F83) -> -3.28111e-05 | C83: =IF('DF raw data'!G83="","",'DF raw data'!G83) -> -0.000230959 | D83: =IF('DF raw data'!H83="","",'DF raw data'!H83) -> -4.45824e-05 | F83: -3.586648835e-07 | G83: 1.369075553e-05 | H83: -1.556236385e-06 | J83: 1.673445648e-05 | K83: 5.323133793e-05 | L83: 0.0002157393813 | M83: 0.001078636651 | N83: 1.728446741e-07
A84: =IF('DF raw data'!E84="","",'DF raw data'!E84) -> -291.5 | B84: =IF('DF raw data'!F84="","",'DF raw data'!F84) -> -2.28692e-05 | C84: =IF('DF raw data'!G84="","",'DF raw data'!G84) -> -0.000224805 | D84: =IF('DF raw data'!H84="","",'DF raw data'!H84) -> -4.58907e-05 | F84: 9.631135191e-06 | G84: 1.987440551e-05 | H84: -2.870839775e-06 | J84: 2.155002407e-05 | K84: 6.400634997e-05 | L84: 0.000225676584 | M84: 0.001191474943 | N84: 1.985418361e-07
A85: =IF('DF raw data'!E85="","",'DF raw data'!E85) -> -291 | B85: =IF('DF raw data'!F85="","",'DF raw data'!F85) -> -3.07003e-05 | C85: =IF('DF raw data'!G85="","",'DF raw data'!G85) -> -0.000220561 | D85: =IF('DF raw data'!H85="","",'DF raw data'!H85) -> -3.61177e-05 | F85: 1.762304951e-06 | G85: 2.41388531e-05 | H85: 6.949246539e-06 | J85: 2.243117655e-05 | K85: 7.522193824e-05 | L85: 0.0002377460106 | M85: 0.001310347948 | N85: 2.270549978e-07
A86: =IF('DF raw data'!E86="","",'DF raw data'!E86) -> -290.5 | B86: =IF('DF raw data'!F86="","",'DF raw data'!F86) -> -4.29391e-05 | C86: =IF('DF raw data'!G86="","",'DF raw data'!G86) -> -0.000227015 | D86: =IF('DF raw data'!H86="","",'DF raw data'!H86) -> -5.3438e-05 | F86: -1.053546159e-05 | G86: 1.765375773e-05 | H86: -1.045450267e-05 | J86: 1.716344576e-05 | K86: 8.380366112e-05 | L86: 0.0002465728895 | M86: 0.001433634393 | N86: 2.576013846e-07
A87: =IF('DF raw data'!E87="","",'DF raw data'!E87) -> -290 | B87: =IF('DF raw data'!F87="","",'DF raw data'!F87) -> -3.31301e-05 | C87: =IF('DF raw data'!G87="","",'DF raw data'!G87) -> -0.000228983 | D87: =IF('DF raw data'!H87="","",'DF raw data'!H87) -> -4.75199e-05 | F87: -6.792018255e-07 | G87: 1.56762759e-05 | H87: -4.50788926e-06 | J87: 1.682384484e-05 | K87: 9.221558354e-05 | L87: 0.0002544110274 | M87: 0.001560839907 | N87: 2.901053909e-07
A88: =IF('DF raw data'!E88="","",'DF raw data'!E88) -> -289.5 | B88: =IF('DF raw data'!F88="","",'DF raw data'!F88) -> -3.30604e-05 | C88: =IF('DF raw data'!G88="","",'DF raw data'!G88) -> -0.000223811 | D88: =IF('DF raw data'!H88="","",'DF raw data'!H88) -> -5.57887e-05 | F88: -6.091660109e-07 | G88: 2.08731946e-05 | H88: -1.281652834e-05 | J88: 1.651926184e-05 | K88: 0.0001004752145 | L88: 0.0002648476247 | M88: 0.001693263719 | N88: 3.253139661e-07
A89: =IF('DF raw data'!E89="","",'DF raw data'!E89) -> -289 | B89: =IF('DF raw data'!F89="","",'DF raw data'!F89) -> -2.75444e-05 | C89: =IF('DF raw data'!G89="","",'DF raw data'!G89) -> -0.000214343 | D89: =IF('DF raw data'!H89="","",'DF raw data'!H89) -> -5.64042e-05 | F89: 4.933410077e-06 | G89: 3.038681142e-05 | H89: -1.343499382e-05 | J89: 1.898596688e-05 | K89: 0.0001099681979 | L89: 0.0002800410304 | M89: 0.001833284234 | N89: 3.647056889e-07
A90: =IF('DF raw data'!E90="","",'DF raw data'!E90) -> -288.5 | B90: =IF('DF raw data'!F90="","",'DF raw data'!F90) -> -2.4596e-05 | C90: =IF('DF raw data'!G90="","",'DF raw data'!G90) -> -0.000219048 | D90: =IF('DF raw data'!H90="","",'DF raw data'!H90) -> -5.3477e-05 | F90: 7.896015468e-06 | G90: 2.565914273e-05 | H90: -1.049369057e-05 | J90: 2.293397461e-05 | K90: 0.0001214351852 | L90: 0.0002928706018 | M90: 0.001979719535 | N90: 4.078552672e-07
A91: =IF('DF raw data'!E91="","",'DF raw data'!E91) -> -288 | B91: =IF('DF raw data'!F91="","",'DF raw data'!F91) -> -3.46649e-05 | C91: =IF('DF raw data'!G91="","",'DF raw data'!G91) -> -0.00022455 | D91: =IF('DF raw data'!H91="","",'DF raw data'!H91) -> -5.43649e-05 | F91: -2.221396492e-06 | G91: 2.01306341e-05 | H91: -1.138586847e-05 | J91: 2.182327636e-05 | K91: 0.0001323468234 | L91: 0.0003029359188 | M91: 0.002131187495 | N91: 4.539784804e-07
A92: =IF('DF raw data'!E92="","",'DF raw data'!E92) -> -287.5 | B92: =IF('DF raw data'!F92="","",'DF raw data'!F92) -> -3.20354e-05 | C92: =IF('DF raw data'!G92="","",'DF raw data'!G92) -> -0.000226719 | D92: =IF('DF raw data'!H92="","",'DF raw data'!H92) -> -5.409e-05 | F92: 4.207724391e-07 | G92: 1.795118385e-05 | H92: -1.1109644e-05 | J92: 2.203366258e-05 | K92: 0.0001433636547 | L92: 0.0003119115108 | M92: 0.00228714325 | N92: 5.028656168e-07
A93: =IF('DF raw data'!E93="","",'DF raw data'!E93) -> -287 | B93: =IF('DF raw data'!F93="","",'DF raw data'!F93) -> -3.81383e-05 | C93: =IF('DF raw data'!G93="","",'DF raw data'!G93) -> -0.000225726 | D93: =IF('DF raw data'!H93="","",'DF raw data'!H93) -> -3.88611e-05 | F93: -5.711531333e-06 | G93: 1.894896813e-05 | H93: 4.192628838e-06 | J93: 1.917789692e-05 | K93: 0.0001529526031 | L93: 0.0003213859948 | M93: 0.002447836248 | N93: 5.546939915e-07
A94: =IF('DF raw data'!E94="","",'DF raw data'!E94) -> -286.5 | B94: =IF('DF raw data'!F94="","",'DF raw data'!F94) -> -2.5495e-05 | C94: =IF('DF raw data'!G94="","",'DF raw data'!G94) -> -0.000224922 | D94: =IF('DF raw data'!H94="","",'DF raw data'!H94) -> -5.17695e-05 | F94: 6.992684086e-06 | G94: 1.97568418e-05 | H94: -8.777963833e-06 | J94: 2.267423896e-05 | K94: 0.0001642897226 | L94: 0.0003312644157 | M94: 0.002613468455 | N94: 6.098191086e-07
A95: =IF('DF raw data'!E95="","",'DF raw data'!E95) -> -286 | B95: =IF('DF raw data'!F95="","",'DF raw data'!F95) -> -3.90899e-05 | C95: =IF('DF raw data'!G95="","",'DF raw data'!G95) -> -0.000226854 | D95: =IF('DF raw data'!H95="","",'DF raw data'!H95) -> -5.51637e-05 | F95: -6.667716142e-06 | G95: 1.781553342e-05 | H95: -1.218851709e-05 | J95: 1.934038089e-05 | K95: 0.0001739599131 | L95: 0.0003401721824 | M95: 0.002783554547 | N95: 6.678646906e-07
A96: =IF('DF raw data'!E96="","",'DF raw data'!E96) -> -285.5 | B96: =IF('DF raw data'!F96="","",'DF raw data'!F96) -> -2.99254e-05 | C96: =IF('DF raw data'!G96="","",'DF raw data'!G96) -> -0.000227389 | D96: =IF('DF raw data'!H96="","",'DF raw data'!H96) -> -4.42644e-05 | F96: 2.540938419e-06 | G96: 1.727795579e-05 | H96: -1.236704261e-06 | J96: 2.06108501e-05 | K96: 0.0001842653381 | L96: 0.0003488111603 | M96: 0.002957960127 | N96: 7.28911707e-07
A97: =IF('DF raw data'!E97="","",'DF raw data'!E97) -> -285 | B97: =IF('DF raw data'!F97="","",'DF raw data'!F97) -> -3.69763e-05 | C97: =IF('DF raw data'!G97="","",'DF raw data'!G97) -> -0.000220554 | D97: =IF('DF raw data'!H97="","",'DF raw data'!H97) -> -5.0454e-05 | F97: -4.543932817e-06 | G97: 2.414588682e-05 | H97: -7.456125754e-06 | J97: 1.833888369e-05 | K97: 0.00019343478 | L97: 0.0003608841038 | M97: 0.003138402179 | N97: 7.941985325e-07
A98: =IF('DF raw data'!E98="","",'DF raw data'!E98) -> -284.5 | B98: =IF('DF raw data'!F98="","",'DF raw data'!F98) -> -2.85706e-05 | C98: =IF('DF raw data'!G98="","",'DF raw data'!G98) -> -0.000222387 | D98: =IF('DF raw data'!H98="","",'DF raw data'!H98) -> -5.63079e-05 | F98: 3.902265845e-06 | G98: 2.230405543e-05 | H98: -1.333822984e-05 | J98: 2.029001661e-05 | K98: 0.0002035797883 | L98: 0.0003720361315 | M98: 0.003324420244 | N98: 8.636098164e-07
A99: =IF('DF raw data'!E99="","",'DF raw data'!E99) -> -284 | B99: =IF('DF raw data'!F99="","",'DF raw data'!F99) -> -2.91519e-05 | C99: =IF('DF raw data'!G99="","",'DF raw data'!G99) -> -0.000224613 | D99: =IF('DF raw data'!H99="","",'DF raw data'!H99) -> -5.02462e-05 | F99: 3.318165142e-06 | G99: 2.006733056e-05 | H99: -7.247324574e-06 | J99: 2.194909918e-05 | K99: 0.0002145543379 | L99: 0.0003820697967 | M99: 0.003515455143 | N99: 9.368393627e-07
A100: =IF('DF raw data'!E100="","",'DF raw data'!E100) -> -283.5 | B100: =IF('DF raw data'!F100="","",'DF raw data'!F100) -> -1.81258e-05 | C100: =IF('DF raw data'!G100="","",'DF raw data'!G100) -> -0.000223056 | D100: =IF('DF raw data'!H100="","",'DF raw data'!H100) -> -4.18368e-05 | F100: 1.439738889e-05 | G100: 2.163183219e-05 | H100: 1.202591916e-06 | J100: 2.914779363e-05 | K100: 0.0002291282347 | L100: 0.0003928857128 | M100: 0.003711897999 | N100: 1.014443751e-06
A101: =IF('DF raw data'!E101="","",'DF raw data'!E101) -> -283 | B101: =IF('DF raw data'!F101="","",'DF raw data'!F101) -> -4.249e-05 | C101: =IF('DF raw data'!G101="","",'DF raw data'!G101) -> -0.000227179 | D101: =IF('DF raw data'!H101="","",'DF raw data'!H101) -> -5.3999e-05 | F101: -1.008419782e-05 | G101: 1.748896757e-05 | H101: -1.101820556e-05 | J101: 2.410569472e-05 | K101: 0.000241181082 | L101: 0.0004016301966 | M101: 0.003912713097 | N101: 1.095387701e-06
A102: =IF('DF raw data'!E102="","",'DF raw data'!E102) -> -282.5 | B102: =IF('DF raw data'!F102="","",'DF raw data'!F102) -> -2.81915e-05 | C102: =IF('DF raw data'!G102="","",'DF raw data'!G102) -> -0.000216178 | D102: =IF('DF raw data'!H102="","",'DF raw data'!H102) -> -4.76042e-05 | F102: 4.283192349e-06 | G102: 2.854297039e-05 | H102: -4.592595418e-06 | J102: 2.624729089e-05 | K102: 0.0002543047275 | L102: 0.0004159016818 | M102: 0.004120663938 | N102: 1.182219266e-06
A103: =IF('DF raw data'!E103="","",'DF raw data'!E103) -> -282 | B103: =IF('DF raw data'!F103="","",'DF raw data'!F103) -> -3.69119e-05 | C103: =IF('DF raw data'!G103="","",'DF raw data'!G103) -> -0.000222618 | D103: =IF('DF raw data'!H103="","",'DF raw data'!H103) -> -5.10567e-05 | F103: -4.479222538e-06 | G103: 2.207194247e-05 | H103: -8.061729563e-06 | J103: 2.400767962e-05 | K103: 0.0002663085673 | L103: 0.0004269376531 | M103: 0.004334132765 | N103: 1.27364533e-06
A104: =IF('DF raw data'!E104="","",'DF raw data'!E104) -> -281.5 | B104: =IF('DF raw data'!F104="","",'DF raw data'!F104) -> -2.27948e-05 | C104: =IF('DF raw data'!G104="","",'DF raw data'!G104) -> -0.000217738 | D104: =IF('DF raw data'!H104="","",'DF raw data'!H104) -> -6.14864e-05 | F104: 9.70589365e-06 | G104: 2.697545431e-05 | H104: -1.854167986e-05 | J104: 2.886062645e-05 | K104: 0.0002807388805 | L104: 0.0004404253802 | M104: 0.004554345455 | N104: 1.371049055e-06
A105: =IF('DF raw data'!E105="","",'DF raw data'!E105) -> -281 | B105: =IF('DF raw data'!F105="","",'DF raw data'!F105) -> -4.38361e-05 | C105: =IF('DF raw data'!G105="","",'DF raw data'!G105) -> -0.000216194 | D105: =IF('DF raw data'!H105="","",'DF raw data'!H105) -> -5.48825e-05 | F105: -1.143678333e-05 | G105: 2.85268933e-05 | H105: -1.190596227e-05 | J105: 2.314223478e-05 | K105: 0.0002923099979 | L105: 0.0004546888269 | M105: 0.004781689868 | N105: 1.474687802e-06
A106: =IF('DF raw data'!E106="","",'DF raw data'!E106) -> -280.5 | B106: =IF('DF raw data'!F106="","",'DF raw data'!F106) -> -3.50547e-05 | C106: =IF('DF raw data'!G106="","",'DF raw data'!G106) -> -0.000215278 | D106: =IF('DF raw data'!H106="","",'DF raw data'!H106) -> -4.67107e-05 | F106: -2.613074548e-06 | G106: 2.944730659e-05 | H106: -3.694790535e-06 | J106: 2.183569751e-05 | K106: 0.0003032278467 | L106: 0.0004694124802 | M106: 0.005016396109 | N106: 1.585100239e-06
A107: =IF('DF raw data'!E107="","",'DF raw data'!E107) -> -280 | B107: =IF('DF raw data'!F107="","",'DF raw data'!F107) -> -3.93563e-05 | C107: =IF('DF raw data'!G107="","",'DF raw data'!G107) -> -0.000213452 | D107: =IF('DF raw data'!H107="","",'DF raw data'!H107) -> -3.98924e-05 | F107: -6.935399657e-06 | G107: 3.128210426e-05 | H107: 3.156360035e-06 | J107: 1.836799768e-05 | K107: 0.0003124118455 | L107: 0.0004850535323 | M107: 0.005258922875 | N107: 1.702907395e-06
A108: =IF('DF raw data'!E108="","",'DF raw data'!E108) -> -279.5 | B108: =IF('DF raw data'!F108="","",'DF raw data'!F108) -> -3.40196e-05 | C108: =IF('DF raw data'!G108="","",'DF raw data'!G108) -> -0.000214911 | D108: =IF('DF raw data'!H108="","",'DF raw data'!H108) -> -6.04714e-05 | F108: -1.572987437e-06 | G108: 2.98160748e-05 | H108: -1.752178959e-05 | J108: 1.758150396e-05 | K108: 0.0003212025975 | L108: 0.0004999615697 | M108: 0.00550890366 | N108: 1.828042735e-06
A109: =IF('DF raw data'!E109="","",'DF raw data'!E109) -> -279 | B109: =IF('DF raw data'!F109="","",'DF raw data'!F109) -> -2.94768e-05 | C109: =IF('DF raw data'!G109="","",'DF raw data'!G109) -> -0.000216547 | D109: =IF('DF raw data'!H109="","",'DF raw data'!H109) -> -4.36382e-05 | F109: 2.991699774e-06 | G109: 2.817219255e-05 | H109: -6.074872297e-07 | J109: 1.907735385e-05 | K109: 0.0003307412744 | L109: 0.000514047666 | M109: 0.005765927493 | N109: 1.960347209e-06
A110: =IF('DF raw data'!E110="","",'DF raw data'!E110) -> -278.5 | B110: =IF('DF raw data'!F110="","",'DF raw data'!F110) -> -2.4088e-05 | C110: =IF('DF raw data'!G110="","",'DF raw data'!G110) -> -0.00021611 | D110: =IF('DF raw data'!H110="","",'DF raw data'!H110) -> -4.57379e-05 | F110: 8.406463012e-06 | G110: 2.861129802e-05 | H110: -2.717303584e-06 | J110: 2.328058535e-05 | K110: 0.0003423815671 | L110: 0.000528353315 | M110: 0.00603010415 | N110: 2.100196815e-06
A111: =IF('DF raw data'!E111="","",'DF raw data'!E111) -> -278 | B111: =IF('DF raw data'!F111="","",'DF raw data'!F111) -> -2.48662e-05 | C111: =IF('DF raw data'!G111="","",'DF raw data'!G111) -> -0.000216031 | D111: =IF('DF raw data'!H111="","",'DF raw data'!H111) -> -3.25744e-05 | F111: 7.624513645e-06 | G111: 2.869067864e-05 | H111: 1.050961816e-05 | J111: 2.709284218e-05 | K111: 0.0003559279882 | L111: 0.0005426986543 | M111: 0.006301453477 | N111: 2.247824741e-06
A112: =IF('DF raw data'!E112="","",'DF raw data'!E112) -> -277.5 | B112: =IF('DF raw data'!F112="","",'DF raw data'!F112) -> -3.46688e-05 | C112: =IF('DF raw data'!G112="","",'DF raw data'!G112) -> -0.000211038 | D112: =IF('DF raw data'!H112="","",'DF raw data'!H112) -> -4.83903e-05 | F112: -2.225315282e-06 | G112: 3.370773491e-05 | H112: -5.382482847e-06 | J112: 2.598018453e-05 | K112: 0.0003689180804 | L112: 0.0005595525218 | M112: 0.006581229738 | N112: 2.404711738e-06
A113: =IF('DF raw data'!E113="","",'DF raw data'!E113) -> -277 | B113: =IF('DF raw data'!F113="","",'DF raw data'!F113) -> -3.95437e-05 | C113: =IF('DF raw data'!G113="","",'DF raw data'!G113) -> -0.000218791 | D113: =IF('DF raw data'!H113="","",'DF raw data'!H113) -> -4.78842e-05 | F113: -7.12370255e-06 | G113: 2.591738096e-05 | H113: -4.873944458e-06 | J113: 2.241833326e-05 | K113: 0.0003801272471 | L113: 0.0005725112122 | M113: 0.006867485344 | N113: 2.568847573e-06
A114: =IF('DF raw data'!E114="","",'DF raw data'!E114) -> -276.5 | B114: =IF('DF raw data'!F114="","",'DF raw data'!F114) -> -3.08816e-05 | C114: =IF('DF raw data'!G114="","",'DF raw data'!G114) -> -0.000219783 | D114: =IF('DF raw data'!H114="","",'DF raw data'!H114) -> -5.30942e-05 | F114: 1.580131447e-06 | G114: 2.49206015e-05 | H114: -1.010904624e-05 | J114: 2.320839898e-05 | K114: 0.0003917314465 | L114: 0.000584971513 | M114: 0.007159971101 | N114: 2.740212723e-06
A115: =IF('DF raw data'!E115="","",'DF raw data'!E115) -> -276 | B115: =IF('DF raw data'!F115="","",'DF raw data'!F115) -> -3.6077e-05 | C115: =IF('DF raw data'!G115="","",'DF raw data'!G115) -> -0.000221816 | D115: =IF('DF raw data'!H115="","",'DF raw data'!H115) -> -5.26953e-05 | F115: -3.64029999e-06 | G115: 2.287780651e-05 | H115: -9.708224337e-06 | J115: 2.138824899e-05 | K115: 0.000402425571 | L115: 0.0005964104162 | M115: 0.007458176309 | N115: 2.918294144e-06
A116: =IF('DF raw data'!E116="","",'DF raw data'!E116) -> -275.5 | B116: =IF('DF raw data'!F116="","",'DF raw data'!F116) -> -3.62759e-05 | C116: =IF('DF raw data'!G116="","",'DF raw data'!G116) -> -0.000219298 | D116: =IF('DF raw data'!H116="","",'DF raw data'!H116) -> -4.28188e-05 | F116: -3.84015829e-06 | G116: 2.540793823e-05 | H116: 2.158606395e-07 | J116: 1.946816984e-05 | K116: 0.000412159656 | L116: 0.0006091143854 | M116: 0.007762733501 | N116: 3.103993816e-06
A117: =IF('DF raw data'!E117="","",'DF raw data'!E117) -> -275 | B117: =IF('DF raw data'!F117="","",'DF raw data'!F117) -> -4.34573e-05 | C117: =IF('DF raw data'!G117="","",'DF raw data'!G117) -> -0.000222332 | D117: =IF('DF raw data'!H117="","",'DF raw data'!H117) -> -4.56409e-05 | F117: -1.105615828e-05 | G117: 2.235932042e-05 | H117: -2.619836238e-06 | J117: 1.394009071e-05 | K117: 0.0004191297013 | L117: 0.0006202940456 | M117: 0.008072880524 | N117: 3.296473331e-06
A118: =IF('DF raw data'!E118="","",'DF raw data'!E118) -> -274.5 | B118: =IF('DF raw data'!F118="","",'DF raw data'!F118) -> -4.01763e-05 | C118: =IF('DF raw data'!G118="","",'DF raw data'!G118) -> -0.000215901 | D118: =IF('DF raw data'!H118="","",'DF raw data'!H118) -> -6.1423e-05 | F118: -7.759350417e-06 | G118: 2.882130498e-05 | H118: -1.84779744e-05 | J118: 1.00604155e-05 | K118: 0.0004241599091 | L118: 0.0006347046981 | M118: 0.008390232873 | N118: 3.497948964e-06
A119: =IF('DF raw data'!E119="","",'DF raw data'!E119) -> -274 | B119: =IF('DF raw data'!F119="","",'DF raw data'!F119) -> -3.93539e-05 | C119: =IF('DF raw data'!G119="","",'DF raw data'!G119) -> -0.000225237 | D119: =IF('DF raw data'!H119="","",'DF raw data'!H119) -> -4.36686e-05 | F119: -6.932988094e-06 | G119: 1.944032413e-05 | H119: -6.380336969e-07 | J119: 6.59392145e-06 | K119: 0.0004274568698 | L119: 0.0006444248601 | M119: 0.008712445303 | N119: 3.705612404e-06
A120: =IF('DF raw data'!E120="","",'DF raw data'!E120) -> -273.5 | B120: =IF('DF raw data'!F120="","",'DF raw data'!F120) -> -3.96738e-05 | C120: =IF('DF raw data'!G120="","",'DF raw data'!G120) -> -0.000228605 | D120: =IF('DF raw data'!H120="","",'DF raw data'!H120) -> -4.51069e-05 | F120: -7.254429372e-06 | G120: 1.605609711e-05 | H120: -2.083263426e-06 | J120: 2.966706764e-06 | K120: 0.0004289402232 | L120: 0.0006524529087 | M120: 0.009038671758 | N120: 3.918464203e-06
A121: =IF('DF raw data'!E121="","",'DF raw data'!E121) -> -273 | B121: =IF('DF raw data'!F121="","",'DF raw data'!F121) -> -4.53747e-05 | C121: =IF('DF raw data'!G121="","",'DF raw data'!G121) -> -0.000222343 | D121: =IF('DF raw data'!H121="","",'DF raw data'!H121) -> -5.63823e-05 | F121: -1.298279631e-05 | G121: 2.234826742e-05 | H121: -1.34129883e-05 | J121: -3.52469139e-06 | K121: 0.0004271778775 | L121: 0.0006636270424 | M121: 0.009370485279 | N121: 4.138670841e-06
A122: =IF('DF raw data'!E122="","",'DF raw data'!E122) -> -272.5 | B122: =IF('DF raw data'!F122="","",'DF raw data'!F122) -> -3.72978e-05 | C122: =IF('DF raw data'!G122="","",'DF raw data'!G122) -> -0.000218339 | D122: =IF('DF raw data'!H122="","",'DF raw data'!H122) -> -4.94674e-05 | F122: -4.866981804e-06 | G122: 2.637155869e-05 | H122: -6.464772315e-06 | J122: -5.958182292e-06 | K122: 0.0004241987863 | L122: 0.0006768128217 | M122: 0.00970889169 | N122: 4.367726389e-06
A123: =IF('DF raw data'!E123="","",'DF raw data'!E123) -> -272 | B123: =IF('DF raw data'!F123="","",'DF raw data'!F123) -> -3.51115e-05 | C123: =IF('DF raw data'!G123="","",'DF raw data'!G123) -> -0.00022463 | D123: =IF('DF raw data'!H123="","",'DF raw data'!H123) -> -5.83021e-05 | F123: -2.670148211e-06 | G123: 2.005024866e-05 | H123: -1.53420379e-05 | J123: -7.293256397e-06 | K123: 0.0004205521581 | L123: 0.0006868379461 | M123: 0.01005231066 | N123: 4.603626166e-06
A124: =IF('DF raw data'!E124="","",'DF raw data'!E124) -> -271.5 | B124: =IF('DF raw data'!F124="","",'DF raw data'!F124) -> -3.87725e-05 | C124: =IF('DF raw data'!G124="","",'DF raw data'!G124) -> -0.00022521 | D124: =IF('DF raw data'!H124="","",'DF raw data'!H124) -> -5.03116e-05 | F124: -6.348786909e-06 | G124: 1.946745422e-05 | H124: -7.313039671e-06 | J124: -1.046764985e-05 | K124: 0.0004153183332 | L124: 0.0006965716732 | M124: 0.0104005965 | N124: 4.846287e-06
A125: =IF('DF raw data'!E125="","",'DF raw data'!E125) -> -271 | B125: =IF('DF raw data'!F125="","",'DF raw data'!F125) -> -3.39026e-05 | C125: =IF('DF raw data'!G125="","",'DF raw data'!G125) -> -0.000228591 | D125: =IF('DF raw data'!H125="","",'DF raw data'!H125) -> -4.31054e-05 | F125: -1.455423731e-06 | G125: 1.607016456e-05 | H125: -7.212019926e-08 | J125: -1.119536172e-05 | K125: 0.0004097206523 | L125: 0.0007046067555 | M125: 0.01075289988 | N125: 5.094585008e-06
A126: =IF('DF raw data'!E126="","",'DF raw data'!E126) -> -270.5 | B126: =IF('DF raw data'!F126="","",'DF raw data'!F126) -> -2.77372e-05 | C126: =IF('DF raw data'!G126="","",'DF raw data'!G126) -> -0.000229379 | D126: =IF('DF raw data'!H126="","",'DF raw data'!H126) -> -5.57073e-05 | F126: 4.739681167e-06 | G126: 1.527836797e-05 | H126: -1.273473615e-05 | J126: -8.825521134e-06 | K126: 0.0004053078918 | L126: 0.0007122459394 | M126: 0.01110902285 | N126: 5.348271092e-06
A127: =IF('DF raw data'!E127="","",'DF raw data'!E127) -> -270 | B127: =IF('DF raw data'!F127="","",'DF raw data'!F127) -> -3.74895e-05 | C127: =IF('DF raw data'!G127="","",'DF raw data'!G127) -> -0.000221954 | D127: =IF('DF raw data'!H127="","",'DF raw data'!H127) -> -5.03895e-05 | F127: -5.059605415e-06 | G127: 2.273914162e-05 | H127: -7.391314993e-06 | J127: -1.135532384e-05 | K127: 0.0003996302299 | L127: 0.0007236155103 | M127: 0.0114708306 | N127: 5.610145267e-06
A128: =IF('DF raw data'!E128="","",'DF raw data'!E128) -> -269.5 | B128: =IF('DF raw data'!F128="","",'DF raw data'!F128) -> -3.96008e-05 | C128: =IF('DF raw data'!G128="","",'DF raw data'!G128) -> -0.000211764 | D128: =IF('DF raw data'!H128="","",'DF raw data'!H128) -> -5.85295e-05 | F128: -7.181077658e-06 | G128: 3.297823704e-05 | H128: -1.557053351e-05 | J128: -1.494586267e-05 | K128: 0.0003921572985 | L128: 0.0007401046288 | M128: 0.01184088292 | N128: 5.884134387e-06
A129: =IF('DF raw data'!E129="","",'DF raw data'!E129) -> -269 | B129: =IF('DF raw data'!F129="","",'DF raw data'!F129) -> -3.49869e-05 | C129: =IF('DF raw data'!G129="","",'DF raw data'!G129) -> -0.000211611 | D129: =IF('DF raw data'!H129="","",'DF raw data'!H129) -> -5.26087e-05 | F129: -2.544947888e-06 | G129: 3.31319742e-05 | H129: -9.621207099e-06 | J129: -1.621833661e-05 | K129: 0.0003840481302 | L129: 0.0007566706159 | M129: 0.01221921822 | N129: 6.170541115e-06
A130: =IF('DF raw data'!E130="","",'DF raw data'!E130) -> -268.5 | B130: =IF('DF raw data'!F130="","",'DF raw data'!F130) -> -3.72308e-05 | C130: =IF('DF raw data'!G130="","",'DF raw data'!G130) -> -0.000211451 | D130: =IF('DF raw data'!H130="","",'DF raw data'!H130) -> -5.36752e-05 | F130: -4.799658998e-06 | G130: 3.329274508e-05 | H130: -1.06928455e-05 | J130: -1.861816611e-05 | K130: 0.0003747390472 | L130: 0.0007733169884 | M130: 0.01260587672 | N130: 6.469724015e-06
A131: =IF('DF raw data'!E131="","",'DF raw data'!E131) -> -268 | B131: =IF('DF raw data'!F131="","",'DF raw data'!F131) -> -3.58164e-05 | C131: =IF('DF raw data'!G131="","",'DF raw data'!G131) -> -0.000212933 | D131: =IF('DF raw data'!H131="","",'DF raw data'!H131) -> -5.8969e-05 | F131: =(1-$G$1*($B$54-$G$2))*(B131-F$5) -> -3.378444419e-06 | G131: =(1-$G$1*($B$54-$G$2))*(C131-G$5) -> 3.18036048e-05 | H131: =(1-$G$1*($B$54-$G$2))*(D131-H$5) -> -1.601215102e-05 | J131: -2.030738832e-05 | K131: 0.000364585353 | L131: 0.0007892187908 | M131: 0.01300048611 | N131: 6.78136336e-06
A132: =IF('DF raw data'!E132="","",'DF raw data'!E132) -> -267.5 | B132: =IF('DF raw data'!F132="","",'DF raw data'!F132) -> -2.7234e-05 | C132: =IF('DF raw data'!G132="","",'DF raw data'!G132) -> -0.000215275 | D132: =IF('DF raw data'!H132="","",'DF raw data'!H132) -> -4.04475e-05 | F132: 5.245305584e-06 | G132: 2.945032105e-05 | H132: 2.598585563e-06 | J132: =F132*$G$3+J131 -> -1.768473553e-05 | K132: =J132*$G$3+K131 -> 0.0003557429852 | L132: =G132*$G$3+L131 -> 0.0008039439513 | M132: =L132*$G$3+M131 -> 0.01340245809 | N132: =(J132^2+L132^2)*$G$3+N131 -> 7.104682674e-06
A133: =IF('DF raw data'!E133="","",'DF raw data'!E133) -> -267 | B133: =IF('DF raw data'!F133="","",'DF raw data'!F133) -> -4.33205e-05 | C133: =IF('DF raw data'!G133="","",'DF raw data'!G133) -> -0.000218036 | D133: =IF('DF raw data'!H133="","",'DF raw data'!H133) -> -5.88261e-05 | F133: -1.091869917e-05 | G133: 2.667601855e-05 | H133: -1.586856253e-05 | J133: -2.314408512e-05 | K133: 0.0003441709427 | L133: 0.0008172819606 | M133: 0.01381109907 | N133: 7.4389254e-06
A134: =IF('DF raw data'!E134="","",'DF raw data'!E134) -> -266.5 | B134: =IF('DF raw data'!F134="","",'DF raw data'!F134) -> -3.71023e-05 | C134: =IF('DF raw data'!G134="","",'DF raw data'!G134) -> -0.000219516 | D134: =IF('DF raw data'!H134="","",'DF raw data'!H134) -> -5.41323e-05 | F134: -4.670539885e-06 | G134: 2.518888791e-05 | H134: -1.11521478e-05 | J134: -2.547935506e-05 | K134: 0.0003314312651 | L134: 0.0008298764046 | M134: 0.01422603727 | N134: 7.783597422e-06
A135: =IF('DF raw data'!E135="","",'DF raw data'!E135) -> -266 | B135: =IF('DF raw data'!F135="","",'DF raw data'!F135) -> -3.63296e-05 | C135: =IF('DF raw data'!G135="","",'DF raw data'!G135) -> -0.000209497 | D135: =IF('DF raw data'!H135="","",'DF raw data'!H135) -> -5.8791e-05 | F135: -3.894117017e-06 | G135: 3.525615945e-05 | H135: -1.583329342e-05 | J135: -2.742641357e-05 | K135: 0.0003177180584 | L135: 0.0008475044843 | M135: 0.01464978951 | N135: 8.143105451e-06
A136: =IF('DF raw data'!E136="","",'DF raw data'!E136) -> -265.5 | B136: =IF('DF raw data'!F136="","",'DF raw data'!F136) -> -2.99814e-05 | C136: =IF('DF raw data'!G136="","",'DF raw data'!G136) -> -0.000213749 | D136: =IF('DF raw data'!H136="","",'DF raw data'!H136) -> -5.66811e-05 | F136: 2.484668611e-06 | G136: 3.098367331e-05 | H136: -1.371322792e-05 | J136: -2.618407926e-05 | K136: 0.0003046260187 | L136: 0.000862996321 | M136: 0.01508128767 | N136: 8.515829579e-06
A137: =IF('DF raw data'!E137="","",'DF raw data'!E137) -> -265 | B137: =IF('DF raw data'!F137="","",'DF raw data'!F137) -> -3.03729e-05 | C137: =IF('DF raw data'!G137="","",'DF raw data'!G137) -> -0.000215641 | D137: =IF('DF raw data'!H137="","",'DF raw data'!H137) -> -4.63746e-05 | F137: 2.091282364e-06 | G137: 2.908255766e-05 | H137: -3.357071205e-06 | J137: -2.513843808e-05 | K137: 0.0002920567997 | L137: 0.0008775375998 | M137: 0.01552005647 | N137: 8.901181669e-06
A138: =IF('DF raw data'!E138="","",'DF raw data'!E138) -> -264.5 | B138: =IF('DF raw data'!F138="","",'DF raw data'!F138) -> -2.63932e-05 | C138: =IF('DF raw data'!G138="","",'DF raw data'!G138) -> -0.000204997 | D138: =IF('DF raw data'!H138="","",'DF raw data'!H138) -> -5.14214e-05 | F138: 6.090156559e-06 | G138: 3.977784045e-05 | H138: -8.428186687e-06 | J138: -2.20933598e-05 | K138: 0.0002810101198 | L138: 0.00089742652 | M138: 0.01596876973 | N138: 9.304112907e-06
A139: =IF('DF raw data'!E139="","",'DF raw data'!E139) -> -264 | B139: =IF('DF raw data'!F139="","",'DF raw data'!F139) -> -3.35808e-05 | C139: =IF('DF raw data'!G139="","",'DF raw data'!G139) -> -0.000201577 | D139: =IF('DF raw data'!H139="","",'DF raw data'!H139) -> -4.51153e-05 | F139: -1.132073298e-06 | G139: 4.321431801e-05 | H139: -2.091703897e-06 | J139: -2.265939645e-05 | K139: 0.0002696804216 | L139: 0.000919033679 | M139: 0.01642828657 | N139: 9.726681083e-06
A140: =IF('DF raw data'!E140="","",'DF raw data'!E140) -> -263.5 | B140: =IF('DF raw data'!F140="","",'DF raw data'!F140) -> -3.44058e-05 | C140: =IF('DF raw data'!G140="","",'DF raw data'!G140) -> -0.000206771 | D140: =IF('DF raw data'!H140="","",'DF raw data'!H140) -> -5.84979e-05 | F140: -1.961048148e-06 | G140: 3.799529332e-05 | H140: -1.553878126e-05 | J140: -2.363992052e-05 | K140: 0.0002578604613 | L140: 0.0009380313257 | M140: 0.01689730224 | N140: 1.016691189e-05
A141: =IF('DF raw data'!E141="","",'DF raw data'!E141) -> -263 | B141: =IF('DF raw data'!F141="","",'DF raw data'!F141) -> -3.2295e-05 | C141: =IF('DF raw data'!G141="","",'DF raw data'!G141) -> -0.000209475 | D141: =IF('DF raw data'!H141="","",'DF raw data'!H141) -> -4.9418e-05 | F141: 1.599216863e-07 | G141: 3.527826545e-05 | H141: -6.415134306e-06 | J141: -2.355995968e-05 | K141: 0.0002460804815 | L141: 0.0009556704584 | M141: 0.01737513747 | N141: 1.062384244e-05
A142: =IF('DF raw data'!E142="","",'DF raw data'!E142) -> -262.5 | B142: =IF('DF raw data'!F142="","",'DF raw data'!F142) -> -3.21701e-05 | C142: =IF('DF raw data'!G142="","",'DF raw data'!G142) -> -0.000213453 | D142: =IF('DF raw data'!H142="","",'DF raw data'!H142) -> -4.42439e-05 | F142: 2.854234545e-07 | G142: 3.128109944e-05 | H142: -1.216105492e-06 | J142: -2.341724795e-05 | K142: 0.0002343718575 | L142: 0.0009713110081 | M142: 0.01786079297 | N142: 1.109583916e-05
A143: =IF('DF raw data'!E143="","",'DF raw data'!E143) -> -262 | B143: =IF('DF raw data'!F143="","",'DF raw data'!F143) -> -2.86396e-05 | C143: =IF('DF raw data'!G143="","",'DF raw data'!G143) -> -0.00022044 | D143: =IF('DF raw data'!H143="","",'DF raw data'!H143) -> -4.91059e-05 | F143: 3.832933403e-06 | G143: 2.426043608e-05 | H143: -6.101530608e-06 | J143: -2.150078125e-05 | K143: 0.0002236214669 | L143: 0.0009834412262 | M143: 0.01835251358 | N143: 1.157964862e-05
A144: =IF('DF raw data'!E144="","",'DF raw data'!E144) -> -261.5 | B144: =IF('DF raw data'!F144="","",'DF raw data'!F144) -> -3.71736e-05 | C144: =IF('DF raw data'!G144="","",'DF raw data'!G144) -> -0.000215175 | D144: =IF('DF raw data'!H144="","",'DF raw data'!H144) -> -4.32102e-05 | F144: -4.742183409e-06 | G144: 2.955080285e-05 | H144: -1.774251257e-07 | J144: -2.387187296e-05 | K144: 0.0002116855304 | L144: 0.0009982166276 | M144: 0.0188516219 | N144: 1.207815177e-05
A145: =IF('DF raw data'!E145="","",'DF raw data'!E145) -> -261 | B145: =IF('DF raw data'!F145="","",'DF raw data'!F145) -> -3.70989e-05 | C145: =IF('DF raw data'!G145="","",'DF raw data'!G145) -> -0.000212558 | D145: =IF('DF raw data'!H145="","",'DF raw data'!H145) -> -5.93407e-05 | F145: -4.667123504e-06 | G145: 3.218041155e-05 | H145: -1.638564187e-05 | J145: -2.620543471e-05 | K145: 0.000198582813 | L145: 0.001014306833 | M145: 0.01935877531 | N145: 1.259290431e-05
A146: =IF('DF raw data'!E146="","",'DF raw data'!E146) -> -260.5 | B146: =IF('DF raw data'!F146="","",'DF raw data'!F146) -> -2.9732e-05 | C146: =IF('DF raw data'!G146="","",'DF raw data'!G146) -> -0.000211493 | D146: =IF('DF raw data'!H146="","",'DF raw data'!H146) -> -4.56699e-05 | F146: 2.73527022e-06 | G146: 3.325054272e-05 | H146: -2.64897596e-06 | J146: -2.48377996e-05 | K146: 0.0001861639132 | L146: 0.001030932105 | M146: 0.01987424137 | N146: 1.312462327e-05
A147: =IF('DF raw data'!E147="","",'DF raw data'!E147) -> -260 | B147: =IF('DF raw data'!F147="","",'DF raw data'!F147) -> -3.38445e-05 | C147: =IF('DF raw data'!G147="","",'DF raw data'!G147) -> -0.000209997 | D147: =IF('DF raw data'!H147="","",'DF raw data'!H147) -> -3.40897e-05 | F147: -1.397043805e-06 | G147: 3.475375045e-05 | H147: 8.987017443e-06 | J147: -2.55363215e-05 | K147: 0.0001733957525 | L147: 0.00104830898 | M147: 0.02039839586 | N147: 1.367442518e-05
A148: =IF('DF raw data'!E148="","",'DF raw data'!E148) -> -259.5 | B148: =IF('DF raw data'!F148="","",'DF raw data'!F148) -> -3.10135e-05 | C148: =IF('DF raw data'!G148="","",'DF raw data'!G148) -> -0.000214886 | D148: =IF('DF raw data'!H148="","",'DF raw data'!H148) -> -4.76597e-05 | F148: 1.447595953e-06 | G148: 2.984119525e-05 | H148: -4.648362817e-06 | J148: -2.481252352e-05 | K148: 0.0001609894907 | L148: 0.001063229578 | M148: 0.02093001064 | N148: 1.423996158e-05
A149: =IF('DF raw data'!E149="","",'DF raw data'!E149) -> -259 | B149: =IF('DF raw data'!F149="","",'DF raw data'!F149) -> -4.49964e-05 | C149: =IF('DF raw data'!G149="","",'DF raw data'!G149) -> -0.000218075 | D149: =IF('DF raw data'!H149="","",'DF raw data'!H149) -> -4.64122e-05 | F149: -1.260267366e-05 | G149: 2.663683065e-05 | H149: -3.394852362e-06 | J149: -3.111386035e-05 | K149: 0.0001454325605 | L149: 0.001076547993 | M149: 0.02146828464 | N149: 1.481992341e-05
A150: =IF('DF raw data'!E150="","",'DF raw data'!E150) -> -258.5 | B150: =IF('DF raw data'!F150="","",'DF raw data'!F150) -> -3.51812e-05 | C150: =IF('DF raw data'!G150="","",'DF raw data'!G150) -> -0.000211282 | D150: =IF('DF raw data'!H150="","",'DF raw data'!H150) -> -4.9543e-05 | F150: -2.740184025e-06 | G150: 3.346255932e-05 | H150: -6.540736556e-06 | J150: -3.248395237e-05 | K150: 0.0001291905844 | L150: 0.001093279273 | M150: 0.02201492428 | N150: 1.54180808e-05
A151: =IF('DF raw data'!E151="","",'DF raw data'!E151) -> -258 | B151: =IF('DF raw data'!F151="","",'DF raw data'!F151) -> -3.0565e-05 | C151: =IF('DF raw data'!G151="","",'DF raw data'!G151) -> -0.000210478 | D151: =IF('DF raw data'!H151="","",'DF raw data'!H151) -> -4.70915e-05 | F151: 1.898256826e-06 | G151: 3.427043299e-05 | H151: -4.077425229e-06 | J151: -3.153482395e-05 | K151: 0.0001134231724 | L151: 0.001110414489 | M151: 0.02257013152 | N151: 1.603508819e-05
A152: =IF('DF raw data'!E152="","",'DF raw data'!E152) -> -257.5 | B152: =IF('DF raw data'!F152="","",'DF raw data'!F152) -> -3.53056e-05 | C152: =IF('DF raw data'!G152="","",'DF raw data'!G152) -> -0.000218166 | D152: =IF('DF raw data'!H152="","",'DF raw data'!H152) -> -5.54699e-05 | F152: -2.865183385e-06 | G152: 2.654539221e-05 | H152: -1.249619236e-05 | J152: -3.296741565e-05 | K152: 9.693946456e-05 | L152: 0.001123687185 | M152: 0.02313197511 | N152: 1.666696806e-05
A153: =IF('DF raw data'!E153="","",'DF raw data'!E153) -> -257 | B153: =IF('DF raw data'!F153="","",'DF raw data'!F153) -> -3.74823e-05 | C153: =IF('DF raw data'!G153="","",'DF raw data'!G153) -> -0.000220532 | D153: =IF('DF raw data'!H153="","",'DF raw data'!H153) -> -6.16062e-05 | F153: -5.052370725e-06 | G153: 2.416799282e-05 | H153: -1.866205705e-05 | J153: -3.549360101e-05 | K153: 7.919266405e-05 | L153: 0.001135771182 | M153: 0.02369986071 | N153: 1.731258604e-05
A154: =IF('DF raw data'!E154="","",'DF raw data'!E154) -> -256.5 | B154: =IF('DF raw data'!F154="","",'DF raw data'!F154) -> -3.40941e-05 | C154: =IF('DF raw data'!G154="","",'DF raw data'!G154) -> -0.000220765 | D154: =IF('DF raw data'!H154="","",'DF raw data'!H154) -> -4.4848e-05 | F154: -1.647846378e-06 | G154: 2.393387023e-05 | H154: -1.823116046e-06 | J154: -3.63175242e-05 | K154: 6.103390196e-05 | L154: 0.001147738117 | M154: 0.02427372976 | N154: 1.797189692e-05
A155: =IF('DF raw data'!E155="","",'DF raw data'!E155) -> -256 | B155: =IF('DF raw data'!F155="","",'DF raw data'!F155) -> -2.94737e-05 | C155: =IF('DF raw data'!G155="","",'DF raw data'!G155) -> -0.000219278 | D155: =IF('DF raw data'!H155="","",'DF raw data'!H155) -> -4.8485e-05 | F155: 2.99481471e-06 | G155: 2.542803459e-05 | H155: -5.477639112e-06 | J155: -3.482011684e-05 | K155: 4.362384353e-05 | L155: 0.001160452134 | M155: 0.02485395583 | N155: 1.864582772e-05
A156: =IF('DF raw data'!E156="","",'DF raw data'!E156) -> -255.5 | B156: =IF('DF raw data'!F156="","",'DF raw data'!F156) -> -2.85055e-05 | C156: =IF('DF raw data'!G156="","",'DF raw data'!G156) -> -0.000224457 | D156: =IF('DF raw data'!H156="","",'DF raw data'!H156) -> -5.81555e-05 | F156: 3.967679497e-06 | G156: 2.022408217e-05 | H156: -1.519473158e-05 | J156: -3.283627709e-05 | K156: 2.720570499e-05 | L156: 0.001170564175 | M156: 0.02543923792 | N156: 1.933147707e-05
A157: =IF('DF raw data'!E157="","",'DF raw data'!E157) -> -255 | B157: =IF('DF raw data'!F157="","",'DF raw data'!F157) -> -3.56317e-05 | C157: =IF('DF raw data'!G157="","",'DF raw data'!G157) -> -0.000216279 | D157: =IF('DF raw data'!H157="","",'DF raw data'!H157) -> -4.74216e-05 | F157: -3.192854534e-06 | G157: 2.844148377e-05 | H157: -4.409115651e-06 | J157: -3.443270436e-05 | K157: 9.989352808e-06 | L157: 0.001184784917 | M157: 0.02603163038 | N157: 2.003392753e-05
A158: =IF('DF raw data'!E158="","",'DF raw data'!E158) -> -254.5 | B158: =IF('DF raw data'!F158="","",'DF raw data'!F158) -> -4.05755e-05 | C158: =IF('DF raw data'!G158="","",'DF raw data'!G158) -> -0.000210229 | D158: =IF('DF raw data'!H158="","",'DF raw data'!H158) -> -3.94139e-05 | F158: -8.160473763e-06 | G158: 3.452063267e-05 | H158: 3.637165448e-06 | J158: -3.851294124e-05 | K158: -9.267117813e-06 | L158: 0.001202045233 | M158: 0.02663265299 | N158: 2.075712552e-05
A159: =IF('DF raw data'!E159="","",'DF raw data'!E159) -> -254 | B159: =IF('DF raw data'!F159="","",'DF raw data'!F159) -> -3.30614e-05 | C159: =IF('DF raw data'!G159="","",'DF raw data'!G159) -> -0.000212347 | D159: =IF('DF raw data'!H159="","",'DF raw data'!H159) -> -5.44129e-05 | F159: -6.101708289e-07 | G159: 3.239242815e-05 | H159: -1.143409973e-05 | J159: -3.881802666e-05 | K159: -2.867613114e-05 | L159: 0.001218241447 | M159: 0.02724177372 | N159: 2.149993505e-05
A160: =IF('DF raw data'!E160="","",'DF raw data'!E160) -> -253.5 | B160: =IF('DF raw data'!F160="","",'DF raw data'!F160) -> -4.53109e-05 | C160: =IF('DF raw data'!G160="","",'DF raw data'!G160) -> -0.000216516 | D160: =IF('DF raw data'!H160="","",'DF raw data'!H160) -> -5.57504e-05 | F160: -1.291868892e-05 | G160: 2.820334191e-05 | H160: -1.277804381e-05 | J160: -4.527737112e-05 | K160: -5.13148167e-05 | L160: 0.001232343118 | M160: 0.02785794528 | N160: 2.226029485e-05
A161: =IF('DF raw data'!E161="","",'DF raw data'!E161) -> -253 | B161: =IF('DF raw data'!F161="","",'DF raw data'!F161) -> -4.87144e-05 | C161: =IF('DF raw data'!G161="","",'DF raw data'!G161) -> -0.000213665 | D161: =IF('DF raw data'!H161="","",'DF raw data'!H161) -> -4.93453e-05 | F161: -1.633858698e-05 | G161: 3.106807803e-05 | H161: -6.342084037e-06 | J161: -5.344666461e-05 | K161: -7.8038149e-05 | L161: 0.001247877157 | M161: 0.02848188386 | N161: 2.304032183e-05
A162: =IF('DF raw data'!E162="","",'DF raw data'!E162) -> -252.5 | B162: =IF('DF raw data'!F162="","",'DF raw data'!F162) -> -4.02495e-05 | C162: =IF('DF raw data'!G162="","",'DF raw data'!G162) -> -0.000212974 | D162: =IF('DF raw data'!H162="","",'DF raw data'!H162) -> -4.72889e-05 | F162: -7.832903095e-06 | G162: 3.176240726e-05 | H162: -4.275776302e-06 | J162: -5.736311615e-05 | K162: -0.0001067197071 | L162: 0.001263758361 | M162: 0.02911376304 | N162: 2.384050969e-05
A163: =IF('DF raw data'!E163="","",'DF raw data'!E163) -> -252 | B163: =IF('DF raw data'!F163="","",'DF raw data'!F163) -> -3.84562e-05 | C163: =IF('DF raw data'!G163="","",'DF raw data'!G163) -> -0.000210696 | D163: =IF('DF raw data'!H163="","",'DF raw data'!H163) -> -4.34187e-05 | F163: -6.030962975e-06 | G163: 3.405138267e-05 | H163: -3.869296787e-07 | J163: -6.037859764e-05 | K163: -0.0001369090059 | L163: 0.001280784052 | M163: 0.02975415506 | N163: 2.466253637e-05
A164: =IF('DF raw data'!E164="","",'DF raw data'!E164) -> -251.5 | B164: =IF('DF raw data'!F164="","",'DF raw data'!F164) -> -3.78204e-05 | C164: =IF('DF raw data'!G164="","",'DF raw data'!G164) -> -0.000212957 | D164: =IF('DF raw data'!H164="","",'DF raw data'!H164) -> -3.49519e-05 | F164: -5.392099691e-06 | G164: 3.177948917e-05 | H164: 8.120663364e-06 | J164: -6.307464749e-05 | K164: -0.0001684463296 | L164: 0.001296673797 | M164: 0.03040249196 | N164: 2.550520704e-05
A165: =IF('DF raw data'!E165="","",'DF raw data'!E165) -> -251 | B165: =IF('DF raw data'!F165="","",'DF raw data'!F165) -> -4.31399e-05 | C165: =IF('DF raw data'!G165="","",'DF raw data'!G165) -> -0.00021306 | D165: =IF('DF raw data'!H165="","",'DF raw data'!H165) -> -4.10137e-05 | F165: -1.073722904e-05 | G165: 3.167599292e-05 | H165: 2.029657611e-06 | J165: -6.844326201e-05 | K165: -0.0002026679607 | L165: 0.001312511793 | M165: 0.03105874786 | N165: 2.636889289e-05
A166: =IF('DF raw data'!E166="","",'DF raw data'!E166) -> -250.5 | B166: =IF('DF raw data'!F166="","",'DF raw data'!F166) -> -3.72361e-05 | C166: =IF('DF raw data'!G166="","",'DF raw data'!G166) -> -0.000210387 | D166: =IF('DF raw data'!H166="","",'DF raw data'!H166) -> -4.55935e-05 | F166: -4.804984534e-06 | G166: 3.436187143e-05 | H166: -2.572207865e-06 | J166: -7.084575428e-05 | K166: -0.0002380908378 | L166: 0.001329692729 | M166: 0.03172359422 | N166: 2.725544382e-05
A167: =IF('DF raw data'!E167="","",'DF raw data'!E167) -> -250 | B167: =IF('DF raw data'!F167="","",'DF raw data'!F167) -> -4.07624e-05 | C167: =IF('DF raw data'!G167="","",'DF raw data'!G167) -> -0.000205885 | D167: =IF('DF raw data'!H167="","",'DF raw data'!H167) -> -4.77077e-05 | F167: -8.348274247e-06 | G167: 3.888556207e-05 | H167: -4.696594081e-06 | J167: -7.50198914e-05 | K167: -0.0002756007835 | L167: 0.00134913551 | M167: 0.03239816198 | N167: 2.816834113e-05
A168: =IF('DF raw data'!E168="","",'DF raw data'!E168) -> -249.5 | B168: =IF('DF raw data'!F168="","",'DF raw data'!F168) -> -4.37132e-05 | C168: =IF('DF raw data'!G168="","",'DF raw data'!G168) -> -0.000208012 | D168: =IF('DF raw data'!H168="","",'DF raw data'!H168) -> -4.68354e-05 | F168: -1.13132912e-05 | G168: 3.674831418e-05 | H168: -3.820091339e-06 | J168: -8.0676537e-05 | K168: -0.000315939052 | L168: 0.001367509667 | M168: 0.03308191681 | N168: 2.910663682e-05
A169: =IF('DF raw data'!E169="","",'DF raw data'!E169) -> -249 | B169: =IF('DF raw data'!F169="","",'DF raw data'!F169) -> -3.82617e-05 | C169: =IF('DF raw data'!G169="","",'DF raw data'!G169) -> -0.000206757 | D169: =IF('DF raw data'!H169="","",'DF raw data'!H169) -> -4.65774e-05 | F169: -5.835525874e-06 | G169: 3.800936077e-05 | H169: -3.560848295e-06 | J169: -8.359429994e-05 | K169: -0.000357736202 | L169: 0.001386514348 | M169: 0.03377517398 | N169: 3.007134185e-05
A170: =IF('DF raw data'!E170="","",'DF raw data'!E170) -> -248.5 | B170: =IF('DF raw data'!F170="","",'DF raw data'!F170) -> -2.81255e-05 | C170: =IF('DF raw data'!G170="","",'DF raw data'!G170) -> -0.00020913 | D170: =IF('DF raw data'!H170="","",'DF raw data'!H170) -> -5.03537e-05 | F170: 4.349510337e-06 | G170: 3.562492766e-05 | H170: -7.355342509e-06 | J170: -8.141954477e-05 | K170: -0.0003984459743 | L170: 0.001404326811 | M170: 0.03447733739 | N170: 3.106072331e-05
A171: =IF('DF raw data'!E171="","",'DF raw data'!E171) -> -248 | B171: =IF('DF raw data'!F171="","",'DF raw data'!F171) -> -3.70425e-05 | C171: =IF('DF raw data'!G171="","",'DF raw data'!G171) -> -0.000207952 | D171: =IF('DF raw data'!H171="","",'DF raw data'!H171) -> -4.76768e-05 | F171: -4.610451769e-06 | G171: 3.680860326e-05 | H171: -4.665545204e-06 | J171: -8.372477065e-05 | K171: -0.0004403083597 | L171: 0.001422731113 | M171: 0.03518870295 | N171: 3.207631014e-05
A172: =IF('DF raw data'!E172="","",'DF raw data'!E172) -> -247.5 | B172: =IF('DF raw data'!F172="","",'DF raw data'!F172) -> -3.88404e-05 | C172: =IF('DF raw data'!G172="","",'DF raw data'!G172) -> -0.000208153 | D172: =IF('DF raw data'!H172="","",'DF raw data'!H172) -> -4.43923e-05 | F172: -6.417014051e-06 | G172: 3.660663484e-05 | H172: -1.365220483e-06 | J172: -8.693327768e-05 | K172: -0.0004837749985 | L172: 0.00144103443 | M172: 0.03590922016 | N172: 3.311837895e-05
A173: =IF('DF raw data'!E173="","",'DF raw data'!E173) -> -247 | B173: =IF('DF raw data'!F173="","",'DF raw data'!F173) -> -3.28144e-05 | C173: =IF('DF raw data'!G173="","",'DF raw data'!G173) -> -0.000211987 | D173: =IF('DF raw data'!H173="","",'DF raw data'!H173) -> -3.97324e-05 | F173: -3.619807829e-07 | G173: 3.275416263e-05 | H173: 3.317130915e-06 | J173: -8.711426807e-05 | K173: -0.0005273321325 | L173: 0.001457411512 | M173: 0.03663792592 | N173: 3.418419756e-05
A174: =IF('DF raw data'!E174="","",'DF raw data'!E174) -> -246.5 | B174: =IF('DF raw data'!F174="","",'DF raw data'!F174) -> -3.64617e-05 | C174: =IF('DF raw data'!G174="","",'DF raw data'!G174) -> -0.000215554 | D174: =IF('DF raw data'!H174="","",'DF raw data'!H174) -> -5.29844e-05 | F174: -4.026853474e-06 | G174: 2.916997682e-05 | H174: -9.998717221e-06 | J174: -8.912769481e-05 | K174: -0.0005718959799 | L174: 0.0014719965 | M174: 0.03737392417 | N174: 3.527155628e-05
A175: =IF('DF raw data'!E175="","",'DF raw data'!E175) -> -246 | B175: =IF('DF raw data'!F175="","",'DF raw data'!F175) -> -4.44826e-05 | C175: =IF('DF raw data'!G175="","",'DF raw data'!G175) -> -0.000217916 | D175: =IF('DF raw data'!H175="","",'DF raw data'!H175) -> -4.7555e-05 | F175: -1.208639817e-05 | G175: 2.679659671e-05 | H175: -4.543158372e-06 | J175: -9.517089389e-05 | K175: -0.0006194814269 | L175: 0.001485394799 | M175: 0.03811662157 | N175: 3.637928388e-05
A176: =IF('DF raw data'!E176="","",'DF raw data'!E176) -> -245.5 | B176: =IF('DF raw data'!F176="","",'DF raw data'!F176) -> -3.70484e-05 | C176: =IF('DF raw data'!G176="","",'DF raw data'!G176) -> -0.000209326 | D176: =IF('DF raw data'!H176="","",'DF raw data'!H176) -> -3.86126e-05 | F176: -4.616380195e-06 | G176: 3.542798333e-05 | H176: 4.442326111e-06 | J176: -9.747908399e-05 | K176: -0.0006682209689 | L176: 0.00150310879 | M176: 0.03886817596 | N176: 3.751370299e-05
A177: =IF('DF raw data'!E177="","",'DF raw data'!E177) -> -245 | B177: =IF('DF raw data'!F177="","",'DF raw data'!F177) -> -4.30095e-05 | C177: =IF('DF raw data'!G177="","",'DF raw data'!G177) -> -0.000205992 | D177: =IF('DF raw data'!H177="","",'DF raw data'!H177) -> -4.41846e-05 | F177: -1.060620077e-05 | G177: 3.877804654e-05 | H177: -1.156519785e-06 | J177: -0.0001027821844 | K177: -0.0007196120611 | L177: 0.001522497813 | M177: 0.03962942487 | N177: 3.867798487e-05
A178: =IF('DF raw data'!E178="","",'DF raw data'!E178) -> -244.5 | B178: =IF('DF raw data'!F178="","",'DF raw data'!F178) -> -2.9209e-05 | C178: =IF('DF raw data'!G178="","",'DF raw data'!G178) -> -0.000215309 | D178: =IF('DF raw data'!H178="","",'DF raw data'!H178) -> -6.10464e-05 | F178: 3.260790034e-06 | G178: 2.941615723e-05 | H178: -1.809955994e-05 | J178: -0.0001011517894 | K178: -0.0007701879558 | L178: 0.001537205892 | M178: 0.04039802781 | N178: 3.986460169e-05
A179: =IF('DF raw data'!E179="","",'DF raw data'!E179) -> -244 | B179: =IF('DF raw data'!F179="","",'DF raw data'!F179) -> -3.78713e-05 | C179: =IF('DF raw data'!G179="","",'DF raw data'!G179) -> -0.0002199 | D179: =IF('DF raw data'!H179="","",'DF raw data'!H179) -> -5.50899e-05 | F179: -5.443244927e-06 | G179: 2.48030378e-05 | H179: -1.211436152e-05 | J179: -0.0001038734118 | K179: -0.0008221246617 | L179: 0.001549607411 | M179: 0.04117283152 | N179: 4.10706381e-05
A180: =IF('DF raw data'!E180="","",'DF raw data'!E180) -> -243.5 | B180: =IF('DF raw data'!F180="","",'DF raw data'!F180) -> -4.66689e-05 | C180: =IF('DF raw data'!G180="","",'DF raw data'!G180) -> -0.000217849 | D180: =IF('DF raw data'!H180="","",'DF raw data'!H180) -> -3.87397e-05 | F180: -1.428323176e-05 | G180: 2.686391951e-05 | H180: 4.314613743e-06 | J180: -0.0001110150277 | K180: -0.0008776321755 | L180: 0.001563039371 | M180: 0.04195435121 | N180: 4.22983463e-05
A181: =IF('DF raw data'!E181="","",'DF raw data'!E181) -> -243 | B181: =IF('DF raw data'!F181="","",'DF raw data'!F181) -> -4.74991e-05 | C181: =IF('DF raw data'!G181="","",'DF raw data'!G181) -> -0.000218839 | D181: =IF('DF raw data'!H181="","",'DF raw data'!H181) -> -4.40215e-05 | F181: -1.511743167e-05 | G181: 2.586914969e-05 | H181: -9.926339691e-07 | J181: -0.0001185737435 | K181: -0.0009369190473 | L181: 0.001575973946 | M181: 0.04274233818 | N181: 4.354722311e-05
A182: =IF('DF raw data'!E182="","",'DF raw data'!E182) -> -242.5 | B182: =IF('DF raw data'!F182="","",'DF raw data'!F182) -> -3.62721e-05 | C182: =IF('DF raw data'!G182="","",'DF raw data'!G182) -> -0.000205388 | D182: =IF('DF raw data'!H182="","",'DF raw data'!H182) -> -4.88901e-05 | F182: -3.836339982e-06 | G182: 3.938495661e-05 | H182: -5.884690884e-06 | J182: -0.0001204919135 | K182: -0.0009971650041 | L182: 0.001595666424 | M182: 0.04354017139 | N182: 4.482755793e-05
A183: =IF('DF raw data'!E183="","",'DF raw data'!E183) -> -242 | B183: =IF('DF raw data'!F183="","",'DF raw data'!F183) -> -4.21039e-05 | C183: =IF('DF raw data'!G183="","",'DF raw data'!G183) -> -0.000200396 | D183: =IF('DF raw data'!H183="","",'DF raw data'!H183) -> -5.61272e-05 | F183: -9.696237594e-06 | G183: 4.440100807e-05 | H183: -1.315665923e-05 | J183: -0.0001253400323 | K183: -0.00105983502 | L183: 0.001617866928 | M183: 0.04434910485 | N183: 4.614415969e-05
A184: =IF('DF raw data'!E184="","",'DF raw data'!E184) -> -241.5 | B184: =IF('DF raw data'!F184="","",'DF raw data'!F184) -> -4.96726e-05 | C184: =IF('DF raw data'!G184="","",'DF raw data'!G184) -> -0.000209427 | D184: =IF('DF raw data'!H184="","",'DF raw data'!H184) -> -5.54541e-05 | F184: -1.730140359e-05 | G184: 3.532649671e-05 | H184: -1.248031624e-05 | J184: -0.0001339907341 | K184: -0.001126830387 | L184: 0.001635530176 | M184: 0.04516686994 | N184: 4.749061592e-05
A185: =IF('DF raw data'!E185="","",'DF raw data'!E185) -> -241 | B185: =IF('DF raw data'!F185="","",'DF raw data'!F185) -> -4.51812e-05 | C185: =IF('DF raw data'!G185="","",'DF raw data'!G185) -> -0.000202597 | D185: =IF('DF raw data'!H185="","",'DF raw data'!H185) -> -5.80096e-05 | F185: -1.278836403e-05 | G185: 4.218940365e-05 | H185: -1.504812863e-05 | J185: -0.0001403849161 | K185: -0.001197022845 | L185: 0.001656624878 | M185: 0.04599518238 | N185: 4.887267288e-05
A186: =IF('DF raw data'!E186="","",'DF raw data'!E186) -> -240.5 | B186: =IF('DF raw data'!F186="","",'DF raw data'!F186) -> -4.01212e-05 | C186: =IF('DF raw data'!G186="","",'DF raw data'!G186) -> -0.000208639 | D186: =IF('DF raw data'!H186="","",'DF raw data'!H186) -> -4.73775e-05 | F186: -7.703984945e-06 | G186: 3.611829329e-05 | H186: -4.364803177e-06 | J186: -0.0001442369086 | K186: -0.0012691413 | L186: 0.001674684025 | M186: 0.04683252439 | N186: 5.028535831e-05
A187: =IF('DF raw data'!E187="","",'DF raw data'!E187) -> -240 | B187: =IF('DF raw data'!F187="","",'DF raw data'!F187) -> -4.72348e-05 | C187: =IF('DF raw data'!G187="","",'DF raw data'!G187) -> -0.000207007 | D187: =IF('DF raw data'!H187="","",'DF raw data'!H187) -> -5.60138e-05 | F187: -1.485185827e-05 | G187: 3.775815627e-05 | H187: -1.304271287e-05 | J187: -0.0001516628377 | K187: -0.001344972719 | L187: 0.001693563103 | M187: 0.04767930594 | N187: 5.173093711e-05
A188: =IF('DF raw data'!E188="","",'DF raw data'!E188) -> -239.5 | B188: =IF('DF raw data'!F188="","",'DF raw data'!F188) -> -3.30604e-05 | C188: =IF('DF raw data'!G188="","",'DF raw data'!G188) -> -0.00021132 | D188: =IF('DF raw data'!H188="","",'DF raw data'!H188) -> -5.6008e-05 | F188: -6.091660109e-07 | G188: 3.342437624e-05 | H188: -1.303688493e-05 | J188: -0.0001519674207 | K188: -0.001420956429 | L188: 0.001710275291 | M188: 0.04853444359 | N188: 5.320500495e-05
A189: =IF('DF raw data'!E189="","",'DF raw data'!E189) -> -239 | B189: =IF('DF raw data'!F189="","",'DF raw data'!F189) -> -4.51241e-05 | C189: =IF('DF raw data'!G189="","",'DF raw data'!G189) -> -0.000210911 | D189: =IF('DF raw data'!H189="","",'DF raw data'!H189) -> -4.72961e-05 | F189: -1.273098892e-05 | G189: 3.38353468e-05 | H189: -4.283010992e-06 | J189: -0.0001583329152 | K189: -0.001500122886 | L189: 0.001727192964 | M189: 0.04939804007 | N189: 5.470913737e-05
A190: =IF('DF raw data'!E190="","",'DF raw data'!E190) -> -238.5 | B190: =IF('DF raw data'!F190="","",'DF raw data'!F190) -> -4.10865e-05 | C190: =IF('DF raw data'!G190="","",'DF raw data'!G190) -> -0.000216842 | D190: =IF('DF raw data'!H190="","",'DF raw data'!H190) -> -4.25573e-05 | F190: -8.673935761e-06 | G190: 2.787577124e-05 | H190: 4.786205465e-07 | J190: -0.0001626698831 | K190: -0.001581457828 | L190: 0.00174113085 | M190: 0.0502686055 | N190: 5.623813644e-05
A191: =IF('DF raw data'!E191="","",'DF raw data'!E191) -> -238 | B191: =IF('DF raw data'!F191="","",'DF raw data'!F191) -> -3.84546e-05 | C191: =IF('DF raw data'!G191="","",'DF raw data'!G191) -> -0.000216562 | D191: =IF('DF raw data'!H191="","",'DF raw data'!H191) -> -4.60372e-05 | F191: -6.029355267e-06 | G191: 2.815712028e-05 | H191: -3.018045612e-06 | J191: -0.0001656845607 | K191: -0.001664300108 | L191: 0.00175520941 | M191: 0.0511462102 | N191: 5.779224216e-05
A192: =IF('DF raw data'!E192="","",'DF raw data'!E192) -> -237.5 | B192: =IF('DF raw data'!F192="","",'DF raw data'!F192) -> -5.53235e-05 | C192: =IF('DF raw data'!G192="","",'DF raw data'!G192) -> -0.000210311 | D192: =IF('DF raw data'!H192="","",'DF raw data'!H192) -> -4.4764e-05 | F192: -2.297952963e-05 | G192: 3.44382376e-05 | H192: -1.738711334e-06 | J192: -0.0001771743255 | K192: -0.001752887271 | L192: 0.001772428529 | M192: 0.05203242447 | N192: 5.937868898e-05
A193: =IF('DF raw data'!E193="","",'DF raw data'!E193) -> -237 | B193: =IF('DF raw data'!F193="","",'DF raw data'!F193) -> -4.1788e-05 | C193: =IF('DF raw data'!G193="","",'DF raw data'!G193) -> -0.000209523 | D193: =IF('DF raw data'!H193="","",'DF raw data'!H193) -> -4.85202e-05 | F193: -9.378815588e-06 | G193: 3.523003418e-05 | H193: -5.513008706e-06 | J193: -0.0001818637333 | K193: -0.001843819138 | L193: 0.001790043546 | M193: 0.05292744624 | N193: 6.099735413e-05
A194: =IF('DF raw data'!E194="","",'DF raw data'!E194) -> -236.5 | B194: =IF('DF raw data'!F194="","",'DF raw data'!F194) -> -4.62755e-05 | C194: =IF('DF raw data'!G194="","",'DF raw data'!G194) -> -0.000208559 | D194: =IF('DF raw data'!H194="","",'DF raw data'!H194) -> -5.20711e-05 | F194: -1.388793636e-05 | G194: 3.619867873e-05 | H194: -9.081016942e-06 | J194: -0.0001888077015 | K194: -0.001938222989 | L194: 0.001808142885 | M194: 0.05383151768 | N194: 6.264986865e-05
A195: =IF('DF raw data'!E195="","",'DF raw data'!E195) -> -236 | B195: =IF('DF raw data'!F195="","",'DF raw data'!F195) -> -3.77446e-05 | C195: =IF('DF raw data'!G195="","",'DF raw data'!G195) -> -0.000207074 | D195: =IF('DF raw data'!H195="","",'DF raw data'!H195) -> -5.26954e-05 | F195: =(1-$G$1*($B$54-$G$2))*(B195-F$5) -> -5.315934487e-06 | G195: =(1-$G$1*($B$54-$G$2))*(C195-G$5) -> 3.769083346e-05 | H195: =(1-$G$1*($B$54-$G$2))*(D195-H$5) -> -9.708324819e-06 | J195: -0.0001914656688 | K195: -0.002033955823 | L195: 0.001826988302 | M195: 0.05474501183 | N195: 6.433714133e-05
A196: =IF('DF raw data'!E196="","",'DF raw data'!E196) -> -235.5 | B196: =IF('DF raw data'!F196="","",'DF raw data'!F196) -> -3.64675e-05 | C196: =IF('DF raw data'!G196="","",'DF raw data'!G196) -> -0.000208399 | D196: =IF('DF raw data'!H196="","",'DF raw data'!H196) -> -4.40979e-05 | F196: -4.032681419e-06 | G196: 3.635944961e-05 | H196: -1.069402064e-06 | J196: =F196*$G$3+J195 -> -0.0001934820095 | K196: =J196*$G$3+K195 -> -0.002130696828 | L196: =G196*$G$3+L195 -> 0.001845168027 | M196: =L196*$G$3+M195 -> 0.05566759585 | N196: =(J196^2+L196^2)*$G$3+N195 -> 6.60581815e-05
A197: =IF('DF raw data'!E197="","",'DF raw data'!E197) -> -235 | B197: =IF('DF raw data'!F197="","",'DF raw data'!F197) -> -3.83227e-05 | C197: =IF('DF raw data'!G197="","",'DF raw data'!G197) -> -0.000207544 | D197: =IF('DF raw data'!H197="","",'DF raw data'!H197) -> -5.16037e-05 | F197: -5.896819772e-06 | G197: 3.7218569e-05 | H197: -8.611365009e-06 | J197: -0.0001964304193 | K197: -0.002228912037 | L197: 0.001863777311 | M197: 0.0565994845 | N197: 6.781430689e-05
A198: =IF('DF raw data'!E198="","",'DF raw data'!E198) -> -234.5 | B198: =IF('DF raw data'!F198="","",'DF raw data'!F198) -> -4.5254e-05 | C198: =IF('DF raw data'!G198="","",'DF raw data'!G198) -> -0.000211069 | D198: =IF('DF raw data'!H198="","",'DF raw data'!H198) -> -4.47777e-05 | F198: -1.286151478e-05 | G198: 3.367658555e-05 | H198: -1.752477341e-06 | J198: -0.0002028611767 | K198: -0.002330342626 | L198: 0.001880615604 | M198: 0.05753979231 | N198: 6.960324074e-05
A199: =IF('DF raw data'!E199="","",'DF raw data'!E199) -> -234 | B199: =IF('DF raw data'!F199="","",'DF raw data'!F199) -> -4.39669e-05 | C199: =IF('DF raw data'!G199="","",'DF raw data'!G199) -> -0.000213451 | D199: =IF('DF raw data'!H199="","",'DF raw data'!H199) -> -5.15387e-05 | F199: -1.156821353e-05 | G199: 3.128310908e-05 | H199: -8.546051839e-06 | J199: -0.0002086452835 | K199: -0.002434665267 | L199: 0.001896257159 | M199: 0.05848792088 | N199: 7.142290278e-05
A200: =IF('DF raw data'!E200="","",'DF raw data'!E200) -> -233.5 | B200: =IF('DF raw data'!F200="","",'DF raw data'!F200) -> -4.48713e-05 | C200: =IF('DF raw data'!G200="","",'DF raw data'!G200) -> -0.000207584 | D200: =IF('DF raw data'!H200="","",'DF raw data'!H200) -> -4.16281e-05 | F200: -1.247697093e-05 | G200: 3.717837628e-05 | H200: 1.412297432e-06 | J200: -0.000214883769 | K200: -0.002542107152 | L200: 0.001914846347 | M200: 0.05944534406 | N200: 7.327930856e-05
... 1079 more rows

Sheet 20 mm
A1: =IF('DF raw data'!I1="","",'DF raw data'!I1) -> Number of header lines | B1: =IF('DF raw data'!J1="","",'DF raw data'!J1) -> 54 | C1: =IF('DF raw data'!C1="","",'DF raw data'!C1) ->  | D1: =IF('DF raw data'!D1="","",'DF raw data'!D1) ->  | F1: T_coeff | G1: -0.00073 | H1: /degC | J1: IBy total | K1: =J1267*1000 -> 6.970683597 | L1: muTm | M1: =L1267*1000 -> -10.17653411 | R1: DF ref | S1: 1
A2: =IF('DF raw data'!I2="","",'DF raw data'!I2) -> Measured by | B2: =IF('DF raw data'!J2="","",'DF raw data'!J2) -> Danfysik | C2: =IF('DF raw data'!C2="","",'DF raw data'!C2) ->  | D2: =IF('DF raw data'!D2="","",'DF raw data'!D2) ->  | F2: Tcorr | G2: 20 | H2: degC | J2: JBy total | K2: =K1267 -> 2.016005806 | L2: muTm^2 | M2: =M1267 -> 0.003893690724
A3: =IF('DF raw data'!I3="","",'DF raw data'!I3) -> Operator | B3: =IF('DF raw data'!J3="","",'DF raw data'!J3) -> PMHA | C3: =IF('DF raw data'!C3="","",'DF raw data'!C3) ->  | D3: =IF('DF raw data'!D3="","",'DF raw data'!D3) ->  | F3: Step | G3: =A68-A67 -> 0.5 | H3: mm | J3: PI total | K3: =N1267 -> 5001.87636 | L3: T^2mm^3
A4: =IF('DF raw data'!I4="","",'DF raw data'!I4) -> Data-time | B4: =IF('DF raw data'!J4="","",'DF raw data'!J4) -> 01-08-2024, 12:57:56 | C4: =IF('DF raw data'!C4="","",'DF raw data'!C4) ->  | D4: =IF('DF raw data'!D4="","",'DF raw data'!D4) -> 
A5: =IF('DF raw data'!I5="","",'DF raw data'!I5) -> Project | B5: =IF('DF raw data'!J5="","",'DF raw data'!J5) -> 504314 | C5: =IF('DF raw data'!C5="","",'DF raw data'!C5) ->  | D5: Bamb avr | F5: =(AVERAGE(B67:B107) + AVERAGE(B1227:B1267))/2 -> -3.608207195e-05 | G5: =(AVERAGE(C67:C107) + AVERAGE(C1227:C1267))/2 -> -0.000238247939 | H5: =(AVERAGE(D67:D107) + AVERAGE(D1227:D1267))/2 -> -4.438717561e-05
A6: =IF('DF raw data'!I6="","",'DF raw data'!I6) -> Magnet type | B6: =IF('DF raw data'!J6="","",'DF raw data'!J6) -> Dipole | C6: =IF('DF raw data'!C6="","",'DF raw data'!C6) -> 
A7: =IF('DF raw data'!I7="","",'DF raw data'!I7) -> Magnet nr. | B7: =IF('DF raw data'!J7="","",'DF raw data'!J7) -> 2410091 | C7: =IF('DF raw data'!C7="","",'DF raw data'!C7) -> 
A8: =IF('DF raw data'!I8="","",'DF raw data'!I8) -> Meas. number | B8: =IF('DF raw data'!J8="","",'DF raw data'!J8) -> 187 | C8: =IF('DF raw data'!C8="","",'DF raw data'!C8) -> 
A9: =IF('DF raw data'!I9="","",'DF raw data'!I9) -> Add. info | B9: =IF('DF raw data'!J9="","",'DF raw data'!J9) ->  | C9: =IF('DF raw data'!C9="","",'DF raw data'!C9) ->  | D9: =IF('DF raw data'!D9="","",'DF raw data'!D9) -> 
A10: =IF('DF raw data'!I10="","",'DF raw data'!I10) -> Device | B10: =IF('DF raw data'!J10="","",'DF raw data'!J10) -> (HAL) HALL-PROBE | C10: =IF('DF raw data'!C10="","",'DF raw data'!C10) ->  | D10: =IF('DF raw data'!D10="","",'DF raw data'!D10) -> 
A11: =IF('DF raw data'!I11="","",'DF raw data'!I11) -> Goal | B11: =IF('DF raw data'!J11="","",'DF raw data'!J11) -> (AXI) AXis Integral (Line, EFB) | C11: =IF('DF raw data'!C11="","",'DF raw data'!C11) ->  | D11: =IF('DF raw data'!D11="","",'DF raw data'!D11) -> 
A12: =IF('DF raw data'!I12="","",'DF raw data'!I12) -> Power supply mode | B12: =IF('DF raw data'!J12="","",'DF raw data'!J12) -> (PM) Permanent Magnet (no MPS in use) | C12: =IF('DF raw data'!C12="","",'DF raw data'!C12) ->  | D12: =IF('DF raw data'!D12="","",'DF raw data'!D12) -> 
A13: =IF('DF raw data'!I13="","",'DF raw data'!I13) -> Data format | B13: =IF('DF raw data'!J13="","",'DF raw data'!J13) -> Raw data text file | C13: =IF('DF raw data'!C13="","",'DF raw data'!C13) ->  | D13: =IF('DF raw data'!D13="","",'DF raw data'!D13) -> 
A14: =IF('DF raw data'!I14="","",'DF raw data'!I14) -> Direction of the pos. x-axis | B14: =IF('DF raw data'!J14="","",'DF raw data'!J14) -> See test program | C14: =IF('DF raw data'!C14="","",'DF raw data'!C14) ->  | D14: =IF('DF raw data'!D14="","",'DF raw data'!D14) -> 
A15: =IF('DF raw data'!I15="","",'DF raw data'!I15) -> Direction of the pos. y-axis | B15: =IF('DF raw data'!J15="","",'DF raw data'!J15) -> Vertical up | C15: =IF('DF raw data'!C15="","",'DF raw data'!C15) ->  | D15: =IF('DF raw data'!D15="","",'DF raw data'!D15) -> 
A16: =IF('DF raw data'!I16="","",'DF raw data'!I16) -> Direction of the pos. z-axis | B16: =IF('DF raw data'!J16="","",'DF raw data'!J16) -> See test program | C16: =IF('DF raw data'!C16="","",'DF raw data'!C16) ->  | D16: =IF('DF raw data'!D16="","",'DF raw data'!D16) -> 
A17: =IF('DF raw data'!I17="","",'DF raw data'!I17) -> Mapper type | B17: =IF('DF raw data'!J17="","",'DF raw data'!J17) -> Precision Hall Mapper | C17: =IF('DF raw data'!C17="","",'DF raw data'!C17) ->  | D17: =IF('DF raw data'!D17="","",'DF raw data'!D17) -> 
A18: =IF('DF raw data'!I18="","",'DF raw data'!I18) -> Mapper Danfysik Reg. Number | B18: =IF('DF raw data'!J18="","",'DF raw data'!J18) -> 2033-D (mapper 1) | C18: =IF('DF raw data'!C18="","",'DF raw data'!C18) ->  | D18: =IF('DF raw data'!D18="","",'DF raw data'!D18) -> 
A19: =IF('DF raw data'!I19="","",'DF raw data'!I19) -> Measurement consept | B19: =IF('DF raw data'!J19="","",'DF raw data'!J19) -> Square line grid | C19: =IF('DF raw data'!C19="","",'DF raw data'!C19) ->  | D19: =IF('DF raw data'!D19="","",'DF raw data'!D19) -> 
A20: =IF('DF raw data'!I20="","",'DF raw data'!I20) -> Mode | B20: =IF('DF raw data'!J20="","",'DF raw data'!J20) -> On-the-fly measurement | C20: =IF('DF raw data'!C20="","",'DF raw data'!C20) ->  | D20: =IF('DF raw data'!D20="","",'DF raw data'!D20) -> 
A21: =IF('DF raw data'!I21="","",'DF raw data'!I21) ->  | B21: =IF('DF raw data'!J21="","",'DF raw data'!J21) ->  | C21: =IF('DF raw data'!C21="","",'DF raw data'!C21) ->  | D21: =IF('DF raw data'!D21="","",'DF raw data'!D21) -> 
A22: =IF('DF raw data'!I22="","",'DF raw data'!I22) -> Probe Name | B22: =IF('DF raw data'!J22="","",'DF raw data'!J22) -> ID12_By | C22: =IF('DF raw data'!C22="","",'DF raw data'!C22) ->  | D22: =IF('DF raw data'!D22="","",'DF raw data'!D22) -> 
A23: =IF('DF raw data'!I23="","",'DF raw data'!I23) -> Probe Type | B23: =IF('DF raw data'!J23="","",'DF raw data'!J23) -> DF_ID_3D_Bxyz | C23: =IF('DF raw data'!C23="","",'DF raw data'!C23) ->  | D23: =IF('DF raw data'!D23="","",'DF raw data'!D23) -> 
A24: =IF('DF raw data'!I24="","",'DF raw data'!I24) -> Probe Danfysik Reg. Number | B24: =IF('DF raw data'!J24="","",'DF raw data'!J24) -> 2277 | C24: =IF('DF raw data'!C24="","",'DF raw data'!C24) ->  | D24: =IF('DF raw data'!D24="","",'DF raw data'!D24) -> 
A25: =IF('DF raw data'!I25="","",'DF raw data'!I25) -> Probe Axis | B25: =IF('DF raw data'!J25="","",'DF raw data'!J25) -> By | C25: =IF('DF raw data'!C25="","",'DF raw data'!C25) ->  | D25: =IF('DF raw data'!D25="","",'DF raw data'!D25) -> 
A26: =IF('DF raw data'!I26="","",'DF raw data'!I26) -> Probe Current Supply | B26: =IF('DF raw data'!J26="","",'DF raw data'!J26) -> 1825-D | C26: =IF('DF raw data'!C26="","",'DF raw data'!C26) ->  | D26: =IF('DF raw data'!D26="","",'DF raw data'!D26) -> 
A27: =IF('DF raw data'!I27="","",'DF raw data'!I27) -> Probe Gain Correction | B27: =IF('DF raw data'!J27="","",'DF raw data'!J27) -> 0.99613 | C27: =IF('DF raw data'!C27="","",'DF raw data'!C27) ->  | D27: =IF('DF raw data'!D27="","",'DF raw data'!D27) -> 
A28: =IF('DF raw data'!I28="","",'DF raw data'!I28) -> Probe Offset Correction | B28: =IF('DF raw data'!J28="","",'DF raw data'!J28) -> 0.0027562 | C28: =IF('DF raw data'!C28="","",'DF raw data'!C28) ->  | D28: =IF('DF raw data'!D28="","",'DF raw data'!D28) -> 
A29: =IF('DF raw data'!I29="","",'DF raw data'!I29) -> DVM Number | B29: =IF('DF raw data'!J29="","",'DF raw data'!J29) -> 2 | C29: =IF('DF raw data'!C29="","",'DF raw data'!C29) ->  | D29: =IF('DF raw data'!D29="","",'DF raw data'!D29) -> 
A30: =IF('DF raw data'!I30="","",'DF raw data'!I30) -> DVM Type | B30: =IF('DF raw data'!J30="","",'DF raw data'!J30) -> K2701 | C30: =IF('DF raw data'!C30="","",'DF raw data'!C30) ->  | D30: =IF('DF raw data'!D30="","",'DF raw data'!D30) -> 
A31: =IF('DF raw data'!I31="","",'DF raw data'!I31) -> DVM Danfysik Reg. Number | B31: =IF('DF raw data'!J31="","",'DF raw data'!J31) -> 1743-D | C31: =IF('DF raw data'!C31="","",'DF raw data'!C31) ->  | D31: =IF('DF raw data'!D31="","",'DF raw data'!D31) -> 
A32: =IF('DF raw data'!I32="","",'DF raw data'!I32) -> Probe Name | B32: =IF('DF raw data'!J32="","",'DF raw data'!J32) -> ID12_Bx | C32: =IF('DF raw data'!C32="","",'DF raw data'!C32) ->  | D32: =IF('DF raw data'!D32="","",'DF raw data'!D32) -> 
A33: =IF('DF raw data'!I33="","",'DF raw data'!I33) -> Probe Type | B33: =IF('DF raw data'!J33="","",'DF raw data'!J33) -> DF_ID_3D_Bxyz | C33: =IF('DF raw data'!C33="","",'DF raw data'!C33) ->  | D33: =IF('DF raw data'!D33="","",'DF raw data'!D33) -> 
A34: =IF('DF raw data'!I34="","",'DF raw data'!I34) -> Probe Danfysik Reg. Number | B34: =IF('DF raw data'!J34="","",'DF raw data'!J34) -> 2277 | C34: =IF('DF raw data'!C34="","",'DF raw data'!C34) ->  | D34: =IF('DF raw data'!D34="","",'DF raw data'!D34) -> 
A35: =IF('DF raw data'!I35="","",'DF raw data'!I35) -> Probe Axis | B35: =IF('DF raw data'!J35="","",'DF raw data'!J35) -> Bx | C35: =IF('DF raw data'!C35="","",'DF raw data'!C35) ->  | D35: =IF('DF raw data'!D35="","",'DF raw data'!D35) -> 
A36: =IF('DF raw data'!I36="","",'DF raw data'!I36) -> Probe Current Supply | B36: =IF('DF raw data'!J36="","",'DF raw data'!J36) -> 1825-D | C36: =IF('DF raw data'!C36="","",'DF raw data'!C36) ->  | D36: =IF('DF raw data'!D36="","",'DF raw data'!D36) -> 
A37: =IF('DF raw data'!I37="","",'DF raw data'!I37) -> Probe Gain Correction | B37: =IF('DF raw data'!J37="","",'DF raw data'!J37) -> 1 | C37: =IF('DF raw data'!C37="","",'DF raw data'!C37) ->  | D37: =IF('DF raw data'!D37="","",'DF raw data'!D37) -> 
A38: =IF('DF raw data'!I38="","",'DF raw data'!I38) -> Probe Offset Correction | B38: =IF('DF raw data'!J38="","",'DF raw data'!J38) -> -0.17564 | C38: =IF('DF raw data'!C38="","",'DF raw data'!C38) ->  | D38: =IF('DF raw data'!D38="","",'DF raw data'!D38) -> 
A39: =IF('DF raw data'!I39="","",'DF raw data'!I39) -> DVM Number | B39: =IF('DF raw data'!J39="","",'DF raw data'!J39) -> 3 | C39: =IF('DF raw data'!C39="","",'DF raw data'!C39) ->  | D39: =IF('DF raw data'!D39="","",'DF raw data'!D39) -> 
A40: =IF('DF raw data'!I40="","",'DF raw data'!I40) -> DVM Type | B40: =IF('DF raw data'!J40="","",'DF raw data'!J40) -> K2701 | C40: =IF('DF raw data'!C40="","",'DF raw data'!C40) ->  | D40: =IF('DF raw data'!D40="","",'DF raw data'!D40) -> 
A41: =IF('DF raw data'!I41="","",'DF raw data'!I41) -> DVM Danfysik Reg. Number | B41: =IF('DF raw data'!J41="","",'DF raw data'!J41) -> 1744-D | C41: =IF('DF raw data'!C41="","",'DF raw data'!C41) ->  | D41: =IF('DF raw data'!D41="","",'DF raw data'!D41) -> 
A42: =IF('DF raw data'!I42="","",'DF raw data'!I42) -> Probe Name | B42: =IF('DF raw data'!J42="","",'DF raw data'!J42) -> ID12_Bz | C42: =IF('DF raw data'!C42="","",'DF raw data'!C42) ->  | D42: =IF('DF raw data'!D42="","",'DF raw data'!D42) -> 
A43: =IF('DF raw data'!I43="","",'DF raw data'!I43) -> Probe Type | B43: =IF('DF raw data'!J43="","",'DF raw data'!J43) -> DF_ID_3D_Bxyz | C43: =IF('DF raw data'!C43="","",'DF raw data'!C43) ->  | D43: =IF('DF raw data'!D43="","",'DF raw data'!D43) -> 
A44: =IF('DF raw data'!I44="","",'DF raw data'!I44) -> Probe Danfysik Reg. Number | B44: =IF('DF raw data'!J44="","",'DF raw data'!J44) -> 2277 | C44: =IF('DF raw data'!C44="","",'DF raw data'!C44) ->  | D44: =IF('DF raw data'!D44="","",'DF raw data'!D44) -> 
A45: =IF('DF raw data'!I45="","",'DF raw data'!I45) -> Probe Axis | B45: =IF('DF raw data'!J45="","",'DF raw data'!J45) -> Bz | C45: =IF('DF raw data'!C45="","",'DF raw data'!C45) ->  | D45: =IF('DF raw data'!D45="","",'DF raw data'!D45) -> 
A46: =IF('DF raw data'!I46="","",'DF raw data'!I46) -> Probe Current Supply | B46: =IF('DF raw data'!J46="","",'DF raw data'!J46) -> 1825-D | C46: =IF('DF raw data'!C46="","",'DF raw data'!C46) ->  | D46: =IF('DF raw data'!D46="","",'DF raw data'!D46) -> 
A47: =IF('DF raw data'!I47="","",'DF raw data'!I47) -> Probe Gain Correction | B47: =IF('DF raw data'!J47="","",'DF raw data'!J47) -> 1 | C47: =IF('DF raw data'!C47="","",'DF raw data'!C47) ->  | D47: =IF('DF raw data'!D47="","",'DF raw data'!D47) -> 
A48: =IF('DF raw data'!I48="","",'DF raw data'!I48) -> Probe Offset Correction | B48: =IF('DF raw data'!J48="","",'DF raw data'!J48) -> 0.0073401 | C48: =IF('DF raw data'!C48="","",'DF raw data'!C48) ->  | D48: =IF('DF raw data'!D48="","",'DF raw data'!D48) -> 
A49: =IF('DF raw data'!I49="","",'DF raw data'!I49) -> DVM Number | B49: =IF('DF raw data'!J49="","",'DF raw data'!J49) -> 8 | C49: =IF('DF raw data'!C49="","",'DF raw data'!C49) ->  | D49: =IF('DF raw data'!D49="","",'DF raw data'!D49) -> 
A50: =IF('DF raw data'!I50="","",'DF raw data'!I50) -> DVM Type | B50: =IF('DF raw data'!J50="","",'DF raw data'!J50) -> K2700 | C50: =IF('DF raw data'!C50="","",'DF raw data'!C50) ->  | D50: =IF('DF raw data'!D50="","",'DF raw data'!D50) -> 
A51: =IF('DF raw data'!I51="","",'DF raw data'!I51) -> DVM Danfysik Reg. Number | B51: =IF('DF raw data'!J51="","",'DF raw data'!J51) -> 1756-D | C51: =IF('DF raw data'!C51="","",'DF raw data'!C51) ->  | D51: =IF('DF raw data'!D51="","",'DF raw data'!D51) -> 
A52: =IF('DF raw data'!I52="","",'DF raw data'!I52) -> NTC voltage | B52: =IF('DF raw data'!J52="","",'DF raw data'!J52) -> 0.39202 | C52: =IF('DF raw data'!C52="","",'DF raw data'!C52) ->  | D52: =IF('DF raw data'!D52="","",'DF raw data'!D52) -> 
A53: =IF('DF raw data'!I53="","",'DF raw data'!I53) -> PS-Gap: | B53: =IF('DF raw data'!J53="","",'DF raw data'!J53) -> 20 | C53: =IF('DF raw data'!C53="","",'DF raw data'!C53) ->  | D53: =IF('DF raw data'!D53="","",'DF raw data'!D53) -> 
A54: =IF('DF raw data'!I54="","",'DF raw data'!I54) -> PS-Temperature: | B54: =IF('DF raw data'!J54="","",'DF raw data'!J54) -> 26.7 | C54: =IF('DF raw data'!C54="","",'DF raw data'!C54) ->  | D54: =IF('DF raw data'!D54="","",'DF raw data'!D54) -> 
A55: =IF('DF raw data'!I55="","",'DF raw data'!I55) -> PS-Encoder: | B55: =IF('DF raw data'!J55="","",'DF raw data'!J55) -> 29.9674 | C55: =IF('DF raw data'!C55="","",'DF raw data'!C55) ->  | D55: =IF('DF raw data'!D55="","",'DF raw data'!D55) -> 
A56: =IF('DF raw data'!I56="","",'DF raw data'!I56) ->  | B56: =IF('DF raw data'!J56="","",'DF raw data'!J56) -> 
A57: =IF('DF raw data'!I57="","",'DF raw data'!I57) -> Monitor-Index | B57: =IF('DF raw data'!J57="","",'DF raw data'!J57) -> [1,1,4]
A58: =IF('DF raw data'!I58="","",'DF raw data'!I58) ->  | B58: =IF('DF raw data'!J58="","",'DF raw data'!J58) -> 
A59: =IF('DF raw data'!I59="","",'DF raw data'!I59) -> Time [s] | B59: =IF('DF raw data'!J59="","",'DF raw data'!J59) -> Y [mm]
A60: =IF('DF raw data'!I60="","",'DF raw data'!I60) ->  | B60: =IF('DF raw data'!J60="","",'DF raw data'!J60) -> 
A61: =IF('DF raw data'!I61="","",'DF raw data'!I61) -> 206.6 | B61: =IF('DF raw data'!J61="","",'DF raw data'!J61) -> 31.06
A62: =IF('DF raw data'!I62="","",'DF raw data'!I62) ->  | B62: =IF('DF raw data'!J62="","",'DF raw data'!J62) -> 
A63: =IF('DF raw data'!I63="","",'DF raw data'!I63) -> Measurement-Index | B63: =IF('DF raw data'!J63="","",'DF raw data'!J63) -> [1,1,1201,2]
A64: =IF('DF raw data'!I64="","",'DF raw data'!I64) ->  | B64: =IF('DF raw data'!J64="","",'DF raw data'!J64) -> 
A65: =IF('DF raw data'!I65="","",'DF raw data'!I65) -> Z [mm] | B65: =IF('DF raw data'!J65="","",'DF raw data'!J65) -> By [T] | C65: =IF('DF raw data'!K65="","",'DF raw data'!K65) -> Bx [T] | D65: =IF('DF raw data'!L65="","",'DF raw data'!L65) -> Bz [T] | F65: By_corr | G65: Bx_corr | H65: Bz_corr | J65: Iy | K65: Jy | L65: Ix | M65: Jx | N65: PI
A66: =IF('DF raw data'!I66="","",'DF raw data'!I66) -> [1, 0, 0, 0] | B66: =IF('DF raw data'!J66="","",'DF raw data'!J66) ->  | C66: =IF('DF raw data'!K66="","",'DF raw data'!K66) ->  | D66: =IF('DF raw data'!L66="","",'DF raw data'!L66) -> 
A67: =IF('DF raw data'!I67="","",'DF raw data'!I67) -> -300 | B67: =IF('DF raw data'!J67="","",'DF raw data'!J67) -> -3.57732e-05 | C67: =IF('DF raw data'!K67="","",'DF raw data'!K67) -> -0.000211963 | D67: =IF('DF raw data'!L67="","",'DF raw data'!L67) -> -4.65072e-05 | F67: =(1-$G$1*($B$54-$G$2))*(B67-F$5) -> 3.103826439e-07 | G67: =(1-$G$1*($B$54-$G$2))*(C67-G$5) -> 2.641349866e-05 | H67: =(1-$G$1*($B$54-$G$2))*(D67-H$5) -> -2.13039343e-06 | J67: =F67*$G$3+J66 -> 1.55191322e-07 | K67: =J67*$G$3+K66 -> 7.759566098e-08 | L67: =G67*$G$3+L66 -> 1.320674933e-05 | M67: =L67*$G$3+M66 -> 6.603374665e-06 | N67: =(J67^2+L67^2)*$G$3+N66 -> 8.722115611e-11
A68: =IF('DF raw data'!I68="","",'DF raw data'!I68) -> -299.5 | B68: =IF('DF raw data'!J68="","",'DF raw data'!J68) -> -2.7499e-05 | C68: =IF('DF raw data'!K68="","",'DF raw data'!K68) -> -0.000214801 | D68: =IF('DF raw data'!L68="","",'DF raw data'!L68) -> -4.6786e-05 | F68: 8.625051756e-06 | G68: 2.3561618e-05 | H68: -2.41055704e-06 | J68: =F68*$G$3+J67 -> 4.4677172e-06 | K68: =J68*$G$3+K67 -> 2.311454261e-06 | L68: =G68*$G$3+L67 -> 2.498755833e-05 | M68: =L68*$G$3+M67 -> 1.909715383e-05 | N68: =(J68^2+L68^2)*$G$3+N67 -> 4.093904403e-10
A69: =IF('DF raw data'!I69="","",'DF raw data'!I69) -> -299 | B69: =IF('DF raw data'!J69="","",'DF raw data'!J69) -> -3.6735e-05 | C69: =IF('DF raw data'!K69="","",'DF raw data'!K69) -> -0.000216695 | D69: =IF('DF raw data'!L69="","",'DF raw data'!L69) -> -4.71089e-05 | F69: -6.561215199e-07 | G69: 2.165835445e-05 | H69: -2.735036344e-06 | J69: 4.13965644e-06 | K69: 4.381282481e-06 | L69: 3.581673556e-05 | M69: 3.700552161e-05 | N69: 1.059378091e-09
A70: =IF('DF raw data'!I70="","",'DF raw data'!I70) -> -298.5 | B70: =IF('DF raw data'!J70="","",'DF raw data'!J70) -> -2.94227e-05 | C70: =IF('DF raw data'!K70="","",'DF raw data'!K70) -> -0.000216333 | D70: =IF('DF raw data'!L70="","",'DF raw data'!L70) -> -4.75227e-05 | F70: 6.691942939e-06 | G70: 2.202212499e-05 | H70: -3.15086024e-06 | J70: 7.48562791e-06 | K70: 8.124096436e-06 | L70: 4.682779805e-05 | M70: 6.041942064e-05 | N70: 2.183816739e-09
A71: =IF('DF raw data'!I71="","",'DF raw data'!I71) -> -298 | B71: =IF('DF raw data'!J71="","",'DF raw data'!J71) -> -2.58949e-05 | C71: =IF('DF raw data'!K71="","",'DF raw data'!K71) -> -0.00020978 | D71: =IF('DF raw data'!L71="","",'DF raw data'!L71) -> -4.80435e-05 | F71: 1.023699741e-05 | G71: 2.860717571e-05 | H71: -3.674207473e-06 | J71: 1.260412661e-05 | K71: 1.442615974e-05 | L71: 6.113138591e-05 | M71: 9.098511359e-05 | N71: 4.131771914e-09
A72: =IF('DF raw data'!I72="","",'DF raw data'!I72) -> -297.5 | B72: =IF('DF raw data'!J72="","",'DF raw data'!J72) -> -4.62911e-05 | C72: =IF('DF raw data'!K72="","",'DF raw data'!K72) -> -0.000202099 | D72: =IF('DF raw data'!L72="","",'DF raw data'!L72) -> -4.80508e-05 | F72: -1.02589604e-05 | G72: 3.632574349e-05 | H72: -3.681543177e-06 | J72: 7.474646412e-06 | K72: 1.816348295e-05 | L72: 7.929425765e-05 | M72: 0.0001306322424 | N72: 7.303496732e-09
A73: =IF('DF raw data'!I73="","",'DF raw data'!I73) -> -297 | B73: =IF('DF raw data'!J73="","",'DF raw data'!J73) -> -2.60233e-05 | C73: =IF('DF raw data'!K73="","",'DF raw data'!K73) -> -0.000204695 | D73: =IF('DF raw data'!L73="","",'DF raw data'!L73) -> -4.78572e-05 | F73: 1.01079694e-05 | G73: 3.371704645e-05 | H73: -3.48699628e-06 | J73: 1.252863111e-05 | K73: 2.442779851e-05 | L73: 9.615278088e-05 | M73: 0.0001787086329 | N73: 1.200465867e-08
A74: =IF('DF raw data'!I74="","",'DF raw data'!I74) -> -296.5 | B74: =IF('DF raw data'!J74="","",'DF raw data'!J74) -> -4.7895e-05 | C74: =IF('DF raw data'!K74="","",'DF raw data'!K74) -> -0.000206669 | D74: =IF('DF raw data'!L74="","",'DF raw data'!L74) -> -4.75322e-05 | F74: -1.187070508e-05 | G74: 3.173339162e-05 | H74: -3.160406705e-06 | J74: 6.593278574e-06 | K74: 2.772443779e-05 | L74: 0.0001120194767 | M74: 0.0002347183712 | N74: 1.830057591e-08
A75: =IF('DF raw data'!I75="","",'DF raw data'!I75) -> -296 | B75: =IF('DF raw data'!J75="","",'DF raw data'!J75) -> -3.11547e-05 | C75: =IF('DF raw data'!K75="","",'DF raw data'!K75) -> -0.000204014 | D75: =IF('DF raw data'!L75="","",'DF raw data'!L75) -> -4.73076e-05 | F75: 4.951471727e-06 | G75: 3.440137722e-05 | H75: -2.934708186e-06 | J75: 9.069014438e-06 | K75: 3.225894501e-05 | L75: 0.0001292201653 | M75: 0.0002993284538 | N75: 2.669062498e-08
A76: =IF('DF raw data'!I76="","",'DF raw data'!I76) -> -295.5 | B76: =IF('DF raw data'!J76="","",'DF raw data'!J76) -> -4.37901e-05 | C76: =IF('DF raw data'!K76="","",'DF raw data'!K76) -> -0.000208466 | D76: =IF('DF raw data'!L76="","",'DF raw data'!L76) -> -4.73153e-05 | F76: -7.745728014e-06 | G76: 2.992760249e-05 | H76: -2.942445847e-06 | J76: 5.196150431e-06 | K76: 3.485702023e-05 | L76: 0.0001441839665 | M76: 0.0003714204371 | N76: 3.709863307e-08
A77: =IF('DF raw data'!I77="","",'DF raw data'!I77) -> -295 | B77: =IF('DF raw data'!J77="","",'DF raw data'!J77) -> -2.81398e-05 | C77: =IF('DF raw data'!K77="","",'DF raw data'!K77) -> -0.000209876 | D77: =IF('DF raw data'!L77="","",'DF raw data'!L77) -> -4.76448e-05 | F77: 7.981117603e-06 | G77: 2.851070618e-05 | H77: -3.273557431e-06 | J77: 9.186709233e-06 | K77: 3.945037484e-05 | L77: 0.0001584393196 | M77: 0.0004506400969 | N77: 4.969233988e-08
A78: =IF('DF raw data'!I78="","",'DF raw data'!I78) -> -294.5 | B78: =IF('DF raw data'!J78="","",'DF raw data'!J78) -> -4.87288e-05 | C78: =IF('DF raw data'!K78="","",'DF raw data'!K78) -> -0.00020727 | D78: =IF('DF raw data'!L78="","",'DF raw data'!L78) -> -4.73031e-05 | F78: -1.27085832e-05 | G78: 3.112945212e-05 | H78: -2.930186176e-06 | J78: 2.832417635e-06 | K78: 4.086658366e-05 | L78: 0.0001740040457 | M78: 0.0005376421198 | N78: 6.483505514e-08
A79: =IF('DF raw data'!I79="","",'DF raw data'!I79) -> -294 | B79: =IF('DF raw data'!J79="","",'DF raw data'!J79) -> -3.28227e-05 | C79: =IF('DF raw data'!K79="","",'DF raw data'!K79) -> -0.000202657 | D79: =IF('DF raw data'!L79="","",'DF raw data'!L79) -> -4.6652e-05 | F79: 3.275313539e-06 | G79: 3.576501431e-05 | H79: -2.275901646e-06 | J79: 4.470074405e-06 | K79: 4.310162086e-05 | L79: 0.0001918865528 | M79: 0.0006335853962 | N79: 8.32552705e-08
A80: =IF('DF raw data'!I80="","",'DF raw data'!I80) -> -293.5 | B80: =IF('DF raw data'!J80="","",'DF raw data'!J80) -> -3.94932e-05 | C80: =IF('DF raw data'!K80="","",'DF raw data'!K80) -> -0.000202241 | D80: =IF('DF raw data'!L80="","",'DF raw data'!L80) -> -4.68292e-05 | F80: -3.427811876e-06 | G80: 3.618304896e-05 | H80: -2.453968332e-06 | J80: 2.756168467e-06 | K80: 4.44797051e-05 | L80: 0.0002099780773 | M80: 0.0007385744349 | N80: 1.053044652e-07
A81: =IF('DF raw data'!I81="","",'DF raw data'!I81) -> -293 | B81: =IF('DF raw data'!J81="","",'DF raw data'!J81) -> -2.03147e-05 | C81: =IF('DF raw data'!K81="","",'DF raw data'!K81) -> -0.000209693 | D81: =IF('DF raw data'!L81="","",'DF raw data'!L81) -> -4.80834e-05 | F81: 1.584449017e-05 | G81: 2.869460123e-05 | H81: -3.714302624e-06 | J81: 1.067841355e-05 | K81: 4.981891187e-05 | L81: 0.0002243253779 | M81: 0.0008507371238 | N81: 1.305224171e-07
A82: =IF('DF raw data'!I82="","",'DF raw data'!I82) -> -292.5 | B82: =IF('DF raw data'!J82="","",'DF raw data'!J82) -> -4.69965e-05 | C82: =IF('DF raw data'!K82="","",'DF raw data'!K82) -> -0.000218688 | D82: =IF('DF raw data'!L82="","",'DF raw data'!L82) -> -4.83674e-05 | F82: -1.096781052e-05 | G82: 1.965560669e-05 | H82: -3.999691668e-06 | J82: 5.194508292e-06 | K82: 5.241616602e-05 | L82: 0.0002341531813 | M82: 0.0009678137145 | N82: 1.579497647e-07
A83: =IF('DF raw data'!I83="","",'DF raw data'!I83) -> -292 | B83: =IF('DF raw data'!J83="","",'DF raw data'!J83) -> -4.30202e-05 | C83: =IF('DF raw data'!K83="","",'DF raw data'!K83) -> -0.000217053 | D83: =IF('DF raw data'!L83="","",'DF raw data'!L83) -> -4.75519e-05 | F83: -6.972062433e-06 | G83: 2.129860347e-05 | H83: -3.180203057e-06 | J83: 1.708477076e-06 | K83: 5.327040456e-05 | L83: 0.000244802483 | M83: 0.001090214956 | N83: 1.87915352e-07
A84: =IF('DF raw data'!I84="","",'DF raw data'!I84) -> -291.5 | B84: =IF('DF raw data'!J84="","",'DF raw data'!J84) -> -3.45506e-05 | C84: =IF('DF raw data'!K84="","",'DF raw data'!K84) -> -0.000210675 | D84: =IF('DF raw data'!L84="","",'DF raw data'!L84) -> -5.28062e-05 | F84: 1.538962381e-06 | G84: 2.770779827e-05 | H84: -8.460201839e-06 | J84: 2.477958266e-06 | K84: 5.450938369e-05 | L84: 0.0002586563822 | M84: 0.001219543147 | N84: 2.213699841e-07
A85: =IF('DF raw data'!I85="","",'DF raw data'!I85) -> -291 | B85: =IF('DF raw data'!J85="","",'DF raw data'!J85) -> -3.96767e-05 | C85: =IF('DF raw data'!K85="","",'DF raw data'!K85) -> -0.000215382 | D85: =IF('DF raw data'!L85="","",'DF raw data'!L85) -> -6.03628e-05 | F85: -3.612209375e-06 | G85: 2.297777633e-05 | H85: -1.605376117e-05 | J85: 6.718535787e-07 | K85: 5.484531048e-05 | L85: 0.0002701452703 | M85: 0.001354615782 | N85: 2.578594434e-07
A86: =IF('DF raw data'!I86="","",'DF raw data'!I86) -> -290.5 | B86: =IF('DF raw data'!J86="","",'DF raw data'!J86) -> -4.25796e-05 | C86: =IF('DF raw data'!K86="","",'DF raw data'!K86) -> -0.000221781 | D86: =IF('DF raw data'!L86="","",'DF raw data'!L86) -> -3.48489e-05 | F86: -6.529307458e-06 | G86: 1.654747882e-05 | H86: 9.584927316e-06 | J86: -2.592800151e-06 | K86: 5.35489104e-05 | L86: 0.0002784190097 | M86: 0.001493825287 | N86: 2.966213771e-07
A87: =IF('DF raw data'!I87="","",'DF raw data'!I87) -> -290 | B87: =IF('DF raw data'!J87="","",'DF raw data'!J87) -> -2.90365e-05 | C87: =IF('DF raw data'!K87="","",'DF raw data'!K87) -> -0.000220962 | D87: =IF('DF raw data'!L87="","",'DF raw data'!L87) -> -4.9554e-05 | F87: 7.080031844e-06 | G87: 1.737048455e-05 | H87: -5.192095328e-06 | J87: 9.472157712e-07 | K87: 5.402251829e-05 | L87: 0.000287104252 | M87: 0.001637377413 | N87: 3.378362515e-07
A88: =IF('DF raw data'!I88="","",'DF raw data'!I88) -> -289.5 | B88: =IF('DF raw data'!J88="","",'DF raw data'!J88) -> -3.65992e-05 | C88: =IF('DF raw data'!K88="","",'DF raw data'!K88) -> -0.000209558 | D88: =IF('DF raw data'!L88="","",'DF raw data'!L88) -> -5.86147e-05 | F88: -5.196573221e-07 | G88: 2.883026152e-05 | H88: -1.429711121e-05 | J88: 6.873871102e-07 | K88: 5.436621184e-05 | L88: 0.0003015193828 | M88: 0.001788137104 | N88: 3.832934569e-07
A89: =IF('DF raw data'!I89="","",'DF raw data'!I89) -> -289 | B89: =IF('DF raw data'!J89="","",'DF raw data'!J89) -> -3.46125e-05 | C89: =IF('DF raw data'!K89="","",'DF raw data'!K89) -> -0.000206028 | D89: =IF('DF raw data'!L89="","",'DF raw data'!L89) -> -5.59549e-05 | F89: 1.476759628e-06 | G89: 3.237752675e-05 | H89: -1.162430213e-05 | J89: 1.425766924e-06 | K89: 5.507909531e-05 | L89: 0.0003177081461 | M89: 0.001946991178 | N89: 4.337637063e-07
A90: =IF('DF raw data'!I90="","",'DF raw data'!I90) -> -288.5 | B90: =IF('DF raw data'!J90="","",'DF raw data'!J90) -> -4.22539e-05 | C90: =IF('DF raw data'!K90="","",'DF raw data'!K90) -> -0.00020782 | D90: =IF('DF raw data'!L90="","",'DF raw data'!L90) -> -4.24281e-05 | F90: -6.20201446e-06 | G90: 3.057676207e-05 | H90: 1.968657449e-06 | J90: -1.675240306e-06 | K90: 5.424147515e-05 | L90: 0.0003329965272 | M90: 0.002113489441 | N90: 4.892084531e-07
A91: =IF('DF raw data'!I91="","",'DF raw data'!I91) -> -288 | B91: =IF('DF raw data'!J91="","",'DF raw data'!J91) -> -3.64083e-05 | C91: =IF('DF raw data'!K91="","",'DF raw data'!K91) -> -0.000207308 | D91: =IF('DF raw data'!L91="","",'DF raw data'!L91) -> -5.6032e-05 | F91: -3.278236302e-07 | G91: 3.109126627e-05 | H91: -1.170177923e-05 | J91: -1.839152121e-06 | K91: 5.332189909e-05 | L91: 0.0003485421603 | M91: 0.002287760521 | N91: 5.499509631e-07
A92: =IF('DF raw data'!I92="","",'DF raw data'!I92) -> -287.5 | B92: =IF('DF raw data'!J92="","",'DF raw data'!J92) -> -2.47442e-05 | C92: =IF('DF raw data'!K92="","",'DF raw data'!K92) -> -0.000204481 | D92: =IF('DF raw data'!L92="","",'DF raw data'!L92) -> -4.18128e-05 | F92: 1.139332548e-05 | G92: 3.393209312e-05 | H92: 2.586966881e-06 | J92: 3.857510621e-06 | K92: 5.52506544e-05 | L92: 0.0003655082069 | M92: 0.002470514625 | N92: 6.167565279e-07
A93: =IF('DF raw data'!I93="","",'DF raw data'!I93) -> -287 | B93: =IF('DF raw data'!J93="","",'DF raw data'!J93) -> -3.1408e-05 | C93: =IF('DF raw data'!K93="","",'DF raw data'!K93) -> -0.000214895 | D93: =IF('DF raw data'!L93="","",'DF raw data'!L93) -> -5.22881e-05 | F93: 4.696932837e-06 | G93: 2.346715825e-05 | H93: -7.939567811e-06 | J93: 6.205977039e-06 | K93: 5.835364292e-05 | L93: 0.000377241786 | M93: 0.002659135518 | N93: 6.879314676e-07
A94: =IF('DF raw data'!I94="","",'DF raw data'!I94) -> -286.5 | B94: =IF('DF raw data'!J94="","",'DF raw data'!J94) -> -3.12826e-05 | C94: =IF('DF raw data'!K94="","",'DF raw data'!K94) -> -0.000212919 | D94: =IF('DF raw data'!L94="","",'DF raw data'!L94) -> -4.79429e-05 | F94: 4.822946169e-06 | G94: 2.545282287e-05 | H94: -3.573115438e-06 | J94: 8.617450123e-06 | K94: 6.266236798e-05 | L94: 0.0003899681974 | M94: 0.002854119616 | N94: 7.640061953e-07
A95: =IF('DF raw data'!I95="","",'DF raw data'!I95) -> -286 | B95: =IF('DF raw data'!J95="","",'DF raw data'!J95) -> -3.52432e-05 | C95: =IF('DF raw data'!K95="","",'DF raw data'!K95) -> -0.000207459 | D95: =IF('DF raw data'!L95="","",'DF raw data'!L95) -> -7.23858e-05 | F95: 8.429748739e-07 | G95: 3.093952773e-05 | H95: -2.813556566e-05 | J95: 9.03893756e-06 | K95: 6.718183676e-05 | L95: 0.0004054379613 | M95: 0.003056838597 | N95: 8.462370167e-07
A96: =IF('DF raw data'!I96="","",'DF raw data'!I96) -> -285.5 | B96: =IF('DF raw data'!J96="","",'DF raw data'!J96) -> -3.80828e-05 | C96: =IF('DF raw data'!K96="","",'DF raw data'!K96) -> -0.00020036 | D96: =IF('DF raw data'!L96="","",'DF raw data'!L96) -> -4.5829e-05 | F96: -2.01051361e-06 | G96: 3.807324893e-05 | H96: -1.448876353e-06 | J96: 8.033680755e-06 | K96: 7.119867714e-05 | L96: 0.0004244745858 | M96: 0.00326907589 | N96: 9.363586237e-07
A97: =IF('DF raw data'!I97="","",'DF raw data'!I97) -> -285 | B97: =IF('DF raw data'!J97="","",'DF raw data'!J97) -> -4.13418e-05 | C97: =IF('DF raw data'!K97="","",'DF raw data'!K97) -> -0.000204657 | D97: =IF('DF raw data'!L97="","",'DF raw data'!L97) -> -6.41908e-05 | F97: -5.285453379e-06 | G97: 3.375523231e-05 | H97: -1.990048392e-05 | J97: 5.390954066e-06 | K97: 7.389415418e-05 | L97: 0.0004413522019 | M97: 0.003489751991 | N97: 1.033769038e-06
A98: =IF('DF raw data'!I98="","",'DF raw data'!I98) -> -284.5 | B98: =IF('DF raw data'!J98="","",'DF raw data'!J98) -> -3.94318e-05 | C98: =IF('DF raw data'!K98="","",'DF raw data'!K98) -> -0.000212996 | D98: =IF('DF raw data'!L98="","",'DF raw data'!L98) -> -4.2343e-05 | F98: -3.366111569e-06 | G98: 2.537544626e-05 | H98: 2.054173673e-06 | J98: 3.707898282e-06 | K98: 7.574810332e-05 | L98: 0.000454039925 | M98: 0.003716771953 | N98: 1.136852039e-06
A99: =IF('DF raw data'!I99="","",'DF raw data'!I99) -> -284 | B99: =IF('DF raw data'!J99="","",'DF raw data'!J99) -> -3.91716e-05 | C99: =IF('DF raw data'!K99="","",'DF raw data'!K99) -> -0.000215299 | D99: =IF('DF raw data'!L99="","",'DF raw data'!L99) -> -4.80475e-05 | F99: -3.10463893e-06 | G99: 2.306118229e-05 | H99: -3.678227037e-06 | J99: 2.155578817e-06 | K99: 7.682589273e-05 | L99: 0.0004655705162 | M99: 0.003949557212 | N99: 1.245232315e-06
A100: =IF('DF raw data'!I100="","",'DF raw data'!I100) -> -283.5 | B100: =IF('DF raw data'!J100="","",'DF raw data'!J100) -> -3.94868e-05 | C100: =IF('DF raw data'!K100="","",'DF raw data'!K100) -> -0.000204879 | D100: =IF('DF raw data'!L100="","",'DF raw data'!L100) -> -5.66248e-05 | F100: -3.421380574e-06 | G100: 3.353214651e-05 | H100: -1.229747861e-05 | J100: 4.448885298e-07 | K100: 7.704833699e-05 | L100: 0.0004823365894 | M100: 0.004190725506 | N100: 1.361556707e-06
A101: =IF('DF raw data'!I101="","",'DF raw data'!I101) -> -283 | B101: =IF('DF raw data'!J101="","",'DF raw data'!J101) -> -3.03187e-05 | C101: =IF('DF raw data'!K101="","",'DF raw data'!K101) -> -0.000213817 | D101: =IF('DF raw data'!L101="","",'DF raw data'!L101) -> -5.04775e-05 | F101: 5.791560603e-06 | G101: 2.455043075e-05 | H101: -6.120112167e-06 | J101: 3.340668831e-06 | K101: 7.871867141e-05 | L101: 0.0004946118048 | M101: 0.004438031409 | N101: 1.483882705e-06
A102: =IF('DF raw data'!I102="","",'DF raw data'!I102) -> -282.5 | B102: =IF('DF raw data'!J102="","",'DF raw data'!J102) -> -3.2758e-05 | C102: =IF('DF raw data'!K102="","",'DF raw data'!K102) -> -0.00022399 | D102: =IF('DF raw data'!L102="","",'DF raw data'!L102) -> -4.77848e-05 | F102: 3.340329987e-06 | G102: 1.43276746e-05 | H102: -3.414242171e-06 | J102: 5.010833825e-06 | K102: 8.122408832e-05 | L102: 0.0005017756421 | M102: 0.00468891923 | N102: 1.609784657e-06
A103: =IF('DF raw data'!I103="","",'DF raw data'!I103) -> -282 | B103: =IF('DF raw data'!J103="","",'DF raw data'!J103) -> -2.69799e-05 | C103: =IF('DF raw data'!K103="","",'DF raw data'!K103) -> -0.000212558 | D103: =IF('DF raw data'!L103="","",'DF raw data'!L103) -> -5.59889e-05 | F103: 9.146690674e-06 | G103: 2.581558852e-05 | H103: -1.165846842e-05 | J103: 9.584179162e-06 | K103: 8.60161779e-05 | L103: 0.0005146834364 | M103: 0.004946260948 | N103: 1.742280105e-06
A104: =IF('DF raw data'!I104="","",'DF raw data'!I104) -> -281.5 | B104: =IF('DF raw data'!J104="","",'DF raw data'!J104) -> -3.37163e-05 | C104: =IF('DF raw data'!K104="","",'DF raw data'!K104) -> -0.000209402 | D104: =IF('DF raw data'!L104="","",'DF raw data'!L104) -> -5.34153e-05 | F104: 2.377342942e-06 | G104: 2.898702451e-05 | H104: -9.072280947e-06 | J104: 1.077285063e-05 | K104: 9.140260322e-05 | L104: 0.0005291769486 | M104: 0.005210849422 | N104: 1.882352254e-06
A105: =IF('DF raw data'!I105="","",'DF raw data'!I105) -> -281 | B105: =IF('DF raw data'!J105="","",'DF raw data'!J105) -> -3.10884e-05 | C105: =IF('DF raw data'!K105="","",'DF raw data'!K105) -> -0.000206364 | D105: =IF('DF raw data'!L105="","",'DF raw data'!L105) -> -5.04513e-05 | F105: 5.018096001e-06 | G105: 3.203988337e-05 | H105: -6.093784023e-06 | J105: 1.328189863e-05 | K105: 9.804355253e-05 | L105: 0.0005451968903 | M105: 0.005483447867 | N105: 2.031060283e-06
A106: =IF('DF raw data'!I106="","",'DF raw data'!I106) -> -280.5 | B106: =IF('DF raw data'!J106="","",'DF raw data'!J106) -> -3.66726e-05 | C106: =IF('DF raw data'!K106="","",'DF raw data'!K106) -> -0.000214977 | D106: =IF('DF raw data'!L106="","",'DF raw data'!L106) -> -4.41763e-05 | F106: -5.934163215e-07 | G106: 2.338475719e-05 | H106: 2.119070024e-07 | J106: 1.298519047e-05 | K106: 0.0001045361478 | L106: 0.0005568892689 | M106: 0.005761892502 | N106: 2.186207419e-06
A107: =IF('DF raw data'!I107="","",'DF raw data'!I107) -> -280 | B107: =IF('DF raw data'!J107="","",'DF raw data'!J107) -> -2.34577e-05 | C107: =IF('DF raw data'!K107="","",'DF raw data'!K107) -> -0.000224228 | D107: =IF('DF raw data'!L107="","",'DF raw data'!L107) -> -4.75915e-05 | F107: 1.268611775e-05 | G107: 1.408851055e-05 | H107: -3.219996741e-06 | J107: 1.932824935e-05 | K107: 0.0001142002724 | L107: 0.0005639335242 | M107: 0.006043859264 | N107: 2.34540472e-06
A108: =IF('DF raw data'!I108="","",'DF raw data'!I108) -> -279.5 | B108: =IF('DF raw data'!J108="","",'DF raw data'!J108) -> -3.2691e-05 | C108: =IF('DF raw data'!K108="","",'DF raw data'!K108) -> -0.000222152 | D108: =IF('DF raw data'!L108="","",'DF raw data'!L108) -> -5.19941e-05 | F108: 3.407657684e-06 | G108: 1.617466426e-05 | H108: -7.644129857e-06 | J108: 2.103207819e-05 | K108: 0.0001247163115 | L108: 0.0005720208563 | M108: 0.006329869692 | N108: 2.509229824e-06
A109: =IF('DF raw data'!I109="","",'DF raw data'!I109) -> -279 | B109: =IF('DF raw data'!J109="","",'DF raw data'!J109) -> -4.56469e-05 | C109: =IF('DF raw data'!K109="","",'DF raw data'!K109) -> -0.000217594 | D109: =IF('DF raw data'!L109="","",'DF raw data'!L109) -> -5.23414e-05 | F109: -9.611609623e-06 | G109: 2.075495744e-05 | H109: -7.993128502e-06 | J109: 1.622627338e-05 | K109: 0.0001328294482 | L109: 0.000582398335 | M109: 0.00662106886 | N109: 2.67895538e-06
A110: =IF('DF raw data'!I110="","",'DF raw data'!I110) -> -278.5 | B110: =IF('DF raw data'!J110="","",'DF raw data'!J110) -> -3.88568e-05 | C110: =IF('DF raw data'!K110="","",'DF raw data'!K110) -> -0.000216497 | D110: =IF('DF raw data'!L110="","",'DF raw data'!L110) -> -3.91837e-05 | F110: -2.788299244e-06 | G110: 2.185732287e-05 | H110: 5.228925809e-06 | J110: 1.483212376e-05 | K110: 0.0001402455101 | L110: 0.0005933269965 | M110: 0.006917732358 | N110: 2.855083839e-06
A111: =IF('DF raw data'!I111="","",'DF raw data'!I111) -> -278 | B111: =IF('DF raw data'!J111="","",'DF raw data'!J111) -> -3.14823e-05 | C111: =IF('DF raw data'!K111="","",'DF raw data'!K111) -> -0.000222446 | D111: =IF('DF raw data'!L111="","",'DF raw data'!L111) -> -3.6344e-05 | F111: 4.622269436e-06 | G111: 1.587922631e-05 | H111: 8.082514782e-06 | J111: 1.714325848e-05 | K111: 0.0001488171393 | L111: 0.0006012666096 | M111: 0.007218365663 | N111: 3.035991552e-06
A112: =IF('DF raw data'!I112="","",'DF raw data'!I112) -> -277.5 | B112: =IF('DF raw data'!J112="","",'DF raw data'!J112) -> -4.50732e-05 | C112: =IF('DF raw data'!K112="","",'DF raw data'!K112) -> -0.000223871 | D112: =IF('DF raw data'!L112="","",'DF raw data'!L112) -> -4.69857e-05 | F112: -9.035103656e-06 | G112: 1.444725663e-05 | H112: -2.611233773e-06 | J112: 1.262570665e-05 | K112: 0.0001551299927 | L112: 0.0006084902379 | M112: 0.007522610782 | N112: 3.221201441e-06
A113: =IF('DF raw data'!I113="","",'DF raw data'!I113) -> -277 | B113: =IF('DF raw data'!J113="","",'DF raw data'!J113) -> -3.36561e-05 | C113: =IF('DF raw data'!K113="","",'DF raw data'!K113) -> -0.000216337 | D113: =IF('DF raw data'!L113="","",'DF raw data'!L113) -> -4.75313e-05 | F113: 2.43783738e-06 | G113: 2.201810543e-05 | H113: -3.159502303e-06 | J113: 1.384462534e-05 | K113: 0.0001620523053 | L113: 0.0006194992906 | M113: 0.007832360427 | N113: 3.413186964e-06
A114: =IF('DF raw data'!I114="","",'DF raw data'!I114) -> -276.5 | B114: =IF('DF raw data'!J114="","",'DF raw data'!J114) -> -4.14799e-05 | C114: =IF('DF raw data'!K114="","",'DF raw data'!K114) -> -0.000214514 | D114: =IF('DF raw data'!L114="","",'DF raw data'!L114) -> -4.91193e-05 | F114: -5.424228826e-06 | G114: 2.385002172e-05 | H114: -4.755269211e-06 | J114: 1.113251093e-05 | K114: 0.0001676185608 | L114: 0.0006314243015 | M114: 0.008148072578 | N114: 3.612597254e-06
A115: =IF('DF raw data'!I115="","",'DF raw data'!I115) -> -276 | B115: =IF('DF raw data'!J115="","",'DF raw data'!J115) -> -4.603e-05 | C115: =IF('DF raw data'!K115="","",'DF raw data'!K115) -> -0.000219234 | D115: =IF('DF raw data'!L115="","",'DF raw data'!L115) -> -5.49656e-05 | F115: -9.996583365e-06 | G115: 1.91069362e-05 | H115: -1.063016346e-05 | J115: 6.134219243e-06 | K115: 0.0001706856704 | L115: 0.0006409777696 | M115: 0.008468561462 | N115: 3.818042319e-06
A116: =IF('DF raw data'!I116="","",'DF raw data'!I116) -> -275.5 | B116: =IF('DF raw data'!J116="","",'DF raw data'!J116) -> -4.60359e-05 | C116: =IF('DF raw data'!K116="","",'DF raw data'!K116) -> -0.000209156 | D116: =IF('DF raw data'!L116="","",'DF raw data'!L116) -> -4.58624e-05 | F116: -1.000251222e-05 | G116: 2.92342277e-05 | H116: -1.482439713e-06 | J116: 1.132963132e-06 | K116: 0.000171252152 | L116: 0.0006555948835 | M116: 0.008796358904 | N116: 4.032945287e-06
A117: =IF('DF raw data'!I117="","",'DF raw data'!I117) -> -275 | B117: =IF('DF raw data'!J117="","",'DF raw data'!J117) -> -4.3019e-05 | C117: =IF('DF raw data'!K117="","",'DF raw data'!K117) -> -0.000205255 | D117: =IF('DF raw data'!L117="","",'DF raw data'!L117) -> -4.94251e-05 | F117: -6.970856564e-06 | G117: 3.315430749e-05 | H117: -5.062564878e-06 | J117: -2.352465149e-06 | K117: 0.0001700759194 | L117: 0.0006721720372 | M117: 0.009132444923 | N117: 4.258855678e-06
A118: =IF('DF raw data'!I118="","",'DF raw data'!I118) -> -274.5 | B118: =IF('DF raw data'!J118="","",'DF raw data'!J118) -> -3.1158e-05 | C118: =IF('DF raw data'!K118="","",'DF raw data'!K118) -> -0.000209855 | D118: =IF('DF raw data'!L118="","",'DF raw data'!L118) -> -4.22294e-05 | F118: 4.948155587e-06 | G118: 2.853180889e-05 | H118: 2.16832929e-06 | J118: 1.216126441e-07 | K118: 0.0001701367257 | L118: 0.0006864379416 | M118: 0.009475663894 | N118: 4.494454209e-06
A119: =IF('DF raw data'!I119="","",'DF raw data'!I119) -> -274 | B119: =IF('DF raw data'!J119="","",'DF raw data'!J119) -> -3.85993e-05 | C119: =IF('DF raw data'!K119="","",'DF raw data'!K119) -> -0.000211773 | D119: =IF('DF raw data'!L119="","",'DF raw data'!L119) -> -4.05515e-05 | F119: -2.529539811e-06 | G119: 2.660442795e-05 | H119: 3.854435899e-06 | J119: -1.143157261e-06 | K119: 0.0001695651471 | L119: 0.0006997401556 | M119: 0.009825533971 | N119: 4.739273005e-06
A120: =IF('DF raw data'!I120="","",'DF raw data'!I120) -> -273.5 | B120: =IF('DF raw data'!J120="","",'DF raw data'!J120) -> -2.89064e-05 | C120: =IF('DF raw data'!K120="","",'DF raw data'!K120) -> -0.00020887 | D120: =IF('DF raw data'!L120="","",'DF raw data'!L120) -> -5.24069e-05 | F120: 7.210768163e-06 | G120: 2.952162652e-05 | H120: -8.058948862e-06 | J120: 2.46222682e-06 | K120: 0.0001707962605 | L120: 0.0007145009689 | M120: 0.01018278446 | N120: 4.994531853e-06
A121: =IF('DF raw data'!I121="","",'DF raw data'!I121) -> -273 | B121: =IF('DF raw data'!J121="","",'DF raw data'!J121) -> -2.38406e-05 | C121: =IF('DF raw data'!K121="","",'DF raw data'!K121) -> -0.000213612 | D121: =IF('DF raw data'!L121="","",'DF raw data'!L121) -> -5.04838e-05 | F121: 1.230134499e-05 | G121: 2.47564334e-05 | H121: -6.12644298e-06 | J121: 8.612899315e-06 | K121: 0.0001751027102 | L121: 0.0007268791856 | M121: 0.01054622405 | N121: 5.25874562e-06
A122: =IF('DF raw data'!I122="","",'DF raw data'!I122) -> -272.5 | B122: =IF('DF raw data'!J122="","",'DF raw data'!J122) -> -3.03812e-05 | C122: =IF('DF raw data'!K122="","",'DF raw data'!K122) -> -0.000213186 | D122: =IF('DF raw data'!L122="","",'DF raw data'!L122) -> -5.32383e-05 | F122: 5.728754916e-06 | G122: 2.518451697e-05 | H122: -8.89441524e-06 | J122: 1.147727677e-05 | K122: 0.0001808413486 | L122: 0.0007394714441 | M122: 0.01091595977 | N122: 5.532220492e-06
A123: =IF('DF raw data'!I123="","",'DF raw data'!I123) -> -272 | B123: =IF('DF raw data'!J123="","",'DF raw data'!J123) -> -3.78263e-05 | C123: =IF('DF raw data'!K123="","",'DF raw data'!K123) -> -0.000212325 | D123: =IF('DF raw data'!L123="","",'DF raw data'!L123) -> -4.53417e-05 | F123: -1.752759068e-06 | G123: 2.604972812e-05 | H123: -9.59192969e-07 | J123: 1.060089724e-05 | K123: 0.0001861417972 | L123: 0.0007524963081 | M123: 0.01129220792 | N123: 5.815402028e-06
A124: =IF('DF raw data'!I124="","",'DF raw data'!I124) -> -271.5 | B124: =IF('DF raw data'!J124="","",'DF raw data'!J124) -> -3.28917e-05 | C124: =IF('DF raw data'!K124="","",'DF raw data'!K124) -> -0.000216795 | D124: =IF('DF raw data'!L124="","",'DF raw data'!L124) -> -3.92676e-05 | F124: 3.20597606e-06 | G124: 2.155786535e-05 | H124: 5.144615454e-06 | J124: 1.220388527e-05 | K124: 0.0001922437398 | L124: 0.0007632752408 | M124: 0.01167384555 | N124: 6.106771042e-06
A125: =IF('DF raw data'!I125="","",'DF raw data'!I125) -> -271 | B125: =IF('DF raw data'!J125="","",'DF raw data'!J125) -> -3.26302e-05 | C125: =IF('DF raw data'!K125="","",'DF raw data'!K125) -> -0.00022377 | D125: =IF('DF raw data'!L125="","",'DF raw data'!L125) -> -4.69453e-05 | F125: 3.468755057e-06 | G125: 1.454875062e-05 | H125: -2.570636177e-06 | J125: 1.39382628e-05 | K125: 0.0001992128712 | L125: 0.0007705496161 | M125: 0.01205912035 | N125: 6.403741535e-06
A126: =IF('DF raw data'!I126="","",'DF raw data'!I126) -> -270.5 | B126: =IF('DF raw data'!J126="","",'DF raw data'!J126) -> -3.5903e-05 | C126: =IF('DF raw data'!K126="","",'DF raw data'!K126) -> -0.000220871 | D126: =IF('DF raw data'!L126="","",'DF raw data'!L126) -> -4.41256e-05 | F126: 1.799477921e-07 | G126: 1.746192963e-05 | H126: 2.628549761e-07 | J126: 1.402823669e-05 | K126: 0.0002062269896 | L126: 0.0007792805809 | M126: 0.01244876064 | N126: 6.707479043e-06
A127: =IF('DF raw data'!I127="","",'DF raw data'!I127) -> -270 | B127: =IF('DF raw data'!J127="","",'DF raw data'!J127) -> -3.55149e-05 | C127: =IF('DF raw data'!K127="","",'DF raw data'!K127) -> -0.000212574 | D127: =IF('DF raw data'!L127="","",'DF raw data'!L127) -> -4.90585e-05 | F127: 5.699459892e-07 | G127: 2.579951026e-05 | H127: -4.694171838e-06 | J127: 1.431320969e-05 | K127: 0.0002133835944 | L127: 0.0007921803361 | M127: 0.01284485081 | N127: 7.021356319e-06
A128: =IF('DF raw data'!I128="","",'DF raw data'!I128) -> -269.5 | B128: =IF('DF raw data'!J128="","",'DF raw data'!J128) -> -3.96216e-05 | C128: =IF('DF raw data'!K128="","",'DF raw data'!K128) -> -0.000213532 | D128: =IF('DF raw data'!L128="","",'DF raw data'!L128) -> -4.65975e-05 | F128: -3.55683988e-06 | G128: 2.483682468e-05 | H128: -2.221135087e-06 | J128: 1.253478975e-05 | K128: 0.0002196509893 | L128: 0.0008045987484 | M128: 0.01324715019 | N128: 7.345124453e-06
A129: =IF('DF raw data'!I129="","",'DF raw data'!I129) -> -269 | B129: =IF('DF raw data'!J129="","",'DF raw data'!J129) -> -3.85256e-05 | C129: =IF('DF raw data'!K129="","",'DF raw data'!K129) -> -0.000205268 | D129: =IF('DF raw data'!L129="","",'DF raw data'!L129) -> -5.52232e-05 | F129: -2.455479344e-06 | G129: 3.314124391e-05 | H129: -1.088902339e-05 | J129: 1.130705008e-05 | K129: 0.0002253045143 | L129: 0.0008211693704 | M129: 0.01365773487 | N129: 7.682347945e-06
A130: =IF('DF raw data'!I130="","",'DF raw data'!I130) -> -268.5 | B130: =IF('DF raw data'!J130="","",'DF raw data'!J130) -> -4.20552e-05 | C130: =IF('DF raw data'!K130="","",'DF raw data'!K130) -> -0.000207296 | D130: =IF('DF raw data'!L130="","",'DF raw data'!L130) -> -5.22237e-05 | F130: -6.002342618e-06 | G130: 3.110332496e-05 | H130: -7.874852831e-06 | J130: 8.305878767e-06 | K130: 0.0002294574537 | L130: 0.0008367210328 | M130: 0.01407609539 | N130: 8.032433482e-06
A131: =IF('DF raw data'!I131="","",'DF raw data'!I131) -> -268 | B131: =IF('DF raw data'!J131="","",'DF raw data'!J131) -> -3.9493e-05 | C131: =IF('DF raw data'!K131="","",'DF raw data'!K131) -> -0.000220114 | D131: =IF('DF raw data'!L131="","",'DF raw data'!L131) -> -4.72113e-05 | F131: =(1-$G$1*($B$54-$G$2))*(B131-F$5) -> -3.427610898e-06 | G131: =(1-$G$1*($B$54-$G$2))*(C131-G$5) -> 1.822263212e-05 | H131: =(1-$G$1*($B$54-$G$2))*(D131-H$5) -> -2.837937183e-06 | J131: 6.592073318e-06 | K131: 0.0002327534904 | L131: 0.0008458323489 | M131: 0.01449901156 | N131: 8.390171391e-06
A132: =IF('DF raw data'!I132="","",'DF raw data'!I132) -> -267.5 | B132: =IF('DF raw data'!J132="","",'DF raw data'!J132) -> -3.519e-05 | C132: =IF('DF raw data'!K132="","",'DF raw data'!K132) -> -0.00021979 | D132: =IF('DF raw data'!L132="","",'DF raw data'!L132) -> -5.58487e-05 | F132: 8.964350751e-07 | G132: 1.85482168e-05 | H132: -1.151758271e-05 | J132: =F132*$G$3+J131 -> 7.040290856e-06 | K132: =J132*$G$3+K131 -> 0.0002362736358 | L132: =G132*$G$3+L131 -> 0.0008551064573 | M132: =L132*$G$3+M131 -> 0.01492656479 | N132: =(J132^2+L132^2)*$G$3+N131 -> 8.755799701e-06
A133: =IF('DF raw data'!I133="","",'DF raw data'!I133) -> -267 | B133: =IF('DF raw data'!J133="","",'DF raw data'!J133) -> -3.71798e-05 | C133: =IF('DF raw data'!K133="","",'DF raw data'!K133) -> -0.000224506 | D133: =IF('DF raw data'!L133="","",'DF raw data'!L133) -> -5.32569e-05 | F133: -1.103097037e-06 | G133: 1.380915085e-05 | H133: -8.913106212e-06 | J133: 6.488742337e-06 | K133: 0.000239518007 | L133: 0.0008620110327 | M133: 0.01535757031 | N133: 9.127352263e-06
A134: =IF('DF raw data'!I134="","",'DF raw data'!I134) -> -266.5 | B134: =IF('DF raw data'!J134="","",'DF raw data'!J134) -> -3.83395e-05 | C134: =IF('DF raw data'!K134="","",'DF raw data'!K134) -> -0.000216259 | D134: =IF('DF raw data'!L134="","",'DF raw data'!L134) -> -4.56772e-05 | F134: -2.268469129e-06 | G134: 2.209648693e-05 | H134: -1.2963339e-06 | J134: 5.354507773e-06 | K134: 0.0002421952608 | L134: 0.0008730592762 | M134: 0.01579409995 | N134: 9.508482848e-06
A135: =IF('DF raw data'!I135="","",'DF raw data'!I135) -> -266 | B135: =IF('DF raw data'!J135="","",'DF raw data'!J135) -> -4.5972e-05 | C135: =IF('DF raw data'!K135="","",'DF raw data'!K135) -> -0.000209911 | D135: =IF('DF raw data'!L135="","",'DF raw data'!L135) -> -4.56849e-05 | F135: -9.938299687e-06 | G135: 2.847553499e-05 | H135: -1.30407156e-06 | J135: 3.853579291e-07 | K135: 0.0002423879398 | L135: 0.0008872970437 | M135: 0.01623774847 | N135: 9.902130944e-06
A136: =IF('DF raw data'!I136="","",'DF raw data'!I136) -> -265.5 | B136: =IF('DF raw data'!J136="","",'DF raw data'!J136) -> -3.71237e-05 | C136: =IF('DF raw data'!K136="","",'DF raw data'!K136) -> -0.000206851 | D136: =IF('DF raw data'!L136="","",'DF raw data'!L136) -> -4.10352e-05 | F136: -1.046722652e-06 | G136: 3.155050145e-05 | H136: 3.368370122e-06 | J136: -1.380033967e-07 | K136: 0.0002423189381 | L136: 0.0009030722944 | M136: 0.01668928461 | N136: 1.030990074e-05
A137: =IF('DF raw data'!I137="","",'DF raw data'!I137) -> -265 | B137: =IF('DF raw data'!J137="","",'DF raw data'!J137) -> -4.07171e-05 | C137: =IF('DF raw data'!K137="","",'DF raw data'!K137) -> -0.000210214 | D137: =IF('DF raw data'!L137="","",'DF raw data'!L137) -> -3.84181e-05 | F137: -4.657697971e-06 | G137: 2.817105302e-05 | H137: 5.998270359e-06 | J137: -2.466852382e-06 | K137: 0.0002410855119 | L137: 0.0009171578209 | M137: 0.01714786352 | N137: 1.073049301e-05
A138: =IF('DF raw data'!I138="","",'DF raw data'!I138) -> -264.5 | B138: =IF('DF raw data'!J138="","",'DF raw data'!J138) -> -3.52629e-05 | C138: =IF('DF raw data'!K138="","",'DF raw data'!K138) -> -0.00020605 | D138: =IF('DF raw data'!L138="","",'DF raw data'!L138) -> -4.21016e-05 | F138: 8.231785212e-07 | G138: 3.235541914e-05 | H138: 2.29675436e-06 | J138: -2.055263122e-06 | K138: 0.0002400578804 | L138: 0.0009333355305 | M138: 0.01761453129 | N138: 1.116605273e-05
A139: =IF('DF raw data'!I139="","",'DF raw data'!I139) -> -264 | B139: =IF('DF raw data'!J139="","",'DF raw data'!J139) -> -3.64117e-05 | C139: =IF('DF raw data'!K139="","",'DF raw data'!K139) -> -0.000207231 | D139: =IF('DF raw data'!L139="","",'DF raw data'!L139) -> -5.07826e-05 | F139: -3.312402596e-07 | G139: 3.116864287e-05 | H139: -6.426704411e-06 | J139: -2.220883251e-06 | K139: 0.0002389474387 | L139: 0.0009489198519 | M139: 0.01808899122 | N139: 1.161627964e-05
A140: =IF('DF raw data'!I140="","",'DF raw data'!I140) -> -263.5 | B140: =IF('DF raw data'!J140="","",'DF raw data'!J140) -> -3.14768e-05 | C140: =IF('DF raw data'!K140="","",'DF raw data'!K140) -> -0.000208352 | D140: =IF('DF raw data'!L140="","",'DF raw data'!L140) -> -4.49197e-05 | F140: 4.627796336e-06 | G140: 3.004216006e-05 | H140: -5.35128967e-07 | J140: 9.301491682e-08 | K140: 0.0002389939462 | L140: 0.000963940932 | M140: 0.01857096168 | N140: 1.208087071e-05
A141: =IF('DF raw data'!I141="","",'DF raw data'!I141) -> -263 | B141: =IF('DF raw data'!J141="","",'DF raw data'!J141) -> -3.70487e-05 | C141: =IF('DF raw data'!K141="","",'DF raw data'!K141) -> -0.000205866 | D141: =IF('DF raw data'!L141="","",'DF raw data'!L141) -> -5.76633e-05 | F141: -9.713558266e-07 | G141: 3.254031909e-05 | H141: -1.334105791e-05 | J141: -3.926629965e-07 | K141: 0.0002387976147 | L141: 0.0009802110915 | M141: 0.01906106723 | N141: 1.256127768e-05
A142: =IF('DF raw data'!I142="","",'DF raw data'!I142) -> -262.5 | B142: =IF('DF raw data'!J142="","",'DF raw data'!J142) -> -3.5769e-05 | C142: =IF('DF raw data'!K142="","",'DF raw data'!K142) -> -0.000209977 | D142: =IF('DF raw data'!L142="","",'DF raw data'!L142) -> -5.2819e-05 | F142: 3.146031861e-07 | G142: 2.840921219e-05 | H142: -8.473064443e-06 | J142: -2.353614034e-07 | K142: 0.000238679934 | L142: 0.0009944156976 | M142: 0.01955827508 | N142: 1.305570899e-05
A143: =IF('DF raw data'!I143="","",'DF raw data'!I143) -> -262 | B143: =IF('DF raw data'!J143="","",'DF raw data'!J143) -> -4.01282e-05 | C143: =IF('DF raw data'!K143="","",'DF raw data'!K143) -> -0.000213628 | D143: =IF('DF raw data'!L143="","",'DF raw data'!L143) -> -5.66607e-05 | F143: -4.065917661e-06 | G143: 2.474035515e-05 | H143: -1.23335542e-05 | J143: -2.268320234e-06 | K143: 0.0002375457739 | L143: 0.001006785875 | M143: 0.02006166801 | N143: 1.356252046e-05
A144: =IF('DF raw data'!I144="","",'DF raw data'!I144) -> -261.5 | B144: =IF('DF raw data'!J144="","",'DF raw data'!J144) -> -3.42362e-05 | C144: =IF('DF raw data'!K144="","",'DF raw data'!K144) -> -0.000204436 | D144: =IF('DF raw data'!L144="","",'DF raw data'!L144) -> -4.28588e-05 | F144: 1.854900111e-06 | G144: 3.397731322e-05 | H144: 1.535850895e-06 | J144: -1.340870178e-06 | K144: 0.0002368753388 | L144: 0.001023774532 | M144: 0.02057355528 | N144: 1.408657851e-05
A145: =IF('DF raw data'!I145="","",'DF raw data'!I145) -> -261 | B145: =IF('DF raw data'!J145="","",'DF raw data'!J145) -> -3.92956e-05 | C145: =IF('DF raw data'!K145="","",'DF raw data'!K145) -> -0.000207698 | D145: =IF('DF raw data'!L145="","",'DF raw data'!L145) -> -5.46756e-05 | F145: -3.229245414e-06 | G145: 3.069935878e-05 | H145: -1.033874507e-05 | J145: -2.955492886e-06 | K145: 0.0002353975923 | L145: 0.001039124211 | M145: 0.02109311739 | N145: 1.462647244e-05
A146: =IF('DF raw data'!I146="","",'DF raw data'!I146) -> -260.5 | B146: =IF('DF raw data'!J146="","",'DF raw data'!J146) -> -3.96161e-05 | C146: =IF('DF raw data'!K146="","",'DF raw data'!K146) -> -0.000208081 | D146: =IF('DF raw data'!L146="","",'DF raw data'!L146) -> -5.50883e-05 | F146: -3.55131298e-06 | G146: 3.031448552e-05 | H146: -1.075346359e-05 | J146: -4.731149376e-06 | K146: 0.0002330320177 | L146: 0.001054281454 | M146: 0.02162025811 | N146: 1.518223832e-05
A147: =IF('DF raw data'!I147="","",'DF raw data'!I147) -> -260 | B147: =IF('DF raw data'!J147="","",'DF raw data'!J147) -> -4.33988e-05 | C147: =IF('DF raw data'!K147="","",'DF raw data'!K147) -> -0.000200593 | D147: =IF('DF raw data'!L147="","",'DF raw data'!L147) -> -5.71352e-05 | F147: -7.352514166e-06 | G147: 3.783910933e-05 | H147: -1.281037498e-05 | J147: -8.407406459e-06 | K147: 0.0002288283144 | L147: 0.001073201009 | M147: 0.02215685862 | N147: 1.575815387e-05
A148: =IF('DF raw data'!I148="","",'DF raw data'!I148) -> -259.5 | B148: =IF('DF raw data'!J148="","",'DF raw data'!J148) -> -4.24441e-05 | C148: =IF('DF raw data'!K148="","",'DF raw data'!K148) -> -0.000210274 | D148: =IF('DF raw data'!L148="","",'DF raw data'!L148) -> -4.6033e-05 | F148: -6.393144728e-06 | G148: 2.811075956e-05 | H148: -1.653874117e-06 | J148: -1.160397882e-05 | K148: 0.000223026325 | L148: 0.001087256388 | M148: 0.02270048681 | N148: 1.634928442e-05
A149: =IF('DF raw data'!I149="","",'DF raw data'!I149) -> -259 | B149: =IF('DF raw data'!J149="","",'DF raw data'!J149) -> -4.77018e-05 | C149: =IF('DF raw data'!K149="","",'DF raw data'!K149) -> -0.000216728 | D149: =IF('DF raw data'!L149="","",'DF raw data'!L149) -> -4.85135e-05 | F149: -1.167656014e-05 | G149: 2.162519305e-05 | H149: -4.146506243e-06 | J149: -1.744225889e-05 | K149: 0.0002143051956 | L149: 0.001098068985 | M149: 0.0232495213 | N149: 1.695231429e-05
A150: =IF('DF raw data'!I150="","",'DF raw data'!I150) -> -258.5 | B150: =IF('DF raw data'!J150="","",'DF raw data'!J150) -> -2.94313e-05 | C150: =IF('DF raw data'!K150="","",'DF raw data'!K150) -> -0.000205803 | D150: =IF('DF raw data'!L150="","",'DF raw data'!L150) -> -3.4275e-05 | F150: 6.683300877e-06 | G150: 3.260362722e-05 | H150: 1.016163426e-05 | J150: -1.410060845e-05 | K150: 0.0002072548913 | L150: 0.001114370799 | M150: 0.0238067067 | N150: 1.757332484e-05
A151: =IF('DF raw data'!I151="","",'DF raw data'!I151) -> -258 | B151: =IF('DF raw data'!J151="","",'DF raw data'!J151) -> -3.97454e-05 | C151: =IF('DF raw data'!K151="","",'DF raw data'!K151) -> -0.000209911 | D151: =IF('DF raw data'!L151="","",'DF raw data'!L151) -> -5.35734e-05 | F151: -3.681245386e-06 | G151: 2.847553499e-05 | H151: -9.231154214e-06 | J151: -1.594123115e-05 | K151: 0.0001992842758 | L151: 0.001128608566 | M151: 0.02437101099 | N151: 1.821033055e-05
A152: =IF('DF raw data'!I152="","",'DF raw data'!I152) -> -257.5 | B152: =IF('DF raw data'!J152="","",'DF raw data'!J152) -> -3.74416e-05 | C152: =IF('DF raw data'!K152="","",'DF raw data'!K152) -> -0.000210714 | D152: =IF('DF raw data'!L152="","",'DF raw data'!L152) -> -4.50871e-05 | F152: -1.3661775e-06 | G152: 2.766860752e-05 | H152: -7.033477204e-07 | J152: -1.66243199e-05 | K152: 0.0001909721158 | L152: 0.00114244287 | M152: 0.02494223242 | N152: 1.886305659e-05
A153: =IF('DF raw data'!I153="","",'DF raw data'!I153) -> -257 | B153: =IF('DF raw data'!J153="","",'DF raw data'!J153) -> -3.26922e-05 | C153: =IF('DF raw data'!K153="","",'DF raw data'!K153) -> -0.000213884 | D153: =IF('DF raw data'!L153="","",'DF raw data'!L153) -> -5.01111e-05 | F153: 3.406451815e-06 | G153: 2.448310305e-05 | H153: -5.751920104e-06 | J153: -1.492109399e-05 | K153: 0.0001835115688 | L153: 0.001154684421 | M153: 0.02551957463 | N153: 1.952981596e-05
A154: =IF('DF raw data'!I154="","",'DF raw data'!I154) -> -256.5 | B154: =IF('DF raw data'!J154="","",'DF raw data'!J154) -> -3.73082e-05 | C154: =IF('DF raw data'!K154="","",'DF raw data'!K154) -> -0.000207688 | D154: =IF('DF raw data'!L154="","",'DF raw data'!L154) -> -5.31002e-05 | F154: -1.232125041e-06 | G154: 3.070940769e-05 | H154: -8.755639793e-06 | J154: -1.553715651e-05 | K154: 0.0001757429906 | L154: 0.001170039125 | M154: 0.02610459419 | N154: 2.021443244e-05
A155: =IF('DF raw data'!I155="","",'DF raw data'!I155) -> -256 | B155: =IF('DF raw data'!J155="","",'DF raw data'!J155) -> -4.64791e-05 | C155: =IF('DF raw data'!K155="","",'DF raw data'!K155) -> -0.000211996 | D155: =IF('DF raw data'!L155="","",'DF raw data'!L155) -> -5.50211e-05 | F155: -1.044787991e-05 | G155: 2.638033726e-05 | H155: -1.068593491e-05 | J155: -2.076109647e-05 | K155: 0.0001653624423 | L155: 0.001183229294 | M155: 0.02669620884 | N155: 2.091466373e-05
A156: =IF('DF raw data'!I156="","",'DF raw data'!I156) -> -255.5 | B156: =IF('DF raw data'!J156="","",'DF raw data'!J156) -> -3.56376e-05 | C156: =IF('DF raw data'!K156="","",'DF raw data'!K156) -> -0.000205752 | D156: =IF('DF raw data'!L156="","",'DF raw data'!L156) -> -5.77343e-05 | F156: 4.466458635e-07 | G156: 3.265487666e-05 | H156: -1.341240518e-05 | J156: -2.053777353e-05 | K156: 0.0001550935556 | L156: 0.001199556732 | M156: 0.02729598721 | N156: 2.163434281e-05
A157: =IF('DF raw data'!I157="","",'DF raw data'!I157) -> -255 | B157: =IF('DF raw data'!J157="","",'DF raw data'!J157) -> -4.04546e-05 | C157: =IF('DF raw data'!K157="","",'DF raw data'!K157) -> -0.000212165 | D157: =IF('DF raw data'!L157="","",'DF raw data'!L157) -> -4.77537e-05 | F157: -4.393914083e-06 | G157: 2.621051068e-05 | H157: -3.382990061e-06 | J157: -2.273473058e-05 | K157: 0.0001437261903 | L157: 0.001212661987 | M157: 0.0279023182 | N157: 2.236987579e-05
A158: =IF('DF raw data'!I158="","",'DF raw data'!I158) -> -254.5 | B158: =IF('DF raw data'!J158="","",'DF raw data'!J158) -> -2.84547e-05 | C158: =IF('DF raw data'!K158="","",'DF raw data'!K158) -> -0.000210219 | D158: =IF('DF raw data'!L158="","",'DF raw data'!L158) -> -5.67896e-05 | F158: 7.664677427e-06 | G158: 2.816602857e-05 | H158: -1.246308465e-05 | J158: -1.890239186e-05 | K158: 0.0001342749944 | L158: 0.001226745002 | M158: 0.0285156907 | N158: 2.312250609e-05
A159: =IF('DF raw data'!I159="","",'DF raw data'!I159) -> -254 | B159: =IF('DF raw data'!J159="","",'DF raw data'!J159) -> -4.32076e-05 | C159: =IF('DF raw data'!K159="","",'DF raw data'!K159) -> -0.000196117 | D159: =IF('DF raw data'!L159="","",'DF raw data'!L159) -> -5.55166e-05 | F159: -7.160379006e-06 | G159: 4.233700145e-05 | H159: -1.11838584e-05 | J159: -2.248258137e-05 | K159: 0.0001230337037 | L159: 0.001247913502 | M159: 0.02913964745 | N159: 2.390140288e-05
A160: =IF('DF raw data'!I160="","",'DF raw data'!I160) -> -253.5 | B160: =IF('DF raw data'!J160="","",'DF raw data'!J160) -> -3.57792e-05 | C160: =IF('DF raw data'!K160="","",'DF raw data'!K160) -> -0.000200606 | D160: =IF('DF raw data'!L160="","",'DF raw data'!L160) -> -3.71642e-05 | F160: 3.043532979e-07 | G160: 3.782604575e-05 | H160: 7.258303183e-06 | J160: -2.233040472e-05 | K160: 0.0001118685013 | L160: 0.001266826525 | M160: 0.02977306071 | N160: 2.470407693e-05
A161: =IF('DF raw data'!I161="","",'DF raw data'!I161) -> -253 | B161: =IF('DF raw data'!J161="","",'DF raw data'!J161) -> -4.49431e-05 | C161: =IF('DF raw data'!K161="","",'DF raw data'!K161) -> -0.000216882 | D161: =IF('DF raw data'!L161="","",'DF raw data'!L161) -> -4.98777e-05 | F161: -8.904367337e-06 | G161: 2.147043983e-05 | H161: -5.517378545e-06 | J161: -2.678258839e-05 | K161: 9.847720712e-05 | L161: 0.001277561745 | M161: 0.03041184159 | N161: 2.552051759e-05
A162: =IF('DF raw data'!I162="","",'DF raw data'!I162) -> -252.5 | B162: =IF('DF raw data'!J162="","",'DF raw data'!J162) -> -3.69207e-05 | C162: =IF('DF raw data'!K162="","",'DF raw data'!K162) -> -0.000223076 | D162: =IF('DF raw data'!L162="","",'DF raw data'!L162) -> -5.71365e-05 | F162: -8.427297786e-07 | G162: 1.524614498e-05 | H162: -1.281168134e-05 | J162: -2.720395327e-05 | K162: 8.487523048e-05 | L162: 0.001285184818 | M162: 0.031054434 | N162: 2.634673762e-05
A163: =IF('DF raw data'!I163="","",'DF raw data'!I163) -> -252 | B163: =IF('DF raw data'!J163="","",'DF raw data'!J163) -> -4.99393e-05 | C163: =IF('DF raw data'!K163="","",'DF raw data'!K163) -> -0.000231373 | D163: =IF('DF raw data'!L163="","",'DF raw data'!L163) -> -5.99872e-05 | F163: -1.392500375e-05 | G163: 6.908564351e-06 | H163: -1.567632411e-05 | J163: -3.416645515e-05 | K163: 6.77920029e-05 | L163: 0.0012886391 | M163: 0.03169875355 | N163: 2.717761666e-05
A164: =IF('DF raw data'!I164="","",'DF raw data'!I164) -> -251.5 | B164: =IF('DF raw data'!J164="","",'DF raw data'!J164) -> -4.90513e-05 | C164: =IF('DF raw data'!K164="","",'DF raw data'!K164) -> -0.000217589 | D164: =IF('DF raw data'!L164="","",'DF raw data'!L164) -> -4.46537e-05 | F164: -1.303266054e-05 | G164: 2.07599819e-05 | H164: -2.67827961e-07 | J164: -4.068278542e-05 | K164: 4.745061019e-05 | L164: 0.001299019091 | M164: 0.03234826309 | N164: 2.80221695e-05
A165: =IF('DF raw data'!I165="","",'DF raw data'!I165) -> -251 | B165: =IF('DF raw data'!J165="","",'DF raw data'!J165) -> -3.81418e-05 | C165: =IF('DF raw data'!K165="","",'DF raw data'!K165) -> -0.000212274 | D165: =IF('DF raw data'!L165="","",'DF raw data'!L165) -> -5.35656e-05 | F165: -2.069802179e-06 | G165: 2.610097756e-05 | H165: -9.223316064e-06 | J165: -4.171768651e-05 | K165: 2.659176694e-05 | L165: 0.00131206958 | M165: 0.03300429788 | N165: 2.888380298e-05
A166: =IF('DF raw data'!I166="","",'DF raw data'!I166) -> -250.5 | B166: =IF('DF raw data'!J166="","",'DF raw data'!J166) -> -3.08977e-05 | C166: =IF('DF raw data'!K166="","",'DF raw data'!K166) -> -0.000216899 | D166: =IF('DF raw data'!L166="","",'DF raw data'!L166) -> -4.79682e-05 | F166: 5.209728714e-06 | G166: 2.145335669e-05 | H166: -3.598539181e-06 | J166: -3.911282215e-05 | K166: 7.03535586e-06 | L166: 0.001322796258 | M166: 0.03366569601 | N166: 2.975946285e-05
A167: =IF('DF raw data'!I167="","",'DF raw data'!I167) -> -250 | B167: =IF('DF raw data'!J167="","",'DF raw data'!J167) -> -4.76395e-05 | C167: =IF('DF raw data'!K167="","",'DF raw data'!K167) -> -0.000217941 | D167: =IF('DF raw data'!L167="","",'DF raw data'!L167) -> -4.58708e-05 | F167: -1.161395543e-05 | G167: 2.040626026e-05 | H167: -1.490880797e-06 | J167: -4.491979987e-05 | K167: -1.542454407e-05 | L167: 0.001332999388 | M167: 0.0343321957 | N167: 3.064891543e-05
A168: =IF('DF raw data'!I168="","",'DF raw data'!I168) -> -249.5 | B168: =IF('DF raw data'!J168="","",'DF raw data'!J168) -> -3.18009e-05 | C168: =IF('DF raw data'!K168="","",'DF raw data'!K168) -> -0.000207923 | D168: =IF('DF raw data'!L168="","",'DF raw data'!L168) -> -3.98315e-05 | F168: 4.302111163e-06 | G168: 3.04732583e-05 | H168: 4.577957419e-06 | J168: -4.276874429e-05 | K168: -3.680891622e-05 | L168: 0.001348236017 | M168: 0.03500631371 | N168: 3.155870019e-05
A169: =IF('DF raw data'!I169="","",'DF raw data'!I169) -> -249 | B169: =IF('DF raw data'!J169="","",'DF raw data'!J169) -> -4.79546e-05 | C169: =IF('DF raw data'!K169="","",'DF raw data'!K169) -> -0.00020921 | D169: =IF('DF raw data'!L169="","",'DF raw data'!L169) -> -5.43089e-05 | F169: -1.193059658e-05 | G169: 2.917996358e-05 | H169: -9.970251544e-06 | J169: -4.873404258e-05 | K169: -6.117593751e-05 | L169: 0.001362825999 | M169: 0.03568772671 | N169: 3.248853505e-05
A170: =IF('DF raw data'!I170="","",'DF raw data'!I170) -> -248.5 | B170: =IF('DF raw data'!J170="","",'DF raw data'!J170) -> -4.77609e-05 | C170: =IF('DF raw data'!K170="","",'DF raw data'!K170) -> -0.000207564 | D170: =IF('DF raw data'!L170="","",'DF raw data'!L170) -> -5.63825e-05 | F170: -1.17359492e-05 | G170: 3.083401417e-05 | H170: -1.205399352e-05 | J170: -5.460201718e-05 | K170: -8.84769461e-05 | L170: 0.001378243006 | M170: 0.03637684822 | N170: 3.343980263e-05
A171: =IF('DF raw data'!I171="","",'DF raw data'!I171) -> -248 | B171: =IF('DF raw data'!J171="","",'DF raw data'!J171) -> -4.32114e-05 | C171: =IF('DF raw data'!K171="","",'DF raw data'!K171) -> -0.000220584 | D171: =IF('DF raw data'!L171="","",'DF raw data'!L171) -> -4.95999e-05 | F171: -7.164197592e-06 | G171: 1.775033335e-05 | H171: -5.238219825e-06 | J171: -5.818411597e-05 | K171: -0.0001175690041 | L171: 0.001387118173 | M171: 0.0370704073 | N171: 3.440354374e-05
A172: =IF('DF raw data'!I172="","",'DF raw data'!I172) -> -247.5 | B172: =IF('DF raw data'!J172="","",'DF raw data'!J172) -> -3.01841e-05 | C172: =IF('DF raw data'!K172="","",'DF raw data'!K172) -> -0.00021771 | D172: =IF('DF raw data'!L172="","",'DF raw data'!L172) -> -6.02386e-05 | F172: 5.926818932e-06 | G172: 2.063839008e-05 | H172: -1.592895371e-05 | J172: -5.522070651e-05 | K172: -0.0001451793573 | L172: 0.001397437368 | M172: 0.03776912599 | N172: 3.5381484e-05
A173: =IF('DF raw data'!I173="","",'DF raw data'!I173) -> -247 | B173: =IF('DF raw data'!J173="","",'DF raw data'!J173) -> -3.94264e-05 | C173: =IF('DF raw data'!K173="","",'DF raw data'!K173) -> -0.000214566 | D173: =IF('DF raw data'!L173="","",'DF raw data'!L173) -> -5.07569e-05 | F173: -3.360685157e-06 | G173: 2.379776739e-05 | H173: -6.400878712e-06 | J173: -5.690104909e-05 | K173: -0.0001736298819 | L173: 0.001409336252 | M173: 0.03847379411 | N173: 3.63762172e-05
A174: =IF('DF raw data'!I174="","",'DF raw data'!I174) -> -246.5 | B174: =IF('DF raw data'!J174="","",'DF raw data'!J174) -> -4.18653e-05 | C174: =IF('DF raw data'!K174="","",'DF raw data'!K174) -> -0.000213461 | D174: =IF('DF raw data'!L174="","",'DF raw data'!L174) -> -4.8136e-05 | F174: -5.811513817e-06 | G174: 2.490817194e-05 | H174: -3.76715989e-06 | J174: -5.980680599e-05 | K174: -0.0002035332849 | L174: 0.001421790338 | M174: 0.03918468928 | N174: 3.738874951e-05
A175: =IF('DF raw data'!I175="","",'DF raw data'!I175) -> -246 | B175: =IF('DF raw data'!J175="","",'DF raw data'!J175) -> -4.5595e-05 | C175: =IF('DF raw data'!K175="","",'DF raw data'!K175) -> -0.000213874 | D175: =IF('DF raw data'!L175="","",'DF raw data'!L175) -> -3.36825e-05 | F175: -9.55945578e-06 | G175: 2.449315196e-05 | H175: 1.075703218e-05 | J175: -6.458653388e-05 | K175: -0.0002358265518 | L175: 0.001434036913 | M175: 0.03990170774 | N175: 3.841906615e-05
A176: =IF('DF raw data'!I176="","",'DF raw data'!I176) -> -245.5 | B176: =IF('DF raw data'!J176="","",'DF raw data'!J176) -> -4.66039e-05 | C176: =IF('DF raw data'!K176="","",'DF raw data'!K176) -> -0.000216982 | D176: =IF('DF raw data'!L176="","",'DF raw data'!L176) -> -6.02365e-05 | F176: -1.057329031e-05 | G176: 2.136995073e-05 | H176: -1.592684344e-05 | J176: -6.987317904e-05 | K176: -0.0002707631413 | L176: 0.001444721889 | M176: 0.04062406868 | N176: 3.946511795e-05
A177: =IF('DF raw data'!I177="","",'DF raw data'!I177) -> -245 | B177: =IF('DF raw data'!J177="","",'DF raw data'!J177) -> -5.69966e-05 | C177: =IF('DF raw data'!K177="","",'DF raw data'!K177) -> -0.000216058 | D177: =IF('DF raw data'!L177="","",'DF raw data'!L177) -> -5.73095e-05 | F177: -2.101682101e-05 | G177: 2.229847002e-05 | H177: -1.298552748e-05 | J177: -8.038158954e-05 | K177: -0.0003109539361 | L177: 0.001455871124 | M177: 0.04135200424 | N177: 4.052812892e-05
A178: =IF('DF raw data'!I178="","",'DF raw data'!I178) -> -244.5 | B178: =IF('DF raw data'!J178="","",'DF raw data'!J178) -> -4.42402e-05 | C178: =IF('DF raw data'!K178="","",'DF raw data'!K178) -> -0.000212056 | D178: =IF('DF raw data'!L178="","",'DF raw data'!L178) -> -4.55686e-05 | F178: -8.198029453e-06 | G178: 2.63200438e-05 | H178: -1.187202737e-06 | J178: -8.448060427e-05 | K178: -0.0003531942382 | L178: 0.001469031146 | M178: 0.04208651982 | N178: 4.161072366e-05
A179: =IF('DF raw data'!I179="","",'DF raw data'!I179) -> -244 | B179: =IF('DF raw data'!J179="","",'DF raw data'!J179) -> -5.74499e-05 | C179: =IF('DF raw data'!K179="","",'DF raw data'!K179) -> -0.000216343 | D179: =IF('DF raw data'!L179="","",'DF raw data'!L179) -> -5.02632e-05 | F179: -2.14723381e-05 | G179: 2.201207608e-05 | H179: -5.904764026e-06 | J179: -9.521677332e-05 | K179: -0.0004008026249 | L179: 0.001480037184 | M179: 0.04282653841 | N179: 4.271051181e-05
A180: =IF('DF raw data'!I180="","",'DF raw data'!I180) -> -243.5 | B180: =IF('DF raw data'!J180="","",'DF raw data'!J180) -> -4.44265e-05 | C180: =IF('DF raw data'!K180="","",'DF raw data'!K180) -> -0.000214328 | D180: =IF('DF raw data'!L180="","",'DF raw data'!L180) -> -5.52469e-05 | F180: -8.385240646e-06 | G180: 2.403693145e-05 | H180: -1.09128393e-05 | J180: -9.940939364e-05 | K180: -0.0004505073217 | L180: 0.00149205565 | M180: 0.04357256623 | N180: 4.382856795e-05
A181: =IF('DF raw data'!I181="","",'DF raw data'!I181) -> -243 | B181: =IF('DF raw data'!J181="","",'DF raw data'!J181) -> -5.27017e-05 | C181: =IF('DF raw data'!K181="","",'DF raw data'!K181) -> -0.000214469 | D181: =IF('DF raw data'!L181="","",'DF raw data'!L181) -> -5.33402e-05 | F181: -1.670091465e-05 | G181: 2.389524182e-05 | H181: -8.996813633e-06 | J181: -0.000107759851 | K181: -0.0005043872472 | L181: 0.00150400327 | M181: 0.04432456787 | N181: 4.496538696e-05
A182: =IF('DF raw data'!I182="","",'DF raw data'!I182) -> -242.5 | B182: =IF('DF raw data'!J182="","",'DF raw data'!J182) -> -3.44214e-05 | C182: =IF('DF raw data'!K182="","",'DF raw data'!K182) -> -0.000212231 | D182: =IF('DF raw data'!L182="","",'DF raw data'!L182) -> -5.41439e-05 | F182: 1.668794298e-06 | G182: 2.614418787e-05 | H182: -9.804444529e-06 | J182: -0.0001069254538 | K182: -0.0005578499741 | L182: 0.001517075364 | M182: 0.04508310555 | N182: 4.612186232e-05
A183: =IF('DF raw data'!I183="","",'DF raw data'!I183) -> -242 | B183: =IF('DF raw data'!J183="","",'DF raw data'!J183) -> -5.54621e-05 | C183: =IF('DF raw data'!K183="","",'DF raw data'!K183) -> -0.000211632 | D183: =IF('DF raw data'!L183="","",'DF raw data'!L183) -> -4.93597e-05 | F183: -1.947481577e-05 | G183: 2.674611758e-05 | H183: -4.996845007e-06 | J183: -0.0001166628617 | K183: -0.000616181405 | L183: 0.001530448423 | M183: 0.04584832976 | N183: 4.729980362e-05
A184: =IF('DF raw data'!I184="","",'DF raw data'!I184) -> -241.5 | B184: =IF('DF raw data'!J184="","",'DF raw data'!J184) -> -3.23692e-05 | C184: =IF('DF raw data'!K184="","",'DF raw data'!K184) -> -0.000218498 | D184: =IF('DF raw data'!L184="","",'DF raw data'!L184) -> -5.37779e-05 | F184: 3.731031608e-06 | G184: 1.984653598e-05 | H184: -9.436654423e-06 | J184: -0.0001147973459 | K184: -0.0006735800779 | L184: 0.001540371691 | M184: 0.04661851561 | N184: 4.849276531e-05
A185: =IF('DF raw data'!I185="","",'DF raw data'!I185) -> -241 | B185: =IF('DF raw data'!J185="","",'DF raw data'!J185) -> -4.70625e-05 | C185: =IF('DF raw data'!K185="","",'DF raw data'!K185) -> -0.000212986 | D185: =IF('DF raw data'!L185="","",'DF raw data'!L185) -> -4.53673e-05 | F185: -1.103413332e-05 | G185: 2.538549517e-05 | H185: -9.849181786e-07 | J185: -0.0001203144126 | K185: -0.0007337372842 | L185: 0.001553064439 | M185: 0.04739504783 | N185: 4.970600766e-05
A186: =IF('DF raw data'!I186="","",'DF raw data'!I186) -> -240.5 | B186: =IF('DF raw data'!J186="","",'DF raw data'!J186) -> -4.13524e-05 | C186: =IF('DF raw data'!K186="","",'DF raw data'!K186) -> -0.000219331 | D186: =IF('DF raw data'!L186="","",'DF raw data'!L186) -> -4.79702e-05 | F186: -5.296105223e-06 | G186: 1.900946177e-05 | H186: -3.600548963e-06 | J186: -0.0001229624652 | K186: -0.0007952185168 | L186: 0.00156256917 | M186: 0.04817633241 | N186: 5.093437875e-05
A187: =IF('DF raw data'!I187="","",'DF raw data'!I187) -> -240 | B187: =IF('DF raw data'!J187="","",'DF raw data'!J187) -> -5.44408e-05 | C187: =IF('DF raw data'!K187="","",'DF raw data'!K187) -> -0.000217862 | D187: =IF('DF raw data'!L187="","",'DF raw data'!L187) -> -4.18283e-05 | F187: -1.844852059e-05 | G187: 2.048564665e-05 | H187: 2.57139107e-06 | J187: -0.0001321867255 | K187: -0.0008613118795 | L187: 0.001572811993 | M187: 0.04896273841 | N187: 5.21799842e-05
A188: =IF('DF raw data'!I188="","",'DF raw data'!I188) -> -239.5 | B188: =IF('DF raw data'!J188="","",'DF raw data'!J188) -> -4.91804e-05 | C188: =IF('DF raw data'!K188="","",'DF raw data'!K188) -> -0.000206648 | D188: =IF('DF raw data'!L188="","",'DF raw data'!L188) -> -4.34414e-05 | F188: -1.316239197e-05 | G188: 3.175449433e-05 | H188: 9.504013983e-07 | J188: -0.0001387679214 | K188: -0.0009306958402 | L188: 0.00158868924 | M188: 0.04975708303 | N188: 5.345157922e-05
A189: =IF('DF raw data'!I189="","",'DF raw data'!I189) -> -239 | B189: =IF('DF raw data'!J189="","",'DF raw data'!J189) -> -4.84762e-05 | C189: =IF('DF raw data'!K189="","",'DF raw data'!K189) -> -0.000215065 | D189: =IF('DF raw data'!L189="","",'DF raw data'!L189) -> -4.12549e-05 | F189: -1.245474773e-05 | G189: 2.329632678e-05 | H189: 3.14759557e-06 | J189: -0.0001449952953 | K189: -0.001003193488 | L189: 0.001600337403 | M189: 0.05055725173 | N189: 5.474263094e-05
A190: =IF('DF raw data'!I190="","",'DF raw data'!I190) -> -238.5 | B190: =IF('DF raw data'!J190="","",'DF raw data'!J190) -> -5.19351e-05 | C190: =IF('DF raw data'!K190="","",'DF raw data'!K190) -> -0.000215094 | D190: =IF('DF raw data'!L190="","",'DF raw data'!L190) -> -4.87106e-05 | F190: -1.593056521e-05 | G190: 2.326718494e-05 | H190: -4.344570259e-06 | J190: -0.0001529605779 | K190: -0.001079673777 | L190: 0.001611970996 | M190: 0.05136323723 | N190: 5.605355465e-05
A191: =IF('DF raw data'!I191="","",'DF raw data'!I191) -> -238 | B191: =IF('DF raw data'!J191="","",'DF raw data'!J191) -> -4.24441e-05 | C191: =IF('DF raw data'!K191="","",'DF raw data'!K191) -> -0.000217414 | D191: =IF('DF raw data'!L191="","",'DF raw data'!L191) -> -4.60205e-05 | F191: -6.393144728e-06 | G191: 2.093583782e-05 | H191: -1.64131298e-06 | J191: -0.0001561571503 | K191: -0.001157752352 | L191: 0.001622438915 | M191: 0.05217445669 | N191: 5.73819012e-05
A192: =IF('DF raw data'!I192="","",'DF raw data'!I192) -> -237.5 | B192: =IF('DF raw data'!J192="","",'DF raw data'!J192) -> -4.59659e-05 | C192: =IF('DF raw data'!K192="","",'DF raw data'!K192) -> -0.000220921 | D192: =IF('DF raw data'!L192="","",'DF raw data'!L192) -> -5.51998e-05 | F192: -9.932169852e-06 | G192: 1.741168508e-05 | H192: -1.086550894e-05 | J192: -0.0001611232352 | K192: -0.00123831397 | L192: 0.001631144757 | M192: 0.05299002906 | N192: 5.872519816e-05
A193: =IF('DF raw data'!I193="","",'DF raw data'!I193) -> -237 | B193: =IF('DF raw data'!J193="","",'DF raw data'!J193) -> -4.48192e-05 | C193: =IF('DF raw data'!K193="","",'DF raw data'!K193) -> -0.000214095 | D193: =IF('DF raw data'!L193="","",'DF raw data'!L193) -> -4.3076e-05 | F193: -8.779861342e-06 | G193: 2.427107105e-05 | H193: 1.31758857e-06 | J193: -0.0001655131659 | K193: -0.001321070553 | L193: 0.001643280293 | M193: 0.05381166921 | N193: 6.008908052e-05
A194: =IF('DF raw data'!I194="","",'DF raw data'!I194) -> -236.5 | B194: =IF('DF raw data'!J194="","",'DF raw data'!J194) -> -4.28837e-05 | C194: =IF('DF raw data'!K194="","",'DF raw data'!K194) -> -0.000223526 | D194: =IF('DF raw data'!L194="","",'DF raw data'!L194) -> -6.02629e-05 | F194: -6.834894812e-06 | G194: 1.479394403e-05 | H194: -1.595337256e-05 | J194: -0.0001689306133 | K194: -0.001405535859 | L194: 0.001650677265 | M194: 0.05463700784 | N194: 6.146571701e-05
A195: =IF('DF raw data'!I195="","",'DF raw data'!I195) -> -236 | B195: =IF('DF raw data'!J195="","",'DF raw data'!J195) -> -6.29102e-05 | C195: =IF('DF raw data'!K195="","",'DF raw data'!K195) -> -0.000232007 | D195: =IF('DF raw data'!L195="","",'DF raw data'!L195) -> -3.72773e-05 | F195: =(1-$G$1*($B$54-$G$2))*(B195-F$5) -> -2.695934442e-05 | G195: =(1-$G$1*($B$54-$G$2))*(C195-G$5) -> 6.271463457e-06 | H195: =(1-$G$1*($B$54-$G$2))*(D195-H$5) -> 7.144650011e-06 | J195: -0.0001824102855 | K195: -0.001496741002 | L195: 0.001653812997 | M195: 0.05546391434 | N195: 6.284990248e-05
A196: =IF('DF raw data'!I196="","",'DF raw data'!I196) -> -235.5 | B196: =IF('DF raw data'!J196="","",'DF raw data'!J196) -> -5.71201e-05 | C196: =IF('DF raw data'!K196="","",'DF raw data'!K196) -> -0.00022485 | D196: =IF('DF raw data'!L196="","",'DF raw data'!L196) -> -6.45781e-05 | F196: -2.114092504e-05 | G196: 1.346346834e-05 | H196: -2.02896782e-05 | J196: =F196*$G$3+J195 -> -0.000192980748 | K196: =J196*$G$3+K195 -> -0.001593231376 | L196: =G196*$G$3+L195 -> 0.001660544731 | M196: =L196*$G$3+M195 -> 0.05629418671 | N196: =(J196^2+L196^2)*$G$3+N195 -> 6.424722767e-05
A197: =IF('DF raw data'!I197="","",'DF raw data'!I197) -> -235 | B197: =IF('DF raw data'!J197="","",'DF raw data'!J197) -> -4.72522e-05 | C197: =IF('DF raw data'!K197="","",'DF raw data'!K197) -> -0.000218257 | D197: =IF('DF raw data'!L197="","",'DF raw data'!L197) -> -4.97317e-05 | F197: -1.122476115e-05 | G197: 2.008871471e-05 | H197: -5.370664459e-06 | J197: -0.0001985931286 | K197: -0.00169252794 | L197: 0.001670589088 | M197: 0.05712948125 | N197: 6.566238124e-05
A198: =IF('DF raw data'!I198="","",'DF raw data'!I198) -> -234.5 | B198: =IF('DF raw data'!J198="","",'DF raw data'!J198) -> -4.39691e-05 | C198: =IF('DF raw data'!K198="","",'DF raw data'!K198) -> -0.000219138 | D198: =IF('DF raw data'!L198="","",'DF raw data'!L198) -> -6.81357e-05 | F198: -7.925603503e-06 | G198: 1.920340574e-05 | H198: -2.386467842e-05 | J198: -0.0002025559303 | K198: -0.001793805905 | L198: 0.001680190791 | M198: 0.05796957665 | N198: 6.709441624e-05
A199: =IF('DF raw data'!I199="","",'DF raw data'!I199) -> -234 | B199: =IF('DF raw data'!J199="","",'DF raw data'!J199) -> -5.34055e-05 | C199: =IF('DF raw data'!K199="","",'DF raw data'!K199) -> -0.000220129 | D199: =IF('DF raw data'!L199="","",'DF raw data'!L199) -> -5.58168e-05 | F199: -1.740815694e-05 | G199: 1.820755876e-05 | H199: -1.148552668e-05 | J199: -0.0002112600088 | K199: -0.00189943591 | L199: 0.00168929457 | M199: 0.05881422393 | N199: 6.85435897e-05
A200: =IF('DF raw data'!I200="","",'DF raw data'!I200) -> -233.5 | B200: =IF('DF raw data'!J200="","",'DF raw data'!J200) -> -4.07665e-05 | C200: =IF('DF raw data'!K200="","",'DF raw data'!K200) -> -0.000214075 | D200: =IF('DF raw data'!L200="","",'DF raw data'!L200) -> -6.14588e-05 | F200: -4.707339586e-06 | G200: 2.429116887e-05 | H200: -1.715512171e-05 | J200: -0.0002136136786 | K200: -0.002006242749 | L200: 0.001701440155 | M200: 0.05966494401 | N200: 7.001385441e-05
... 1079 more rows

Sheet 30 mm
A1: =IF('DF raw data'!M1="","",'DF raw data'!M1) -> Number of header lines | B1: =IF('DF raw data'!N1="","",'DF raw data'!N1) -> 54 | C1: =IF('DF raw data'!C1="","",'DF raw data'!C1) ->  | D1: =IF('DF raw data'!D1="","",'DF raw data'!D1) ->  | F1: T_coeff | G1: -0.00073 | H1: /degC | J1: IBy total | K1: =J1267*1000 -> 7.49007176 | L1: muTm | M1: =L1267*1000 -> 4.555534122 | R1: DF ref | S1: 1
A2: =IF('DF raw data'!M2="","",'DF raw data'!M2) -> Measured by | B2: =IF('DF raw data'!N2="","",'DF raw data'!N2) -> Danfysik | C2: =IF('DF raw data'!C2="","",'DF raw data'!C2) ->  | D2: =IF('DF raw data'!D2="","",'DF raw data'!D2) ->  | F2: Tcorr | G2: 20 | H2: degC | J2: JBy total | K2: =K1267 -> 1.998617173 | L2: muTm^2 | M2: =M1267 -> 2.616355063
A3: =IF('DF raw data'!M3="","",'DF raw data'!M3) -> Operator | B3: =IF('DF raw data'!N3="","",'DF raw data'!N3) -> PMHA | C3: =IF('DF raw data'!C3="","",'DF raw data'!C3) ->  | D3: =IF('DF raw data'!D3="","",'DF raw data'!D3) ->  | F3: Step | G3: =A68-A67 -> 0.5 | H3: mm | J3: PI total | K3: =N1267 -> 2465.152804 | L3: T^2mm^3
A4: =IF('DF raw data'!M4="","",'DF raw data'!M4) -> Data-time | B4: =IF('DF raw data'!N4="","",'DF raw data'!N4) -> 01-08-2024, 12:01:46 | C4: =IF('DF raw data'!C4="","",'DF raw data'!C4) ->  | D4: =IF('DF raw data'!D4="","",'DF raw data'!D4) -> 
A5: =IF('DF raw data'!M5="","",'DF raw data'!M5) -> Project | B5: =IF('DF raw data'!N5="","",'DF raw data'!N5) -> 504314 | C5: =IF('DF raw data'!C5="","",'DF raw data'!C5) ->  | D5: Bamb avr | F5: =(AVERAGE(B67:B107) + AVERAGE(B1227:B1267))/2 -> -2.917331098e-05 | G5: =(AVERAGE(C67:C107) + AVERAGE(C1227:C1267))/2 -> -0.0002383088659 | H5: =(AVERAGE(D67:D107) + AVERAGE(D1227:D1267))/2 -> -4.275363902e-05
A6: =IF('DF raw data'!M6="","",'DF raw data'!M6) -> Magnet type | B6: =IF('DF raw data'!N6="","",'DF raw data'!N6) -> Dipole | C6: =IF('DF raw data'!C6="","",'DF raw data'!C6) -> 
A7: =IF('DF raw data'!M7="","",'DF raw data'!M7) -> Magnet nr. | B7: =IF('DF raw data'!N7="","",'DF raw data'!N7) -> 2410091 | C7: =IF('DF raw data'!C7="","",'DF raw data'!C7) -> 
A8: =IF('DF raw data'!M8="","",'DF raw data'!M8) -> Meas. number | B8: =IF('DF raw data'!N8="","",'DF raw data'!N8) -> 183 | C8: =IF('DF raw data'!C8="","",'DF raw data'!C8) -> 
A9: =IF('DF raw data'!M9="","",'DF raw data'!M9) -> Add. info | B9: =IF('DF raw data'!N9="","",'DF raw data'!N9) -> X-alignment scan 3) | C9: =IF('DF raw data'!C9="","",'DF raw data'!C9) ->  | D9: =IF('DF raw data'!D9="","",'DF raw data'!D9) -> 
A10: =IF('DF raw data'!M10="","",'DF raw data'!M10) -> Device | B10: =IF('DF raw data'!N10="","",'DF raw data'!N10) -> (HAL) HALL-PROBE | C10: =IF('DF raw data'!C10="","",'DF raw data'!C10) ->  | D10: =IF('DF raw data'!D10="","",'DF raw data'!D10) -> 
A11: =IF('DF raw data'!M11="","",'DF raw data'!M11) -> Goal | B11: =IF('DF raw data'!N11="","",'DF raw data'!N11) -> (AXI) AXis Integral (Line, EFB) | C11: =IF('DF raw data'!C11="","",'DF raw data'!C11) ->  | D11: =IF('DF raw data'!D11="","",'DF raw data'!D11) -> 
A12: =IF('DF raw data'!M12="","",'DF raw data'!M12) -> Power supply mode | B12: =IF('DF raw data'!N12="","",'DF raw data'!N12) -> (PM) Permanent Magnet (no MPS in use) | C12: =IF('DF raw data'!C12="","",'DF raw data'!C12) ->  | D12: =IF('DF raw data'!D12="","",'DF raw data'!D12) -> 
A13: =IF('DF raw data'!M13="","",'DF raw data'!M13) -> Data format | B13: =IF('DF raw data'!N13="","",'DF raw data'!N13) -> Raw data text file | C13: =IF('DF raw data'!C13="","",'DF raw data'!C13) ->  | D13: =IF('DF raw data'!D13="","",'DF raw data'!D13) -> 
A14: =IF('DF raw data'!M14="","",'DF raw data'!M14) -> Direction of the pos. x-axis | B14: =IF('DF raw data'!N14="","",'DF raw data'!N14) -> See test program | C14: =IF('DF raw data'!C14="","",'DF raw data'!C14) ->  | D14: =IF('DF raw data'!D14="","",'DF raw data'!D14) -> 
A15: =IF('DF raw data'!M15="","",'DF raw data'!M15) -> Direction of the pos. y-axis | B15: =IF('DF raw data'!N15="","",'DF raw data'!N15) -> Vertical up | C15: =IF('DF raw data'!C15="","",'DF raw data'!C15) ->  | D15: =IF('DF raw data'!D15="","",'DF raw data'!D15) -> 
A16: =IF('DF raw data'!M16="","",'DF raw data'!M16) -> Direction of the pos. z-axis | B16: =IF('DF raw data'!N16="","",'DF raw data'!N16) -> See test program | C16: =IF('DF raw data'!C16="","",'DF raw data'!C16) ->  | D16: =IF('DF raw data'!D16="","",'DF raw data'!D16) -> 
A17: =IF('DF raw data'!M17="","",'DF raw data'!M17) -> Mapper type | B17: =IF('DF raw data'!N17="","",'DF raw data'!N17) -> Precision Hall Mapper | C17: =IF('DF raw data'!C17="","",'DF raw data'!C17) ->  | D17: =IF('DF raw data'!D17="","",'DF raw data'!D17) -> 
A18: =IF('DF raw data'!M18="","",'DF raw data'!M18) -> Mapper Danfysik Reg. Number | B18: =IF('DF raw data'!N18="","",'DF raw data'!N18) -> 2033-D (mapper 1) | C18: =IF('DF raw data'!C18="","",'DF raw data'!C18) ->  | D18: =IF('DF raw data'!D18="","",'DF raw data'!D18) -> 
A19: =IF('DF raw data'!M19="","",'DF raw data'!M19) -> Measurement consept | B19: =IF('DF raw data'!N19="","",'DF raw data'!N19) -> Square line grid | C19: =IF('DF raw data'!C19="","",'DF raw data'!C19) ->  | D19: =IF('DF raw data'!D19="","",'DF raw data'!D19) -> 
A20: =IF('DF raw data'!M20="","",'DF raw data'!M20) -> Mode | B20: =IF('DF raw data'!N20="","",'DF raw data'!N20) -> On-the-fly measurement | C20: =IF('DF raw data'!C20="","",'DF raw data'!C20) ->  | D20: =IF('DF raw data'!D20="","",'DF raw data'!D20) -> 
A21: =IF('DF raw data'!M21="","",'DF raw data'!M21) ->  | B21: =IF('DF raw data'!N21="","",'DF raw data'!N21) ->  | C21: =IF('DF raw data'!C21="","",'DF raw data'!C21) ->  | D21: =IF('DF raw data'!D21="","",'DF raw data'!D21) -> 
A22: =IF('DF raw data'!M22="","",'DF raw data'!M22) -> Probe Name | B22: =IF('DF raw data'!N22="","",'DF raw data'!N22) -> ID12_By | C22: =IF('DF raw data'!C22="","",'DF raw data'!C22) ->  | D22: =IF('DF raw data'!D22="","",'DF raw data'!D22) -> 
A23: =IF('DF raw data'!M23="","",'DF raw data'!M23) -> Probe Type | B23: =IF('DF raw data'!N23="","",'DF raw data'!N23) -> DF_ID_3D_Bxyz | C23: =IF('DF raw data'!C23="","",'DF raw data'!C23) ->  | D23: =IF('DF raw data'!D23="","",'DF raw data'!D23) -> 
A24: =IF('DF raw data'!M24="","",'DF raw data'!M24) -> Probe Danfysik Reg. Number | B24: =IF('DF raw data'!N24="","",'DF raw data'!N24) -> 2277 | C24: =IF('DF raw data'!C24="","",'DF raw data'!C24) ->  | D24: =IF('DF raw data'!D24="","",'DF raw data'!D24) -> 
A25: =IF('DF raw data'!M25="","",'DF raw data'!M25) -> Probe Axis | B25: =IF('DF raw data'!N25="","",'DF raw data'!N25) -> By | C25: =IF('DF raw data'!C25="","",'DF raw data'!C25) ->  | D25: =IF('DF raw data'!D25="","",'DF raw data'!D25) -> 
A26: =IF('DF raw data'!M26="","",'DF raw data'!M26) -> Probe Current Supply | B26: =IF('DF raw data'!N26="","",'DF raw data'!N26) -> 1825-D | C26: =IF('DF raw data'!C26="","",'DF raw data'!C26) ->  | D26: =IF('DF raw data'!D26="","",'DF raw data'!D26) -> 
A27: =IF('DF raw data'!M27="","",'DF raw data'!M27) -> Probe Gain Correction | B27: =IF('DF raw data'!N27="","",'DF raw data'!N27) -> 0.99613 | C27: =IF('DF raw data'!C27="","",'DF raw data'!C27) ->  | D27: =IF('DF raw data'!D27="","",'DF raw data'!D27) -> 
A28: =IF('DF raw data'!M28="","",'DF raw data'!M28) -> Probe Offset Correction | B28: =IF('DF raw data'!N28="","",'DF raw data'!N28) -> 0.0027562 | C28: =IF('DF raw data'!C28="","",'DF raw data'!C28) ->  | D28: =IF('DF raw data'!D28="","",'DF raw data'!D28) -> 
A29: =IF('DF raw data'!M29="","",'DF raw data'!M29) -> DVM Number | B29: =IF('DF raw data'!N29="","",'DF raw data'!N29) -> 2 | C29: =IF('DF raw data'!C29="","",'DF raw data'!C29) ->  | D29: =IF('DF raw data'!D29="","",'DF raw data'!D29) -> 
A30: =IF('DF raw data'!M30="","",'DF raw data'!M30) -> DVM Type | B30: =IF('DF raw data'!N30="","",'DF raw data'!N30) -> K2701 | C30: =IF('DF raw data'!C30="","",'DF raw data'!C30) ->  | D30: =IF('DF raw data'!D30="","",'DF raw data'!D30) -> 
A31: =IF('DF raw data'!M31="","",'DF raw data'!M31) -> DVM Danfysik Reg. Number | B31: =IF('DF raw data'!N31="","",'DF raw data'!N31) -> 1743-D | C31: =IF('DF raw data'!C31="","",'DF raw data'!C31) ->  | D31: =IF('DF raw data'!D31="","",'DF raw data'!D31) -> 
A32: =IF('DF raw data'!M32="","",'DF raw data'!M32) -> Probe Name | B32: =IF('DF raw data'!N32="","",'DF raw data'!N32) -> ID12_Bx | C32: =IF('DF raw data'!C32="","",'DF raw data'!C32) ->  | D32: =IF('DF raw data'!D32="","",'DF raw data'!D32) -> 
A33: =IF('DF raw data'!M33="","",'DF raw data'!M33) -> Probe Type | B33: =IF('DF raw data'!N33="","",'DF raw data'!N33) -> DF_ID_3D_Bxyz | C33: =IF('DF raw data'!C33="","",'DF raw data'!C33) ->  | D33: =IF('DF raw data'!D33="","",'DF raw data'!D33) -> 
A34: =IF('DF raw data'!M34="","",'DF raw data'!M34) -> Probe Danfysik Reg. Number | B34: =IF('DF raw data'!N34="","",'DF raw data'!N34) -> 2277 | C34: =IF('DF raw data'!C34="","",'DF raw data'!C34) ->  | D34: =IF('DF raw data'!D34="","",'DF raw data'!D34) -> 
A35: =IF('DF raw data'!M35="","",'DF raw data'!M35) -> Probe Axis | B35: =IF('DF raw data'!N35="","",'DF raw data'!N35) -> Bx | C35: =IF('DF raw data'!C35="","",'DF raw data'!C35) ->  | D35: =IF('DF raw data'!D35="","",'DF raw data'!D35) -> 
A36: =IF('DF raw data'!M36="","",'DF raw data'!M36) -> Probe Current Supply | B36: =IF('DF raw data'!N36="","",'DF raw data'!N36) -> 1825-D | C36: =IF('DF raw data'!C36="","",'DF raw data'!C36) ->  | D36: =IF('DF raw data'!D36="","",'DF raw data'!D36) -> 
A37: =IF('DF raw data'!M37="","",'DF raw data'!M37) -> Probe Gain Correction | B37: =IF('DF raw data'!N37="","",'DF raw data'!N37) -> 1 | C37: =IF('DF raw data'!C37="","",'DF raw data'!C37) ->  | D37: =IF('DF raw data'!D37="","",'DF raw data'!D37) -> 
A38: =IF('DF raw data'!M38="","",'DF raw data'!M38) -> Probe Offset Correction | B38: =IF('DF raw data'!N38="","",'DF raw data'!N38) -> -0.17564 | C38: =IF('DF raw data'!C38="","",'DF raw data'!C38) ->  | D38: =IF('DF raw data'!D38="","",'DF raw data'!D38) -> 
A39: =IF('DF raw data'!M39="","",'DF raw data'!M39) -> DVM Number | B39: =IF('DF raw data'!N39="","",'DF raw data'!N39) -> 3 | C39: =IF('DF raw data'!C39="","",'DF raw data'!C39) ->  | D39: =IF('DF raw data'!D39="","",'DF raw data'!D39) -> 
A40: =IF('DF raw data'!M40="","",'DF raw data'!M40) -> DVM Type | B40: =IF('DF raw data'!N40="","",'DF raw data'!N40) -> K2701 | C40: =IF('DF raw data'!C40="","",'DF raw data'!C40) ->  | D40: =IF('DF raw data'!D40="","",'DF raw data'!D40) -> 
A41: =IF('DF raw data'!M41="","",'DF raw data'!M41) -> DVM Danfysik Reg. Number | B41: =IF('DF raw data'!N41="","",'DF raw data'!N41) -> 1744-D | C41: =IF('DF raw data'!C41="","",'DF raw data'!C41) ->  | D41: =IF('DF raw data'!D41="","",'DF raw data'!D41) -> 
A42: =IF('DF raw data'!M42="","",'DF raw data'!M42) -> Probe Name | B42: =IF('DF raw data'!N42="","",'DF raw data'!N42) -> ID12_Bz | C42: =IF('DF raw data'!C42="","",'DF raw data'!C42) ->  | D42: =IF('DF raw data'!D42="","",'DF raw data'!D42) -> 
A43: =IF('DF raw data'!M43="","",'DF raw data'!M43) -> Probe Type | B43: =IF('DF raw data'!N43="","",'DF raw data'!N43) -> DF_ID_3D_Bxyz | C43: =IF('DF raw data'!C43="","",'DF raw data'!C43) ->  | D43: =IF('DF raw data'!D43="","",'DF raw data'!D43) -> 
A44: =IF('DF raw data'!M44="","",'DF raw data'!M44) -> Probe Danfysik Reg. Number | B44: =IF('DF raw data'!N44="","",'DF raw data'!N44) -> 2277 | C44: =IF('DF raw data'!C44="","",'DF raw data'!C44) ->  | D44: =IF('DF raw data'!D44="","",'DF raw data'!D44) -> 
A45: =IF('DF raw data'!M45="","",'DF raw data'!M45) -> Probe Axis | B45: =IF('DF raw data'!N45="","",'DF raw data'!N45) -> Bz | C45: =IF('DF raw data'!C45="","",'DF raw data'!C45) ->  | D45: =IF('DF raw data'!D45="","",'DF raw data'!D45) -> 
A46: =IF('DF raw data'!M46="","",'DF raw data'!M46) -> Probe Current Supply | B46: =IF('DF raw data'!N46="","",'DF raw data'!N46) -> 1825-D | C46: =IF('DF raw data'!C46="","",'DF raw data'!C46) ->  | D46: =IF('DF raw data'!D46="","",'DF raw data'!D46) -> 
A47: =IF('DF raw data'!M47="","",'DF raw data'!M47) -> Probe Gain Correction | B47: =IF('DF raw data'!N47="","",'DF raw data'!N47) -> 1 | C47: =IF('DF raw data'!C47="","",'DF raw data'!C47) ->  | D47: =IF('DF raw data'!D47="","",'DF raw data'!D47) -> 
A48: =IF('DF raw data'!M48="","",'DF raw data'!M48) -> Probe Offset Correction | B48: =IF('DF raw data'!N48="","",'DF raw data'!N48) -> 0.0073401 | C48: =IF('DF raw data'!C48="","",'DF raw data'!C48) ->  | D48: =IF('DF raw data'!D48="","",'DF raw data'!D48) -> 
A49: =IF('DF raw data'!M49="","",'DF raw data'!M49) -> DVM Number | B49: =IF('DF raw data'!N49="","",'DF raw data'!N49) -> 8 | C49: =IF('DF raw data'!C49="","",'DF raw data'!C49) ->  | D49: =IF('DF raw data'!D49="","",'DF raw data'!D49) -> 
A50: =IF('DF raw data'!M50="","",'DF raw data'!M50) -> DVM Type | B50: =IF('DF raw data'!N50="","",'DF raw data'!N50) -> K2700 | C50: =IF('DF raw data'!C50="","",'DF raw data'!C50) ->  | D50: =IF('DF raw data'!D50="","",'DF raw data'!D50) -> 
A51: =IF('DF raw data'!M51="","",'DF raw data'!M51) -> DVM Danfysik Reg. Number | B51: =IF('DF raw data'!N51="","",'DF raw data'!N51) -> 1756-D | C51: =IF('DF raw data'!C51="","",'DF raw data'!C51) ->  | D51: =IF('DF raw data'!D51="","",'DF raw data'!D51) -> 
A52: =IF('DF raw data'!M52="","",'DF raw data'!M52) -> NTC voltage | B52: =IF('DF raw data'!N52="","",'DF raw data'!N52) -> 0.39202 | C52: =IF('DF raw data'!C52="","",'DF raw data'!C52) ->  | D52: =IF('DF raw data'!D52="","",'DF raw data'!D52) -> 
A53: =IF('DF raw data'!M53="","",'DF raw data'!M53) -> PS-Gap: | B53: =IF('DF raw data'!N53="","",'DF raw data'!N53) -> 30 | C53: =IF('DF raw data'!C53="","",'DF raw data'!C53) ->  | D53: =IF('DF raw data'!D53="","",'DF raw data'!D53) -> 
A54: =IF('DF raw data'!M54="","",'DF raw data'!M54) -> PS-Temperature: | B54: =IF('DF raw data'!N54="","",'DF raw data'!N54) -> 27 | C54: =IF('DF raw data'!C54="","",'DF raw data'!C54) ->  | D54: =IF('DF raw data'!D54="","",'DF raw data'!D54) -> 
A55: =IF('DF raw data'!M55="","",'DF raw data'!M55) -> PS-Encoder: | B55: =IF('DF raw data'!N55="","",'DF raw data'!N55) -> 39.9654 | C55: =IF('DF raw data'!C55="","",'DF raw data'!C55) ->  | D55: =IF('DF raw data'!D55="","",'DF raw data'!D55) -> 
A56: =IF('DF raw data'!M56="","",'DF raw data'!M56) ->  | B56: =IF('DF raw data'!N56="","",'DF raw data'!N56) -> 
A57: =IF('DF raw data'!M57="","",'DF raw data'!M57) -> Monitor-Index | B57: =IF('DF raw data'!N57="","",'DF raw data'!N57) -> [1,1,4]
A58: =IF('DF raw data'!M58="","",'DF raw data'!M58) ->  | B58: =IF('DF raw data'!N58="","",'DF raw data'!N58) -> 
A59: =IF('DF raw data'!M59="","",'DF raw data'!M59) -> Time [s] | B59: =IF('DF raw data'!N59="","",'DF raw data'!N59) -> Y [mm]
A60: =IF('DF raw data'!M60="","",'DF raw data'!M60) ->  | B60: =IF('DF raw data'!N60="","",'DF raw data'!N60) -> 
A61: =IF('DF raw data'!M61="","",'DF raw data'!M61) -> 207.5 | B61: =IF('DF raw data'!N61="","",'DF raw data'!N61) -> 31.06
A62: =IF('DF raw data'!M62="","",'DF raw data'!M62) ->  | B62: =IF('DF raw data'!N62="","",'DF raw data'!N62) -> 
A63: =IF('DF raw data'!M63="","",'DF raw data'!M63) -> Measurement-Index | B63: =IF('DF raw data'!N63="","",'DF raw data'!N63) -> [1,1,1201,2]
A64: =IF('DF raw data'!M64="","",'DF raw data'!M64) ->  | B64: =IF('DF raw data'!N64="","",'DF raw data'!N64) -> 
A65: =IF('DF raw data'!M65="","",'DF raw data'!M65) -> Z [mm] | B65: =IF('DF raw data'!N65="","",'DF raw data'!N65) -> By [T] | C65: =IF('DF raw data'!O65="","",'DF raw data'!O65) -> Bx [T] | D65: =IF('DF raw data'!P65="","",'DF raw data'!P65) -> Bz [T] | F65: By_corr | G65: Bx_corr | H65: Bz_corr | J65: Iy | K65: Jy | L65: Ix | M65: Jx | N65: PI
B66: =IF('DF raw data'!N66="","",'DF raw data'!N66) ->  | C66: =IF('DF raw data'!O66="","",'DF raw data'!O66) ->  | D66: =IF('DF raw data'!P66="","",'DF raw data'!P66) -> 
A67: =IF('DF raw data'!M67="","",'DF raw data'!M67) -> -300 | B67: =IF('DF raw data'!N67="","",'DF raw data'!N67) -> -2.73094e-05 | C67: =IF('DF raw data'!O67="","",'DF raw data'!O67) -> -0.000228556 | D67: =IF('DF raw data'!P67="","",'DF raw data'!P67) -> -5.6093e-05 | F67: =(1-$G$1*($B$54-$G$2))*(B67-F$5) -> 1.873435561e-06 | G67: =(1-$G$1*($B$54-$G$2))*(C67-G$5) -> 9.802702998e-06 | H67: =(1-$G$1*($B$54-$G$2))*(D67-H$5) -> -1.340752511e-05 | J67: =F67*$G$3+J66 -> 9.367177803e-07 | K67: =J67*$G$3+K66 -> 4.683588902e-07 | L67: =G67*$G$3+L66 -> 4.901351499e-06 | M67: =L67*$G$3+M66 -> 2.45067575e-06 | N67: =(J67^2+L67^2)*$G$3+N66 -> 1.245034336e-11
A68: =IF('DF raw data'!M68="","",'DF raw data'!M68) -> -299.5 | B68: =IF('DF raw data'!N68="","",'DF raw data'!N68) -> -2.30124e-05 | C68: =IF('DF raw data'!O68="","",'DF raw data'!O68) -> -0.000221143 | D68: =IF('DF raw data'!P68="","",'DF raw data'!P68) -> -5.66561e-05 | F68: 6.192393231e-06 | G68: 1.725358343e-05 | H68: -1.397350255e-05 | J68: =F68*$G$3+J67 -> 4.032914396e-06 | K68: =J68*$G$3+K67 -> 2.484816088e-06 | L68: =G68*$G$3+L67 -> 1.352814321e-05 | M68: =L68*$G$3+M67 -> 9.214747356e-06 | N68: =(J68^2+L68^2)*$G$3+N67 -> 1.12087872e-10
A69: =IF('DF raw data'!M69="","",'DF raw data'!M69) -> -299 | B69: =IF('DF raw data'!N69="","",'DF raw data'!N69) -> -2.64747e-05 | C69: =IF('DF raw data'!O69="","",'DF raw data'!O69) -> -0.000221567 | D69: =IF('DF raw data'!P69="","",'DF raw data'!P69) -> -5.77273e-05 | F69: 2.712400878e-06 | G69: 1.682741679e-05 | H69: -1.505017638e-05 | J69: 5.389114835e-06 | K69: 5.179373505e-06 | L69: 2.194185161e-05 | M69: 2.018567316e-05 | N69: 3.673315773e-10
A70: =IF('DF raw data'!M70="","",'DF raw data'!M70) -> -298.5 | B70: =IF('DF raw data'!N70="","",'DF raw data'!N70) -> -3.26311e-05 | C70: =IF('DF raw data'!O70="","",'DF raw data'!O70) -> -0.000227921 | D70: =IF('DF raw data'!P70="","",'DF raw data'!P70) -> -5.81436e-05 | F70: -3.475458326e-06 | G70: 1.044094785e-05 | H70: -1.546860368e-05 | J70: 3.651385671e-06 | K70: 7.005066341e-06 | L70: 2.716232553e-05 | M70: 3.376683593e-05 | N70: 7.428938501e-10
A71: =IF('DF raw data'!M71="","",'DF raw data'!M71) -> -298 | B71: =IF('DF raw data'!N71="","",'DF raw data'!N71) -> -4.38546e-05 | C71: =IF('DF raw data'!O71="","",'DF raw data'!O71) -> -0.000226096 | D71: =IF('DF raw data'!P71="","",'DF raw data'!P71) -> -5.73266e-05 | F71: -1.475631041e-05 | G71: 1.22752736e-05 | H71: -1.464742881e-05 | J71: -3.726769534e-06 | K71: 5.141681574e-06 | L71: 3.329996233e-05 | M71: 5.041681709e-05 | N71: 1.304282001e-09
A72: =IF('DF raw data'!M72="","",'DF raw data'!M72) -> -297.5 | B72: =IF('DF raw data'!N72="","",'DF raw data'!N72) -> -4.05207e-05 | C72: =IF('DF raw data'!O72="","",'DF raw data'!O72) -> -0.000220637 | D72: =IF('DF raw data'!P72="","",'DF raw data'!P72) -> -5.60763e-05 | F72: -1.140537418e-05 | G72: 1.776216909e-05 | H72: -1.339073977e-05 | J72: -9.429456625e-06 | K72: 4.269532611e-07 | L72: 4.218104687e-05 | M72: 7.150734053e-05 | N72: 2.238359685e-09
A73: =IF('DF raw data'!M73="","",'DF raw data'!M73) -> -297 | B73: =IF('DF raw data'!N73="","",'DF raw data'!N73) -> -3.68654e-05 | C73: =IF('DF raw data'!O73="","",'DF raw data'!O73) -> -0.00021667 | D73: =IF('DF raw data'!P73="","",'DF raw data'!P73) -> -5.55025e-05 | F73: -7.731395599e-06 | G73: 2.174944046e-05 | H73: -1.281400766e-05 | J73: -1.329515443e-05 | K73: -6.220623951e-06 | L73: 5.30557671e-05 | M73: 9.803522408e-05 | N73: 3.734197462e-09
A74: =IF('DF raw data'!M74="","",'DF raw data'!M74) -> -296.5 | B74: =IF('DF raw data'!N74="","",'DF raw data'!N74) -> -3.07729e-05 | C74: =IF('DF raw data'!O74="","",'DF raw data'!O74) -> -0.000218721 | D74: =IF('DF raw data'!P74="","",'DF raw data'!P74) -> -5.57796e-05 | F74: -1.607762924e-06 | G74: 1.968795985e-05 | H74: -1.309252364e-05 | J74: -1.409903589e-05 | K74: -1.327014189e-05 | L74: 6.289974703e-05 | M74: 0.0001294850976 | N74: 5.811777957e-09
A75: =IF('DF raw data'!M75="","",'DF raw data'!M75) -> -296 | B75: =IF('DF raw data'!N75="","",'DF raw data'!N75) -> -3.23118e-05 | C75: =IF('DF raw data'!O75="","",'DF raw data'!O75) -> -0.000221458 | D75: =IF('DF raw data'!P75="","",'DF raw data'!P75) -> -5.61948e-05 | F75: -3.154526703e-06 | G75: 1.693697378e-05 | H75: -1.350984531e-05 | J75: -1.567629924e-05 | K75: -2.110829151e-05 | L75: 7.136823392e-05 | M75: 0.0001651692146 | N75: 8.481363542e-09
A76: =IF('DF raw data'!M76="","",'DF raw data'!M76) -> -295.5 | B76: =IF('DF raw data'!N76="","",'DF raw data'!N76) -> -3.28247e-05 | C76: =IF('DF raw data'!O76="","",'DF raw data'!O76) -> -0.000223628 | D76: =IF('DF raw data'!P76="","",'DF raw data'!P76) -> -5.63913e-05 | F76: -3.670047622e-06 | G76: 1.475588508e-05 | H76: -1.370734942e-05 | J76: -1.751132305e-05 | K76: -2.986395304e-05 | L76: 7.874617646e-05 | M76: 0.0002045423028 | N76: 1.173516691e-08
A77: =IF('DF raw data'!M77="","",'DF raw data'!M77) -> -295 | B77: =IF('DF raw data'!N77="","",'DF raw data'!N77) -> -2.83353e-05 | C77: =IF('DF raw data'!O77="","",'DF raw data'!O77) -> -0.000221096 | D77: =IF('DF raw data'!P77="","",'DF raw data'!P77) -> -5.63911e-05 | F77: 8.422932117e-07 | G77: 1.73008236e-05 | H77: -1.37071484e-05 | J77: -1.709017644e-05 | K77: -3.840904126e-05 | L77: 8.739658825e-05 | M77: 0.0002482405969 | N77: 1.57002858e-08
A78: =IF('DF raw data'!M78="","",'DF raw data'!M78) -> -294.5 | B78: =IF('DF raw data'!N78="","",'DF raw data'!N78) -> -3.70575e-05 | C78: =IF('DF raw data'!O78="","",'DF raw data'!O78) -> -0.000220444 | D78: =IF('DF raw data'!P78="","",'DF raw data'!P78) -> -5.62639e-05 | F78: -7.92447723e-06 | G78: 1.795615532e-05 | H78: -1.357929841e-05 | J78: -2.105241506e-05 | K78: -4.893524879e-05 | L78: 9.637466591e-05 | M78: 0.0002964279299 | N78: 2.0565926e-08
A79: =IF('DF raw data'!M79="","",'DF raw data'!M79) -> -294 | B79: =IF('DF raw data'!N79="","",'DF raw data'!N79) -> -2.39743e-05 | C79: =IF('DF raw data'!O79="","",'DF raw data'!O79) -> -0.000225507 | D79: =IF('DF raw data'!P79="","",'DF raw data'!P79) -> -5.64311e-05 | F79: 5.225577922e-06 | G79: 1.286728339e-05 | H79: -1.37473528e-05 | J79: -1.84396261e-05 | K79: -5.815506184e-05 | L79: 0.0001028083076 | M79: 0.0003478320837 | N79: 2.602070996e-08
A80: =IF('DF raw data'!M80="","",'DF raw data'!M80) -> -293.5 | B80: =IF('DF raw data'!N80="","",'DF raw data'!N80) -> -3.39147e-05 | C80: =IF('DF raw data'!O80="","",'DF raw data'!O80) -> -0.000234716 | D80: =IF('DF raw data'!P80="","",'DF raw data'!P80) -> -5.65692e-05 | F80: -4.765617522e-06 | G80: 3.611225398e-06 | H80: -1.388615849e-05 | J80: -2.082243486e-05 | K80: -6.856627927e-05 | L80: 0.0001046139203 | M80: 0.0004001390438 | N80: 3.170953302e-08
A81: =IF('DF raw data'!M81="","",'DF raw data'!M81) -> -293 | B81: =IF('DF raw data'!N81="","",'DF raw data'!N81) -> -3.07726e-05 | C81: =IF('DF raw data'!O81="","",'DF raw data'!O81) -> -0.000231395 | D81: =IF('DF raw data'!P81="","",'DF raw data'!P81) -> -5.62964e-05 | F81: -1.607461391e-06 | G81: 6.949195708e-06 | H81: -1.361196448e-05 | J81: -2.162616556e-05 | K81: -7.937936205e-05 | L81: 0.0001080885182 | M81: 0.0004541833029 | N81: 3.778494242e-08
A82: =IF('DF raw data'!M82="","",'DF raw data'!M82) -> -292.5 | B82: =IF('DF raw data'!N82="","",'DF raw data'!N82) -> -3.23759e-05 | C82: =IF('DF raw data'!O82="","",'DF raw data'!O82) -> -0.000234169 | D82: =IF('DF raw data'!P82="","",'DF raw data'!P82) -> -5.60101e-05 | F82: -3.218954254e-06 | G82: 4.161020568e-06 | H82: -1.332420149e-05 | J82: -2.323564268e-05 | K82: -9.099718339e-05 | L82: 0.0001101690284 | M82: 0.0005092678171 | N82: 4.412349738e-08
A83: =IF('DF raw data'!M83="","",'DF raw data'!M83) -> -292 | B83: =IF('DF raw data'!N83="","",'DF raw data'!N83) -> -2.34613e-05 | C83: =IF('DF raw data'!O83="","",'DF raw data'!O83) -> -0.000234218 | D83: =IF('DF raw data'!P83="","",'DF raw data'!P83) -> -5.63553e-05 | F83: 5.741199352e-06 | G83: 4.111770178e-06 | H83: -1.367116546e-05 | J83: -2.036504301e-05 | K83: -0.0001011797049 | L83: 0.0001122249135 | M83: 0.0005653802739 | N83: 5.062808048e-08
A84: =IF('DF raw data'!M84="","",'DF raw data'!M84) -> -291.5 | B84: =IF('DF raw data'!N84="","",'DF raw data'!N84) -> -2.9108e-05 | C84: =IF('DF raw data'!O84="","",'DF raw data'!O84) -> -0.000234954 | D84: =IF('DF raw data'!P84="","",'DF raw data'!P84) -> -5.14806e-05 | F84: 6.56447147e-08 | G84: 3.372009218e-06 | H84: -8.771555746e-06 | J84: -2.033222065e-05 | K84: -0.0001113458152 | L84: 0.0001139109181 | M84: 0.000622335733 | N84: 5.732262871e-08
A85: =IF('DF raw data'!M85="","",'DF raw data'!M85) -> -291 | B85: =IF('DF raw data'!N85="","",'DF raw data'!N85) -> -3.41108e-05 | C85: =IF('DF raw data'!O85="","",'DF raw data'!O85) -> -0.00023181 | D85: =IF('DF raw data'!P85="","",'DF raw data'!P85) -> -5.10023e-05 | F85: -4.962719593e-06 | G85: 6.532075058e-06 | H85: -8.290811633e-06 | J85: -2.281358045e-05 | K85: -0.0001227526054 | L85: 0.0001171769557 | M85: 0.0006809242108 | N85: 6.444807791e-08
A86: =IF('DF raw data'!M86="","",'DF raw data'!M86) -> -290.5 | B86: =IF('DF raw data'!N86="","",'DF raw data'!N86) -> -2.28284e-05 | C86: =IF('DF raw data'!O86="","",'DF raw data'!O86) -> -0.00022747 | D86: =IF('DF raw data'!P86="","",'DF raw data'!P86) -> -4.3386e-05 | F86: 6.377333471e-06 | G86: 1.089425246e-05 | H86: -6.355923402e-07 | J86: -1.962491371e-05 | K86: -0.0001325650623 | L86: 0.0001226240819 | M86: 0.0007422362518 | N86: 7.215897926e-08
A87: =IF('DF raw data'!M87="","",'DF raw data'!M87) -> -290 | B87: =IF('DF raw data'!N87="","",'DF raw data'!N87) -> -2.43622e-05 | C87: =IF('DF raw data'!O87="","",'DF raw data'!O87) -> -0.000233325 | D87: =IF('DF raw data'!P87="","",'DF raw data'!P87) -> -5.16638e-05 | F87: 4.835695753e-06 | G87: 5.009333408e-06 | H87: -8.955691898e-06 | J87: -1.720706583e-05 | K87: -0.0001411685952 | L87: 0.0001251287486 | M87: 0.0008048006261 | N87: 8.013562268e-08
A88: =IF('DF raw data'!M88="","",'DF raw data'!M88) -> -289.5 | B88: =IF('DF raw data'!N88="","",'DF raw data'!N88) -> -2.8342e-05 | C88: =IF('DF raw data'!O88="","",'DF raw data'!O88) -> -0.000235307 | D88: =IF('DF raw data'!P88="","",'DF raw data'!P88) -> -4.61072e-05 | F88: 8.355589747e-07 | G88: 3.017205388e-06 | H88: -3.370697672e-06 | J88: -1.678928635e-05 | K88: -0.0001495632384 | L88: 0.0001266373513 | M88: 0.0008681193017 | N88: 8.829507212e-08
A89: =IF('DF raw data'!M89="","",'DF raw data'!M89) -> -289 | B89: =IF('DF raw data'!N89="","",'DF raw data'!N89) -> -1.87923e-05 | C89: =IF('DF raw data'!O89="","",'DF raw data'!O89) -> -0.000231768 | D89: =IF('DF raw data'!P89="","",'DF raw data'!P89) -> -3.67601e-05 | F89: 1.043405794e-05 | G89: 6.574289678e-06 | H89: 6.024166009e-06 | J89: -1.157225738e-05 | K89: -0.0001553493671 | L89: 0.0001299244961 | M89: 0.0009330815498 | N89: 9.680221804e-08
A90: =IF('DF raw data'!M90="","",'DF raw data'!M90) -> -288.5 | B90: =IF('DF raw data'!N90="","",'DF raw data'!N90) -> -4.34177e-05 | C90: =IF('DF raw data'!O90="","",'DF raw data'!O90) -> -0.000231487 | D90: =IF('DF raw data'!P90="","",'DF raw data'!P90) -> -3.90694e-05 | F90: -1.431717785e-05 | G90: 6.856725588e-06 | H90: 3.703065486e-06 | J90: -1.87308463e-05 | K90: -0.0001647147902 | L90: 0.0001333528589 | M90: 0.0009997579792 | N90: 1.058691328e-07
A91: =IF('DF raw data'!M91="","",'DF raw data'!M91) -> -288 | B91: =IF('DF raw data'!N91="","",'DF raw data'!N91) -> -2.01383e-05 | C91: =IF('DF raw data'!O91="","",'DF raw data'!O91) -> -0.000228183 | D91: =IF('DF raw data'!P91="","",'DF raw data'!P91) -> -3.813e-05 | F91: 9.081179882e-06 | G91: 1.017760903e-05 | H91: 4.64726582e-06 | J91: -1.419025636e-05 | K91: -0.0001718099184 | L91: 0.0001384416634 | M91: 0.001068978811 | N91: 1.155528616e-07
A92: =IF('DF raw data'!M92="","",'DF raw data'!M92) -> -287.5 | B92: =IF('DF raw data'!N92="","",'DF raw data'!N92) -> -3.65518e-05 | C92: =IF('DF raw data'!O92="","",'DF raw data'!O92) -> -0.00022203 | D92: =IF('DF raw data'!P92="","",'DF raw data'!P92) -> -4.48286e-05 | F92: -7.416193103e-06 | G92: 1.636205086e-05 | H92: -2.085564026e-06 | J92: -1.789835291e-05 | K92: -0.0001807590949 | L92: 0.0001466226889 | M92: 0.001142290155 | N92: 1.264621436e-07
A93: =IF('DF raw data'!M93="","",'DF raw data'!M93) -> -287 | B93: =IF('DF raw data'!N93="","",'DF raw data'!N93) -> -3.14858e-05 | C93: =IF('DF raw data'!O93="","",'DF raw data'!O93) -> -0.000229014 | D93: =IF('DF raw data'!P93="","",'DF raw data'!P93) -> -4.41388e-05 | F93: -2.324305843e-06 | G93: 9.342362618e-06 | H93: -1.392239148e-06 | J93: -1.906050583e-05 | K93: -0.0001902893478 | L93: 0.0001512938702 | M93: 0.00121793709 | N93: 1.380887126e-07
A94: =IF('DF raw data'!M94="","",'DF raw data'!M94) -> -286.5 | B94: =IF('DF raw data'!N94="","",'DF raw data'!N94) -> -2.28947e-05 | C94: =IF('DF raw data'!O94="","",'DF raw data'!O94) -> -0.00023293 | D94: =IF('DF raw data'!P94="","",'DF raw data'!P94) -> -4.02679e-05 | F94: 6.310694678e-06 | G94: 5.406351858e-06 | H94: 2.498441151e-06 | J94: -1.59051585e-05 | K94: -0.000198241927 | L94: 0.0001539970461 | M94: 0.001294935614 | N94: 1.500727447e-07
A95: =IF('DF raw data'!M95="","",'DF raw data'!M95) -> -286 | B95: =IF('DF raw data'!N95="","",'DF raw data'!N95) -> -2.89789e-05 | C95: =IF('DF raw data'!O95="","",'DF raw data'!O95) -> -0.000241076 | D95: =IF('DF raw data'!P95="","",'DF raw data'!P95) -> -5.2876e-05 | F95: 1.954044157e-07 | G95: -2.781274202e-06 | H95: -1.017408624e-05 | J95: -1.580745629e-05 | K95: -0.0002061456552 | L95: 0.000152606409 | M95: 0.001371238818 | N95: 1.618420406e-07
A96: =IF('DF raw data'!M96="","",'DF raw data'!M96) -> -285.5 | B96: =IF('DF raw data'!N96="","",'DF raw data'!N96) -> -3.59094e-05 | C96: =IF('DF raw data'!O96="","",'DF raw data'!O96) -> -0.000241333 | D96: =IF('DF raw data'!P96="","",'DF raw data'!P96) -> -4.653e-05 | F96: -6.770510439e-06 | G96: -3.039587472e-06 | H96: -3.79565818e-06 | J96: -1.919271151e-05 | K96: -0.0002157420109 | L96: 0.0001510866153 | M96: 0.001446782126 | N96: 1.734398034e-07
A97: =IF('DF raw data'!M97="","",'DF raw data'!M97) -> -285 | B97: =IF('DF raw data'!N97="","",'DF raw data'!N97) -> -3.79012e-05 | C97: =IF('DF raw data'!O97="","",'DF raw data'!O97) -> -0.000237888 | D97: =IF('DF raw data'!P97="","",'DF raw data'!P97) -> -4.09982e-05 | F97: -8.772488537e-06 | G97: 4.230164782e-07 | H97: 1.764409318e-06 | J97: -2.357895578e-05 | K97: -0.0002275314888 | L97: 0.0001512981235 | M97: 0.001522431187 | N97: 1.85163348e-07
A98: =IF('DF raw data'!M98="","",'DF raw data'!M98) -> -284.5 | B98: =IF('DF raw data'!N98="","",'DF raw data'!N98) -> -2.98857e-05 | C98: =IF('DF raw data'!O98="","",'DF raw data'!O98) -> -0.000238506 | D98: =IF('DF raw data'!P98="","",'DF raw data'!P98) -> -3.94e-05 | F98: -7.160293323e-07 | G98: -1.981415018e-07 | H98: 3.37077612e-06 | J98: -2.393697044e-05 | K98: -0.000239499974 | L98: 0.0001511990528 | M98: 0.001598030714 | N98: 1.968804141e-07
A99: =IF('DF raw data'!M99="","",'DF raw data'!M99) -> -284 | B99: =IF('DF raw data'!N99="","",'DF raw data'!N99) -> -3.51992e-05 | C99: =IF('DF raw data'!O99="","",'DF raw data'!O99) -> -0.00022803 | D99: =IF('DF raw data'!P99="","",'DF raw data'!P99) -> -5.37558e-05 | F99: -6.056681317e-06 | G99: 1.033139086e-05 | H99: -1.105838202e-05 | J99: -2.69653111e-05 | K99: -0.0002529826296 | L99: 0.0001563647482 | M99: 0.001676213088 | N99: 2.094689453e-07
A100: =IF('DF raw data'!M100="","",'DF raw data'!M100) -> -283.5 | B100: =IF('DF raw data'!N100="","",'DF raw data'!N100) -> -3.3214e-05 | C100: =IF('DF raw data'!O100="","",'DF raw data'!O100) -> -0.00022519 | D100: =IF('DF raw data'!P100="","",'DF raw data'!P100) -> -4.94306e-05 | F100: -4.061336945e-06 | G100: 1.318590326e-05 | H100: -6.711080246e-06 | J100: -2.899597957e-05 | K100: -0.0002674806194 | L100: 0.0001629576998 | M100: 0.001757691938 | N100: 2.231669347e-07
A101: =IF('DF raw data'!M101="","",'DF raw data'!M101) -> -283 | B101: =IF('DF raw data'!N101="","",'DF raw data'!N101) -> -3.0903e-05 | C101: =IF('DF raw data'!O101="","",'DF raw data'!O101) -> -0.000223919 | D101: =IF('DF raw data'!P101="","",'DF raw data'!P101) -> -5.29407e-05 | F101: -1.738527735e-06 | G101: 1.446339807e-05 | H101: -1.023911686e-05 | J101: -2.986524344e-05 | K101: -0.0002824132411 | L101: 0.0001701893989 | M101: 0.001842786637 | N101: 2.380951168e-07
A102: =IF('DF raw data'!M102="","",'DF raw data'!M102) -> -282.5 | B102: =IF('DF raw data'!N102="","",'DF raw data'!N102) -> -4.29018e-05 | C102: =IF('DF raw data'!O102="","",'DF raw data'!O102) -> -0.000223852 | D102: =IF('DF raw data'!P102="","",'DF raw data'!P102) -> -4.35877e-05 | F102: -1.37986416e-05 | G102: 1.453074044e-05 | H102: -8.383230272e-07 | J102: -3.676456424e-05 | K102: -0.0003007955232 | L102: 0.0001774547691 | M102: 0.001931514022 | N102: 2.545160309e-07
A103: =IF('DF raw data'!M103="","",'DF raw data'!M103) -> -282 | B103: =IF('DF raw data'!N103="","",'DF raw data'!N103) -> -3.91147e-05 | C103: =IF('DF raw data'!O103="","",'DF raw data'!O103) -> -0.000228253 | D103: =IF('DF raw data'!P103="","",'DF raw data'!P103) -> -4.84613e-05 | F103: -9.992189522e-06 | G103: 1.010725133e-05 | H103: -5.736827123e-06 | J103: -4.1760659e-05 | K103: -0.0003216758527 | L103: 0.0001825083947 | M103: 0.002022768219 | N103: 2.720426643e-07
A104: =IF('DF raw data'!M104="","",'DF raw data'!M104) -> -281.5 | B104: =IF('DF raw data'!N104="","",'DF raw data'!N104) -> -2.99454e-05 | C104: =IF('DF raw data'!O104="","",'DF raw data'!O104) -> -0.000226979 | D104: =IF('DF raw data'!P104="","",'DF raw data'!P104) -> -4.60491e-05 | F104: -7.760343993e-07 | G104: 1.138776147e-05 | H104: -3.312300781e-06 | J104: -4.21486762e-05 | K104: -0.0003427501908 | L104: 0.0001882022755 | M104: 0.002116869357 | N104: 2.90640968e-07
A105: =IF('DF raw data'!M105="","",'DF raw data'!M105) -> -281 | B105: =IF('DF raw data'!N105="","",'DF raw data'!N105) -> -3.34061e-05 | C105: =IF('DF raw data'!O105="","",'DF raw data'!O105) -> -0.000230656 | D105: =IF('DF raw data'!P105="","",'DF raw data'!P105) -> -4.97046e-05 | F105: -4.254418576e-06 | G105: 7.691971998e-06 | H105: -6.986480386e-06 | J105: -4.427588549e-05 | K105: -0.0003648881336 | L105: 0.0001920482615 | M105: 0.002212893488 | N105: 3.100624124e-07
A106: =IF('DF raw data'!M106="","",'DF raw data'!M106) -> -280.5 | B106: =IF('DF raw data'!N106="","",'DF raw data'!N106) -> -3.22552e-05 | C106: =IF('DF raw data'!O106="","",'DF raw data'!O106) -> -0.000233362 | D106: =IF('DF raw data'!P106="","",'DF raw data'!P106) -> -4.4376e-05 | F106: -3.097637477e-06 | G106: 4.972144338e-06 | H106: -1.63065124e-06 | J106: -4.582470423e-05 | K106: -0.0003878004857 | L106: 0.0001945343336 | M106: 0.002310160654 | N106: 3.300341677e-07
A107: =IF('DF raw data'!M107="","",'DF raw data'!M107) -> -280 | B107: =IF('DF raw data'!N107="","",'DF raw data'!N107) -> -3.38492e-05 | C107: =IF('DF raw data'!O107="","",'DF raw data'!O107) -> -0.000231608 | D107: =IF('DF raw data'!P107="","",'DF raw data'!P107) -> -5.88996e-05 | F107: -4.699782817e-06 | G107: 6.735107278e-06 | H107: -1.622846684e-05 | J107: -4.817459564e-05 | K107: -0.0004118877835 | L107: 0.0001979018873 | M107: 0.002409111598 | N107: 3.50777142e-07
A108: =IF('DF raw data'!M108="","",'DF raw data'!M108) -> -279.5 | B108: =IF('DF raw data'!N108="","",'DF raw data'!N108) -> -3.03344e-05 | C108: =IF('DF raw data'!O108="","",'DF raw data'!O108) -> -0.000233963 | D108: =IF('DF raw data'!P108="","",'DF raw data'!P108) -> -3.96472e-05 | F108: -1.167022189e-06 | G108: 4.368073228e-06 | H108: 3.122312928e-06 | J108: -4.875810673e-05 | K108: -0.0004362668369 | L108: 0.0002000859239 | M108: 0.00250915456 | N108: 3.71983007e-07
A109: =IF('DF raw data'!M109="","",'DF raw data'!M109) -> -279 | B109: =IF('DF raw data'!N109="","",'DF raw data'!N109) -> -4.12348e-05 | C109: =IF('DF raw data'!O109="","",'DF raw data'!O109) -> -0.000226323 | D109: =IF('DF raw data'!P109="","",'DF raw data'!P109) -> -4.28719e-05 | F109: -1.212312323e-05 | G109: 1.204711363e-05 | H109: -1.188652892e-07 | J109: -5.481966835e-05 | K109: -0.000463676671 | L109: 0.0002061094807 | M109: 0.0026122093 | N109: 3.94726164e-07
A110: =IF('DF raw data'!M110="","",'DF raw data'!M110) -> -278.5 | B110: =IF('DF raw data'!N110="","",'DF raw data'!N110) -> -3.96346e-05 | C110: =IF('DF raw data'!O110="","",'DF raw data'!O110) -> -0.000225206 | D110: =IF('DF raw data'!P110="","",'DF raw data'!P110) -> -3.79109e-05 | F110: -1.051474621e-05 | G110: 1.31698215e-05 | H110: 4.867485421e-06 | J110: -6.007704146e-05 | K110: -0.0004937151918 | L110: 0.0002126943915 | M110: 0.002718556496 | N110: 4.191502415e-07
A111: =IF('DF raw data'!M111="","",'DF raw data'!M111) -> -278 | B111: =IF('DF raw data'!N111="","",'DF raw data'!N111) -> -2.9172e-05 | C111: =IF('DF raw data'!O111="","",'DF raw data'!O111) -> -0.000224662 | D111: =IF('DF raw data'!P111="","",'DF raw data'!P111) -> -5.19773e-05 | F111: 1.317674695e-09 | G111: 1.371660134e-05 | H111: -9.270793883e-06 | J111: -6.007638262e-05 | K111: -0.0005237533831 | L111: 0.0002195526921 | M111: 0.002828332842 | N111: 4.450565197e-07
A112: =IF('DF raw data'!M112="","",'DF raw data'!M112) -> -277.5 | B112: =IF('DF raw data'!N112="","",'DF raw data'!N112) -> -4.23209e-05 | C112: =IF('DF raw data'!O112="","",'DF raw data'!O112) -> -0.000229002 | D112: =IF('DF raw data'!P112="","",'DF raw data'!P112) -> -4.90224e-05 | F112: -1.32147732e-05 | G112: 9.354423938e-06 | H112: -6.300794344e-06 | J112: -6.668376922e-05 | K112: -0.0005570952677 | L112: 0.0002242299041 | M112: 0.002940447794 | N112: 4.724194072e-07
A113: =IF('DF raw data'!M113="","",'DF raw data'!M113) -> -277 | B113: =IF('DF raw data'!N113="","",'DF raw data'!N113) -> -3.34713e-05 | C113: =IF('DF raw data'!O113="","",'DF raw data'!O113) -> -0.000235849 | D113: =IF('DF raw data'!P113="","",'DF raw data'!P113) -> -4.82701e-05 | F113: -4.319951748e-06 | G113: 2.472435768e-06 | H113: -5.544650091e-06 | J113: -6.88437451e-05 | K113: -0.0005915171402 | L113: 0.000225466122 | M113: 0.003053180855 | N113: 5.002066239e-07
A114: =IF('DF raw data'!M114="","",'DF raw data'!M114) -> -276.5 | B114: =IF('DF raw data'!N114="","",'DF raw data'!N114) -> -3.91803e-05 | C114: =IF('DF raw data'!O114="","",'DF raw data'!O114) -> -0.000233224 | D114: =IF('DF raw data'!P114="","",'DF raw data'!P114) -> -4.64258e-05 | F114: -1.005812474e-05 | G114: 5.110849518e-06 | H114: -3.690925718e-06 | J114: -7.387280746e-05 | K114: -0.000628453544 | L114: 0.0002280215467 | M114: 0.003167191629 | N114: 5.289321326e-07
A115: =IF('DF raw data'!M115="","",'DF raw data'!M115) -> -276 | B115: =IF('DF raw data'!N115="","",'DF raw data'!N115) -> -3.83479e-05 | C115: =IF('DF raw data'!O115="","",'DF raw data'!O115) -> -0.000227335 | D115: =IF('DF raw data'!P115="","",'DF raw data'!P115) -> -4.4161e-05 | F115: -9.221471174e-06 | G115: 1.102994231e-05 | H115: -1.41455259e-06 | J115: -7.848354305e-05 | K115: -0.0006676953155 | L115: 0.0002335365179 | M115: 0.003283959888 | N115: 5.592816185e-07
A116: =IF('DF raw data'!M116="","",'DF raw data'!M116) -> -275.5 | B116: =IF('DF raw data'!N116="","",'DF raw data'!N116) -> -3.84764e-05 | C116: =IF('DF raw data'!O116="","",'DF raw data'!O116) -> -0.000228628 | D116: =IF('DF raw data'!P116="","",'DF raw data'!P116) -> -4.39222e-05 | F116: -9.350627809e-06 | G116: 9.730335078e-06 | H116: -1.174532322e-06 | J116: -8.315885696e-05 | K116: -0.000709274744 | L116: 0.0002384016854 | M116: 0.00340316073 | N116: 5.91156998e-07
A117: =IF('DF raw data'!M117="","",'DF raw data'!M117) -> -275 | B117: =IF('DF raw data'!N117="","",'DF raw data'!N117) -> -4.21262e-05 | C117: =IF('DF raw data'!O117="","",'DF raw data'!O117) -> -0.00022731 | D117: =IF('DF raw data'!P117="","",'DF raw data'!P117) -> -5.29004e-05 | F117: -1.301907829e-05 | G117: 1.105507006e-05 | H117: -1.019861092e-05 | J117: -8.96683961e-05 | K117: -0.000754108942 | L117: 0.0002439292205 | M117: 0.003525125341 | N117: 6.24927941e-07
A118: =IF('DF raw data'!M118="","",'DF raw data'!M118) -> -274.5 | B118: =IF('DF raw data'!N118="","",'DF raw data'!N118) -> -3.50787e-05 | C118: =IF('DF raw data'!O118="","",'DF raw data'!O118) -> -0.000234441 | D118: =IF('DF raw data'!P118="","",'DF raw data'!P118) -> -4.18029e-05 | F118: -5.935565562e-06 | G118: 3.887630648e-06 | H118: 9.555973008e-07 | J118: -9.263617888e-05 | K118: -0.0008004270315 | L118: 0.0002458730358 | M118: 0.003648061858 | N118: 6.594454467e-07
A119: =IF('DF raw data'!M119="","",'DF raw data'!M119) -> -274 | B119: =IF('DF raw data'!N119="","",'DF raw data'!N119) -> -2.84055e-05 | C119: =IF('DF raw data'!O119="","",'DF raw data'!O119) -> -0.000233619 | D119: =IF('DF raw data'!P119="","",'DF raw data'!P119) -> -4.7276e-05 | F119: 7.717344897e-07 | G119: 4.713831068e-06 | H119: -4.54547024e-06 | J119: -9.225031164e-05 | K119: -0.0008465521873 | L119: 0.0002482299513 | M119: 0.003772176834 | N119: 6.94509561e-07
A120: =IF('DF raw data'!M120="","",'DF raw data'!M120) -> -273.5 | B120: =IF('DF raw data'!N120="","",'DF raw data'!N120) -> -3.28253e-05 | C120: =IF('DF raw data'!O120="","",'DF raw data'!O120) -> -0.000233079 | D120: =IF('DF raw data'!P120="","",'DF raw data'!P120) -> -5.55363e-05 | F120: -3.670650688e-06 | G120: 5.256590468e-06 | H120: -1.284798037e-05 | J120: -9.408563698e-05 | K120: -0.0008935950058 | L120: 0.0002508582466 | M120: 0.003897605957 | N120: 7.304005445e-07
A121: =IF('DF raw data'!M121="","",'DF raw data'!M121) -> -273 | B121: =IF('DF raw data'!N121="","",'DF raw data'!N121) -> -2.90519e-05 | C121: =IF('DF raw data'!O121="","",'DF raw data'!O121) -> -0.000236487 | D121: =IF('DF raw data'!P121="","",'DF raw data'!P121) -> -3.93257e-05 | F121: 1.220313857e-07 | G121: 1.831175588e-06 | H121: 3.445455793e-06 | J121: -9.402462129e-05 | K121: -0.0009406073164 | L121: 0.0002517738343 | M121: 0.004023492875 | N121: 7.66515891e-07
A122: =IF('DF raw data'!M122="","",'DF raw data'!M122) -> -272.5 | B122: =IF('DF raw data'!N122="","",'DF raw data'!N122) -> -3.99489e-05 | C122: =IF('DF raw data'!O122="","",'DF raw data'!O122) -> -0.000240812 | D122: =IF('DF raw data'!P122="","",'DF raw data'!P122) -> -4.7922e-05 | F122: -1.083065228e-05 | G122: -2.515925162e-06 | H122: -5.1947713e-06 | J122: -9.943994743e-05 | K122: -0.0009903272901 | L122: 0.0002505158718 | M122: 0.00414875081 | N122: 8.028391436e-07
A123: =IF('DF raw data'!M123="","",'DF raw data'!M123) -> -272 | B123: =IF('DF raw data'!N123="","",'DF raw data'!N123) -> -3.69976e-05 | C123: =IF('DF raw data'!O123="","",'DF raw data'!O123) -> -0.000236167 | D123: =IF('DF raw data'!P123="","",'DF raw data'!P123) -> -4.94428e-05 | F123: -7.864271141e-06 | G123: 2.152810788e-06 | H123: -6.723342588e-06 | J123: -0.000103372083 | K123: -0.001042013332 | L123: 0.0002515922772 | M123: 0.004274546949 | N123: 8.398313743e-07
A124: =IF('DF raw data'!M124="","",'DF raw data'!M124) -> -271.5 | B124: =IF('DF raw data'!N124="","",'DF raw data'!N124) -> -3.61615e-05 | C124: =IF('DF raw data'!O124="","",'DF raw data'!O124) -> -0.000229688 | D124: =IF('DF raw data'!P124="","",'DF raw data'!P124) -> -5.34177e-05 | F124: -7.02389867e-06 | G124: 8.664918478e-06 | H124: -1.071855433e-05 | J124: -0.0001068840323 | K124: -0.001095455348 | L124: 0.0002559247364 | M124: 0.004402509317 | N124: 8.782922079e-07
A125: =IF('DF raw data'!M125="","",'DF raw data'!M125) -> -271 | B125: =IF('DF raw data'!N125="","",'DF raw data'!N125) -> -4.52735e-05 | C125: =IF('DF raw data'!O125="","",'DF raw data'!O125) -> -0.000229547 | D125: =IF('DF raw data'!P125="","",'DF raw data'!P125) -> -4.54857e-05 | F125: -1.618246099e-05 | G125: 8.806638988e-06 | H125: -2.746021807e-06 | J125: -0.0001149752628 | K125: -0.001152942979 | L125: 0.0002603280559 | M125: 0.004532673345 | N125: 9.187872118e-07
A126: =IF('DF raw data'!M126="","",'DF raw data'!M126) -> -270.5 | B126: =IF('DF raw data'!N126="","",'DF raw data'!N126) -> -4.73275e-05 | C126: =IF('DF raw data'!O126="","",'DF raw data'!O126) -> -0.000231556 | D126: =IF('DF raw data'!P126="","",'DF raw data'!P126) -> -4.28373e-05 | F126: -1.824695693e-05 | G126: 6.787372998e-06 | H126: -8.40884832e-08 | J126: -0.0001240987413 | K126: -0.00121499235 | L126: 0.0002637217424 | M126: 0.004664534216 | N126: 9.612620393e-07
A127: =IF('DF raw data'!M127="","",'DF raw data'!M127) -> -270 | B127: =IF('DF raw data'!N127="","",'DF raw data'!N127) -> -2.94967e-05 | C127: =IF('DF raw data'!O127="","",'DF raw data'!O127) -> -0.000230467 | D127: =IF('DF raw data'!P127="","",'DF raw data'!P127) -> -4.55319e-05 | F127: -3.250415423e-07 | G127: 7.881937788e-06 | H127: -2.792457889e-06 | J127: -0.0001242612621 | K127: -0.001277122981 | L127: 0.0002676627113 | M127: 0.004798365572 | N127: 1.004804133e-06
A128: =IF('DF raw data'!M128="","",'DF raw data'!M128) -> -269.5 | B128: =IF('DF raw data'!N128="","",'DF raw data'!N128) -> -3.51981e-05 | C128: =IF('DF raw data'!O128="","",'DF raw data'!O128) -> -0.000224446 | D128: =IF('DF raw data'!P128="","",'DF raw data'!P128) -> -5.53764e-05 | F128: -6.055575696e-06 | G128: 1.39337051e-05 | H128: -1.268726328e-05 | J128: -0.0001272890499 | K128: -0.001340767506 | L128: 0.0002746295638 | M128: 0.004935680354 | N128: 1.050616083e-06
A129: =IF('DF raw data'!M129="","",'DF raw data'!M129) -> -269 | B129: =IF('DF raw data'!N129="","",'DF raw data'!N129) -> -3.47525e-05 | C129: =IF('DF raw data'!O129="","",'DF raw data'!O129) -> -0.000230753 | D129: =IF('DF raw data'!P129="","",'DF raw data'!P129) -> -5.05357e-05 | F129: -5.60769868e-06 | G129: 7.594476328e-06 | H129: -7.821827307e-06 | J129: -0.0001300928993 | K129: -0.001405813955 | L129: 0.000278426802 | M129: 0.005074893755 | N129: 1.097838906e-06
A130: =IF('DF raw data'!M130="","",'DF raw data'!M130) -> -268.5 | B130: =IF('DF raw data'!N130="","",'DF raw data'!N130) -> -3.28359e-05 | C130: =IF('DF raw data'!O130="","",'DF raw data'!O130) -> -0.0002279 | D130: =IF('DF raw data'!P130="","",'DF raw data'!P130) -> -3.92413e-05 | F130: -3.681304854e-06 | G130: 1.046205516e-05 | H130: 3.530287077e-06 | J130: -0.0001319335517 | K130: -0.001471780731 | L130: 0.0002836578296 | M130: 0.00521672267 | N130: 1.14677302e-06
A131: =IF('DF raw data'!M131="","",'DF raw data'!M131) -> -268 | B131: =IF('DF raw data'!N131="","",'DF raw data'!N131) -> -2.4946e-05 | C131: =IF('DF raw data'!O131="","",'DF raw data'!O131) -> -0.000229919 | D131: =IF('DF raw data'!P131="","",'DF raw data'!P131) -> -4.17144e-05 | F131: =(1-$G$1*($B$54-$G$2))*(B131-F$5) -> 4.248912535e-06 | G131: =(1-$G$1*($B$54-$G$2))*(C131-G$5) -> 8.432738068e-06 | H131: =(1-$G$1*($B$54-$G$2))*(D131-H$5) -> 1.044549536e-06 | J131: -0.0001298090954 | K131: -0.001536685279 | L131: 0.0002878741986 | M131: 0.005360659769 | N131: 1.196633997e-06
A132: =IF('DF raw data'!M132="","",'DF raw data'!M132) -> -267.5 | B132: =IF('DF raw data'!N132="","",'DF raw data'!N132) -> -3.99592e-05 | C132: =IF('DF raw data'!O132="","",'DF raw data'!O132) -> -0.000236203 | D132: =IF('DF raw data'!P132="","",'DF raw data'!P132) -> -3.20761e-05 | F132: -1.084100492e-05 | G132: 2.116626828e-06 | H132: 1.073210125e-05 | J132: =F132*$G$3+J131 -> -0.0001352295979 | K132: =J132*$G$3+K131 -> -0.001604300078 | L132: =G132*$G$3+L131 -> 0.000288932512 | M132: =L132*$G$3+M131 -> 0.005505126025 | N132: =(J132^2+L132^2)*$G$3+N131 -> 1.247518518e-06
A133: =IF('DF raw data'!M133="","",'DF raw data'!M133) -> -267 | B133: =IF('DF raw data'!N133="","",'DF raw data'!N133) -> -3.51529e-05 | C133: =IF('DF raw data'!O133="","",'DF raw data'!O133) -> -0.000231775 | D133: =IF('DF raw data'!P133="","",'DF raw data'!P133) -> -2.65056e-05 | F133: -6.010144724e-06 | G133: 6.567253908e-06 | H133: 1.63310665e-05 | J133: -0.0001382346702 | K133: -0.001673417413 | L133: 0.000292216139 | M133: 0.005651234095 | N133: 1.299768066e-06
A134: =IF('DF raw data'!M134="","",'DF raw data'!M134) -> -266.5 | B134: =IF('DF raw data'!N134="","",'DF raw data'!N134) -> -4.22582e-05 | C134: =IF('DF raw data'!O134="","",'DF raw data'!O134) -> -0.000229106 | D134: =IF('DF raw data'!P134="","",'DF raw data'!P134) -> -4.71137e-05 | F134: -1.315175281e-05 | G134: 9.249892498e-06 | H134: -4.382340887e-06 | J134: -0.0001448105466 | K134: -0.001745822686 | L134: 0.0002968410852 | M134: 0.005799654637 | N134: 1.354310428e-06
A135: =IF('DF raw data'!M135="","",'DF raw data'!M135) -> -266 | B135: =IF('DF raw data'!N135="","",'DF raw data'!N135) -> -3.07807e-05 | C135: =IF('DF raw data'!O135="","",'DF raw data'!O135) -> -0.000232601 | D135: =IF('DF raw data'!P135="","",'DF raw data'!P135) -> -4.37699e-05 | F135: -1.615602782e-06 | G135: 5.737033048e-06 | H135: -1.021454069e-06 | J135: -0.000145618348 | K135: -0.00181863186 | L135: 0.0002997096018 | M135: 0.005949509438 | N135: 1.409825702e-06
A136: =IF('DF raw data'!M136="","",'DF raw data'!M136) -> -265.5 | B136: =IF('DF raw data'!N136="","",'DF raw data'!N136) -> -3.23875e-05 | C136: =IF('DF raw data'!O136="","",'DF raw data'!O136) -> -0.00023707 | D136: =IF('DF raw data'!P136="","",'DF raw data'!P136) -> -3.8162e-05 | F136: -3.23061353e-06 | G136: 1.245196458e-06 | H136: 4.6151023e-06 | J136: -0.0001472336548 | K136: -0.001892248688 | L136: 0.0003003322 | M136: 0.006099675538 | N136: 1.465764292e-06
A137: =IF('DF raw data'!M137="","",'DF raw data'!M137) -> -265 | B137: =IF('DF raw data'!N137="","",'DF raw data'!N137) -> -3.62378e-05 | C137: =IF('DF raw data'!O137="","",'DF raw data'!O137) -> -0.00023749 | D137: =IF('DF raw data'!P137="","",'DF raw data'!P137) -> -3.44993e-05 | F137: -7.100588563e-06 | G137: 8.230502582e-07 | H137: 8.296518697e-06 | J137: -0.0001507839491 | K137: -0.001967640662 | L137: 0.0003007437251 | M137: 0.006250047401 | N137: 1.522355586e-06
A138: =IF('DF raw data'!M138="","",'DF raw data'!M138) -> -264.5 | B138: =IF('DF raw data'!N138="","",'DF raw data'!N138) -> -3.73284e-05 | C138: =IF('DF raw data'!O138="","",'DF raw data'!O138) -> -0.000234369 | D138: =IF('DF raw data'!P138="","",'DF raw data'!P138) -> -3.41202e-05 | F138: -8.196761529e-06 | G138: 3.959998568e-06 | H138: 8.677555898e-06 | J138: -0.0001548823298 | K138: -0.002045081827 | L138: 0.0003027237244 | M138: 0.006401409263 | N138: 1.58017068e-06
A139: =IF('DF raw data'!M139="","",'DF raw data'!M139) -> -264 | B139: =IF('DF raw data'!N139="","",'DF raw data'!N139) -> -4.25218e-05 | C139: =IF('DF raw data'!O139="","",'DF raw data'!O139) -> -0.000228182 | D139: =IF('DF raw data'!P139="","",'DF raw data'!P139) -> -3.62819e-05 | F139: -1.34166998e-05 | G139: 1.017861414e-05 | H139: 6.504809611e-06 | J139: -0.0001615906797 | K139: -0.002125877167 | L139: 0.0003078130315 | M139: 0.006555315778 | N139: 1.640600885e-06
A140: =IF('DF raw data'!M140="","",'DF raw data'!M140) -> -263.5 | B140: =IF('DF raw data'!N140="","",'DF raw data'!N140) -> -4.04009e-05 | C140: =IF('DF raw data'!O140="","",'DF raw data'!O140) -> -0.000227994 | D140: =IF('DF raw data'!P140="","",'DF raw data'!P140) -> -4.30352e-05 | F140: -1.1284962e-05 | G140: 1.036757482e-05 | H140: -2.829997522e-07 | J140: -0.0001672331607 | K140: -0.002209493748 | L140: 0.0003129968189 | M140: 0.006711814188 | N140: 1.703567855e-06
A141: =IF('DF raw data'!M141="","",'DF raw data'!M141) -> -263 | B141: =IF('DF raw data'!N141="","",'DF raw data'!N141) -> -4.29614e-05 | C141: =IF('DF raw data'!O141="","",'DF raw data'!O141) -> -0.00022696 | D141: =IF('DF raw data'!P141="","",'DF raw data'!P141) -> -5.03587e-05 | F141: -1.385854616e-05 | G141: 1.140685856e-05 | H141: -7.643922837e-06 | J141: -0.0001741624338 | K141: -0.002296574964 | L141: 0.0003187002482 | M141: 0.006871164312 | N141: 1.769519055e-06
A142: =IF('DF raw data'!M142="","",'DF raw data'!M142) -> -262.5 | B142: =IF('DF raw data'!N142="","",'DF raw data'!N142) -> -3.93759e-05 | C142: =IF('DF raw data'!O142="","",'DF raw data'!O142) -> -0.00023191 | D142: =IF('DF raw data'!P142="","",'DF raw data'!P142) -> -4.13248e-05 | F142: -1.025472425e-05 | G142: 6.431564058e-06 | H142: 1.436140392e-06 | J142: -0.000179289796 | K142: -0.002386219862 | L142: 0.0003219160302 | M142: 0.007032122327 | N142: 1.837406436e-06
A143: =IF('DF raw data'!M143="","",'DF raw data'!M143) -> -262 | B143: =IF('DF raw data'!N143="","",'DF raw data'!N143) -> -4.92488e-05 | C143: =IF('DF raw data'!O143="","",'DF raw data'!O143) -> -0.000230229 | D143: =IF('DF raw data'!P143="","",'DF raw data'!P143) -> -4.67759e-05 | F143: -2.017807477e-05 | G143: 8.121153968e-06 | H143: -4.042814729e-06 | J143: -0.0001893788333 | K143: -0.002480909279 | L143: 0.0003259766072 | M143: 0.007195110631 | N143: 1.908468982e-06
A144: =IF('DF raw data'!M144="","",'DF raw data'!M144) -> -261.5 | B144: =IF('DF raw data'!N144="","",'DF raw data'!N144) -> -4.14243e-05 | C144: =IF('DF raw data'!O144="","",'DF raw data'!O144) -> -0.000239892 | D144: =IF('DF raw data'!P144="","",'DF raw data'!P144) -> -4.72002e-05 | F144: -1.231359158e-05 | G144: -1.591223962e-06 | H144: -4.469282902e-06 | J144: -0.0001955356291 | K144: -0.002578677094 | L144: 0.0003251809952 | M144: 0.007357701128 | N144: 1.980457413e-06
A145: =IF('DF raw data'!M145="","",'DF raw data'!M145) -> -261 | B145: =IF('DF raw data'!N145="","",'DF raw data'!N145) -> -3.44359e-05 | C145: =IF('DF raw data'!O145="","",'DF raw data'!O145) -> -0.000244608 | D145: =IF('DF raw data'!P145="","",'DF raw data'!P145) -> -4.40024e-05 | F145: -5.289480854e-06 | G145: -6.331322722e-06 | H145: -1.255142144e-06 | J145: -0.0001981803696 | K145: -0.002677767278 | L145: 0.0003220153338 | M145: 0.007518708795 | N145: 2.05194208e-06
A146: =IF('DF raw data'!M146="","",'DF raw data'!M146) -> -260.5 | B146: =IF('DF raw data'!N146="","",'DF raw data'!N146) -> -3.31536e-05 | C146: =IF('DF raw data'!O146="","",'DF raw data'!O146) -> -0.000234765 | D146: =IF('DF raw data'!P146="","",'DF raw data'!P146) -> -4.3539e-05 | F146: -4.000628301e-06 | G146: 3.561975008e-06 | H146: -7.893741702e-07 | J146: -0.0002001806837 | K146: -0.00277785762 | L146: 0.0003237963213 | M146: 0.007680606956 | N146: 2.124400262e-06
A147: =IF('DF raw data'!M147="","",'DF raw data'!M147) -> -260 | B147: =IF('DF raw data'!N147="","",'DF raw data'!N147) -> -4.0972e-05 | C147: =IF('DF raw data'!O147="","",'DF raw data'!O147) -> -0.000241967 | D147: =IF('DF raw data'!P147="","",'DF raw data'!P147) -> -5.25547e-05 | F147: -1.185898033e-05 | G147: -3.676827212e-06 | H147: -9.851144397e-06 | J147: -0.0002061101739 | K147: -0.002880912707 | L147: 0.0003219579077 | M147: 0.00784158591 | N147: 2.197469411e-06
A148: =IF('DF raw data'!M148="","",'DF raw data'!M148) -> -259.5 | B148: =IF('DF raw data'!N148="","",'DF raw data'!N148) -> -4.29014e-05 | C148: =IF('DF raw data'!O148="","",'DF raw data'!O148) -> -0.00024275 | D148: =IF('DF raw data'!P148="","",'DF raw data'!P148) -> -4.42301e-05 | F148: -1.379823956e-05 | G148: -4.463828342e-06 | H148: -1.484005691e-06 | J148: -0.0002130092936 | K148: -0.002987417354 | L148: 0.0003197259936 | M148: 0.008001448907 | N148: 2.271268246e-06
A149: =IF('DF raw data'!M149="","",'DF raw data'!M149) -> -259 | B149: =IF('DF raw data'!N149="","",'DF raw data'!N149) -> -4.53394e-05 | C149: =IF('DF raw data'!O149="","",'DF raw data'!O149) -> -0.000237855 | D149: =IF('DF raw data'!P149="","",'DF raw data'!P149) -> -4.2677e-05 | F149: -1.624869774e-05 | G149: 4.561851082e-07 | H149: 7.70306498e-08 | J149: -0.0002211336425 | K149: -0.003097984175 | L149: 0.0003199540861 | M149: 0.00816142595 | N149: 2.346903598e-06
A150: =IF('DF raw data'!M150="","",'DF raw data'!M150) -> -258.5 | B150: =IF('DF raw data'!N150="","",'DF raw data'!N150) -> -2.53306e-05 | C150: =IF('DF raw data'!O150="","",'DF raw data'!O150) -> -0.000233974 | D150: =IF('DF raw data'!P150="","",'DF raw data'!P150) -> -4.20844e-05 | F150: 3.862347229e-06 | G150: 4.357017018e-06 | H150: 6.726588358e-07 | J150: -0.0002192024689 | K150: -0.00320758541 | L150: 0.0003221325946 | M150: 0.008322492247 | N150: 2.422813164e-06
A151: =IF('DF raw data'!M151="","",'DF raw data'!M151) -> -258 | B151: =IF('DF raw data'!N151="","",'DF raw data'!N151) -> -4.17474e-05 | C151: =IF('DF raw data'!O151="","",'DF raw data'!O151) -> -0.000234008 | D151: =IF('DF raw data'!P151="","",'DF raw data'!P151) -> -4.3635e-05 | F151: -1.263834262e-05 | G151: 4.322843278e-06 | H151: -8.858647302e-07 | J151: -0.0002255216402 | K151: -0.00332034623 | L151: 0.0003242940163 | M151: 0.008484639255 | N151: 2.500826473e-06
A152: =IF('DF raw data'!M152="","",'DF raw data'!M152) -> -257.5 | B152: =IF('DF raw data'!N152="","",'DF raw data'!N152) -> -4.05925e-05 | C152: =IF('DF raw data'!O152="","",'DF raw data'!O152) -> -0.000238516 | D152: =IF('DF raw data'!P152="","",'DF raw data'!P152) -> -4.44169e-05 | F152: -1.147754108e-05 | G152: -2.081926018e-07 | H152: -1.671760239e-06 | J152: -0.0002312604108 | K152: -0.003435976435 | L152: 0.00032418992 | M152: 0.008646734215 | N152: 2.580116714e-06
A153: =IF('DF raw data'!M153="","",'DF raw data'!M153) -> -257 | B153: =IF('DF raw data'!N153="","",'DF raw data'!N153) -> -4.35462e-05 | C153: =IF('DF raw data'!O153="","",'DF raw data'!O153) -> -0.000243226 | D153: =IF('DF raw data'!P153="","",'DF raw data'!P153) -> -3.87716e-05 | F153: -1.444633449e-05 | G153: -4.942260702e-06 | H153: 4.002387244e-06 | J153: -0.000238483578 | K153: -0.003555218224 | L153: 0.0003217187896 | M153: 0.00880759361 | N153: 2.660305412e-06
A154: =IF('DF raw data'!M154="","",'DF raw data'!M154) -> -256.5 | B154: =IF('DF raw data'!N154="","",'DF raw data'!N154) -> -4.07839e-05 | C154: =IF('DF raw data'!O154="","",'DF raw data'!O154) -> -0.000235477 | D154: =IF('DF raw data'!P154="","",'DF raw data'!P154) -> -4.58228e-05 | F154: -1.166991913e-05 | G154: 2.846336688e-06 | H154: -3.084844388e-06 | J154: -0.0002443185376 | K154: -0.003677377493 | L154: 0.0003231419579 | M154: 0.008969164589 | N154: 2.742361549e-06
A155: =IF('DF raw data'!M155="","",'DF raw data'!M155) -> -256 | B155: =IF('DF raw data'!N155="","",'DF raw data'!N155) -> -4.39952e-05 | C155: =IF('DF raw data'!O155="","",'DF raw data'!O155) -> -0.000226852 | D155: =IF('DF raw data'!P155="","",'DF raw data'!P155) -> -3.84521e-05 | F155: -1.489762888e-05 | G155: 1.151541044e-05 | H155: 4.323519889e-06 | J155: -0.000251767352 | K155: -0.003803261169 | L155: 0.0003288996632 | M155: 0.00913361442 | N155: 2.828142443e-06
A156: =IF('DF raw data'!M156="","",'DF raw data'!M156) -> -255.5 | B156: =IF('DF raw data'!N156="","",'DF raw data'!N156) -> -3.11633e-05 | C156: =IF('DF raw data'!O156="","",'DF raw data'!O156) -> -0.000230802 | D156: =IF('DF raw data'!P156="","",'DF raw data'!P156) -> -4.72348e-05 | F156: -2.000157868e-06 | G156: 7.545225938e-06 | H156: -4.504059708e-06 | J156: -0.0002527674309 | K156: -0.003929644884 | L156: 0.0003326722761 | M156: 0.009299950558 | N156: 2.915423552e-06
A157: =IF('DF raw data'!M157="","",'DF raw data'!M157) -> -255 | B157: =IF('DF raw data'!N157="","",'DF raw data'!N157) -> -3.77651e-05 | C157: =IF('DF raw data'!O157="","",'DF raw data'!O157) -> -0.000240821 | D157: =IF('DF raw data'!P157="","",'DF raw data'!P157) -> -5.31352e-05 | F157: -8.635693066e-06 | G157: -2.524971152e-06 | H157: -1.043461075e-05 | J157: -0.0002570852775 | K157: -0.004058187523 | L157: 0.0003314097906 | M157: 0.009465655454 | N157: 3.003386196e-06
A158: =IF('DF raw data'!M158="","",'DF raw data'!M158) -> -254.5 | B158: =IF('DF raw data'!N158="","",'DF raw data'!N158) -> -4.20047e-05 | C158: =IF('DF raw data'!O158="","",'DF raw data'!O158) -> -0.000238386 | D158: =IF('DF raw data'!P158="","",'DF raw data'!P158) -> -4.23927e-05 | F158: -1.289695742e-05 | G158: -7.752830183e-08 | H158: 3.627834228e-07 | J158: -0.0002635337562 | K158: -0.004189954401 | L158: 0.0003313710264 | M158: 0.009631340967 | N158: 3.093014595e-06
A159: =IF('DF raw data'!M159="","",'DF raw data'!M159) -> -254 | B159: =IF('DF raw data'!N159="","",'DF raw data'!N159) -> -3.75128e-05 | C159: =IF('DF raw data'!O159="","",'DF raw data'!O159) -> -0.000234152 | D159: =IF('DF raw data'!P159="","",'DF raw data'!P159) -> -4.66123e-05 | F159: -8.382103813e-06 | G159: 4.178107438e-06 | H159: -3.878378733e-06 | J159: -0.0002677248081 | K159: -0.004323816805 | L159: 0.0003334600801 | M159: 0.009798071007 | N159: 3.184450694e-06
